Workbook

Sheet Capa_Orçamento
E5: Diretoria de Infraestrutura Rodoviária
E6: Coordenação-Geral de Manutenção e Restauração Rodoviária
B34: Apêndice – Orçamento Referencial

Sheet Capa_Modelo Proposta
E5: Diretoria de Infraestrutura Rodoviária
E6: Coordenação-Geral de Manutenção e Restauração Rodoviária
B32: Apêndice – Modelo de Proposta de Preço

Sheet Capa_Modelo Cronograma
E5: Diretoria de Infraestrutura Rodoviária
E6: Coordenação-Geral de Manutenção e Restauração Rodoviária
B32: Apêndice – Cronograma Físico-Financeiro

Sheet Proposta Comercial
I2: ='QD 5 - Canteiro'!$S$2 -> LOTE XX
I4: QUADRO 02
B6: ="RODOVIA: "&Premissa!$C$6 -> RODOVIA: BR 000/XX - BR 000/XX - BR 000/XX
B7: ="ESTADO: "&VLOOKUP(Premissa!$C$1,Premissa!$B$30:$C$56,2,FALSE) -> 
B8: ="EXTENSÃO: "&Premissa!$C$7&" km" -> 
B10: ='QD 2 - Orçamento'!B10 -> LOTE XX | C10: ='QD 2 - Orçamento'!C10 -> - UF/XX | D10: PROPOSTA COMERCIAL | I10: =Premissa!B20&Premissa!C20 -> Data Base:Mês/20XX
B11: ='QD 2 - Orçamento'!B11 -> ITEM | C11: ='QD 2 - Orçamento'!C11 -> CÓDIGO | D11: ='QD 2 - Orçamento'!D11 -> DISCRIMINAÇÃO | E11: ='QD 2 - Orçamento'!E11 -> UNID. | F11: ='QD 2 - Orçamento'!F11 -> QTDE | G11: ='QD 2 - Orçamento'!G11 -> PREÇO UNITÁRIO (R$) (em algarismos e por extenso) | H11: ='QD 2 - Orçamento'!H11 -> 0 | I11: ='QD 2 - Orçamento'!I11 -> TOTAL R$
B12: ='QD 2 - Orçamento'!B12 -> 1 | D12: ='QD 2 - Orçamento'!D12 -> SERVIÇOS PRELIMINARES | E12: ='QD 2 - Orçamento'!E12 -> 0 | F12: ='QD 2 - Orçamento'!F12 -> 0 | G12: ='QD 2 - Orçamento'!G12 -> 0 | I12: =SUM(I13:I16) -> 0
B13: ='QD 2 - Orçamento'!B13 -> 1.1 | C13: ='QD 2 - Orçamento'!C13 -> ADM1 | D13: ='QD 2 - Orçamento'!D13 -> Instalação de canteiro de obras | E13: ='QD 2 - Orçamento'!E13 -> und. | F13: ='QD 2 - Orçamento'!F13 -> 1
B14: ='QD 2 - Orçamento'!B14 -> 1.2 | C14: ='QD 2 - Orçamento'!C14 -> ADM2 | D14: ='QD 2 - Orçamento'!D14 -> Administração Local / Manutenção do canteiro de obras | E14: ='QD 2 - Orçamento'!E14 -> % | F14: ='QD 2 - Orçamento'!F14 -> 1
B15: ='QD 2 - Orçamento'!B15 -> 1.3 | C15: ='QD 2 - Orçamento'!C15 -> ADM3 | D15: ='QD 2 - Orçamento'!D15 -> Mobilização e desmobilização | E15: ='QD 2 - Orçamento'!E15 -> und. | F15: ='QD 2 - Orçamento'!F15 -> 2
B16: ='QD 2 - Orçamento'!B16 -> 1.4 | C16: ='QD 2 - Orçamento'!C16 -> 74209/001 | D16: ='QD 2 - Orçamento'!D16 -> Fornecimento e Instalação de 2 Placa de Obra Conforme Manual de Placas OBRAS DNIT (4,80 x 3,00) - REF SINAPI | E16: ='QD 2 - Orçamento'!E16 -> m² | F16: ='QD 2 - Orçamento'!F16 -> 28.8
B17: ='QD 2 - Orçamento'!B17 -> 2 | D17: ='QD 2 - Orçamento'!D17 -> SINALIZAÇÃO HORIZONTAL | E17: ='QD 2 - Orçamento'!E17 -> 0 | F17: ='QD 2 - Orçamento'!F17 -> 0 | G17: ='QD 2 - Orçamento'!G17 -> 0 | I17: =SUM(I18:I28) -> 0
B18: ='QD 2 - Orçamento'!B18 -> 2.1 | C18: ='QD 2 - Orçamento'!C18 -> 5213413A | D18: ='QD 2 - Orçamento'!D18 -> Pintura de faixa - plástico a frio tipo I - espessura de 0,6 mm - aspersão​ | E18: ='QD 2 - Orçamento'!E18 -> m² | F18: ='QD 2 - Orçamento'!F18 -> 0
B19: ='QD 2 - Orçamento'!B19 -> 2.2 | C19: ='QD 2 - Orçamento'!C19 -> 5213408 | D19: ='QD 2 - Orçamento'!D19 -> Pintura de faixa - termoplástico por aspersão - espessura de 1,5 mm | E19: ='QD 2 - Orçamento'!E19 -> m² | F19: ='QD 2 - Orçamento'!F19 -> 0
B20: ='QD 2 - Orçamento'!B20 -> 2.3 | C20: ='QD 2 - Orçamento'!C20 -> 5213403 | D20: ='QD 2 - Orçamento'!D20 -> Pintura de faixa - tinta base acrílica emulsionada em água - espessura de 0,5 mm | E20: ='QD 2 - Orçamento'!E20 -> m² | F20: ='QD 2 - Orçamento'!F20 -> 0
B21: ='QD 2 - Orçamento'!B21 -> 2.4 | C21: ='QD 2 - Orçamento'!C21 -> 5213402 | D21: ='QD 2 - Orçamento'!D21 -> Pintura de faixa - tinta base acrílica emulsionada em água - espessura de 0,4 mm | E21: ='QD 2 - Orçamento'!E21 -> m² | F21: ='QD 2 - Orçamento'!F21 -> 0
B22: ='QD 2 - Orçamento'!B22 -> 2.5 | C22: ='QD 2 - Orçamento'!C22 -> 5213409 | D22: ='QD 2 - Orçamento'!D22 -> Pintura de setas e zebrados - termoplástico por extrusão - espessura de 3,0 mm | E22: ='QD 2 - Orçamento'!E22 -> m² | F22: ='QD 2 - Orçamento'!F22 -> 0
B23: ='QD 2 - Orçamento'!B23 -> 2.6 | C23: ='QD 2 - Orçamento'!C23 -> 5219640 | D23: ='QD 2 - Orçamento'!D23 -> Tacha refletiva metálica - monodirecional tipo III - com um pino - fornecimento e colocação | E23: ='QD 2 - Orçamento'!E23 -> un | F23: ='QD 2 - Orçamento'!F23 -> 0
B24: ='QD 2 - Orçamento'!B24 -> 2.7 | C24: ='QD 2 - Orçamento'!C24 -> 5219636 | D24: ='QD 2 - Orçamento'!D24 -> Tacha refletiva metálica - bidirecional tipo III - com um pino - fornecimento e colocação | E24: ='QD 2 - Orçamento'!E24 -> un | F24: ='QD 2 - Orçamento'!F24 -> 0
B25: ='QD 2 - Orçamento'!B25 -> 2.8 | C25: ='QD 2 - Orçamento'!C25 -> 5219608 | D25: ='QD 2 - Orçamento'!D25 -> Tacha refletiva em plástico injetado - bidirecional tipo III - com um pino - fornecimento e colocação | E25: ='QD 2 - Orçamento'!E25 -> un | F25: ='QD 2 - Orçamento'!F25 -> 0
B26: ='QD 2 - Orçamento'!B26 -> 2.9 | C26: ='QD 2 - Orçamento'!C26 -> 5219615 | D26: ='QD 2 - Orçamento'!D26 -> Tacha refletiva em plástico injetado - monodirecional tipo III - com um pino - fornecimento e colocação | E26: ='QD 2 - Orçamento'!E26 -> un | F26: ='QD 2 - Orçamento'!F26 -> 0
B27: ='QD 2 - Orçamento'!B27 -> 2.10 | C27: ='QD 2 - Orçamento'!C27 -> 5213837 | D27: ='QD 2 - Orçamento'!D27 -> Delimitador de tráfego flexível com duas faixas refletivas D = 20 cm e H = 80 cm com chumbador | E27: ='QD 2 - Orçamento'!E27 -> un | F27: ='QD 2 - Orçamento'!F27 -> 0
B28: ='QD 2 - Orçamento'!B28 -> 2.11 | C28: ='QD 2 - Orçamento'!C28 -> 5214004 | D28: ='QD 2 - Orçamento'!D28 -> Pintura de faixa - termoplástico em alto relevo tipo II - relevo simples ranhurado - base | E28: ='QD 2 - Orçamento'!E28 -> m² | F28: ='QD 2 - Orçamento'!F28 -> 0
B29: ='QD 2 - Orçamento'!B29 -> 3 | D29: ='QD 2 - Orçamento'!D29 -> SINALIZAÇÃO VERTICAL | E29: ='QD 2 - Orçamento'!E29 -> 0 | F29: ='QD 2 - Orçamento'!F29 -> 0 | G29: ='QD 2 - Orçamento'!G29 -> 0 | I29: =SUM(I30:I44) -> 0
B30: ='QD 2 - Orçamento'!B30 -> 3.1 | C30: ='QD 2 - Orçamento'!C30 -> 5213572A | D30: ='QD 2 - Orçamento'!D30 -> Fornecimento e implantação de placa em aço - película III + SI (Sinal Impresso Digital c/ Overlay) | E30: ='QD 2 - Orçamento'!E30 -> m² | F30: ='QD 2 - Orçamento'!F30 -> 0
B31: ='QD 2 - Orçamento'!B31 -> 3.2 | C31: ='QD 2 - Orçamento'!C31 -> 5213487A | D31: ='QD 2 - Orçamento'!D31 -> Fornecimento e implantação de placa em alumínio composto, espessura de 3,0 mm. - película retrorrefletiva tipo III + SI (Sinal Impresso Digital c/ Overlay) | E31: ='QD 2 - Orçamento'!E31 -> m² | F31: ='QD 2 - Orçamento'!F31 -> 0
B32: ='QD 2 - Orçamento'!B32 -> 3.3 | C32: ='QD 2 - Orçamento'!C32 -> 5213487B | D32: ='QD 2 - Orçamento'!D32 -> Fornecimento e implantação de placa em alumínio composto, espessura de 3,0 mm, modulada, aérea - película retrorrefletiva tipo X + SI (Sinal Impresso Digital c/ Overlay) | E32: ='QD 2 - Orçamento'!E32 -> m² | F32: ='QD 2 - Orçamento'!F32 -> 0
B33: ='QD 2 - Orçamento'!B33 -> 3.4 | C33: ='QD 2 - Orçamento'!C33 -> 5213352 | D33: ='QD 2 - Orçamento'!D33 -> Fornecimento e implantação de suporte polimérico ecológico maciço quadrado de 8 cm para placa de sinalização | E33: ='QD 2 - Orçamento'!E33 -> un | F33: ='QD 2 - Orçamento'!F33 -> 0
B34: ='QD 2 - Orçamento'!B34 -> 3.5 | C34: ='QD 2 - Orçamento'!C34 -> 5213353 | D34: ='QD 2 - Orçamento'!D34 -> Fornecimento e implantação de suporte polimérico ecológico maciço colapsível retangular de 7 x 15 cm para placa de sinalização | E34: ='QD 2 - Orçamento'!E34 -> un | F34: ='QD 2 - Orçamento'!F34 -> 0
B35: ='QD 2 - Orçamento'!B35 -> 3.6 | C35: ='QD 2 - Orçamento'!C35 -> 5213350 | D35: ='QD 2 - Orçamento'!D35 -> Fornecimento e implantação de suporte polimérico ecológico maciço colapsível quadrado de 10 cm para placa de sinalização | E35: ='QD 2 - Orçamento'!E35 -> un | F35: ='QD 2 - Orçamento'!F35 -> 0
B36: ='QD 2 - Orçamento'!B36 -> 3.7 | C36: ='QD 2 - Orçamento'!C36 -> 5213868 | D36: ='QD 2 - Orçamento'!D36 -> Fornecimento e implantação de suporte metálico galvanizado para placas - 2,00 x 1,00 m | E36: ='QD 2 - Orçamento'!E36 -> un | F36: ='QD 2 - Orçamento'!F36 -> 0
B37: ='QD 2 - Orçamento'!B37 -> 3.8 | C37: ='QD 2 - Orçamento'!C37 -> 5213869 | D37: ='QD 2 - Orçamento'!D37 -> Fornecimento e implantação de suporte metálico galvanizado para placas - 3,00 x 1,50 m | E37: ='QD 2 - Orçamento'!E37 -> un | F37: ='QD 2 - Orçamento'!F37 -> 0
B38: ='QD 2 - Orçamento'!B38 -> 3.9 | C38: ='QD 2 - Orçamento'!C38 -> 5213870 | D38: ='QD 2 - Orçamento'!D38 -> Fornecimento e implantação de suporte metálico galvanizado para placas - 3,00 x 2,00 m | E38: ='QD 2 - Orçamento'!E38 -> un | F38: ='QD 2 - Orçamento'!F38 -> 0
B39: ='QD 2 - Orçamento'!B39 -> 3.10 | C39: ='QD 2 - Orçamento'!C39 -> 5213871 | D39: ='QD 2 - Orçamento'!D39 -> Fornecimento e implantação de suporte metálico galvanizado para placas - 4,00 x 2,00 m | E39: ='QD 2 - Orçamento'!E39 -> un | F39: ='QD 2 - Orçamento'!F39 -> 0
B40: ='QD 2 - Orçamento'!B40 -> 3.11 | C40: ='QD 2 - Orçamento'!C40 -> 5213872 | D40: ='QD 2 - Orçamento'!D40 -> Fornecimento e implantação de suporte metálico galvanizado para placas - 4,00 x 3,00 m | E40: ='QD 2 - Orçamento'!E40 -> un | F40: ='QD 2 - Orçamento'!F40 -> 0
B41: ='QD 2 - Orçamento'!B41 -> 3.12 | C41: ='QD 2 - Orçamento'!C41 -> 5213649 | D41: ='QD 2 - Orçamento'!D41 -> Pórtico metálico com vão de 15,9 m, vento de 35 m/s, área de exposição de até 23,85 m², tensão admissível solo > 200 kN/m² - areia e brita comerciais | E41: ='QD 2 - Orçamento'!E41 -> un | F41: ='QD 2 - Orçamento'!F41 -> 1
B42: ='QD 2 - Orçamento'!B42 -> 3.13 | C42: ='QD 2 - Orçamento'!C42 -> 5213630 | D42: ='QD 2 - Orçamento'!D42 -> Semi-pórtico metálico com vão de 8,3 m, vento de 35 m/s, área de exposição de até 12,45 m², tensão admissível solo > 200 kN/m² - areia e brita comerciais | E42: ='QD 2 - Orçamento'!E42 -> un | F42: ='QD 2 - Orçamento'!F42 -> 1
B43: ='QD 2 - Orçamento'!B43 -> 3.14 | C43: ='QD 2 - Orçamento'!C43 -> 5213636 | D43: ='QD 2 - Orçamento'!D43 -> Semi-pórtico duplo metálico com vão de 2 x 8,3 m, vento de 35 m/s, área de exposição de até 2 x 12,45 m², tensão admissível solo > 200 kN/m² - areia e brita comerciais | E43: ='QD 2 - Orçamento'!E43 -> un | F43: ='QD 2 - Orçamento'!F43 -> 1
B44: ='QD 2 - Orçamento'!B44 -> 3.15 | C44: ='QD 2 - Orçamento'!C44 -> NOVA 01 | D44: ='QD 2 - Orçamento'!D44 -> Suporte metálico com braço projetado - Área de Exposição até 4,50 m² - Fornecimento e Implantação | E44: ='QD 2 - Orçamento'!E44 -> un | F44: ='QD 2 - Orçamento'!F44 -> 0
B45: ='QD 2 - Orçamento'!B45 -> 4 | D45: ='QD 2 - Orçamento'!D45 -> DISPOSITIVOS DE SEGURANÇA | E45: ='QD 2 - Orçamento'!E45 -> 0 | F45: ='QD 2 - Orçamento'!F45 -> 0 | G45: ='QD 2 - Orçamento'!G45 -> 0 | I45: =SUM(I46:I58) -> 0
B46: ='QD 2 - Orçamento'!B46 -> 4.1 | C46: ='QD 2 - Orçamento'!C46 -> NOVA 08 | D46: ='QD 2 - Orçamento'!D46 -> Dispositivo de contenção longitudinal, certificado segundo a ABNT NBR 15486:2016, tipo (H4b A W4) - Defensa Metálica - Fornecimento e Implantação | E46: ='QD 2 - Orçamento'!E46 -> m | F46: ='QD 2 - Orçamento'!F46 -> 0
B47: ='QD 2 - Orçamento'!B47 -> 4.2 | C47: ='QD 2 - Orçamento'!C47 -> NOVA 09 | D47: ='QD 2 - Orçamento'!D47 -> Dispositivo de contenção longitudinal, certificado segundo a ABNT NBR 15486:2016, tipo (H4b A W5) - Defensa Metálica - Fornecimento e Implantação | E47: ='QD 2 - Orçamento'!E47 -> m | F47: ='QD 2 - Orçamento'!F47 -> 0
B48: ='QD 2 - Orçamento'!B48 -> 4.3 | C48: ='QD 2 - Orçamento'!C48 -> NOVA 07 | D48: ='QD 2 - Orçamento'!D48 -> Dispositivo de contenção longitudinal, certificado segundo a ABNT NBR 15486:2016, tipo (H3 A W5) - Defensa Metálica - Fornecimento e Implantação | E48: ='QD 2 - Orçamento'!E48 -> m | F48: ='QD 2 - Orçamento'!F48 -> 0
B49: ='QD 2 - Orçamento'!B49 -> 4.4 | C49: ='QD 2 - Orçamento'!C49 -> NOVA 06 | D49: ='QD 2 - Orçamento'!D49 -> Dispositivo de contenção longitudinal, certificado segundo a ABNT NBR 15486:2016, tipo (H2 A W3) - Defensa Metálica - Fornecimento e Implantação | E49: ='QD 2 - Orçamento'!E49 -> m | F49: ='QD 2 - Orçamento'!F49 -> 0
B50: ='QD 2 - Orçamento'!B50 -> 4.5 | C50: ='QD 2 - Orçamento'!C50 -> NOVA 05 | D50: ='QD 2 - Orçamento'!D50 -> Dispositivo de contenção longitudinal, certificado segundo a ABNT NBR 15486:2016, tipo (H1 A W2) - Defensa Metálica - Fornecimento e Implantação | E50: ='QD 2 - Orçamento'!E50 -> m | F50: ='QD 2 - Orçamento'!F50 -> 0
B51: ='QD 2 - Orçamento'!B51 -> 4.6 | C51: ='QD 2 - Orçamento'!C51 -> NOVA 04 | D51: ='QD 2 - Orçamento'!D51 -> Dispositivo de contenção longitudinal, certificado segundo a ABNT NBR 15486:2016, tipo (N2 A W2) - Defensa Metálica - Fornecimento e Implantação | E51: ='QD 2 - Orçamento'!E51 -> m | F51: ='QD 2 - Orçamento'!F51 -> 0
B52: ='QD 2 - Orçamento'!B52 -> 4.7 | C52: ='QD 2 - Orçamento'!C52 -> NOVA 10 | D52: ='QD 2 - Orçamento'!D52 -> Terminal absorvedor de energia, certificado segundo a ABNT NBR 15.486:2016, especificado conforme NCHRP 350 nível de ensaio 2 (70 km/h) ou EN 1317 nível de ensaio 2 (80 km/h) – fornecimento e instalação | E52: ='QD 2 - Orçamento'!E52 -> un | F52: ='QD 2 - Orçamento'!F52 -> 0
B53: ='QD 2 - Orçamento'!B53 -> 4.8 | C53: ='QD 2 - Orçamento'!C53 -> NOVA 11 | D53: ='QD 2 - Orçamento'!D53 -> Terminal absorvedor de energia, certificado segundo a ABNT NBR 15.486:2016, especificado conforme NCHRP 350 nível de ensaio 3 (100 km/h) ou EN 1317 nível de ensaio 3 (100 km/h) - Fornecimento e instalação | E53: ='QD 2 - Orçamento'!E53 -> un | F53: ='QD 2 - Orçamento'!F53 -> 0
B54: ='QD 2 - Orçamento'!B54 -> 4.9 | C54: ='QD 2 - Orçamento'!C54 -> 3713605 | D54: ='QD 2 - Orçamento'!D54 -> Ancoragem de defensa semi-maleável simples - fornecimento e implantação | E54: ='QD 2 - Orçamento'!E54 -> m | F54: ='QD 2 - Orçamento'!F54 -> 0
B55: ='QD 2 - Orçamento'!B55 -> 4.10 | C55: ='QD 2 - Orçamento'!C55 -> 3713690 | D55: ='QD 2 - Orçamento'!D55 -> Terminal de ancoragem de defensa metálica em barreira New Jersey - fornecimento e implantação | E55: ='QD 2 - Orçamento'!E55 -> un | F55: ='QD 2 - Orçamento'!F55 -> 0
B56: ='QD 2 - Orçamento'!B56 -> 4.11 | C56: ='QD 2 - Orçamento'!C56 -> 3713873 | D56: ='QD 2 - Orçamento'!D56 -> Módulo de transição de defensa metálica para barreira rígida - fornecimento e implantação | E56: ='QD 2 - Orçamento'!E56 -> un | F56: ='QD 2 - Orçamento'!F56 -> 0
B57: ='QD 2 - Orçamento'!B57 -> 4.12 | C57: ='QD 2 - Orçamento'!C57 -> NOVA 02 | D57: ='QD 2 - Orçamento'!D57 -> Fornecimento e colocação de dispositivo Refletivo para defensas em tangente | E57: ='QD 2 - Orçamento'!E57 -> un | F57: ='QD 2 - Orçamento'!F57 -> 0
B58: ='QD 2 - Orçamento'!B58 -> 4.13 | C58: ='QD 2 - Orçamento'!C58 -> NOVA 03 | D58: ='QD 2 - Orçamento'!D58 -> Fornecimento e colocação de Painel de Delineamento Refletivo para defensas em curvas | E58: ='QD 2 - Orçamento'!E58 -> un | F58: ='QD 2 - Orçamento'!F58 -> 0
B59: ='QD 2 - Orçamento'!B59 -> 5 | D59: ='QD 2 - Orçamento'!D59 -> MANUTENÇÃO/CONSERVAÇÃO | E59: ='QD 2 - Orçamento'!E59 -> 0 | F59: ='QD 2 - Orçamento'!F59 -> 0 | G59: ='QD 2 - Orçamento'!G59 -> 0 | I59: =SUM(I60,I74,I94) -> 0
B60: ='QD 2 - Orçamento'!B60 -> 5.1 | D60: ='QD 2 - Orçamento'!D60 -> MANUTENÇÃO/CONSERVAÇÃO - SINALIZAÇÃO HORIZONTAL | E60: ='QD 2 - Orçamento'!E60 -> 0 | F60: ='QD 2 - Orçamento'!F60 -> 0 | G60: ='QD 2 - Orçamento'!G60 -> 0 | I60: =SUM(I61:I73) -> 0
B61: ='QD 2 - Orçamento'!B61 -> 5.1.1 | C61: ='QD 2 - Orçamento'!C61 -> 5213413B | D61: ='QD 2 - Orçamento'!D61 -> Manutenção/recomposição - pintura de faixa - plástico a frio tricomponente à base de resinas metacrílicas - espessura de 0,6 mm - aspersão | E61: ='QD 2 - Orçamento'!E61 -> m² | F61: ='QD 2 - Orçamento'!F61 -> 0
B62: ='QD 2 - Orçamento'!B62 -> 5.1.2 | C62: ='QD 2 - Orçamento'!C62 -> 5213408A | D62: ='QD 2 - Orçamento'!D62 -> Manutenção/recomposição - pintura de faixa - termoplástico por aspersão - espessura de 1,5 mm | E62: ='QD 2 - Orçamento'!E62 -> m² | F62: ='QD 2 - Orçamento'!F62 -> 0
B63: ='QD 2 - Orçamento'!B63 -> 5.1.3 | C63: ='QD 2 - Orçamento'!C63 -> 5213355 | D63: ='QD 2 - Orçamento'!D63 -> Manutenção/recomposição de sinalização - pintura de faixa com tinta acrílica emulsionada em água - espessura de 0,5 mm | E63: ='QD 2 - Orçamento'!E63 -> m² | F63: ='QD 2 - Orçamento'!F63 -> 0
B64: ='QD 2 - Orçamento'!B64 -> 5.1.4 | C64: ='QD 2 - Orçamento'!C64 -> 5219640 | D64: ='QD 2 - Orçamento'!D64 -> Tacha refletiva metálica - monodirecional tipo III - com um pino - fornecimento e colocação | E64: ='QD 2 - Orçamento'!E64 -> un | F64: ='QD 2 - Orçamento'!F64 -> 0
B65: ='QD 2 - Orçamento'!B65 -> 5.1.5 | C65: ='QD 2 - Orçamento'!C65 -> 5219636 | D65: ='QD 2 - Orçamento'!D65 -> Tacha refletiva metálica - bidirecional tipo III - com um pino - fornecimento e colocação | E65: ='QD 2 - Orçamento'!E65 -> un | F65: ='QD 2 - Orçamento'!F65 -> 0
B66: ='QD 2 - Orçamento'!B66 -> 5.1.6 | C66: ='QD 2 - Orçamento'!C66 -> 5219608 | D66: ='QD 2 - Orçamento'!D66 -> Tacha refletiva em plástico injetado - bidirecional tipo III - com um pino - fornecimento e colocação | E66: ='QD 2 - Orçamento'!E66 -> un | F66: ='QD 2 - Orçamento'!F66 -> 0
B67: ='QD 2 - Orçamento'!B67 -> 5.1.7 | C67: ='QD 2 - Orçamento'!C67 -> 5219615 | D67: ='QD 2 - Orçamento'!D67 -> Tacha refletiva em plástico injetado - monodirecional tipo III - com um pino - fornecimento e colocação | E67: ='QD 2 - Orçamento'!E67 -> un | F67: ='QD 2 - Orçamento'!F67 -> 0
B68: ='QD 2 - Orçamento'!B68 -> 5.1.8 | C68: ='QD 2 - Orçamento'!C68 -> 5213837 | D68: ='QD 2 - Orçamento'!D68 -> Delimitador de tráfego flexível com duas faixas refletivas D = 20 cm e H = 80 cm com chumbador | E68: ='QD 2 - Orçamento'!E68 -> un | F68: ='QD 2 - Orçamento'!F68 -> 0
B69: ='QD 2 - Orçamento'!B69 -> 5.1.9 | C69: ='QD 2 - Orçamento'!C69 -> 5213832 | D69: ='QD 2 - Orçamento'!D69 -> Remoção de sinalização horizontal com maçarico | E69: ='QD 2 - Orçamento'!E69 -> m² | F69: ='QD 2 - Orçamento'!F69 -> 0
B70: ='QD 2 - Orçamento'!B70 -> 5.1.10 | C70: ='QD 2 - Orçamento'!C70 -> 5213830 | D70: ='QD 2 - Orçamento'!D70 -> Remoção de sinalização horizontal por fresagem | E70: ='QD 2 - Orçamento'!E70 -> m² | F70: ='QD 2 - Orçamento'!F70 -> 0
B71: ='QD 2 - Orçamento'!B71 -> 5.1.11 | C71: ='QD 2 - Orçamento'!C71 -> 5213831 | D71: ='QD 2 - Orçamento'!D71 -> Remoção de sinalização horizontal tipo pintura acrílica por jateamento abrasivo úmido com vidro - utilização de 3 vezes | E71: ='QD 2 - Orçamento'!E71 -> m² | F71: ='QD 2 - Orçamento'!F71 -> 0
B72: ='QD 2 - Orçamento'!B72 -> 5.1.12 | C72: ='QD 2 - Orçamento'!C72 -> 5213360B | D72: ='QD 2 - Orçamento'!D72 -> Remoção de tachas e tachões | E72: ='QD 2 - Orçamento'!E72 -> un | F72: ='QD 2 - Orçamento'!F72 -> 0
B73: ='QD 2 - Orçamento'!B73 -> 5.1.13 | C73: ='QD 2 - Orçamento'!C73 -> NOVA 12 | D73: ='QD 2 - Orçamento'!D73 -> Limpeza de tachas refletivas | E73: ='QD 2 - Orçamento'!E73 -> un | F73: ='QD 2 - Orçamento'!F73 -> 0
B74: ='QD 2 - Orçamento'!B74 -> 5.2 | D74: ='QD 2 - Orçamento'!D74 -> MANUTENÇÃO/CONSERVAÇÃO - SINALIZAÇÃO VERTICAL | E74: ='QD 2 - Orçamento'!E74 -> 0 | F74: ='QD 2 - Orçamento'!F74 -> 0 | G74: ='QD 2 - Orçamento'!G74 -> 0 | I74: =SUM(I75:I93) -> 0
B75: ='QD 2 - Orçamento'!B75 -> 5.2.1 | C75: ='QD 2 - Orçamento'!C75 -> 4915719 | D75: ='QD 2 - Orçamento'!D75 -> Recomposição de placa de sinalização | E75: ='QD 2 - Orçamento'!E75 -> m² | F75: ='QD 2 - Orçamento'!F75 -> 0
B76: ='QD 2 - Orçamento'!B76 -> 5.2.2 | C76: ='QD 2 - Orçamento'!C76 -> 5213364 | D76: ='QD 2 - Orçamento'!D76 -> Remoção de placa de sinalização | E76: ='QD 2 - Orçamento'!E76 -> m² | F76: ='QD 2 - Orçamento'!F76 -> 0
B77: ='QD 2 - Orçamento'!B77 -> 5.2.3 | C77: ='QD 2 - Orçamento'!C77 -> 4915718 | D77: ='QD 2 - Orçamento'!D77 -> Limpeza de placa de sinalização | E77: ='QD 2 - Orçamento'!E77 -> m² | F77: ='QD 2 - Orçamento'!F77 -> 0
B78: ='QD 2 - Orçamento'!B78 -> 5.2.4 | C78: ='QD 2 - Orçamento'!C78 -> 4915744 | D78: ='QD 2 - Orçamento'!D78 -> Capina manual | E78: ='QD 2 - Orçamento'!E78 -> m² | F78: ='QD 2 - Orçamento'!F78 -> 0
B79: ='QD 2 - Orçamento'!B79 -> 5.2.5 | C79: ='QD 2 - Orçamento'!C79 -> 5213572A | D79: ='QD 2 - Orçamento'!D79 -> Fornecimento e implantação de placa em aço - película III + SI (Sinal Impresso Digital c/ Overlay) | E79: ='QD 2 - Orçamento'!E79 -> m² | F79: ='QD 2 - Orçamento'!F79 -> 0
B80: ='QD 2 - Orçamento'!B80 -> 5.2.6 | C80: ='QD 2 - Orçamento'!C80 -> 5213487A | D80: ='QD 2 - Orçamento'!D80 -> Fornecimento e implantação de placa em alumínio composto, espessura de 3,0 mm. - película retrorrefletiva tipo III + SI (Sinal Impresso Digital c/ Overlay) | E80: ='QD 2 - Orçamento'!E80 -> m² | F80: ='QD 2 - Orçamento'!F80 -> 0
B81: ='QD 2 - Orçamento'!B81 -> 5.2.7 | C81: ='QD 2 - Orçamento'!C81 -> 5213487B | D81: ='QD 2 - Orçamento'!D81 -> Fornecimento e implantação de placa em alumínio composto, espessura de 3,0 mm, modulada, aérea - película retrorrefletiva tipo X + SI (Sinal Impresso Digital c/ Overlay) | E81: ='QD 2 - Orçamento'!E81 -> m² | F81: ='QD 2 - Orçamento'!F81 -> 0
B82: ='QD 2 - Orçamento'!B82 -> 5.2.8 | C82: ='QD 2 - Orçamento'!C82 -> 5213352 | D82: ='QD 2 - Orçamento'!D82 -> Fornecimento e implantação de suporte polimérico ecológico maciço quadrado de 8 cm para placa de sinalização | E82: ='QD 2 - Orçamento'!E82 -> un | F82: ='QD 2 - Orçamento'!F82 -> 0
B83: ='QD 2 - Orçamento'!B83 -> 5.2.9 | C83: ='QD 2 - Orçamento'!C83 -> 5213353 | D83: ='QD 2 - Orçamento'!D83 -> Fornecimento e implantação de suporte polimérico ecológico maciço colapsível retangular de 7 x 15 cm para placa de sinalização | E83: ='QD 2 - Orçamento'!E83 -> un | F83: ='QD 2 - Orçamento'!F83 -> 0
B84: ='QD 2 - Orçamento'!B84 -> 5.2.10 | C84: ='QD 2 - Orçamento'!C84 -> 5213350 | D84: ='QD 2 - Orçamento'!D84 -> Fornecimento e implantação de suporte polimérico ecológico maciço colapsível quadrado de 10 cm para placa de sinalização | E84: ='QD 2 - Orçamento'!E84 -> un | F84: ='QD 2 - Orçamento'!F84 -> 0
B85: ='QD 2 - Orçamento'!B85 -> 5.2.11 | C85: ='QD 2 - Orçamento'!C85 -> 5213868 | D85: ='QD 2 - Orçamento'!D85 -> Fornecimento e implantação de suporte metálico galvanizado para placas - 2,00 x 1,00 m | E85: ='QD 2 - Orçamento'!E85 -> un | F85: ='QD 2 - Orçamento'!F85 -> 0
B86: ='QD 2 - Orçamento'!B86 -> 5.2.12 | C86: ='QD 2 - Orçamento'!C86 -> 5213869 | D86: ='QD 2 - Orçamento'!D86 -> Fornecimento e implantação de suporte metálico galvanizado para placas - 3,00 x 1,50 m | E86: ='QD 2 - Orçamento'!E86 -> un | F86: ='QD 2 - Orçamento'!F86 -> 0
B87: ='QD 2 - Orçamento'!B87 -> 5.2.13 | C87: ='QD 2 - Orçamento'!C87 -> 5213870 | D87: ='QD 2 - Orçamento'!D87 -> Fornecimento e implantação de suporte metálico galvanizado para placas - 3,00 x 2,00 m | E87: ='QD 2 - Orçamento'!E87 -> un | F87: ='QD 2 - Orçamento'!F87 -> 0
B88: ='QD 2 - Orçamento'!B88 -> 5.2.14 | C88: ='QD 2 - Orçamento'!C88 -> 5213871 | D88: ='QD 2 - Orçamento'!D88 -> Fornecimento e implantação de suporte metálico galvanizado para placas - 4,00 x 2,00 m | E88: ='QD 2 - Orçamento'!E88 -> un | F88: ='QD 2 - Orçamento'!F88 -> 0
B89: ='QD 2 - Orçamento'!B89 -> 5.2.15 | C89: ='QD 2 - Orçamento'!C89 -> 5213872 | D89: ='QD 2 - Orçamento'!D89 -> Fornecimento e implantação de suporte metálico galvanizado para placas - 4,00 x 3,00 m | E89: ='QD 2 - Orçamento'!E89 -> un | F89: ='QD 2 - Orçamento'!F89 -> 0
B90: ='QD 2 - Orçamento'!B90 -> 5.2.16 | C90: ='QD 2 - Orçamento'!C90 -> 5213649 | D90: ='QD 2 - Orçamento'!D90 -> Pórtico metálico com vão de 15,9 m, vento de 35 m/s, área de exposição de até 23,85 m², tensão admissível solo > 200 kN/m² - areia e brita comerciais | E90: ='QD 2 - Orçamento'!E90 -> un | F90: ='QD 2 - Orçamento'!F90 -> 1
B91: ='QD 2 - Orçamento'!B91 -> 5.2.17 | C91: ='QD 2 - Orçamento'!C91 -> 5213630 | D91: ='QD 2 - Orçamento'!D91 -> Semi-pórtico metálico com vão de 8,3 m, vento de 35 m/s, área de exposição de até 12,45 m², tensão admissível solo > 200 kN/m² - areia e brita comerciais | E91: ='QD 2 - Orçamento'!E91 -> un | F91: ='QD 2 - Orçamento'!F91 -> 1
B92: ='QD 2 - Orçamento'!B92 -> 5.2.18 | C92: ='QD 2 - Orçamento'!C92 -> 5213636 | D92: ='QD 2 - Orçamento'!D92 -> Semi-pórtico duplo metálico com vão de 2 x 8,3 m, vento de 35 m/s, área de exposição de até 2 x 12,45 m², tensão admissível solo > 200 kN/m² - areia e brita comerciais | E92: ='QD 2 - Orçamento'!E92 -> un | F92: ='QD 2 - Orçamento'!F92 -> 1
B93: ='QD 2 - Orçamento'!B93 -> 5.2.19 | C93: ='QD 2 - Orçamento'!C93 -> NOVA 01 | D93: ='QD 2 - Orçamento'!D93 -> Suporte metálico com braço projetado - Área de Exposição até 4,50 m² - Fornecimento e Implantação | E93: ='QD 2 - Orçamento'!E93 -> un | F93: ='QD 2 - Orçamento'!F93 -> 1
B94: ='QD 2 - Orçamento'!B94 -> 5.3 | D94: ='QD 2 - Orçamento'!D94 -> MANUTENÇÃO/CONSERVAÇÃO - DISPOSITIVOS DE SEGURANÇA | E94: ='QD 2 - Orçamento'!E94 -> 0 | F94: ='QD 2 - Orçamento'!F94 -> 0 | G94: ='QD 2 - Orçamento'!G94 -> 0 | I94: =SUM(I95:I108) -> 0
B95: ='QD 2 - Orçamento'!B95 -> 5.3.1 | C95: ='QD 2 - Orçamento'!C95 -> 3713705 | D95: ='QD 2 - Orçamento'!D95 -> Remoção de defensa metálica | E95: ='QD 2 - Orçamento'!E95 -> m | F95: ='QD 2 - Orçamento'!F95 -> 0
B96: ='QD 2 - Orçamento'!B96 -> 5.3.2 | C96: ='QD 2 - Orçamento'!C96 -> 3713604 | D96: ='QD 2 - Orçamento'!D96 -> Defensa semimaleável simples - fornecimento e implantação | E96: ='QD 2 - Orçamento'!E96 -> m | F96: ='QD 2 - Orçamento'!F96 -> 0
B97: ='QD 2 - Orçamento'!B97 -> 5.3.3 | C97: ='QD 2 - Orçamento'!C97 -> NOVA 08 | D97: ='QD 2 - Orçamento'!D97 -> Dispositivo de contenção longitudinal, certificado segundo a ABNT NBR 15486:2016, tipo (H4b A W4) - Defensa Metálica - Fornecimento e Implantação | E97: ='QD 2 - Orçamento'!E97 -> m | F97: ='QD 2 - Orçamento'!F97 -> 0
B98: ='QD 2 - Orçamento'!B98 -> 5.3.4 | C98: ='QD 2 - Orçamento'!C98 -> NOVA 09 | D98: ='QD 2 - Orçamento'!D98 -> Dispositivo de contenção longitudinal, certificado segundo a ABNT NBR 15486:2016, tipo (H4b A W5) - Defensa Metálica - Fornecimento e Implantação | E98: ='QD 2 - Orçamento'!E98 -> m | F98: ='QD 2 - Orçamento'!F98 -> 0
B99: ='QD 2 - Orçamento'!B99 -> 5.3.5 | C99: ='QD 2 - Orçamento'!C99 -> NOVA 07 | D99: ='QD 2 - Orçamento'!D99 -> Dispositivo de contenção longitudinal, certificado segundo a ABNT NBR 15486:2016, tipo (H3 A W5) - Defensa Metálica - Fornecimento e Implantação | E99: ='QD 2 - Orçamento'!E99 -> m | F99: ='QD 2 - Orçamento'!F99 -> 0
B100: ='QD 2 - Orçamento'!B100 -> 5.3.6 | C100: ='QD 2 - Orçamento'!C100 -> NOVA 06 | D100: ='QD 2 - Orçamento'!D100 -> Dispositivo de contenção longitudinal, certificado segundo a ABNT NBR 15486:2016, tipo (H2 A W3) - Defensa Metálica - Fornecimento e Implantação | E100: ='QD 2 - Orçamento'!E100 -> m | F100: ='QD 2 - Orçamento'!F100 -> 0
B101: ='QD 2 - Orçamento'!B101 -> 5.3.7 | C101: ='QD 2 - Orçamento'!C101 -> NOVA 05 | D101: ='QD 2 - Orçamento'!D101 -> Dispositivo de contenção longitudinal, certificado segundo a ABNT NBR 15486:2016, tipo (H1 A W2) - Defensa Metálica - Fornecimento e Implantação | E101: ='QD 2 - Orçamento'!E101 -> m | F101: ='QD 2 - Orçamento'!F101 -> 0
B102: ='QD 2 - Orçamento'!B102 -> 5.3.8 | C102: ='QD 2 - Orçamento'!C102 -> NOVA 04 | D102: ='QD 2 - Orçamento'!D102 -> Dispositivo de contenção longitudinal, certificado segundo a ABNT NBR 15486:2016, tipo (N2 A W2) - Defensa Metálica - Fornecimento e Implantação | E102: ='QD 2 - Orçamento'!E102 -> m | F102: ='QD 2 - Orçamento'!F102 -> 0
B103: ='QD 2 - Orçamento'!B103 -> 5.3.9 | C103: ='QD 2 - Orçamento'!C103 -> NOVA 10 | D103: ='QD 2 - Orçamento'!D103 -> Terminal absorvedor de energia, certificado segundo a ABNT NBR 15.486:2016, especificado conforme NCHRP 350 nível de ensaio 2 (70 km/h) ou EN 1317 nível de ensaio 2 (80 km/h) – fornecimento e instalação | E103: ='QD 2 - Orçamento'!E103 -> un | F103: ='QD 2 - Orçamento'!F103 -> 0
B104: ='QD 2 - Orçamento'!B104 -> 5.3.10 | C104: ='QD 2 - Orçamento'!C104 -> NOVA 11 | D104: ='QD 2 - Orçamento'!D104 -> Terminal absorvedor de energia, certificado segundo a ABNT NBR 15.486:2016, especificado conforme NCHRP 350 nível de ensaio 3 (100 km/h) ou EN 1317 nível de ensaio 3 (100 km/h) - Fornecimento e instalação | E104: ='QD 2 - Orçamento'!E104 -> un | F104: ='QD 2 - Orçamento'!F104 -> 0
B105: ='QD 2 - Orçamento'!B105 -> 5.3.11 | C105: ='QD 2 - Orçamento'!C105 -> 3713605 | D105: ='QD 2 - Orçamento'!D105 -> Ancoragem de defensa semi-maleável simples - fornecimento e implantação | E105: ='QD 2 - Orçamento'!E105 -> m | F105: ='QD 2 - Orçamento'!F105 -> 0
B106: ='QD 2 - Orçamento'!B106 -> 5.3.12 | C106: ='QD 2 - Orçamento'!C106 -> 3713690 | D106: ='QD 2 - Orçamento'!D106 -> Terminal de ancoragem de defensa metálica em barreira New Jersey - fornecimento e implantação | E106: ='QD 2 - Orçamento'!E106 -> un | F106: ='QD 2 - Orçamento'!F106 -> 0
B107: ='QD 2 - Orçamento'!B107 -> 5.3.13 | C107: ='QD 2 - Orçamento'!C107 -> 3713873 | D107: ='QD 2 - Orçamento'!D107 -> Módulo de transição de defensa metálica para barreira rígida - fornecimento e implantação | E107: ='QD 2 - Orçamento'!E107 -> un | F107: ='QD 2 - Orçamento'!F107 -> 0
B108: ='QD 2 - Orçamento'!B108 -> 5.3.14 | C108: ='QD 2 - Orçamento'!C108 -> NOVA 02 | D108: ='QD 2 - Orçamento'!D108 -> Fornecimento e colocação de dispositivo Refletivo para defensas em tangente | E108: ='QD 2 - Orçamento'!E108 -> un | F108: ='QD 2 - Orçamento'!F108 -> 0
B109: ='QD 2 - Orçamento'!B109 -> 5.3.15 | C109: ='QD 2 - Orçamento'!C109 -> NOVA 03 | D109: ='QD 2 - Orçamento'!D109 -> Fornecimento e colocação de Painel de Delineamento Refletivo para defensas em curvas | E109: ='QD 2 - Orçamento'!E109 -> un | F109: ='QD 2 - Orçamento'!F109 -> 0
B110: ='QD 2 - Orçamento'!B110 -> 6 | D110: ='QD 2 - Orçamento'!D110 -> SEGURANÇA VIÁRIA OPERACIONAL | E110: ='QD 2 - Orçamento'!E110 -> 0 | F110: ='QD 2 - Orçamento'!F110 -> 0 | G110: ='QD 2 - Orçamento'!G110 -> 0 | I110: =SUM(I111:I116) -> 0
B111: ='QD 2 - Orçamento'!B111 -> 6.1 | C111: ='QD 2 - Orçamento'!C111 -> 5213833 | D111: ='QD 2 - Orçamento'!D111 -> Barreira plástica monobloco para canalização de trânsito - 101 x 50 x 55 cm - utilização de 600 ciclos - fornecimento, 01 implantação e 01 retirada diária | E111: ='QD 2 - Orçamento'!E111 -> und. | F111: ='QD 2 - Orçamento'!F111 -> 120
B112: ='QD 2 - Orçamento'!B112 -> 6.2 | C112: ='QD 2 - Orçamento'!C112 -> 5212560D | D112: ='QD 2 - Orçamento'!D112 -> Placa de Advertência em Aço - Película retrorrefletiva tipo III + III - montada em suporte metálico móvel - L= 1,20 x 0,80 m | E112: ='QD 2 - Orçamento'!E112 -> und | F112: ='QD 2 - Orçamento'!F112 -> 12
B113: ='QD 2 - Orçamento'!B113 -> 6.3 | C113: ='QD 2 - Orçamento'!C113 -> 5212557A | D113: ='QD 2 - Orçamento'!D113 -> Placa de Regulamentação em Aço - Película retrorrefletiva tipo III + III - montada em suporte metálico móvel - D = 0,80 m | E113: ='QD 2 - Orçamento'!E113 -> und | F113: ='QD 2 - Orçamento'!F113 -> 20
B114: ='QD 2 - Orçamento'!B114 -> 6.4 | C114: ='QD 2 - Orçamento'!C114 -> 5212560A | D114: ='QD 2 - Orçamento'!D114 -> Placa de Advertência em Aço - Película retrorrefletiva tipo III + III - montada em suporte metálico móvel - L= 1,25 x 0,40 m | E114: ='QD 2 - Orçamento'!E114 -> und | F114: ='QD 2 - Orçamento'!F114 -> 14
B115: ='QD 2 - Orçamento'!B115 -> 6.5 | C115: ='QD 2 - Orçamento'!C115 -> 5212560B | D115: ='QD 2 - Orçamento'!D115 -> Placa de Advertência em Aço - Película retrorrefletiva tipo III + III - montada em suporte metálico móvel - L= 1,20 x 0,80 m | E115: ='QD 2 - Orçamento'!E115 -> und | F115: ='QD 2 - Orçamento'!F115 -> 4
B116: ='QD 2 - Orçamento'!B116 -> 6.6 | C116: ='QD 2 - Orçamento'!C116 -> 5212560C | D116: ='QD 2 - Orçamento'!D116 -> Placa de Advertência em Aço - Película retrorrefletiva tipo III + III - montada em suporte metálico móvel - L= 1,80 x 1,00 m | E116: ='QD 2 - Orçamento'!E116 -> und | F116: ='QD 2 - Orçamento'!F116 -> 2
B117: ='QD 2 - Orçamento'!B117 -> 6.7 | C117: ='QD 2 - Orçamento'!C117 -> 5213835A | D117: ='QD 2 - Orçamento'!D117 -> Fornecimento de cone de sinalização 75 cm (NBR 15071) flexível - 2 faixas refletivas tipo III (NBR 14644) - utilização de 5 vezes | E117: ='QD 2 - Orçamento'!E117 -> un | F117: ='QD 2 - Orçamento'!F117 -> 1555
B118: ='QD 2 - Orçamento'!B118 -> 6.8 | C118: ='QD 2 - Orçamento'!C118 -> 5213850 | D118: ='QD 2 - Orçamento'!D118 -> Operação de sinalização por bandeirola de tecido ou com placa metálica | E118: ='QD 2 - Orçamento'!E118 -> h | F118: ='QD 2 - Orçamento'!F118 -> 0
B119: ='QD 2 - Orçamento'!B121 -> TOTAL | C119: ='QD 2 - Orçamento'!C121 -> 0 | D119: ='QD 2 - Orçamento'!D121 -> 0 | E119: ='QD 2 - Orçamento'!E121 -> 0 | F119: ='QD 2 - Orçamento'!F121 -> 0 | G119: ='QD 2 - Orçamento'!G121 -> 0 | H119: ='QD 2 - Orçamento'!H121 -> 0 | I119: =SUM(I12,I17,I29,I45,I59,I110) -> 0
B120: NOME DA EMPRESA:
B122: IDENTIFICAÇÃO, QUALIFICAÇÃO E ASSINATURA DO RESPONSÁVEL:

Sheet PLQ
B1: LOTE | C1: =Premissa!C2 -> XX | D1: PLANILHA DE LEVANTAMENTO DE QUANTITATIVOS - CGMRR R0 | L1: 0 | M1: R29
B2: ITEM | C2: CÓDIGO | D2: DISCRIMINAÇÃO DOS SERVIÇOS | E2: CONDIÇÃO DE INTERVENÇÃO | G2: UNID. | H2: INVENTÁRIO | J2: QUANTIDADE PADRÃO | L2: BR-XXX | M2: BR-XXX | N2: SINALIZAÇÃO OSTENSIVA
H3: UNID. | I3: QTDE. | J3: UNID. | K3: QTDE.
B4: 2.0 | D4: SINALIZAÇÃO HORIZONTAL
B5: 2.1 | C5: 5213413A | D5: Pintura de faixa - plástico a frio tipo I - espessura de 0,6 mm - aspersão​ | E5: 1 | F5: Aplicações (projeto) | G5: m² | H5: m² | I5: =SUM($L5:AK5) -> 0 | J5: =G5 -> m² | K5: =E5*I5 -> 0
B6: 2.2 | C6: 5213408 | D6: Pintura de faixa - termoplástico por aspersão - espessura de 1,5 mm | E6: 1 | F6: Aplicações (projeto) | G6: m² | H6: m² | I6: =SUM($L6:AK6) -> 0 | J6: =G6 -> m² | K6: =E6*I6 -> 0
B7: 2.3 | C7: 5213403 | D7: Pintura de faixa - tinta base acrílica emulsionada em água - espessura de 0,5 mm | E7: 1 | F7: Aplicações (projeto) | G7: m² | H7: m² | I7: =SUM($L7:AK7) -> 0 | J7: m² | K7: 0
B8: 2.4 | C8: 5213402 | D8: Pintura de faixa - tinta base acrílica emulsionada em água - espessura de 0,4 mm | E8: 0.5 | F8: Aplicação (projeto) | G8: m² | H8: m² | I8: =SUM($L8:AK8) -> 0 | J8: m² | K8: 0
B9: 2.5 | C9: 5213409 | D9: Pintura de setas e zebrados - termoplástico por extrusão - espessura de 3,0 mm | E9: 1 | F9: Aplicações (projeto) | G9: m² | H9: m² | I9: =SUM($L9:AK9) -> 0 | J9: m² | K9: 0
B10: 2.6 | C10: 5219640 | D10: Tacha refletiva metálica - monodirecional tipo III - com um pino - fornecimento e colocação | E10: 1 | F10: Aplicações (projeto) | G10: un | H10: un | I10: =SUM($L10:AK10) -> 0 | J10: un | K10: 0
B11: 2.7 | C11: 5219636 | D11: Tacha refletiva metálica - bidirecional tipo III - com um pino - fornecimento e colocação | E11: 1 | F11: Aplicações (projeto) | G11: un | H11: un | I11: =SUM($L11:AK11) -> 0 | J11: un | K11: 0
B12: 2.8 | C12: 5219608 | D12: Tacha refletiva em plástico injetado - bidirecional tipo III - com um pino - fornecimento e colocação | E12: 1 | F12: Aplicações (projeto) | G12: un | H12: un | I12: =SUM($L12:AK12) -> 0 | J12: un | K12: 0
B13: 2.9 | C13: 5219615 | D13: Tacha refletiva em plástico injetado - monodirecional tipo III - com um pino - fornecimento e colocação | E13: 1 | F13: Aplicações (projeto) | G13: un | H13: un | I13: =SUM($L13:AK13) -> 0 | J13: un | K13: 0
B14: 2.10 | C14: 5213837 | D14: Delimitador de tráfego flexível com duas faixas refletivas D = 20 cm e H = 80 cm com chumbador | E14: 1 | F14: Aplicações (Sinalização Ostensiva) | G14: un | H14: un | I14: =SUM($L14:AK14) -> 0 | J14: un | K14: =ROUNDUP(E14*I14,0) -> 0
B15: 2.11 | C15: 5214004 | D15: Pintura de faixa - termoplástico em alto relevo tipo II - relevo simples ranhurado - base | E15: 1 | F15: Aplicações (Sinalização Ostensiva) | G15: m² | H15: m² | I15: =SUM($L15:AK15) -> 0 | J15: m² | K15: =ROUNDUP(E15*I15,0) -> 0
B16: 3.0 | D16: SINALIZAÇÃO VERTICAL
B17: 3.1 | C17: 5213572A | D17: Fornecimento e implantação de placa em aço - película III + SI (Sinal Impresso Digital c/ Overlay) | E17: 1 | F17: Aplicação (projeto) | G17: m² | H17: m² | I17: =SUM($L17:AK17) -> 0 | J17: m² | K17: =E17*I17 -> 0
B18: 3.2 | C18: 5213487A | D18: Fornecimento e implantação de placa em alumínio composto, espessura de 3,0 mm. - película retrorrefletiva tipo III + SI (Sinal Impresso Digital c/ Overlay) | E18: 1 | F18: Aplicação (projeto) | G18: m² | H18: m² | I18: =SUM($L18:AK18) -> 0 | J18: m² | K18: =E18*I18 -> 0
B19: 3.3 | C19: 5213487B | D19: Fornecimento e implantação de placa em alumínio composto, espessura de 3,0 mm, modulada, aérea - película retrorrefletiva tipo X + SI (Sinal Impresso Digital c/ Overlay) | E19: 1 | F19: Aplicação (projeto) | G19: m² | H19: m² | I19: =SUM($L19:AK19) -> 0 | J19: m² | K19: 0
B20: 3.4 | C20: 5213352 | D20: Fornecimento e implantação de suporte polimérico ecológico maciço quadrado de 8 cm para placa de sinalização | E20: 1 | F20: Aplicação (projeto) | G20: un | H20: un | I20: =SUM($L20:AK20) -> 0 | J20: un | K20: 0
B21: 3.5 | C21: 5213353 | D21: Fornecimento e implantação de suporte polimérico ecológico maciço colapsível retangular de 7 x 15 cm para placa de sinalização | E21: 1 | F21: Aplicação (projeto) | G21: un | H21: un | I21: =SUM($L21:AK21) -> 0 | J21: un | K21: 0
B22: 3.6 | C22: 5213350 | D22: Fornecimento e implantação de suporte polimérico ecológico maciço colapsível quadrado de 10 cm para placa de sinalização | E22: 1 | F22: Aplicação (projeto) | G22: un | H22: un | I22: =SUM($L22:AK22) -> 0 | J22: un | K22: 0
B23: 3.7 | C23: 5213868 | D23: Fornecimento e implantação de suporte metálico galvanizado para placas - 2,00 x 1,00 m | E23: 1 | F23: Aplicação (projeto) | G23: un | H23: un | I23: =SUM($L23:AK23) -> 0 | J23: un | K23: 0
B24: 3.8 | C24: 5213869 | D24: Fornecimento e implantação de suporte metálico galvanizado para placas - 3,00 x 1,50 m | E24: 1 | F24: Aplicação (projeto) | G24: un | H24: un | I24: =SUM($L24:AK24) -> 0 | J24: un | K24: 0
B25: 3.9 | C25: 5213870 | D25: Fornecimento e implantação de suporte metálico galvanizado para placas - 3,00 x 2,00 m | E25: 1 | F25: Aplicação (projeto) | G25: un | H25: un | I25: =SUM($L25:AK25) -> 0 | J25: un | K25: 0
B26: 3.10 | C26: 5213871 | D26: Fornecimento e implantação de suporte metálico galvanizado para placas - 4,00 x 2,00 m | E26: 1 | F26: Aplicação (projeto) | G26: un | H26: un | I26: =SUM($L26:AK26) -> 0 | J26: un | K26: 0
B27: 3.11 | C27: 5213872 | D27: Fornecimento e implantação de suporte metálico galvanizado para placas - 4,00 x 3,00 m | E27: 1 | F27: Aplicação (projeto) | G27: un | H27: un | I27: =SUM($L27:AK27) -> 0 | J27: un | K27: 0
B28: 3.12 | C28: 5213649 | D28: Pórtico metálico com vão de 15,9 m, vento de 35 m/s, área de exposição de até 23,85 m², tensão admissível solo > 200 kN/m² - areia e brita comerciais | E28: 1 | F28: Aplicação (projeto) | G28: un | H28: un | I28: =SUM($L28:AK28) -> 0 | J28: un | K28: =IF(ROUNDUP(E28*I28,0)>=1,ROUNDUP(E28*I28,0),1) -> 1
B29: 3.13 | C29: 5213630 | D29: Semi-pórtico metálico com vão de 8,3 m, vento de 35 m/s, área de exposição de até 12,45 m², tensão admissível solo > 200 kN/m² - areia e brita comerciais | E29: 1 | F29: Aplicação (projeto) | G29: un | H29: un | I29: =SUM($L29:AK29) -> 0 | J29: un | K29: =IF(ROUNDUP(E29*I29,0)>=1,ROUNDUP(E29*I29,0),1) -> 1
B30: 3.14 | C30: 5213636 | D30: Semi-pórtico duplo metálico com vão de 2 x 8,3 m, vento de 35 m/s, área de exposição de até 2 x 12,45 m², tensão admissível solo > 200 kN/m² - areia e brita comerciais | E30: 1 | F30: Aplicação (projeto) | G30: un | H30: un | I30: =SUM($L30:AK30) -> 0 | J30: un | K30: =IF(ROUNDUP(E30*I30,0)>=1,ROUNDUP(E30*I30,0),1) -> 1
B31: 3.15 | C31: NOVA 01 | D31: Suporte metálico com braço projetado - Área de Exposição até 4,50 m² - Fornecimento e Implantação | E31: 1 | F31: Aplicação (projeto) | G31: un | H31: un | I31: =SUM($L31:AK31) -> 0 | J31: un | K31: 0
B32: 4.0 | D32: DISPOSITIVOS DE SEGURANÇA
B33: 4.1 | C33: NOVA 08 | D33: Dispositivo de contenção longitudinal, certificado segundo a ABNT NBR 15486:2016, tipo (H4b A W4) - Defensa Metálica - Fornecimento e Implantação | E33: 1 | F33: Aplicação (projeto) | G33: m | H33: m | I33: =SUM($L33:AK33) -> 0 | J33: m | K33: =E33*I33 -> 0
B34: 4.2 | C34: NOVA 09 | D34: Dispositivo de contenção longitudinal, certificado segundo a ABNT NBR 15486:2016, tipo (H4b A W5) - Defensa Metálica - Fornecimento e Implantação | E34: 1 | F34: Aplicação (projeto) | G34: m | H34: m | I34: =SUM($L34:AK34) -> 0 | J34: m | K34: 0
B35: 4.3 | C35: NOVA 07 | D35: Dispositivo de contenção longitudinal, certificado segundo a ABNT NBR 15486:2016, tipo (H3 A W5) - Defensa Metálica - Fornecimento e Implantação | E35: 1 | F35: Aplicação (projeto) | G35: m | H35: m | I35: =SUM($L35:AK35) -> 0 | J35: m | K35: 0
B36: 4.4 | C36: NOVA 06 | D36: Dispositivo de contenção longitudinal, certificado segundo a ABNT NBR 15486:2016, tipo (H2 A W3) - Defensa Metálica - Fornecimento e Implantação | E36: 1 | F36: Aplicação (projeto) | G36: m | H36: m | I36: =SUM($L36:AK36) -> 0 | J36: m | K36: 0
B37: 4.5 | C37: NOVA 05 | D37: Dispositivo de contenção longitudinal, certificado segundo a ABNT NBR 15486:2016, tipo (H1 A W2) - Defensa Metálica - Fornecimento e Implantação | E37: 1 | F37: Aplicação (projeto) | G37: m | H37: m | I37: =SUM($L37:AK37) -> 0 | J37: m | K37: 0
B38: 4.6 | C38: NOVA 04 | D38: Dispositivo de contenção longitudinal, certificado segundo a ABNT NBR 15486:2016, tipo (N2 A W2) - Defensa Metálica - Fornecimento e Implantação | E38: 1 | F38: Aplicação (projeto) | G38: m | H38: m | I38: =SUM($L38:AK38) -> 0 | J38: m | K38: 0
B39: 4.7 | C39: NOVA 10 | D39: Terminal absorvedor de energia, certificado segundo a ABNT NBR 15.486:2016, especificado conforme NCHRP 350 nível de ensaio 2 (70 km/h) ou EN 1317 nível de ensaio 2 (80 km/h) – fornecimento e instalação | E39: 1 | F39: Aplicação (projeto) | G39: un | H39: un | I39: =SUM($L39:AK39) -> 0 | J39: un | K39: 0
B40: 4.8 | C40: NOVA 11 | D40: Terminal absorvedor de energia, certificado segundo a ABNT NBR 15.486:2016, especificado conforme NCHRP 350 nível de ensaio 3 (100 km/h) ou EN 1317 nível de ensaio 3 (100 km/h) - Fornecimento e instalação | E40: 1 | F40: Aplicação (projeto) | G40: un | H40: un | I40: =SUM($L40:AK40) -> 0 | J40: un | K40: 0
B41: 4.9 | C41: 3713605 | D41: Ancoragem de defensa semi-maleável simples - fornecimento e implantação | E41: 1 | F41: Aplicação (projeto) | G41: m | H41: m | I41: =SUM($L41:AK41) -> 0 | J41: m | K41: 0
B42: 4.10 | C42: 3713690 | D42: Terminal de ancoragem de defensa metálica em barreira New Jersey - fornecimento e implantação | E42: 1 | F42: Aplicação (projeto) | G42: un | H42: un | I42: =SUM($L42:AK42) -> 0 | J42: un | K42: 0
B43: 4.11 | C43: 3713873 | D43: Módulo de transição de defensa metálica para barreira rígida - fornecimento e implantação | E43: 1 | F43: Aplicação (projeto) | G43: un | H43: un | I43: =SUM($L43:AK43) -> 0 | J43: un | K43: 0
B44: 4.12 | C44: NOVA 02 | D44: Fornecimento e colocação de dispositivo Refletivo para defensas em tangente | E44: 1 | F44: Aplicação (projeto) | G44: un | H44: un | I44: =SUM($L44:AK44) -> 0 | J44: un | K44: 0
B45: 4.13 | C45: NOVA 03 | D45: Fornecimento e colocação de Painel de Delineamento Refletivo para defensas em curvas | E45: 1 | F45: Aplicação (projeto) | G45: un | H45: un | I45: =SUM($L45:AK45) -> 0 | J45: un | K45: 0
B46: 5.0 | D46: MANUTENÇÃO/CONSERVAÇÃO
B47: 5.1 | D47: Manutenção/Conservação - Sinalização Horizontal
B48: 5.1.1 | C48: 5213413B | D48: Manutenção/recomposição - pintura de faixa - plástico a frio tricomponente à base de resinas metacrílicas - espessura de 0,6 mm - aspersão | E48: 0.06 | F48: Total de Pintura de faixa - plástico a frio | G48: m² | H48: m² | I48: =SUM($L48:AK48) -> 0 | J48: m² | K48: =E48*I48 -> 0
B49: 5.1.2 | C49: 5213408A | D49: Manutenção/recomposição - pintura de faixa - termoplástico por aspersão - espessura de 1,5 mm | E49: 0.06 | F49: Total de Pintura de faixa - termoplástico | G49: m² | H49: m² | I49: =SUM($L49:AK49) -> 0 | J49: m² | K49: =E49*I49 -> 0
B50: 5.1.3 | C50: 5213355 | D50: Manutenção/recomposição de sinalização - pintura de faixa com tinta acrílica emulsionada em água - espessura de 0,5 mm | E50: 0.06 | F50: Total de Pintura de faixa - base d'água | G50: m² | H50: m² | I50: =SUM($L50:AK50) -> 0 | J50: m² | K50: 0
B51: 5.1.4 | C51: 5219640 | D51: Tacha refletiva metálica - monodirecional tipo III - com um pino - fornecimento e colocação | E51: 0.12 | F51: Total de tachas metálicas monodirecional - Tipo III | G51: un | H51: un | I51: =SUM($L51:AK51) -> 0 | J51: un | K51: =ROUNDUP(E51*I51,0) -> 0
B52: 5.1.5 | C52: 5219636 | D52: Tacha refletiva metálica - bidirecional tipo III - com um pino - fornecimento e colocação | E52: 0.12 | F52: Total de tachas metálicas bidirecional - Tipo III | G52: un | H52: un | I52: =SUM($L52:AK52) -> 0 | J52: un | K52: =ROUNDUP(E52*I52,0) -> 0
B53: 5.1.6 | C53: 5219608 | D53: Tacha refletiva em plástico injetado - bidirecional tipo III - com um pino - fornecimento e colocação | E53: 0.12 | F53: Total de tachas monodirecional - Tipo III | G53: un | H53: un | I53: =SUM($L53:AK53) -> 0 | J53: un | K53: =ROUNDUP(E53*I53,0) -> 0
B54: 5.1.7 | C54: 5219615 | D54: Tacha refletiva em plástico injetado - monodirecional tipo III - com um pino - fornecimento e colocação | E54: 0.12 | F54: Total de tachas bidirecional - Tipo III | G54: un | H54: un | I54: =SUM($L54:AK54) -> 0 | J54: un | K54: =ROUNDUP(E54*I54,0) -> 0
B55: 5.1.8 | C55: 5213837 | D55: Delimitador de tráfego flexível com duas faixas refletivas D = 20 cm e H = 80 cm com chumbador | E55: 0.5 | F55: Total de delimitadores | G55: un | H55: un | I55: =SUM($L55:AK55) -> 0 | J55: un | K55: =ROUNDUP(E55*I55,0) -> 0
B56: 5.1.9 | C56: 5213832 | D56: Remoção de sinalização horizontal com maçarico | E56: 0.01 | F56: Área total de sinalização | G56: m² | H56: m² | I56: =SUM($L56:AK56) -> 0 | J56: m² | K56: 0
B57: 5.1.10 | C57: 5213830 | D57: Remoção de sinalização horizontal por fresagem | E57: 0.01 | F57: Área total de sinalização | G57: m² | H57: m² | I57: =SUM($L57:AK57) -> 0 | J57: m² | K57: 0
B58: 5.1.11 | C58: 5213831 | D58: Remoção de sinalização horizontal tipo pintura acrílica por jateamento abrasivo úmido com vidro - utilização de 3 vezes | E58: 0.01 | F58: Área total de sinalização | G58: m² | H58: m² | I58: =SUM($L58:AK58) -> 0 | J58: m² | K58: 0
B59: 5.1.12 | C59: 5213360B | D59: Remoção de tachas e tachões | E59: 0.3 | F59: Total de tachas | G59: un | H59: un | I59: =SUM($L59:AK59) -> 0 | J59: un | K59: =ROUNDUP(E59*I59,0) -> 0
B60: 5.1.13 | C60: NOVA 12 | D60: Limpeza de tachas refletivas | E60: 0.3 | F60: Total de tachas (10% ao ano do total de tachas) | G60: un | H60: un | I60: =SUM($L60:AK60) -> 0 | J60: un | K60: =ROUNDUP(E60*I60,0) -> 0
B61: 5.2 | D61: Manutenção/Conservação - Sinalização Vertical
B62: 5.2.1 | C62: 4915719 | D62: Recomposição de placa de sinalização | E62: 0.1 | F62: Total de placas (manter + implantar) | G62: m² | H62: m² | I62: =SUM($L62:AK62) -> 0 | J62: m² | K62: =E62*I62 -> 0
B63: 5.2.2 | C63: 5213364 | D63: Remoção de placa de sinalização | E63: 0.02 | F63: Total de placas (manter + implantar) | G63: m² | H63: m² | I63: =SUM($L63:AK63) -> 0 | J63: m² | K63: =E63*I63 -> 0
B64: 5.2.3 | C64: 4915718 | D64: Limpeza de placa de sinalização | E64: 9 | F64: Vezes no horizonte do contrato (ciclo de 4 meses) do total de placas | G64: m² | H64: m² | I64: =SUM($L64:AK64) -> 0 | J64: m² | K64: =E64*I64 -> 0
B65: 5.2.4 | C65: 4915744 | D65: Capina manual | E65: 9 | F65: Vezes no horizonte do contrato (ciclo de 4 meses) do total de placas - raio: 3 metros | G65: m² | H65: un | I65: =SUM($L65:AK65) -> 0 | J65: m² | K65: =(E65*I65)*((PI()*(3^2))) -> 0
B66: 5.2.5 | C66: 5213572A | D66: Fornecimento e implantação de placa em aço - película III + SI (Sinal Impresso Digital c/ Overlay) | E66: 0.24 | F66: Total de placas (manter + implantar) | G66: m² | H66: m² | I66: =SUM($L66:AK66) -> 0 | J66: m² | K66: =E66*I66 -> 0
B67: 5.2.6 | C67: 5213487A | D67: Fornecimento e implantação de placa em alumínio composto, espessura de 3,0 mm. - película retrorrefletiva tipo III + SI (Sinal Impresso Digital c/ Overlay) | E67: 0.24 | F67: Total de placas (manter + implantar) | G67: m² | H67: m² | I67: =SUM($L67:AK67) -> 0 | J67: m² | K67: 0
B68: 5.2.7 | C68: 5213487B | D68: Fornecimento e implantação de placa em alumínio composto, espessura de 3,0 mm, modulada, aérea - película retrorrefletiva tipo X + SI (Sinal Impresso Digital c/ Overlay) | E68: 0.24 | F68: Total de placas (manter + implantar) | G68: m² | H68: m² | I68: =SUM($L68:AK68) -> 0 | J68: m² | K68: 0
B69: 5.2.8 | C69: 5213352 | D69: Fornecimento e implantação de suporte polimérico ecológico maciço quadrado de 8 cm para placa de sinalização | E69: 0.24 | F69: Total de placas (manter + implantar) | G69: un | H69: un | I69: =SUM($L69:AK69) -> 0 | J69: un | K69: =ROUNDUP(E69*I69,0) -> 0
B70: 5.2.9 | C70: 5213353 | D70: Fornecimento e implantação de suporte polimérico ecológico maciço colapsível retangular de 7 x 15 cm para placa de sinalização | E70: 0.24 | F70: Total de placas (manter + implantar) | G70: un | H70: un | I70: =SUM($L70:AK70) -> 0 | J70: un | K70: 0
B71: 5.2.10 | C71: 5213350 | D71: Fornecimento e implantação de suporte polimérico ecológico maciço colapsível quadrado de 10 cm para placa de sinalização | E71: 0.24 | F71: Total de placas (manter + implantar) | G71: un | H71: un | I71: =SUM($L71:AK71) -> 0 | J71: un | K71: 0
B72: 5.2.11 | C72: 5213868 | D72: Fornecimento e implantação de suporte metálico galvanizado para placas - 2,00 x 1,00 m | E72: 0.24 | F72: Total de placas (manter + implantar) | G72: un | H72: un | I72: =SUM($L72:AK72) -> 0 | J72: un | K72: 0
B73: 5.2.12 | C73: 5213869 | D73: Fornecimento e implantação de suporte metálico galvanizado para placas - 3,00 x 1,50 m | E73: 0.24 | F73: Total de placas (manter + implantar) | G73: un | H73: un | I73: =SUM($L73:AK73) -> 0 | J73: un | K73: 0
B74: 5.2.13 | C74: 5213870 | D74: Fornecimento e implantação de suporte metálico galvanizado para placas - 3,00 x 2,00 m | E74: 0.24 | F74: Total de placas (manter + implantar) | G74: un | H74: un | I74: =SUM($L74:AK74) -> 0 | J74: un | K74: 0
B75: 5.2.14 | C75: 5213871 | D75: Fornecimento e implantação de suporte metálico galvanizado para placas - 4,00 x 2,00 m | E75: 0.24 | F75: Total de suportes (manter + implantar) | G75: un | H75: un | I75: =SUM($L75:AK75) -> 0 | J75: un | K75: 0
B76: 5.2.15 | C76: 5213872 | D76: Fornecimento e implantação de suporte metálico galvanizado para placas - 4,00 x 3,00 m | E76: 0.24 | F76: Total de suportes (manter + implantar) | G76: un | H76: un | I76: =SUM($L76:AK76) -> 0 | J76: un | K76: 0
B77: 5.2.16 | C77: 5213649 | D77: Pórtico metálico com vão de 15,9 m, vento de 35 m/s, área de exposição de até 23,85 m², tensão admissível solo > 200 kN/m² - areia e brita comerciais | E77: 0.24 | F77: Total de pórticos (no mínimo 1 por lote) | G77: un | H77: un | I77: =SUM($L77:AK77) -> 0 | J77: un | K77: =IF(ROUNDUP(E77*I77,0)>=1,ROUNDUP(E77*I77,0),1) -> 1
B78: 5.2.17 | C78: 5213630 | D78: Semi-pórtico metálico com vão de 8,3 m, vento de 35 m/s, área de exposição de até 12,45 m², tensão admissível solo > 200 kN/m² - areia e brita comerciais | E78: 0.24 | F78: Total de semi-pórticos (no mínimo 1 por lote) | G78: un | H78: un | I78: =SUM($L78:AK78) -> 0 | J78: un | K78: =IF(ROUNDUP(E78*I78,0)>=1,ROUNDUP(E78*I78,0),1) -> 1
B79: 5.2.18 | C79: 5213636 | D79: Semi-pórtico duplo metálico com vão de 2 x 8,3 m, vento de 35 m/s, área de exposição de até 2 x 12,45 m², tensão admissível solo > 200 kN/m² - areia e brita comerciais | E79: 0.24 | F79: Total de semi-pórticos (no mínimo 1 por lote) | G79: un | H79: un | I79: =SUM($L79:AK79) -> 0 | J79: un | K79: =IF(ROUNDUP(E79*I79,0)>=1,ROUNDUP(E79*I79,0),1) -> 1
B80: 5.2.19 | C80: NOVA 01 | D80: Suporte metálico com braço projetado - Área de Exposição até 4,50 m² - Fornecimento e Implantação | E80: 0.24 | F80: Total de braço projetado (no mínimo 1 por lote) | G80: un | H80: un | I80: =SUM($L80:AK80) -> 0 | J80: un | K80: =IF(ROUNDUP(E80*I80,0)>=1,ROUNDUP(E80*I80,0),1) -> 1
B81: 5.3 | D81: Manutenção/Conservação - Dispositivos de Segurança
B82: 5.3.1 | C82: 3713705 | D82: Remoção de defensa metálica | E82: 0.24 | F82: Total de defensas existentes. (VDM médio ponderado) | G82: m | H82: m | I82: =SUM($L82:AK82) -> 0 | J82: m | K82: =ROUNDUP(I82*E82,0) -> 0
B83: 5.3.2 | C83: 3713604 | D83: Defensa semimaleável simples - fornecimento e implantação | E83: 0.24 | F83: Total de defensas existentes. (VDM médio ponderado) | G83: m | H83: m | I83: =SUM($L83:AK83) -> 0 | J83: m | K83: =ROUNDUP(I83*E83,0) -> 0
B84: 5.3.3 | C84: NOVA 08 | D84: Dispositivo de contenção longitudinal, certificado segundo a ABNT NBR 15486:2016, tipo (H4b A W4) - Defensa Metálica - Fornecimento e Implantação | E84: 0.12 | F84: Total de defensas a serem instaladas, por tipo. (VDM médio ponderado) | G84: m | H84: m | I84: =SUM($L84:AK84) -> 0 | J84: m | K84: 0
B85: 5.3.4 | C85: NOVA 09 | D85: Dispositivo de contenção longitudinal, certificado segundo a ABNT NBR 15486:2016, tipo (H4b A W5) - Defensa Metálica - Fornecimento e Implantação | E85: 0.12 | F85: Total de defensas a serem instaladas, por tipo. (VDM médio ponderado) | G85: m | H85: m | I85: =SUM($L85:AK85) -> 0 | J85: m | K85: 0
B86: 5.3.5 | C86: NOVA 07 | D86: Dispositivo de contenção longitudinal, certificado segundo a ABNT NBR 15486:2016, tipo (H3 A W5) - Defensa Metálica - Fornecimento e Implantação | E86: 0.12 | F86: Total de defensas a serem instaladas, por tipo. (VDM médio ponderado) | G86: m | H86: m | I86: =SUM($L86:AK86) -> 0 | J86: m | K86: 0
B87: 5.3.6 | C87: NOVA 06 | D87: Dispositivo de contenção longitudinal, certificado segundo a ABNT NBR 15486:2016, tipo (H2 A W3) - Defensa Metálica - Fornecimento e Implantação | E87: 0.12 | F87: Total de defensas a serem instaladas, por tipo. (VDM médio ponderado) | G87: m | H87: m | I87: =SUM($L87:AK87) -> 0 | J87: m | K87: 0
B88: 5.3.7 | C88: NOVA 05 | D88: Dispositivo de contenção longitudinal, certificado segundo a ABNT NBR 15486:2016, tipo (H1 A W2) - Defensa Metálica - Fornecimento e Implantação | E88: 0.12 | F88: Total de defensas a serem instaladas, por tipo. (VDM médio ponderado) | G88: m | H88: m | I88: =SUM($L88:AK88) -> 0 | J88: m | K88: 0
B89: 5.3.8 | C89: NOVA 04 | D89: Dispositivo de contenção longitudinal, certificado segundo a ABNT NBR 15486:2016, tipo (N2 A W2) - Defensa Metálica - Fornecimento e Implantação | E89: 0.12 | F89: Total de defensas a serem instaladas, por tipo. (VDM médio ponderado) | G89: m | H89: m | I89: =SUM($L89:AK89) -> 0 | J89: m | K89: 0
B90: 5.3.9 | C90: NOVA 10 | D90: Terminal absorvedor de energia, certificado segundo a ABNT NBR 15.486:2016, especificado conforme NCHRP 350 nível de ensaio 2 (70 km/h) ou EN 1317 nível de ensaio 2 (80 km/h) – fornecimento e instalação | E90: 0.24 | F90: Total de defensas a serem instaladas, por tipo. (VDM médio ponderado) | G90: un | H90: un | I90: =SUM($L90:AK90) -> 0 | J90: un | K90: 0
B91: 5.3.10 | C91: NOVA 11 | D91: Terminal absorvedor de energia, certificado segundo a ABNT NBR 15.486:2016, especificado conforme NCHRP 350 nível de ensaio 3 (100 km/h) ou EN 1317 nível de ensaio 3 (100 km/h) - Fornecimento e instalação | E91: 0.24 | F91: Total de defensas a serem instaladas, por tipo. (VDM médio ponderado) | G91: un | H91: un | I91: =SUM($L91:AK91) -> 0 | J91: un | K91: 0
B92: 5.3.11 | C92: 3713605 | D92: Ancoragem de defensa semi-maleável simples - fornecimento e implantação | E92: 0.24 | F92: Total de defensas a serem instaladas, por tipo. (VDM médio ponderado) | G92: m | H92: m | I92: =SUM($L92:AK92) -> 0 | J92: m | K92: 0
B93: 5.3.12 | C93: 3713690 | D93: Terminal de ancoragem de defensa metálica em barreira New Jersey - fornecimento e implantação | E93: 0.24 | F93: Total de defensas a serem instaladas, por tipo. (VDM médio ponderado) | G93: un | H93: un | I93: =SUM($L93:AK93) -> 0 | J93: un | K93: 0
B94: 5.3.13 | C94: 3713873 | D94: Módulo de transição de defensa metálica para barreira rígida - fornecimento e implantação | E94: 0.24 | F94: Total de defensas a serem instaladas, por tipo. (VDM médio ponderado) | G94: un | H94: un | I94: =SUM($L94:AK94) -> 0 | J94: un | K94: 0
B95: 5.3.14 | C95: NOVA 02 | D95: Fornecimento e colocação de dispositivo Refletivo para defensas em tangente | E95: 0.24 | F95: Total de defensas a serem instaladas, por tipo. (VDM médio ponderado) | G95: un | H95: un | I95: =SUM($L95:AK95) -> 0 | J95: un | K95: 0
B96: 5.3.15 | C96: NOVA 03 | D96: Fornecimento e colocação de Painel de Delineamento Refletivo para defensas em curvas | E96: 0.24 | F96: Total de defensas a serem instaladas, por tipo. (VDM médio ponderado) | G96: un | H96: un | I96: =SUM($L96:AK96) -> 0 | J96: un | K96: 0

Sheet Quadros
B1: DESCRIMINAÇÃO DO ORÇAMENTO REFERENCIAL
B3: QUADRO 01 | C3: RESUMO ORÇAMENTO
B4: QUADRO 02 | C4: PLANILHA DE ORÇAMENTO REFERENCIAL
B5: QUADRO 03 | C5: CRONOGRAMA FÍSICO-FINANCEIRO
B6: QUADRO 04 | C6: MOBILIZAÇÃO E DESMOBILIZAÇÃO DE PESSOAL, VEÍCULOS E EQUIPAMENTOS PESADOS
B7: QUADRO 05 | C7: CANTEIRO DE OBRAS EXCLUSIVAMENTE PRÉ-FABRICADO (MÓVEL - CONTÊINER)
B8: QUADRO 06 | C8: ADMINISTRAÇÃO LOCAL
B9: QUADRO 07 | C9: PROGRAMA DE MANUTENÇÃO/CONSERVA QUANTIDADE PADRÃO
B10: QUADRO 08 | C10: CÁLCULO DAS EQUIPES DE ACOMPANHAMENTO DAS FRENTES DE SERVIÇO
B11: QUADRO 09 | C11: DETERMINAÇÃO DO FATOR DE INTERFERÊNCIA DO TRÁFEGO - FIT
B12: QUADRO 10 | C12: DEMONSTRATIVO DO BDI - SEM DESONERAÇÃO
B13: QUADRO 11 | C13: DEMONSTRATIVO DO BDI - COM DESONERAÇÃO
B14: QUADRO 12 | C14: CURVA ABC
B15: QUADRO 13 | C15: QUANTIDADES QUALIFICAÇÃO TÉCNICA

Sheet Premissa
B1: UF : | C1: =L1 -> XX | K1: UF: | L1: XX
B2: Lote : | C2: =L2 -> XX | K2: LOTE: | L2: XX
B3: Prazo: | C3: 36 | K3: RODOVIA: | L3: BR 000/XX - BR 000/XX - BR 000/XX
B4: Prazo Mobilização: | C4: 2
B5: Prazo Início Manutenção: | C5: 2
B6: Rodovia: | C6: =L3 -> BR 000/XX - BR 000/XX - BR 000/XX
B7: Extensão: | C7: ='QD 9 - FIT'!B8 -> 
B8: Capital UF | C8: =VLOOKUP(C1,$B$30:$D$56,3,FALSE) ->  | E8: =VLOOKUP(C1,$B$30:$D$56,3,FALSE) -> 
B10: Transportes | C10: DMT (km)
B11: Canteiro | C11: =VLOOKUP(C2,DMT!$B$3:$F$3,4,FALSE) ->  | F11: Centro de gravidade Lote até a Capital.
B12: Outros | C12: =VLOOKUP(C2,DMT!$B$3:$F$3,4,FALSE) -> 
B14: Tipo : Sem Desoneração ou Com Desoneração
B15: Orçamento: | C15: Sem Desoneração | E15: =MID(C15,1,1) -> S
B17: Impostos
B18: ISSQN: | C18: =ISSQN!G72/100 ->  | D18: Ponderado
B20: Data Base: | C20: Mês/20XX
B22: BDI Sem Desoneração | C22: ='QD 10 - BDI O'!C27*100 ->  | D22: %
B23: BDI Com Desoneração | C23: ='QD 11 - BDI D'!C28*100 ->  | D23: %
B26: Custo Passagem Capital Canteiro | C26: =VLOOKUP(C2,DMT!$B$3:$F$3,5,FALSE) -> 
B28: Taxa Selic | C28: X,XX%
B30: AC | C30: ACRE | D30: Rio Branco
B31: AL | C31: ALAGOAS | D31: Maceió
B32: AP | C32: AMAPÁ | D32: Macapá
B33: AM | C33: AMAZONAS | D33: Manaus
B34: BA | C34: BAHIA | D34: Salvador
B35: CE | C35: Ceará | D35: Fortaleza
B36: DF | C36: DISTRITO FEDERAL | D36: Brasília
B37: ES | C37: ESPÍRITO SANTO | D37: Vitória
B38: GO | C38: GOIÁS | D38: Goiânia
B39: MA | C39: MARANHÃO | D39: São Luís
B40: MT | C40: MATO GROSSO | D40: Cuiabá
B41: MS | C41: MATO GROSSO DO SUL | D41: Campo Grande
B42: MG | C42: MINAS GERAIS | D42: Belo Horizonte
B43: PA | C43: PARÁ | D43: Belém
B44: PB | C44: PARAÍBA | D44: João Pessoa
B45: PR | C45: PARANÁ | D45: Curitiba
B46: PE | C46: PERNAMBUCO | D46: Recife
B47: PI | C47: PIAUÍ | D47: Teresina
B48: RJ | C48: RIO DE JANEIRO | D48: Rio de Janeiro
B49: RN | C49: RIO GRANDE DO NORTE | D49: Natal
B50: RS | C50: RIO GRANDE DO SUL | D50: Porto Alegre
B51: RO | C51: RONDÔNIA | D51: Porto Velho
B52: RR | C52: RORAIMA | D52: Boa Vista
B53: SC | C53: SANTA CATARINA | D53: Florianópolis
B54: SP | C54: SÃO PAULO | D54: São Paulo
B55: SE | C55: SERGIPE | D55: Aracaju
B56: TO | C56: TOCANTINS | D56: Palmas

Sheet QD 1 - Resumo
F1: ='QD 5 - Canteiro'!$S$2 -> LOTE XX
F3: QUADRO 01
B6: RESUMO ORÇAMENTO
B7: ="RODOVIA: "&Premissa!$C$6 -> RODOVIA: BR 000/XX - BR 000/XX - BR 000/XX | E7: VALOR TOTAL R$
B8: ="ESTADO: "&VLOOKUP(Premissa!$C$1,Premissa!$B$30:$C$56,2,FALSE) -> 
B9: ="EXTENSÃO: "&Premissa!$C$7&" km" ->  | E9: COM DESONERAÇÃO | F9: SEM DESONERAÇÃO
B10: ITEM | C10: DISCRIMINAÇÃO
B12: 1 | C12: SERVIÇOS PRELIMINARES | F12: ='QD 2 - Orçamento'!$I$12 -> 
B13: 2 | C13: SINALIZAÇÃO HORIZONTAL | F13: ='QD 2 - Orçamento'!$I$17 -> 
B14: 3 | C14: SINALIZAÇÃO VERTICAL | F14: ='QD 2 - Orçamento'!$I$29 -> 
B15: 4 | C15: DISPOSITIVOS DE SEGURANÇA | F15: ='QD 2 - Orçamento'!$I$45 -> 
B16: 5 | C16: MANUTENÇÃO/CONSERVAÇÃO | F16: ='QD 2 - Orçamento'!$I$59 -> 
B17: 6 | C17: SEGURANÇA VIÁRIA OPERACIONAL | F17: ='QD 2 - Orçamento'!$I$110 -> 
B19: TOTAL GERAL DO ORÇAMENTO | F19: =SUM(F12:F18) -> 
B20: ='QD 2 - Orçamento'!I10 -> Data Base:Mês/20XX
B21: Nota:
B22: Memorando Circular nº 03/2016, da Diretoria Executiva do DNIT, onde estabelece critério para elaboração do orçamento referencial, com aplicação da desoneração ou não da mão de obra, onde deverá ser adotado o menor valor obtido. Com base nos resultados obtidos, será adotado o orçamento considerando a mão de obra sem desoneração.

Sheet QD 2 - Orçamento
I2: ='QD 5 - Canteiro'!$S$2 -> LOTE XX
I4: QUADRO 02
B6: ="RODOVIA: "&Premissa!$C$6 -> RODOVIA: BR 000/XX - BR 000/XX - BR 000/XX
B7: ="ESTADO: "&VLOOKUP(Premissa!$C$1,Premissa!$B$30:$C$56,2,FALSE) -> 
B8: ="EXTENSÃO: "&Premissa!$C$7&" km" -> 
B10: =I2 -> LOTE XX | C10: ="- UF/"&Premissa!$C$1 -> - UF/XX | D10: ="PLANILHA DE ORÇAMENTO REFERENCIAL - SICRO: "&UPPER(Premissa!C15) -> PLANILHA DE ORÇAMENTO REFERENCIAL - SICRO: SEM DESONERAÇÃO | I10: =Premissa!B20&Premissa!C20 -> Data Base:Mês/20XX | AE10: - UF/MT
B11: ITEM | C11: CÓDIGO | D11: DISCRIMINAÇÃO | E11: UNID. | F11: QTDE | G11: PREÇO UNITÁRIO (R$) (em algarismos e por extenso) | I11: TOTAL R$ | N11: ="SH "& (TRUNC((N12/$I$121)*100,3)) &" %" ->  | P11: ="SV "& (TRUNC((P12/$I$121)*100,3)) &" %" ->  | R11: ="DC "& (TRUNC((R12/$I$121)*100,3)) &" %" ->  | T11: ="SEG "& (TRUNC((T12/$I$121)*100,3)) &" %" ->  | V11: ="PRE "& (TRUNC((V12/$I$121)*100,3)) &" %" ->  | X11: ="TOTAL "& (TRUNC((X12/$I$121)*100,3)) &" %" ->  | AE11: CÓDIGO
B12: 1 | D12: SERVIÇOS PRELIMINARES | I12: =SUM(I13:I16) ->  | N12: =SUM(N13:N119) ->  | P12: =SUM(P13:P119) ->  | R12: =SUM(R13:R119) ->  | T12: =SUM(T13:T119) ->  | V12: =SUM(V13:V119) ->  | X12: =SUM(N12,P12,R12,T12,V12) -> 
A13: =IFERROR(VLOOKUP(C13,'Resumo Comp'!$B$4:$F$71,5,FALSE),0) -> 63 | B13: 1.1 | C13: ADM1 | D13: Instalação de canteiro de obras | E13: und. | F13: 1 | G13: ='QD 5 - Canteiro'!S28 ->  | H13: =(ConverterParaExtenso(G13)) ->  | I13: =ROUND(G13*F13,2) ->  | K13: =I13/$I$121 ->  | L13: =IF(K13>0,B13,"") ->  | M13: =C13 -> ADM1 | V13: =I13 ->  | AA13: =I13 ->  | AE13: ADM1 | AF13: =IF(AE13=C13,TRUE) -> TRUE | AU13: =IF($AA13<10^15,"",IF(OR(AP13=1,AND(AP13>=100,MOD(AP13,100)=0)),IF(TRUNC(($AA13-(10^12*INT($AA13/(10^12)))))=0,_e_,_sp_),IF(AP13<100,"",_sp_)))&IF(AP13=1,INDEX(Sng,1,5),IF(AP13<100,"",IF(AP13=100,OCem,INDEX(www,1,TRUNC(AP13/100)))))&IF(MOD(AP13,100)=0,"",IF(AP13=1,"",IF(OR(MOD(AP13,100)>=20,MOD(AP13,100)=10),IF(OR(AP13>100,AND($AA13>10^15,TRUNC(($AA13-(10^12*INT($AA13/(10^12)))))=0)),_e_,IF($AA13>10^15,_sp_,"")),"")))&IF(MOD(AP13,100)=0,"",IF(AP13=1,"",IF(OR(MOD(AP13,100)>=20,MOD(AP13,100)=10),INDEX(Dez,1,TRUNC(MOD(AP13,100)/10)),"")))&IF(MOD(AP13,100)=0,"",IF(AP13=1,"",IF(MOD(MOD(AP13,100),10)<>0,IF(OR(AP13>20,AND($AA13>10^15,TRUNC(($AA13-(10^12*INT($AA13/(10^12)))))=0)),_e_,IF($AA13>10^15,_sp_,"")),"")))&IF(AP13=0,"",IF(AP13=1,"",IF(MOD(MOD(AP13,100),10)=0,"",IF(MOD(AP13,100)<20,INDEX(Sml,1,MOD(AP13,100)),INDEX(Sml,1,MOD(MOD(AP13,100),10)))))) & IF(AP13<=1,"",INDEX(Plu,1,5)) -> 
A14: =IFERROR(VLOOKUP(C14,'Resumo Comp'!$B$4:$F$71,5,FALSE),0) -> 64 | B14: 1.2 | C14: ADM2 | D14: Administração Local / Manutenção do canteiro de obras | E14: % | F14: 1 | G14: ='QD 6 - ADM_Local'!L74 ->  | H14: =(ConverterParaExtenso(G14)) ->  | I14: =ROUND(G14*F14,2) ->  | K14: =I14/$I$121 ->  | M14: =C14 -> ADM2 | V14: =I14 ->  | AE14: ADM2 | AF14: =IF(AE14=C14,TRUE) -> TRUE
A15: =IFERROR(VLOOKUP(C15,'Resumo Comp'!$B$4:$F$71,5,FALSE),0) -> 65 | B15: 1.3 | C15: ADM3 | D15: Mobilização e desmobilização | E15: und. | F15: 2 | G15: ='QD 4 - Mobilização'!K54 ->  | H15: =(ConverterParaExtenso(G15)) ->  | I15: =ROUND(G15*F15,2) ->  | K15: =I15/$I$121 ->  | M15: ADM3 | V15: =I15 ->  | AE15: ADM3 | AF15: TRUE
A16: =IFERROR(VLOOKUP(C16,'Resumo Comp'!$B$4:$F$71,5,FALSE),0) -> 14 | B16: 1.4 | C16: 74209/001 | D16: Fornecimento e Instalação de 2 Placa de Obra Conforme Manual de Placas OBRAS DNIT (4,80 x 3,00) - REF SINAPI | E16: m² | F16: =(4.8*3)*2 -> 28.8 | G16: =INSUMOS!E263 ->  | H16: =(ConverterParaExtenso(G16)) ->  | I16: =ROUND(G16*F16,2) ->  | K16: =I16/$I$121 ->  | M16: 74209/001 | V16: =I16 -> 
A17: =IFERROR(VLOOKUP(C17,'Resumo Comp'!$B$4:$F$71,5,FALSE),0) -> 0 | B17: 2 | D17: SINALIZAÇÃO HORIZONTAL | I17: =SUM(I18:I28) ->  | M17: 0
A18: =IFERROR(VLOOKUP(C18,'Resumo Comp'!$B$4:$F$71,5,FALSE),0) -> 1 | B18: 2.1 | C18: =VLOOKUP(B18,PLQ!$B$5:$K$96,2,FALSE) -> 5213413A | D18: =VLOOKUP(B18,PLQ!$B$5:$K$96,3,FALSE) -> Pintura de faixa - plástico a frio tipo I - espessura de 0,6 mm - aspersão​ | E18: =VLOOKUP(B18,PLQ!$B$5:$K$96,9,FALSE) -> m² | F18: =VLOOKUP(B18,PLQ!$B$5:$K$96,10,FALSE) -> 0 | G18: =VLOOKUP(C18,Composição!$C$2:$R$5255,16,0) ->  | H18: =(ConverterParaExtenso(G18)) ->  | I18: =ROUND(G18*F18,2) ->  | K18: =I18/$I$121 ->  | M18: 5213413A | N18: =I18 ->  | AE18: 5213413A | AF18: TRUE
A19: =IFERROR(VLOOKUP(C19,'Resumo Comp'!$B$4:$F$71,5,FALSE),0) -> 27 | B19: 2.2 | C19: =VLOOKUP(B19,PLQ!$B$5:$K$96,2,FALSE) -> 5213408 | D19: =VLOOKUP(B19,PLQ!$B$5:$K$96,3,FALSE) -> Pintura de faixa - termoplástico por aspersão - espessura de 1,5 mm | E19: =VLOOKUP(B19,PLQ!$B$5:$K$96,9,FALSE) -> m² | F19: =VLOOKUP(B19,PLQ!$B$5:$K$96,10,FALSE) -> 0 | G19: =VLOOKUP(C19,Composição!$C$2:$R$5255,16,0) ->  | H19: =(ConverterParaExtenso(G19)) ->  | I19: =ROUND(G19*F19,2) ->  | L19: =IF(K19>0,B19,"") ->  | M19: 5213408 | N19: =I19 ->  | AE19: 5213408 | AF19: TRUE
A20: =IFERROR(VLOOKUP(C20,'Resumo Comp'!$B$4:$F$71,5,FALSE),0) -> 28 | B20: 2.3 | C20: =VLOOKUP(B20,PLQ!$B$5:$K$96,2,FALSE) -> 5213403 | D20: =VLOOKUP(B20,PLQ!$B$5:$K$96,3,FALSE) -> Pintura de faixa - tinta base acrílica emulsionada em água - espessura de 0,5 mm | E20: =VLOOKUP(B20,PLQ!$B$5:$K$96,9,FALSE) -> m² | F20: =VLOOKUP(B20,PLQ!$B$5:$K$96,10,FALSE) -> 0 | G20: =VLOOKUP(C20,Composição!$C$2:$R$5255,16,0) ->  | M20: 5213403 | AE20: 5213403 | AF20: TRUE
A21: =IFERROR(VLOOKUP(C21,'Resumo Comp'!$B$4:$F$71,5,FALSE),0) -> 29 | B21: 2.4 | C21: =VLOOKUP(B21,PLQ!$B$5:$K$96,2,FALSE) -> 5213402 | D21: =VLOOKUP(B21,PLQ!$B$5:$K$96,3,FALSE) -> Pintura de faixa - tinta base acrílica emulsionada em água - espessura de 0,4 mm | E21: =VLOOKUP(B21,PLQ!$B$5:$K$96,9,FALSE) -> m² | F21: =VLOOKUP(B21,PLQ!$B$5:$K$96,10,FALSE) -> 0 | G21: =VLOOKUP(C21,Composição!$C$2:$R$5255,16,0) ->  | M21: 5213402 | AE21: 5213402 | AF21: TRUE
A22: =IFERROR(VLOOKUP(C22,'Resumo Comp'!$B$4:$F$71,5,FALSE),0) -> 30 | B22: 2.5 | C22: =VLOOKUP(B22,PLQ!$B$5:$K$96,2,FALSE) -> 5213409 | D22: =VLOOKUP(B22,PLQ!$B$5:$K$96,3,FALSE) -> Pintura de setas e zebrados - termoplástico por extrusão - espessura de 3,0 mm | E22: =VLOOKUP(B22,PLQ!$B$5:$K$96,9,FALSE) -> m² | F22: =VLOOKUP(B22,PLQ!$B$5:$K$96,10,FALSE) -> 0 | G22: =VLOOKUP(C22,Composição!$C$2:$R$5255,16,0) ->  | M22: 5213409 | AE22: 5213409 | AF22: TRUE
A23: =IFERROR(VLOOKUP(C23,'Resumo Comp'!$B$4:$F$71,5,FALSE),0) -> 31 | B23: 2.6 | C23: =VLOOKUP(B23,PLQ!$B$5:$K$96,2,FALSE) -> 5219640 | D23: =VLOOKUP(B23,PLQ!$B$5:$K$96,3,FALSE) -> Tacha refletiva metálica - monodirecional tipo III - com um pino - fornecimento e colocação | E23: =VLOOKUP(B23,PLQ!$B$5:$K$96,9,FALSE) -> un | F23: =VLOOKUP(B23,PLQ!$B$5:$K$96,10,FALSE) -> 0 | G23: =VLOOKUP(C23,Composição!$C$2:$R$5255,16,0) ->  | M23: 5219640 | P23: 5213392A | AE23: 5213392A | AF23: FALSE
A24: =IFERROR(VLOOKUP(C24,'Resumo Comp'!$B$4:$F$71,5,FALSE),0) -> 32 | B24: 2.7 | C24: =VLOOKUP(B24,PLQ!$B$5:$K$96,2,FALSE) -> 5219636 | D24: =VLOOKUP(B24,PLQ!$B$5:$K$96,3,FALSE) -> Tacha refletiva metálica - bidirecional tipo III - com um pino - fornecimento e colocação | E24: =VLOOKUP(B24,PLQ!$B$5:$K$96,9,FALSE) -> un | F24: =VLOOKUP(B24,PLQ!$B$5:$K$96,10,FALSE) -> 0 | G24: =VLOOKUP(C24,Composição!$C$2:$R$5255,16,0) ->  | M24: 5219636 | P24: 5213394A | AE24: 5213394A | AF24: FALSE
A25: =IFERROR(VLOOKUP(C25,'Resumo Comp'!$B$4:$F$71,5,FALSE),0) -> 33 | B25: 2.8 | C25: =VLOOKUP(B25,PLQ!$B$5:$K$96,2,FALSE) -> 5219608 | D25: =VLOOKUP(B25,PLQ!$B$5:$K$96,3,FALSE) -> Tacha refletiva em plástico injetado - bidirecional tipo III - com um pino - fornecimento e colocação | E25: =VLOOKUP(B25,PLQ!$B$5:$K$96,9,FALSE) -> un | F25: =VLOOKUP(B25,PLQ!$B$5:$K$96,10,FALSE) -> 0 | G25: =VLOOKUP(C25,Composição!$C$2:$R$5255,16,0) ->  | M25: 5219608 | AE25: 5213359A | AF25: FALSE
A26: =IFERROR(VLOOKUP(C26,'Resumo Comp'!$B$4:$F$71,5,FALSE),0) -> 34 | B26: 2.9 | C26: =VLOOKUP(B26,PLQ!$B$5:$K$96,2,FALSE) -> 5219615 | D26: =VLOOKUP(B26,PLQ!$B$5:$K$96,3,FALSE) -> Tacha refletiva em plástico injetado - monodirecional tipo III - com um pino - fornecimento e colocação | E26: =VLOOKUP(B26,PLQ!$B$5:$K$96,9,FALSE) -> un | F26: =VLOOKUP(B26,PLQ!$B$5:$K$96,10,FALSE) -> 0 | G26: =VLOOKUP(C26,Composição!$C$2:$R$5255,16,0) ->  | M26: 5219615 | P26: 5213359A | AE26: 5213360A | AF26: FALSE
A27: =IFERROR(VLOOKUP(C27,'Resumo Comp'!$B$4:$F$71,5,FALSE),0) -> 35 | B27: 2.10 | C27: =VLOOKUP(B27,PLQ!$B$5:$K$96,2,FALSE) -> 5213837 | D27: =VLOOKUP(B27,PLQ!$B$5:$K$96,3,FALSE) -> Delimitador de tráfego flexível com duas faixas refletivas D = 20 cm e H = 80 cm com chumbador | E27: =VLOOKUP(B27,PLQ!$B$5:$K$96,9,FALSE) -> un | F27: =VLOOKUP(B27,PLQ!$B$5:$K$96,10,FALSE) -> 0 | G27: =VLOOKUP(C27,Composição!$C$2:$R$5255,16,0) ->  | M27: 5213837 | AE27: 5213837 | AF27: TRUE
A28: =IFERROR(VLOOKUP(C28,'Resumo Comp'!$B$4:$F$71,5,FALSE),0) -> 36 | B28: 2.11 | C28: =VLOOKUP(B28,PLQ!$B$5:$K$96,2,FALSE) -> 5214004 | D28: =VLOOKUP(B28,PLQ!$B$5:$K$96,3,FALSE) -> Pintura de faixa - termoplástico em alto relevo tipo II - relevo simples ranhurado - base | E28: =VLOOKUP(B28,PLQ!$B$5:$K$96,9,FALSE) -> m² | F28: =VLOOKUP(B28,PLQ!$B$5:$K$96,10,FALSE) -> 0 | G28: =VLOOKUP(C28,Composição!$C$2:$R$5255,16,0) ->  | I28: =ROUND(G28*F28,2) ->  | M28: 5214004 | AE28: 5214010 | AF28: FALSE
A29: =IFERROR(VLOOKUP(C29,'Resumo Comp'!$B$4:$F$71,5,FALSE),0) -> 0 | B29: 3 | D29: SINALIZAÇÃO VERTICAL | I29: =SUM(I30:I44) ->  | L29: =IF(K29>0,B29,"") ->  | M29: 0 | AF29: TRUE
A30: =IFERROR(VLOOKUP(C30,'Resumo Comp'!$B$4:$F$71,5,FALSE),0) -> 2 | B30: 3.1 | C30: =VLOOKUP(B30,PLQ!$B$5:$K$96,2,FALSE) -> 5213572A | D30: =VLOOKUP(B30,PLQ!$B$5:$K$96,3,FALSE) -> Fornecimento e implantação de placa em aço - película III + SI (Sinal Impresso Digital c/ Overlay) | E30: =VLOOKUP(B30,PLQ!$B$5:$K$96,9,FALSE) -> m² | F30: =VLOOKUP(B30,PLQ!$B$5:$K$96,10,FALSE) -> 0 | G30: =VLOOKUP(C30,Composição!$C$2:$R$5255,16,0) ->  | I30: =ROUND(G30*F30,2) ->  | K30: =I30/$I$121 ->  | L30: =IF(K30>0,B30,"") ->  | M30: 5213572A | N30: 5213572A | P30: =I30 ->  | AE30: 5213572A | AF30: TRUE
A31: =IFERROR(VLOOKUP(C31,'Resumo Comp'!$B$4:$F$71,5,FALSE),0) -> 3 | B31: 3.2 | C31: =VLOOKUP(B31,PLQ!$B$5:$K$96,2,FALSE) -> 5213487A | D31: =VLOOKUP(B31,PLQ!$B$5:$K$96,3,FALSE) -> Fornecimento e implantação de placa em alumínio composto, espessura de 3,0 mm. - película retrorrefletiva tipo III + SI (Sinal Impresso Digital c/ Overlay) | E31: =VLOOKUP(B31,PLQ!$B$5:$K$96,9,FALSE) -> m² | F31: =VLOOKUP(B31,PLQ!$B$5:$K$96,10,FALSE) -> 0 | G31: =VLOOKUP(C31,Composição!$C$2:$R$5255,16,0) ->  | I31: =ROUND(G31*F31,2) ->  | L31: =IF(K31>0,B31,"") ->  | M31: 5213487A | P31: =I31 ->  | AE31: 5213487A | AF31: TRUE
A32: =IFERROR(VLOOKUP(C32,'Resumo Comp'!$B$4:$F$71,5,FALSE),0) -> 4 | B32: 3.3 | C32: =VLOOKUP(B32,PLQ!$B$5:$K$96,2,FALSE) -> 5213487B | D32: =VLOOKUP(B32,PLQ!$B$5:$K$96,3,FALSE) -> Fornecimento e implantação de placa em alumínio composto, espessura de 3,0 mm, modulada, aérea - película retrorrefletiva tipo X + SI (Sinal Impresso Digital c/ Overlay) | E32: =VLOOKUP(B32,PLQ!$B$5:$K$96,9,FALSE) -> m² | F32: =VLOOKUP(B32,PLQ!$B$5:$K$96,10,FALSE) -> 0 | G32: =VLOOKUP(C32,Composição!$C$2:$R$5255,16,0) ->  | M32: 5213487B | AE32: 5213487B | AF32: TRUE
A33: =IFERROR(VLOOKUP(C33,'Resumo Comp'!$B$4:$F$71,5,FALSE),0) -> 37 | B33: 3.4 | C33: =VLOOKUP(B33,PLQ!$B$5:$K$96,2,FALSE) -> 5213352 | D33: =VLOOKUP(B33,PLQ!$B$5:$K$96,3,FALSE) -> Fornecimento e implantação de suporte polimérico ecológico maciço quadrado de 8 cm para placa de sinalização | E33: =VLOOKUP(B33,PLQ!$B$5:$K$96,9,FALSE) -> un | F33: =VLOOKUP(B33,PLQ!$B$5:$K$96,10,FALSE) -> 0 | G33: =VLOOKUP(C33,Composição!$C$2:$R$5255,16,0) ->  | M33: 5213352 | N33: 5213352 | AE33: 5213352 | AF33: TRUE
A34: =IFERROR(VLOOKUP(C34,'Resumo Comp'!$B$4:$F$71,5,FALSE),0) -> 38 | B34: 3.5 | C34: =VLOOKUP(B34,PLQ!$B$5:$K$96,2,FALSE) -> 5213353 | D34: =VLOOKUP(B34,PLQ!$B$5:$K$96,3,FALSE) -> Fornecimento e implantação de suporte polimérico ecológico maciço colapsível retangular de 7 x 15 cm para placa de sinalização | E34: =VLOOKUP(B34,PLQ!$B$5:$K$96,9,FALSE) -> un | F34: =VLOOKUP(B34,PLQ!$B$5:$K$96,10,FALSE) -> 0 | G34: =VLOOKUP(C34,Composição!$C$2:$R$5255,16,0) ->  | M34: 5213353 | AE34: 5213353 | AF34: TRUE
A35: =IFERROR(VLOOKUP(C35,'Resumo Comp'!$B$4:$F$71,5,FALSE),0) -> 39 | B35: 3.6 | C35: =VLOOKUP(B35,PLQ!$B$5:$K$96,2,FALSE) -> 5213350 | D35: =VLOOKUP(B35,PLQ!$B$5:$K$96,3,FALSE) -> Fornecimento e implantação de suporte polimérico ecológico maciço colapsível quadrado de 10 cm para placa de sinalização | E35: =VLOOKUP(B35,PLQ!$B$5:$K$96,9,FALSE) -> un | F35: =VLOOKUP(B35,PLQ!$B$5:$K$96,10,FALSE) -> 0 | G35: =VLOOKUP(C35,Composição!$C$2:$R$5255,16,0) ->  | M35: 5213350 | AE35: 5213350 | AF35: TRUE
A36: =IFERROR(VLOOKUP(C36,'Resumo Comp'!$B$4:$F$71,5,FALSE),0) -> 40 | B36: 3.7 | C36: =VLOOKUP(B36,PLQ!$B$5:$K$96,2,FALSE) -> 5213868 | D36: =VLOOKUP(B36,PLQ!$B$5:$K$96,3,FALSE) -> Fornecimento e implantação de suporte metálico galvanizado para placas - 2,00 x 1,00 m | E36: =VLOOKUP(B36,PLQ!$B$5:$K$96,9,FALSE) -> un | F36: =VLOOKUP(B36,PLQ!$B$5:$K$96,10,FALSE) -> 0 | G36: =VLOOKUP(C36,Composição!$C$2:$R$5255,16,0) ->  | M36: 5213868 | AE36: 5213868 | AF36: TRUE
A37: =IFERROR(VLOOKUP(C37,'Resumo Comp'!$B$4:$F$71,5,FALSE),0) -> 41 | B37: 3.8 | C37: =VLOOKUP(B37,PLQ!$B$5:$K$96,2,FALSE) -> 5213869 | D37: =VLOOKUP(B37,PLQ!$B$5:$K$96,3,FALSE) -> Fornecimento e implantação de suporte metálico galvanizado para placas - 3,00 x 1,50 m | E37: =VLOOKUP(B37,PLQ!$B$5:$K$96,9,FALSE) -> un | F37: =VLOOKUP(B37,PLQ!$B$5:$K$96,10,FALSE) -> 0 | G37: =VLOOKUP(C37,Composição!$C$2:$R$5255,16,0) ->  | M37: 5213869 | AE37: 5213869 | AF37: TRUE
A38: =IFERROR(VLOOKUP(C38,'Resumo Comp'!$B$4:$F$71,5,FALSE),0) -> 42 | B38: 3.9 | C38: =VLOOKUP(B38,PLQ!$B$5:$K$96,2,FALSE) -> 5213870 | D38: =VLOOKUP(B38,PLQ!$B$5:$K$96,3,FALSE) -> Fornecimento e implantação de suporte metálico galvanizado para placas - 3,00 x 2,00 m | E38: =VLOOKUP(B38,PLQ!$B$5:$K$96,9,FALSE) -> un | F38: =VLOOKUP(B38,PLQ!$B$5:$K$96,10,FALSE) -> 0 | G38: =VLOOKUP(C38,Composição!$C$2:$R$5255,16,0) ->  | M38: 5213870 | AE38: 5213870 | AF38: TRUE
A39: =IFERROR(VLOOKUP(C39,'Resumo Comp'!$B$4:$F$71,5,FALSE),0) -> 43 | B39: 3.10 | C39: =VLOOKUP(B39,PLQ!$B$5:$K$96,2,FALSE) -> 5213871 | D39: =VLOOKUP(B39,PLQ!$B$5:$K$96,3,FALSE) -> Fornecimento e implantação de suporte metálico galvanizado para placas - 4,00 x 2,00 m | E39: =VLOOKUP(B39,PLQ!$B$5:$K$96,9,FALSE) -> un | F39: =VLOOKUP(B39,PLQ!$B$5:$K$96,10,FALSE) -> 0 | G39: =VLOOKUP(C39,Composição!$C$2:$R$5255,16,0) ->  | M39: 5213871 | AE39: 5213871 | AF39: TRUE
A40: =IFERROR(VLOOKUP(C40,'Resumo Comp'!$B$4:$F$71,5,FALSE),0) -> 44 | B40: 3.11 | C40: =VLOOKUP(B40,PLQ!$B$5:$K$96,2,FALSE) -> 5213872 | D40: =VLOOKUP(B40,PLQ!$B$5:$K$96,3,FALSE) -> Fornecimento e implantação de suporte metálico galvanizado para placas - 4,00 x 3,00 m | E40: =VLOOKUP(B40,PLQ!$B$5:$K$96,9,FALSE) -> un | F40: =VLOOKUP(B40,PLQ!$B$5:$K$96,10,FALSE) -> 0 | G40: =VLOOKUP(C40,Composição!$C$2:$R$5255,16,0) ->  | M40: 5213872 | AE40: 5213872 | AF40: TRUE
A41: =IFERROR(VLOOKUP(C41,'Resumo Comp'!$B$4:$F$71,5,FALSE),0) -> 45 | B41: 3.12 | C41: =VLOOKUP(B41,PLQ!$B$5:$K$96,2,FALSE) -> 5213649 | D41: =VLOOKUP(B41,PLQ!$B$5:$K$96,3,FALSE) -> Pórtico metálico com vão de 15,9 m, vento de 35 m/s, área de exposição de até 23,85 m², tensão admissível solo > 200 kN/m² - areia e brita comerciais | E41: =VLOOKUP(B41,PLQ!$B$5:$K$96,9,FALSE) -> un | F41: =VLOOKUP(B41,PLQ!$B$5:$K$96,10,FALSE) -> 1 | G41: =VLOOKUP(C41,Composição!$C$2:$R$5255,16,0) ->  | M41: 5213649 | AE41: 5213649 | AF41: TRUE
A42: =IFERROR(VLOOKUP(C42,'Resumo Comp'!$B$4:$F$71,5,FALSE),0) -> 46 | B42: 3.13 | C42: =VLOOKUP(B42,PLQ!$B$5:$K$96,2,FALSE) -> 5213630 | D42: =VLOOKUP(B42,PLQ!$B$5:$K$96,3,FALSE) -> Semi-pórtico metálico com vão de 8,3 m, vento de 35 m/s, área de exposição de até 12,45 m², tensão admissível solo > 200 kN/m² - areia e brita comerciais | E42: =VLOOKUP(B42,PLQ!$B$5:$K$96,9,FALSE) -> un | F42: =VLOOKUP(B42,PLQ!$B$5:$K$96,10,FALSE) -> 1 | G42: =VLOOKUP(C42,Composição!$C$2:$R$5255,16,0) ->  | M42: 5213630 | AE42: 5213630 | AF42: TRUE
A43: =IFERROR(VLOOKUP(C43,'Resumo Comp'!$B$4:$F$71,5,FALSE),0) -> 47 | B43: 3.14 | C43: =VLOOKUP(B43,PLQ!$B$5:$K$96,2,FALSE) -> 5213636 | D43: =VLOOKUP(B43,PLQ!$B$5:$K$96,3,FALSE) -> Semi-pórtico duplo metálico com vão de 2 x 8,3 m, vento de 35 m/s, área de exposição de até 2 x 12,45 m², tensão admissível solo > 200 kN/m² - areia e brita comerciais | E43: =VLOOKUP(B43,PLQ!$B$5:$K$96,9,FALSE) -> un | F43: =VLOOKUP(B43,PLQ!$B$5:$K$96,10,FALSE) -> 1 | G43: =VLOOKUP(C43,Composição!$C$2:$R$5255,16,0) ->  | M43: 5213636 | AE43: 5213636 | AF43: TRUE
A44: =IFERROR(VLOOKUP(C44,'Resumo Comp'!$B$4:$F$71,5,FALSE),0) -> 15 | B44: 3.15 | C44: =VLOOKUP(B44,PLQ!$B$5:$K$96,2,FALSE) -> NOVA 01 | D44: =VLOOKUP(B44,PLQ!$B$5:$K$96,3,FALSE) -> Suporte metálico com braço projetado - Área de Exposição até 4,50 m² - Fornecimento e Implantação | E44: =VLOOKUP(B44,PLQ!$B$5:$K$96,9,FALSE) -> un | F44: =VLOOKUP(B44,PLQ!$B$5:$K$96,10,FALSE) -> 0 | G44: =VLOOKUP(C44,Composição!$C$4:$R$5255,16,FALSE) ->  | I44: =ROUND(G44*F44,2) ->  | M44: NOVA 01 | AE44: NOVA 01 | AF44: TRUE
A45: =IFERROR(VLOOKUP(C45,'Resumo Comp'!$B$4:$F$71,5,FALSE),0) -> 0 | B45: 4 | D45: DISPOSITIVOS DE SEGURANÇA | I45: =SUM(I46:I58) ->  | L45: =IF(K45>0,B45,"") ->  | M45: 0 | AF45: TRUE
A46: =IFERROR(VLOOKUP(C46,'Resumo Comp'!$B$4:$F$71,5,FALSE),0) -> 22 | B46: 4.1 | C46: =VLOOKUP(B46,PLQ!$B$5:$K$96,2,FALSE) -> NOVA 08 | D46: =VLOOKUP(B46,PLQ!$B$5:$K$96,3,FALSE) -> Dispositivo de contenção longitudinal, certificado segundo a ABNT NBR 15486:2016, tipo (H4b A W4) - Defensa Metálica - Fornecimento e Implantação | E46: =VLOOKUP(B46,PLQ!$B$5:$K$96,9,FALSE) -> m | F46: =VLOOKUP(B46,PLQ!$B$5:$K$96,10,FALSE) -> 0 | G46: =VLOOKUP(C46,Composição!$C$4:$R$5255,16,FALSE) ->  | H46: =(ConverterParaExtenso(G46)) ->  | I46: =ROUND(G46*F46,2) ->  | K46: =I46/$I$121 ->  | L46: =IF(K46>0,B46,"") ->  | M46: NOVA 08 | R46: =I46 ->  | AE46: NOVA 08 | AF46: TRUE
A47: =IFERROR(VLOOKUP(C47,'Resumo Comp'!$B$4:$F$71,5,FALSE),0) -> 23 | B47: 4.2 | C47: =VLOOKUP(B47,PLQ!$B$5:$K$96,2,FALSE) -> NOVA 09 | D47: =VLOOKUP(B47,PLQ!$B$5:$K$96,3,FALSE) -> Dispositivo de contenção longitudinal, certificado segundo a ABNT NBR 15486:2016, tipo (H4b A W5) - Defensa Metálica - Fornecimento e Implantação | E47: =VLOOKUP(B47,PLQ!$B$5:$K$96,9,FALSE) -> m | F47: =VLOOKUP(B47,PLQ!$B$5:$K$96,10,FALSE) -> 0 | G47: =VLOOKUP(C47,Composição!$C$4:$R$5255,16,FALSE) ->  | H47: =(ConverterParaExtenso(G47)) ->  | I47: =ROUND(G47*F47,2) ->  | L47: =IF(K47>0,B47,"") ->  | M47: NOVA 09 | R47: =I47 ->  | AE47: NOVA 09 | AF47: TRUE
A48: =IFERROR(VLOOKUP(C48,'Resumo Comp'!$B$4:$F$71,5,FALSE),0) -> 21 | B48: 4.3 | C48: =VLOOKUP(B48,PLQ!$B$5:$K$96,2,FALSE) -> NOVA 07 | D48: =VLOOKUP(B48,PLQ!$B$5:$K$96,3,FALSE) -> Dispositivo de contenção longitudinal, certificado segundo a ABNT NBR 15486:2016, tipo (H3 A W5) - Defensa Metálica - Fornecimento e Implantação | E48: =VLOOKUP(B48,PLQ!$B$5:$K$96,9,FALSE) -> m | F48: =VLOOKUP(B48,PLQ!$B$5:$K$96,10,FALSE) -> 0 | G48: =VLOOKUP(C48,Composição!$C$4:$R$5255,16,FALSE) ->  | M48: NOVA 07 | AE48: NOVA 07 | AF48: TRUE
A49: =IFERROR(VLOOKUP(C49,'Resumo Comp'!$B$4:$F$71,5,FALSE),0) -> 20 | B49: 4.4 | C49: =VLOOKUP(B49,PLQ!$B$5:$K$96,2,FALSE) -> NOVA 06 | D49: =VLOOKUP(B49,PLQ!$B$5:$K$96,3,FALSE) -> Dispositivo de contenção longitudinal, certificado segundo a ABNT NBR 15486:2016, tipo (H2 A W3) - Defensa Metálica - Fornecimento e Implantação | E49: =VLOOKUP(B49,PLQ!$B$5:$K$96,9,FALSE) -> m | F49: =VLOOKUP(B49,PLQ!$B$5:$K$96,10,FALSE) -> 0 | G49: =VLOOKUP(C49,Composição!$C$4:$R$5255,16,FALSE) ->  | M49: NOVA 06 | AE49: NOVA 06 | AF49: TRUE
A50: =IFERROR(VLOOKUP(C50,'Resumo Comp'!$B$4:$F$71,5,FALSE),0) -> 19 | B50: 4.5 | C50: =VLOOKUP(B50,PLQ!$B$5:$K$96,2,FALSE) -> NOVA 05 | D50: =VLOOKUP(B50,PLQ!$B$5:$K$96,3,FALSE) -> Dispositivo de contenção longitudinal, certificado segundo a ABNT NBR 15486:2016, tipo (H1 A W2) - Defensa Metálica - Fornecimento e Implantação | E50: =VLOOKUP(B50,PLQ!$B$5:$K$96,9,FALSE) -> m | F50: =VLOOKUP(B50,PLQ!$B$5:$K$96,10,FALSE) -> 0 | G50: =VLOOKUP(C50,Composição!$C$4:$R$5255,16,FALSE) ->  | M50: NOVA 05 | AE50: NOVA 05 | AF50: TRUE
A51: =IFERROR(VLOOKUP(C51,'Resumo Comp'!$B$4:$F$71,5,FALSE),0) -> 18 | B51: 4.6 | C51: =VLOOKUP(B51,PLQ!$B$5:$K$96,2,FALSE) -> NOVA 04 | D51: =VLOOKUP(B51,PLQ!$B$5:$K$96,3,FALSE) -> Dispositivo de contenção longitudinal, certificado segundo a ABNT NBR 15486:2016, tipo (N2 A W2) - Defensa Metálica - Fornecimento e Implantação | E51: =VLOOKUP(B51,PLQ!$B$5:$K$96,9,FALSE) -> m | F51: =VLOOKUP(B51,PLQ!$B$5:$K$96,10,FALSE) -> 0 | G51: =VLOOKUP(C51,Composição!$C$4:$R$5255,16,FALSE) ->  | M51: NOVA 04 | AE51: NOVA 04 | AF51: TRUE
A52: =IFERROR(VLOOKUP(C52,'Resumo Comp'!$B$4:$F$71,5,FALSE),0) -> 24 | B52: 4.7 | C52: =VLOOKUP(B52,PLQ!$B$5:$K$96,2,FALSE) -> NOVA 10 | D52: =VLOOKUP(B52,PLQ!$B$5:$K$96,3,FALSE) -> Terminal absorvedor de energia, certificado segundo a ABNT NBR 15.486:2016, especificado conforme NCHRP 350 nível de ensaio 2 (70 km/h) ou EN 1317 nível de ensaio 2 (80 km/h) – fornecimento e instalação | E52: =VLOOKUP(B52,PLQ!$B$5:$K$96,9,FALSE) -> un | F52: =VLOOKUP(B52,PLQ!$B$5:$K$96,10,FALSE) -> 0 | G52: =VLOOKUP(C52,Composição!$C$4:$R$5255,16,FALSE) ->  | M52: NOVA 10 | AE52: NOVA 10 | AF52: TRUE
A53: =IFERROR(VLOOKUP(C53,'Resumo Comp'!$B$4:$F$71,5,FALSE),0) -> 25 | B53: 4.8 | C53: =VLOOKUP(B53,PLQ!$B$5:$K$96,2,FALSE) -> NOVA 11 | D53: =VLOOKUP(B53,PLQ!$B$5:$K$96,3,FALSE) -> Terminal absorvedor de energia, certificado segundo a ABNT NBR 15.486:2016, especificado conforme NCHRP 350 nível de ensaio 3 (100 km/h) ou EN 1317 nível de ensaio 3 (100 km/h) - Fornecimento e instalação | E53: =VLOOKUP(B53,PLQ!$B$5:$K$96,9,FALSE) -> un | F53: =VLOOKUP(B53,PLQ!$B$5:$K$96,10,FALSE) -> 0 | G53: =VLOOKUP(C53,Composição!$C$4:$R$5255,16,FALSE) ->  | M53: NOVA 11 | AE53: NOVA 11 | AF53: TRUE
A54: =IFERROR(VLOOKUP(C54,'Resumo Comp'!$B$4:$F$71,5,FALSE),0) -> 48 | B54: 4.9 | C54: =VLOOKUP(B54,PLQ!$B$5:$K$96,2,FALSE) -> 3713605 | D54: =VLOOKUP(B54,PLQ!$B$5:$K$96,3,FALSE) -> Ancoragem de defensa semi-maleável simples - fornecimento e implantação | E54: =VLOOKUP(B54,PLQ!$B$5:$K$96,9,FALSE) -> m | F54: =VLOOKUP(B54,PLQ!$B$5:$K$96,10,FALSE) -> 0 | G54: =VLOOKUP(C54,Composição!$C$4:$R$5255,16,FALSE) ->  | M54: 3713605 | AE54: 3713605 | AF54: TRUE
A55: =IFERROR(VLOOKUP(C55,'Resumo Comp'!$B$4:$F$71,5,FALSE),0) -> 49 | B55: 4.10 | C55: =VLOOKUP(B55,PLQ!$B$5:$K$96,2,FALSE) -> 3713690 | D55: =VLOOKUP(B55,PLQ!$B$5:$K$96,3,FALSE) -> Terminal de ancoragem de defensa metálica em barreira New Jersey - fornecimento e implantação | E55: =VLOOKUP(B55,PLQ!$B$5:$K$96,9,FALSE) -> un | F55: =VLOOKUP(B55,PLQ!$B$5:$K$96,10,FALSE) -> 0 | G55: =VLOOKUP(C55,Composição!$C$4:$R$5255,16,FALSE) ->  | M55: 3713690 | AE55: 3713690 | AF55: TRUE
A56: =IFERROR(VLOOKUP(C56,'Resumo Comp'!$B$4:$F$71,5,FALSE),0) -> 50 | B56: 4.11 | C56: =VLOOKUP(B56,PLQ!$B$5:$K$96,2,FALSE) -> 3713873 | D56: =VLOOKUP(B56,PLQ!$B$5:$K$96,3,FALSE) -> Módulo de transição de defensa metálica para barreira rígida - fornecimento e implantação | E56: =VLOOKUP(B56,PLQ!$B$5:$K$96,9,FALSE) -> un | F56: =VLOOKUP(B56,PLQ!$B$5:$K$96,10,FALSE) -> 0 | G56: =VLOOKUP(C56,Composição!$C$4:$R$5255,16,FALSE) ->  | M56: 3713873 | AE56: 3713873 | AF56: TRUE
A57: =IFERROR(VLOOKUP(C57,'Resumo Comp'!$B$4:$F$71,5,FALSE),0) -> 16 | B57: 4.12 | C57: =VLOOKUP(B57,PLQ!$B$5:$K$96,2,FALSE) -> NOVA 02 | D57: =VLOOKUP(B57,PLQ!$B$5:$K$96,3,FALSE) -> Fornecimento e colocação de dispositivo Refletivo para defensas em tangente | E57: =VLOOKUP(B57,PLQ!$B$5:$K$96,9,FALSE) -> un | F57: =VLOOKUP(B57,PLQ!$B$5:$K$96,10,FALSE) -> 0 | G57: =VLOOKUP(C57,Composição!$C$4:$R$5255,16,FALSE) ->  | M57: NOVA 02 | AE57: NOVA 02 | AF57: TRUE
A58: =IFERROR(VLOOKUP(C58,'Resumo Comp'!$B$4:$F$71,5,FALSE),0) -> 17 | B58: 4.13 | C58: =VLOOKUP(B58,PLQ!$B$5:$K$96,2,FALSE) -> NOVA 03 | D58: =VLOOKUP(B58,PLQ!$B$5:$K$96,3,FALSE) -> Fornecimento e colocação de Painel de Delineamento Refletivo para defensas em curvas | E58: =VLOOKUP(B58,PLQ!$B$5:$K$96,9,FALSE) -> un | F58: =VLOOKUP(B58,PLQ!$B$5:$K$96,10,FALSE) -> 0 | G58: =VLOOKUP(C58,Composição!$C$4:$R$5255,16,FALSE) ->  | M58: NOVA 03 | AE58: NOVA 03 | AF58: TRUE
A59: =IFERROR(VLOOKUP(C59,'Resumo Comp'!$B$4:$F$71,5,FALSE),0) -> 0 | B59: 5 | D59: MANUTENÇÃO/CONSERVAÇÃO | I59: =SUM(I74,I60,I94) ->  | J59: =I59/36 ->  | L59: =IF(K59>0,B59,"") ->  | M59: 0 | AF59: TRUE
A60: =IFERROR(VLOOKUP(C60,'Resumo Comp'!$B$4:$F$71,5,FALSE),0) -> 0 | B60: 5.1 | D60: MANUTENÇÃO/CONSERVAÇÃO - SINALIZAÇÃO HORIZONTAL | I60: =SUM(I61:I73) ->  | L60: =IF(K60>0,B60,"") ->  | M60: 0 | AF60: TRUE
A61: =IFERROR(VLOOKUP(C61,'Resumo Comp'!$B$4:$F$71,5,FALSE),0) -> 5 | B61: 5.1.1 | C61: =VLOOKUP(B61,PLQ!$B$5:$K$96,2,FALSE) -> 5213413B | D61: =VLOOKUP(B61,PLQ!$B$5:$K$96,3,FALSE) -> Manutenção/recomposição - pintura de faixa - plástico a frio tricomponente à base de resinas metacrílicas - espessura de 0,6 mm - aspersão | E61: =VLOOKUP(B61,PLQ!$B$5:$K$96,9,FALSE) -> m² | F61: =VLOOKUP(B61,PLQ!$B$5:$K$96,10,FALSE) -> 0 | G61: =VLOOKUP(C61,Composição!$C$4:$R$5255,16,FALSE) ->  | H61: =(ConverterParaExtenso(G61)) ->  | I61: =ROUND(G61*F61,2) ->  | K61: =I61/$I$121 ->  | L61: =IF(K61>0,B61,"") ->  | M61: 5213413B | N61: =I61 ->  | AE61: 5213413B | AF61: TRUE
A62: =IFERROR(VLOOKUP(C62,'Resumo Comp'!$B$4:$F$71,5,FALSE),0) -> 6 | B62: 5.1.2 | C62: =VLOOKUP(B62,PLQ!$B$5:$K$96,2,FALSE) -> 5213408A | D62: =VLOOKUP(B62,PLQ!$B$5:$K$96,3,FALSE) -> Manutenção/recomposição - pintura de faixa - termoplástico por aspersão - espessura de 1,5 mm | E62: =VLOOKUP(B62,PLQ!$B$5:$K$96,9,FALSE) -> m² | F62: =VLOOKUP(B62,PLQ!$B$5:$K$96,10,FALSE) -> 0 | G62: =VLOOKUP(C62,Composição!$C$4:$R$5255,16,FALSE) ->  | H62: =(ConverterParaExtenso(G62)) ->  | M62: 5213408A | AE62: 5213408A | AF62: TRUE
A63: =IFERROR(VLOOKUP(C63,'Resumo Comp'!$B$4:$F$71,5,FALSE),0) -> 51 | B63: 5.1.3 | C63: =VLOOKUP(B63,PLQ!$B$5:$K$96,2,FALSE) -> 5213355 | D63: =VLOOKUP(B63,PLQ!$B$5:$K$96,3,FALSE) -> Manutenção/recomposição de sinalização - pintura de faixa com tinta acrílica emulsionada em água - espessura de 0,5 mm | E63: =VLOOKUP(B63,PLQ!$B$5:$K$96,9,FALSE) -> m² | F63: =VLOOKUP(B63,PLQ!$B$5:$K$96,10,FALSE) -> 0 | G63: =VLOOKUP(C63,Composição!$C$4:$R$5255,16,FALSE) ->  | M63: 5213355 | AE63: 5213355 | AF63: TRUE
A64: =IFERROR(VLOOKUP(C64,'Resumo Comp'!$B$4:$F$71,5,FALSE),0) -> 31 | B64: 5.1.4 | C64: =VLOOKUP(B64,PLQ!$B$5:$K$96,2,FALSE) -> 5219640 | D64: =VLOOKUP(B64,PLQ!$B$5:$K$96,3,FALSE) -> Tacha refletiva metálica - monodirecional tipo III - com um pino - fornecimento e colocação | E64: =VLOOKUP(B64,PLQ!$B$5:$K$96,9,FALSE) -> un | F64: =VLOOKUP(B64,PLQ!$B$5:$K$96,10,FALSE) -> 0 | G64: =VLOOKUP(C64,Composição!$C$4:$R$5255,16,FALSE) ->  | M64: 5219640 | AE64: 5213392A | AF64: FALSE
A65: =IFERROR(VLOOKUP(C65,'Resumo Comp'!$B$4:$F$71,5,FALSE),0) -> 32 | B65: 5.1.5 | C65: =VLOOKUP(B65,PLQ!$B$5:$K$96,2,FALSE) -> 5219636 | D65: =VLOOKUP(B65,PLQ!$B$5:$K$96,3,FALSE) -> Tacha refletiva metálica - bidirecional tipo III - com um pino - fornecimento e colocação | E65: =VLOOKUP(B65,PLQ!$B$5:$K$96,9,FALSE) -> un | F65: =VLOOKUP(B65,PLQ!$B$5:$K$96,10,FALSE) -> 0 | G65: =VLOOKUP(C65,Composição!$C$4:$R$5255,16,FALSE) ->  | M65: 5219636 | AE65: 5213394A | AF65: FALSE
A66: =IFERROR(VLOOKUP(C66,'Resumo Comp'!$B$4:$F$71,5,FALSE),0) -> 33 | B66: 5.1.6 | C66: =VLOOKUP(B66,PLQ!$B$5:$K$96,2,FALSE) -> 5219608 | D66: =VLOOKUP(B66,PLQ!$B$5:$K$96,3,FALSE) -> Tacha refletiva em plástico injetado - bidirecional tipo III - com um pino - fornecimento e colocação | E66: =VLOOKUP(B66,PLQ!$B$5:$K$96,9,FALSE) -> un | F66: =VLOOKUP(B66,PLQ!$B$5:$K$96,10,FALSE) -> 0 | G66: =VLOOKUP(C66,Composição!$C$4:$R$5255,16,FALSE) ->  | M66: 5219608 | AE66: 5213360A | AF66: FALSE
A67: =IFERROR(VLOOKUP(C67,'Resumo Comp'!$B$4:$F$71,5,FALSE),0) -> 34 | B67: 5.1.7 | C67: =VLOOKUP(B67,PLQ!$B$5:$K$96,2,FALSE) -> 5219615 | D67: =VLOOKUP(B67,PLQ!$B$5:$K$96,3,FALSE) -> Tacha refletiva em plástico injetado - monodirecional tipo III - com um pino - fornecimento e colocação | E67: =VLOOKUP(B67,PLQ!$B$5:$K$96,9,FALSE) -> un | F67: =VLOOKUP(B67,PLQ!$B$5:$K$96,10,FALSE) -> 0 | G67: =VLOOKUP(C67,Composição!$C$4:$R$5255,16,FALSE) ->  | M67: 5219615 | AE67: 5213359A | AF67: FALSE
A68: =IFERROR(VLOOKUP(C68,'Resumo Comp'!$B$4:$F$71,5,FALSE),0) -> 35 | B68: 5.1.8 | C68: =VLOOKUP(B68,PLQ!$B$5:$K$96,2,FALSE) -> 5213837 | D68: =VLOOKUP(B68,PLQ!$B$5:$K$96,3,FALSE) -> Delimitador de tráfego flexível com duas faixas refletivas D = 20 cm e H = 80 cm com chumbador | E68: =VLOOKUP(B68,PLQ!$B$5:$K$96,9,FALSE) -> un | F68: =VLOOKUP(B68,PLQ!$B$5:$K$96,10,FALSE) -> 0 | G68: =VLOOKUP(C68,Composição!$C$4:$R$5255,16,FALSE) ->  | M68: 5213837 | AE68: 5213837 | AF68: TRUE
A69: =IFERROR(VLOOKUP(C69,'Resumo Comp'!$B$4:$F$71,5,FALSE),0) -> 52 | B69: 5.1.9 | C69: =VLOOKUP(B69,PLQ!$B$5:$K$96,2,FALSE) -> 5213832 | D69: =VLOOKUP(B69,PLQ!$B$5:$K$96,3,FALSE) -> Remoção de sinalização horizontal com maçarico | E69: =VLOOKUP(B69,PLQ!$B$5:$K$96,9,FALSE) -> m² | F69: =VLOOKUP(B69,PLQ!$B$5:$K$96,10,FALSE) -> 0 | G69: =VLOOKUP(C69,Composição!$C$4:$R$5255,16,FALSE) ->  | M69: 5213832 | AE69: 5213832 | AF69: TRUE
A70: =IFERROR(VLOOKUP(C70,'Resumo Comp'!$B$4:$F$71,5,FALSE),0) -> 53 | B70: 5.1.10 | C70: =VLOOKUP(B70,PLQ!$B$5:$K$96,2,FALSE) -> 5213830 | D70: =VLOOKUP(B70,PLQ!$B$5:$K$96,3,FALSE) -> Remoção de sinalização horizontal por fresagem | E70: =VLOOKUP(B70,PLQ!$B$5:$K$96,9,FALSE) -> m² | F70: =VLOOKUP(B70,PLQ!$B$5:$K$96,10,FALSE) -> 0 | G70: =VLOOKUP(C70,Composição!$C$4:$R$5255,16,FALSE) ->  | M70: 5213830 | AE70: 5213830 | AF70: TRUE
A71: =IFERROR(VLOOKUP(C71,'Resumo Comp'!$B$4:$F$71,5,FALSE),0) -> 54 | B71: 5.1.11 | C71: =VLOOKUP(B71,PLQ!$B$5:$K$96,2,FALSE) -> 5213831 | D71: =VLOOKUP(B71,PLQ!$B$5:$K$96,3,FALSE) -> Remoção de sinalização horizontal tipo pintura acrílica por jateamento abrasivo úmido com vidro - utilização de 3 vezes | E71: =VLOOKUP(B71,PLQ!$B$5:$K$96,9,FALSE) -> m² | F71: =VLOOKUP(B71,PLQ!$B$5:$K$96,10,FALSE) -> 0 | G71: =VLOOKUP(C71,Composição!$C$4:$R$5255,16,FALSE) ->  | M71: 5213831 | AE71: 5213831 | AF71: TRUE
A72: =IFERROR(VLOOKUP(C72,'Resumo Comp'!$B$4:$F$71,5,FALSE),0) -> 7 | B72: 5.1.12 | C72: =VLOOKUP(B72,PLQ!$B$5:$K$96,2,FALSE) -> 5213360B | D72: =VLOOKUP(B72,PLQ!$B$5:$K$96,3,FALSE) -> Remoção de tachas e tachões | E72: =VLOOKUP(B72,PLQ!$B$5:$K$96,9,FALSE) -> un | F72: =VLOOKUP(B72,PLQ!$B$5:$K$96,10,FALSE) -> 0 | G72: =VLOOKUP(C72,Composição!$C$4:$R$5255,16,FALSE) ->  | M72: 5213360B | AA72: =I72 ->  | AE72: 5213360B | AF72: TRUE
A73: =IFERROR(VLOOKUP(C73,'Resumo Comp'!$B$4:$F$71,5,FALSE),0) -> 26 | B73: 5.1.13 | C73: =VLOOKUP(B73,PLQ!$B$5:$K$96,2,FALSE) -> NOVA 12 | D73: =VLOOKUP(B73,PLQ!$B$5:$K$96,3,FALSE) -> Limpeza de tachas refletivas | E73: =VLOOKUP(B73,PLQ!$B$5:$K$96,9,FALSE) -> un | F73: =VLOOKUP(B73,PLQ!$B$5:$K$96,10,FALSE) -> 0 | G73: =VLOOKUP(C73,Composição!$C$4:$R$5255,16,FALSE) ->  | M73: NOVA 12 | AE73: NOVA 12 | AF73: TRUE
A74: =IFERROR(VLOOKUP(C74,'Resumo Comp'!$B$4:$F$71,5,FALSE),0) -> 0 | B74: 5.2 | D74: MANUTENÇÃO/CONSERVAÇÃO - SINALIZAÇÃO VERTICAL | I74: =SUM(I75:I93) ->  | M74: 0 | AF74: TRUE
A75: =IFERROR(VLOOKUP(C75,'Resumo Comp'!$B$4:$F$71,5,FALSE),0) -> 55 | B75: 5.2.1 | C75: =VLOOKUP(B75,PLQ!$B$5:$K$96,2,FALSE) -> 4915719 | D75: =VLOOKUP(B75,PLQ!$B$5:$K$96,3,FALSE) -> Recomposição de placa de sinalização | E75: =VLOOKUP(B75,PLQ!$B$5:$K$96,9,FALSE) -> m² | F75: =VLOOKUP(B75,PLQ!$B$5:$K$96,10,FALSE) -> 0 | G75: =VLOOKUP(C75,Composição!$C$4:$R$5255,16,FALSE) ->  | H75: =(ConverterParaExtenso(G75)) ->  | I75: =ROUND(G75*F75,2) ->  | K75: =I75/$I$121 ->  | L75: =IF(K75>0,B75,"") ->  | M75: 4915719 | P75: =I75 ->  | AE75: 4915719 | AF75: TRUE
A76: =IFERROR(VLOOKUP(C76,'Resumo Comp'!$B$4:$F$71,5,FALSE),0) -> 56 | B76: 5.2.2 | C76: =VLOOKUP(B76,PLQ!$B$5:$K$96,2,FALSE) -> 5213364 | D76: =VLOOKUP(B76,PLQ!$B$5:$K$96,3,FALSE) -> Remoção de placa de sinalização | E76: =VLOOKUP(B76,PLQ!$B$5:$K$96,9,FALSE) -> m² | F76: =VLOOKUP(B76,PLQ!$B$5:$K$96,10,FALSE) -> 0 | G76: =VLOOKUP(C76,Composição!$C$4:$R$5255,16,FALSE) ->  | H76: =(ConverterParaExtenso(G76)) ->  | I76: =ROUND(G76*F76,2) ->  | L76: =IF(K76>0,B76,"") ->  | M76: 5213364 | AE76: 5213364 | AF76: TRUE
A77: =IFERROR(VLOOKUP(C77,'Resumo Comp'!$B$4:$F$71,5,FALSE),0) -> 57 | B77: 5.2.3 | C77: =VLOOKUP(B77,PLQ!$B$5:$K$96,2,FALSE) -> 4915718 | D77: =VLOOKUP(B77,PLQ!$B$5:$K$96,3,FALSE) -> Limpeza de placa de sinalização | E77: =VLOOKUP(B77,PLQ!$B$5:$K$96,9,FALSE) -> m² | F77: =VLOOKUP(B77,PLQ!$B$5:$K$96,10,FALSE) -> 0 | G77: =VLOOKUP(C77,Composição!$C$4:$R$5255,16,FALSE) ->  | M77: 4915718 | AE77: 4915718 | AF77: TRUE
A78: =IFERROR(VLOOKUP(C78,'Resumo Comp'!$B$4:$F$71,5,FALSE),0) -> 58 | B78: 5.2.4 | C78: =VLOOKUP(B78,PLQ!$B$5:$K$96,2,FALSE) -> 4915744 | D78: =VLOOKUP(B78,PLQ!$B$5:$K$96,3,FALSE) -> Capina manual | E78: =VLOOKUP(B78,PLQ!$B$5:$K$96,9,FALSE) -> m² | F78: =VLOOKUP(B78,PLQ!$B$5:$K$96,10,FALSE) -> 0 | G78: =VLOOKUP(C78,Composição!$C$4:$R$5255,16,FALSE) ->  | M78: =C78 -> 4915744 | AE78: 4915744 | AF78: =IF(AE78=C78,TRUE) -> TRUE
A79: =IFERROR(VLOOKUP(C79,'Resumo Comp'!$B$4:$F$71,5,FALSE),0) -> 2 | B79: 5.2.5 | C79: =VLOOKUP(B79,PLQ!$B$5:$K$96,2,FALSE) -> 5213572A | D79: =VLOOKUP(B79,PLQ!$B$5:$K$96,3,FALSE) -> Fornecimento e implantação de placa em aço - película III + SI (Sinal Impresso Digital c/ Overlay) | E79: =VLOOKUP(B79,PLQ!$B$5:$K$96,9,FALSE) -> m² | F79: =VLOOKUP(B79,PLQ!$B$5:$K$96,10,FALSE) -> 0 | G79: =VLOOKUP(C79,Composição!$C$4:$R$5255,16,FALSE) ->  | M79: 5213572A | AE79: 4915776
A80: =IFERROR(VLOOKUP(C80,'Resumo Comp'!$B$4:$F$71,5,FALSE),0) -> 3 | B80: 5.2.6 | C80: =VLOOKUP(B80,PLQ!$B$5:$K$96,2,FALSE) -> 5213487A | D80: =VLOOKUP(B80,PLQ!$B$5:$K$96,3,FALSE) -> Fornecimento e implantação de placa em alumínio composto, espessura de 3,0 mm. - película retrorrefletiva tipo III + SI (Sinal Impresso Digital c/ Overlay) | E80: =VLOOKUP(B80,PLQ!$B$5:$K$96,9,FALSE) -> m² | F80: =VLOOKUP(B80,PLQ!$B$5:$K$96,10,FALSE) -> 0 | G80: =VLOOKUP(C80,Composição!$C$4:$R$5255,16,FALSE) ->  | M80: 5213487A | AE80: 5213572A | AF80: =IF(AE80=C79,TRUE) -> TRUE
A81: =IFERROR(VLOOKUP(C81,'Resumo Comp'!$B$4:$F$71,5,FALSE),0) -> 4 | B81: 5.2.7 | C81: =VLOOKUP(B81,PLQ!$B$5:$K$96,2,FALSE) -> 5213487B | D81: =VLOOKUP(B81,PLQ!$B$5:$K$96,3,FALSE) -> Fornecimento e implantação de placa em alumínio composto, espessura de 3,0 mm, modulada, aérea - película retrorrefletiva tipo X + SI (Sinal Impresso Digital c/ Overlay) | E81: =VLOOKUP(B81,PLQ!$B$5:$K$96,9,FALSE) -> m² | F81: =VLOOKUP(B81,PLQ!$B$5:$K$96,10,FALSE) -> 0 | G81: =VLOOKUP(C81,Composição!$C$4:$R$5255,16,FALSE) ->  | M81: 5213487B | AE81: 5213487A | AF81: =IF(AE81=C80,TRUE) -> TRUE
A82: =IFERROR(VLOOKUP(C82,'Resumo Comp'!$B$4:$F$71,5,FALSE),0) -> 37 | B82: 5.2.8 | C82: =VLOOKUP(B82,PLQ!$B$5:$K$96,2,FALSE) -> 5213352 | D82: =VLOOKUP(B82,PLQ!$B$5:$K$96,3,FALSE) -> Fornecimento e implantação de suporte polimérico ecológico maciço quadrado de 8 cm para placa de sinalização | E82: =VLOOKUP(B82,PLQ!$B$5:$K$96,9,FALSE) -> un | F82: =VLOOKUP(B82,PLQ!$B$5:$K$96,10,FALSE) -> 0 | G82: =VLOOKUP(C82,Composição!$C$4:$R$5255,16,FALSE) ->  | M82: 5213352 | AE82: 5213487B | AF82: TRUE
A83: =IFERROR(VLOOKUP(C83,'Resumo Comp'!$B$4:$F$71,5,FALSE),0) -> 38 | B83: 5.2.9 | C83: =VLOOKUP(B83,PLQ!$B$5:$K$96,2,FALSE) -> 5213353 | D83: =VLOOKUP(B83,PLQ!$B$5:$K$96,3,FALSE) -> Fornecimento e implantação de suporte polimérico ecológico maciço colapsível retangular de 7 x 15 cm para placa de sinalização | E83: =VLOOKUP(B83,PLQ!$B$5:$K$96,9,FALSE) -> un | F83: =VLOOKUP(B83,PLQ!$B$5:$K$96,10,FALSE) -> 0 | G83: =VLOOKUP(C83,Composição!$C$4:$R$5255,16,FALSE) ->  | M83: 5213353 | AE83: 5213352 | AF83: TRUE
A84: =IFERROR(VLOOKUP(C84,'Resumo Comp'!$B$4:$F$71,5,FALSE),0) -> 39 | B84: 5.2.10 | C84: =VLOOKUP(B84,PLQ!$B$5:$K$96,2,FALSE) -> 5213350 | D84: =VLOOKUP(B84,PLQ!$B$5:$K$96,3,FALSE) -> Fornecimento e implantação de suporte polimérico ecológico maciço colapsível quadrado de 10 cm para placa de sinalização | E84: =VLOOKUP(B84,PLQ!$B$5:$K$96,9,FALSE) -> un | F84: =VLOOKUP(B84,PLQ!$B$5:$K$96,10,FALSE) -> 0 | G84: =VLOOKUP(C84,Composição!$C$4:$R$5255,16,FALSE) ->  | M84: 5213350 | AE84: 5213353 | AF84: TRUE
A85: =IFERROR(VLOOKUP(C85,'Resumo Comp'!$B$4:$F$71,5,FALSE),0) -> 40 | B85: 5.2.11 | C85: =VLOOKUP(B85,PLQ!$B$5:$K$96,2,FALSE) -> 5213868 | D85: =VLOOKUP(B85,PLQ!$B$5:$K$96,3,FALSE) -> Fornecimento e implantação de suporte metálico galvanizado para placas - 2,00 x 1,00 m | E85: =VLOOKUP(B85,PLQ!$B$5:$K$96,9,FALSE) -> un | F85: =VLOOKUP(B85,PLQ!$B$5:$K$96,10,FALSE) -> 0 | G85: =VLOOKUP(C85,Composição!$C$4:$R$5255,16,FALSE) ->  | M85: 5213868 | AE85: 5213350 | AF85: TRUE
A86: =IFERROR(VLOOKUP(C86,'Resumo Comp'!$B$4:$F$71,5,FALSE),0) -> 41 | B86: 5.2.12 | C86: =VLOOKUP(B86,PLQ!$B$5:$K$96,2,FALSE) -> 5213869 | D86: =VLOOKUP(B86,PLQ!$B$5:$K$96,3,FALSE) -> Fornecimento e implantação de suporte metálico galvanizado para placas - 3,00 x 1,50 m | E86: =VLOOKUP(B86,PLQ!$B$5:$K$96,9,FALSE) -> un | F86: =VLOOKUP(B86,PLQ!$B$5:$K$96,10,FALSE) -> 0 | G86: =VLOOKUP(C86,Composição!$C$4:$R$5255,16,FALSE) ->  | M86: 5213869 | AE86: 5213868 | AF86: TRUE
A87: =IFERROR(VLOOKUP(C87,'Resumo Comp'!$B$4:$F$71,5,FALSE),0) -> 42 | B87: 5.2.13 | C87: =VLOOKUP(B87,PLQ!$B$5:$K$96,2,FALSE) -> 5213870 | D87: =VLOOKUP(B87,PLQ!$B$5:$K$96,3,FALSE) -> Fornecimento e implantação de suporte metálico galvanizado para placas - 3,00 x 2,00 m | E87: =VLOOKUP(B87,PLQ!$B$5:$K$96,9,FALSE) -> un | F87: =VLOOKUP(B87,PLQ!$B$5:$K$96,10,FALSE) -> 0 | G87: =VLOOKUP(C87,Composição!$C$4:$R$5255,16,FALSE) ->  | M87: 5213870 | AE87: 5213869 | AF87: TRUE
A88: =IFERROR(VLOOKUP(C88,'Resumo Comp'!$B$4:$F$71,5,FALSE),0) -> 43 | B88: 5.2.14 | C88: =VLOOKUP(B88,PLQ!$B$5:$K$96,2,FALSE) -> 5213871 | D88: =VLOOKUP(B88,PLQ!$B$5:$K$96,3,FALSE) -> Fornecimento e implantação de suporte metálico galvanizado para placas - 4,00 x 2,00 m | E88: =VLOOKUP(B88,PLQ!$B$5:$K$96,9,FALSE) -> un | F88: =VLOOKUP(B88,PLQ!$B$5:$K$96,10,FALSE) -> 0 | G88: =VLOOKUP(C88,Composição!$C$4:$R$5255,16,FALSE) ->  | M88: 5213871 | AE88: 5213870 | AF88: TRUE
A89: =IFERROR(VLOOKUP(C89,'Resumo Comp'!$B$4:$F$71,5,FALSE),0) -> 44 | B89: 5.2.15 | C89: =VLOOKUP(B89,PLQ!$B$5:$K$96,2,FALSE) -> 5213872 | D89: =VLOOKUP(B89,PLQ!$B$5:$K$96,3,FALSE) -> Fornecimento e implantação de suporte metálico galvanizado para placas - 4,00 x 3,00 m | E89: =VLOOKUP(B89,PLQ!$B$5:$K$96,9,FALSE) -> un | F89: =VLOOKUP(B89,PLQ!$B$5:$K$96,10,FALSE) -> 0 | G89: =VLOOKUP(C89,Composição!$C$4:$R$5255,16,FALSE) ->  | M89: 5213872 | AE89: 5213871 | AF89: TRUE
A90: =IFERROR(VLOOKUP(C90,'Resumo Comp'!$B$4:$F$71,5,FALSE),0) -> 45 | B90: 5.2.16 | C90: =VLOOKUP(B90,PLQ!$B$5:$K$96,2,FALSE) -> 5213649 | D90: =VLOOKUP(B90,PLQ!$B$5:$K$96,3,FALSE) -> Pórtico metálico com vão de 15,9 m, vento de 35 m/s, área de exposição de até 23,85 m², tensão admissível solo > 200 kN/m² - areia e brita comerciais | E90: =VLOOKUP(B90,PLQ!$B$5:$K$96,9,FALSE) -> un | F90: =VLOOKUP(B90,PLQ!$B$5:$K$96,10,FALSE) -> 1 | G90: =VLOOKUP(C90,Composição!$C$4:$R$5255,16,FALSE) ->  | M90: 5213649 | AE90: 5213872 | AF90: TRUE
A91: =IFERROR(VLOOKUP(C91,'Resumo Comp'!$B$4:$F$71,5,FALSE),0) -> 46 | B91: 5.2.17 | C91: =VLOOKUP(B91,PLQ!$B$5:$K$96,2,FALSE) -> 5213630 | D91: =VLOOKUP(B91,PLQ!$B$5:$K$96,3,FALSE) -> Semi-pórtico metálico com vão de 8,3 m, vento de 35 m/s, área de exposição de até 12,45 m², tensão admissível solo > 200 kN/m² - areia e brita comerciais | E91: =VLOOKUP(B91,PLQ!$B$5:$K$96,9,FALSE) -> un | F91: =VLOOKUP(B91,PLQ!$B$5:$K$96,10,FALSE) -> 1 | G91: =VLOOKUP(C91,Composição!$C$4:$R$5255,16,FALSE) ->  | M91: 5213630 | AE91: 5213649 | AF91: TRUE
A92: =IFERROR(VLOOKUP(C92,'Resumo Comp'!$B$4:$F$71,5,FALSE),0) -> 47 | B92: 5.2.18 | C92: =VLOOKUP(B92,PLQ!$B$5:$K$96,2,FALSE) -> 5213636 | D92: =VLOOKUP(B92,PLQ!$B$5:$K$96,3,FALSE) -> Semi-pórtico duplo metálico com vão de 2 x 8,3 m, vento de 35 m/s, área de exposição de até 2 x 12,45 m², tensão admissível solo > 200 kN/m² - areia e brita comerciais | E92: =VLOOKUP(B92,PLQ!$B$5:$K$96,9,FALSE) -> un | F92: =VLOOKUP(B92,PLQ!$B$5:$K$96,10,FALSE) -> 1 | G92: =VLOOKUP(C92,Composição!$C$4:$R$5255,16,FALSE) ->  | M92: 5213636 | AE92: 5213630 | AF92: TRUE
A93: =IFERROR(VLOOKUP(C93,'Resumo Comp'!$B$4:$F$71,5,FALSE),0) -> 15 | B93: 5.2.19 | C93: =VLOOKUP(B93,PLQ!$B$5:$K$96,2,FALSE) -> NOVA 01 | D93: =VLOOKUP(B93,PLQ!$B$5:$K$96,3,FALSE) -> Suporte metálico com braço projetado - Área de Exposição até 4,50 m² - Fornecimento e Implantação | E93: =VLOOKUP(B93,PLQ!$B$5:$K$96,9,FALSE) -> un | F93: =VLOOKUP(B93,PLQ!$B$5:$K$96,10,FALSE) -> 1 | G93: =VLOOKUP(C93,Composição!$C$4:$R$5255,16,FALSE) ->  | M93: NOVA 01 | AE93: 5213636 | AF93: TRUE
A94: =IFERROR(VLOOKUP(C94,'Resumo Comp'!$B$4:$F$71,5,FALSE),0) -> 0 | B94: 5.3 | D94: MANUTENÇÃO/CONSERVAÇÃO - DISPOSITIVOS DE SEGURANÇA | I94: =SUM(I95:I109) ->  | L94: =IF(K94>0,B94,"") ->  | M94: 0 | AE94: NOVA 01 | AF94: TRUE
A95: =IFERROR(VLOOKUP(C95,'Resumo Comp'!$B$4:$F$71,5,FALSE),0) -> 59 | B95: 5.3.1 | C95: =VLOOKUP(B95,PLQ!$B$5:$K$96,2,FALSE) -> 3713705 | D95: =VLOOKUP(C95,Composição!_xlnm.Print_Area,2,0) -> Remoção de defensa metálica | E95: =VLOOKUP(B95,PLQ!$B$5:$K$96,9,FALSE) -> m | F95: =VLOOKUP(B95,PLQ!$B$5:$K$96,10,FALSE) -> 0 | G95: =VLOOKUP(C95,Composição!$C$4:$R$5255,16,FALSE) ->  | I95: =ROUND(G95*F95,2) ->  | K95: =I95/$I$121 ->  | L95: =IF(K95>0,B95,"") ->  | M95: 3713705 | R95: =I95 ->  | AF95: TRUE
A96: =IFERROR(VLOOKUP(C96,'Resumo Comp'!$B$4:$F$71,5,FALSE),0) -> 60 | B96: 5.3.2 | C96: =VLOOKUP(B96,PLQ!$B$5:$K$96,2,FALSE) -> 3713604 | D96: =VLOOKUP(C96,Composição!_xlnm.Print_Area,2,0) -> Defensa semimaleável simples - fornecimento e implantação | E96: =VLOOKUP(B95,PLQ!$B$5:$K$96,9,FALSE) -> m | F96: =VLOOKUP(B95,PLQ!$B$5:$K$96,10,FALSE) -> 0 | G96: =VLOOKUP(C96,Composição!$C$4:$R$5255,16,FALSE) ->  | H96: =(ConverterParaExtenso(G96)) ->  | I96: =ROUND(G96*F96,2) ->  | L96: =IF(K96>0,B96,"") ->  | M96: =C96 -> 3713604 | R96: =I96 ->  | AA96: =I96 ->  | AE96: 3713604 | AF96: =IF(AE96=C95,TRUE) -> FALSE
A97: =IFERROR(VLOOKUP(C97,'Resumo Comp'!$B$4:$F$71,5,FALSE),0) -> 22 | B97: 5.3.3 | C97: =VLOOKUP(B97,PLQ!$B$5:$K$96,2,FALSE) -> NOVA 08 | D97: =VLOOKUP(B97,PLQ!$B$5:$K$96,3,FALSE) -> Dispositivo de contenção longitudinal, certificado segundo a ABNT NBR 15486:2016, tipo (H4b A W4) - Defensa Metálica - Fornecimento e Implantação | E97: =VLOOKUP(B97,PLQ!$B$5:$K$96,9,FALSE) -> m | F97: =VLOOKUP(B97,PLQ!$B$5:$K$96,10,FALSE) -> 0 | G97: =VLOOKUP(C97,Composição!$C$4:$R$5255,16,FALSE) ->  | H97: =(ConverterParaExtenso(G97)) ->  | I97: =ROUND(G97*F97,2) ->  | L97: =IF(K97>0,B97,"") ->  | M97: NOVA 08
A98: =IFERROR(VLOOKUP(C98,'Resumo Comp'!$B$4:$F$71,5,FALSE),0) -> 23 | B98: 5.3.4 | C98: =VLOOKUP(B98,PLQ!$B$5:$K$96,2,FALSE) -> NOVA 09 | D98: =VLOOKUP(B98,PLQ!$B$5:$K$96,3,FALSE) -> Dispositivo de contenção longitudinal, certificado segundo a ABNT NBR 15486:2016, tipo (H4b A W5) - Defensa Metálica - Fornecimento e Implantação | E98: =VLOOKUP(B98,PLQ!$B$5:$K$96,9,FALSE) -> m | F98: =VLOOKUP(B98,PLQ!$B$5:$K$96,10,FALSE) -> 0 | G98: =VLOOKUP(C98,Composição!$C$4:$R$5255,16,FALSE) ->  | I98: =ROUND(G98*F98,2) ->  | M98: NOVA 09 | AE98: NOVA 08 | AF98: =IF(AE98=C97,TRUE) -> TRUE
A99: =IFERROR(VLOOKUP(C99,'Resumo Comp'!$B$4:$F$71,5,FALSE),0) -> 21 | B99: 5.3.5 | C99: =VLOOKUP(B99,PLQ!$B$5:$K$96,2,FALSE) -> NOVA 07 | D99: =VLOOKUP(B99,PLQ!$B$5:$K$96,3,FALSE) -> Dispositivo de contenção longitudinal, certificado segundo a ABNT NBR 15486:2016, tipo (H3 A W5) - Defensa Metálica - Fornecimento e Implantação | E99: =VLOOKUP(B99,PLQ!$B$5:$K$96,9,FALSE) -> m | F99: =VLOOKUP(B99,PLQ!$B$5:$K$96,10,FALSE) -> 0 | G99: =VLOOKUP(C99,Composição!$C$4:$R$5255,16,FALSE) ->  | M99: NOVA 07 | AE99: NOVA 09 | AF99: =IF(AE99=C98,TRUE) -> TRUE
A100: =IFERROR(VLOOKUP(C100,'Resumo Comp'!$B$4:$F$71,5,FALSE),0) -> 20 | B100: 5.3.6 | C100: =VLOOKUP(B100,PLQ!$B$5:$K$96,2,FALSE) -> NOVA 06 | D100: =VLOOKUP(B100,PLQ!$B$5:$K$96,3,FALSE) -> Dispositivo de contenção longitudinal, certificado segundo a ABNT NBR 15486:2016, tipo (H2 A W3) - Defensa Metálica - Fornecimento e Implantação | E100: =VLOOKUP(B100,PLQ!$B$5:$K$96,9,FALSE) -> m | F100: =VLOOKUP(B100,PLQ!$B$5:$K$96,10,FALSE) -> 0 | G100: =VLOOKUP(C100,Composição!$C$4:$R$5255,16,FALSE) ->  | M100: NOVA 06 | AE100: NOVA 07 | AF100: TRUE
A101: =IFERROR(VLOOKUP(C101,'Resumo Comp'!$B$4:$F$71,5,FALSE),0) -> 19 | B101: 5.3.7 | C101: =VLOOKUP(B101,PLQ!$B$5:$K$96,2,FALSE) -> NOVA 05 | D101: =VLOOKUP(B101,PLQ!$B$5:$K$96,3,FALSE) -> Dispositivo de contenção longitudinal, certificado segundo a ABNT NBR 15486:2016, tipo (H1 A W2) - Defensa Metálica - Fornecimento e Implantação | E101: =VLOOKUP(B101,PLQ!$B$5:$K$96,9,FALSE) -> m | F101: =VLOOKUP(B101,PLQ!$B$5:$K$96,10,FALSE) -> 0 | G101: =VLOOKUP(C101,Composição!$C$4:$R$5255,16,FALSE) ->  | M101: NOVA 05 | AE101: NOVA 06 | AF101: TRUE
A102: =IFERROR(VLOOKUP(C102,'Resumo Comp'!$B$4:$F$71,5,FALSE),0) -> 18 | B102: 5.3.8 | C102: =VLOOKUP(B102,PLQ!$B$5:$K$96,2,FALSE) -> NOVA 04 | D102: =VLOOKUP(B102,PLQ!$B$5:$K$96,3,FALSE) -> Dispositivo de contenção longitudinal, certificado segundo a ABNT NBR 15486:2016, tipo (N2 A W2) - Defensa Metálica - Fornecimento e Implantação | E102: =VLOOKUP(B102,PLQ!$B$5:$K$96,9,FALSE) -> m | F102: =VLOOKUP(B102,PLQ!$B$5:$K$96,10,FALSE) -> 0 | G102: =VLOOKUP(C102,Composição!$C$4:$R$5255,16,FALSE) ->  | M102: NOVA 04 | AE102: NOVA 05 | AF102: TRUE
A103: =IFERROR(VLOOKUP(C103,'Resumo Comp'!$B$4:$F$71,5,FALSE),0) -> 24 | B103: 5.3.9 | C103: =VLOOKUP(B103,PLQ!$B$5:$K$96,2,FALSE) -> NOVA 10 | D103: =VLOOKUP(B103,PLQ!$B$5:$K$96,3,FALSE) -> Terminal absorvedor de energia, certificado segundo a ABNT NBR 15.486:2016, especificado conforme NCHRP 350 nível de ensaio 2 (70 km/h) ou EN 1317 nível de ensaio 2 (80 km/h) – fornecimento e instalação | E103: =VLOOKUP(B103,PLQ!$B$5:$K$96,9,FALSE) -> un | F103: =VLOOKUP(B103,PLQ!$B$5:$K$96,10,FALSE) -> 0 | G103: =VLOOKUP(C103,Composição!$C$4:$R$5255,16,FALSE) ->  | M103: NOVA 10 | AE103: NOVA 04 | AF103: TRUE
A104: =IFERROR(VLOOKUP(C104,'Resumo Comp'!$B$4:$F$71,5,FALSE),0) -> 25 | B104: 5.3.10 | C104: =VLOOKUP(B104,PLQ!$B$5:$K$96,2,FALSE) -> NOVA 11 | D104: =VLOOKUP(B104,PLQ!$B$5:$K$96,3,FALSE) -> Terminal absorvedor de energia, certificado segundo a ABNT NBR 15.486:2016, especificado conforme NCHRP 350 nível de ensaio 3 (100 km/h) ou EN 1317 nível de ensaio 3 (100 km/h) - Fornecimento e instalação | E104: =VLOOKUP(B104,PLQ!$B$5:$K$96,9,FALSE) -> un | F104: =VLOOKUP(B104,PLQ!$B$5:$K$96,10,FALSE) -> 0 | G104: =VLOOKUP(C104,Composição!$C$4:$R$5255,16,FALSE) ->  | M104: NOVA 11 | AE104: NOVA 10 | AF104: TRUE
A105: =IFERROR(VLOOKUP(C105,'Resumo Comp'!$B$4:$F$71,5,FALSE),0) -> 48 | B105: 5.3.11 | C105: =VLOOKUP(B105,PLQ!$B$5:$K$96,2,FALSE) -> 3713605 | D105: =VLOOKUP(B105,PLQ!$B$5:$K$96,3,FALSE) -> Ancoragem de defensa semi-maleável simples - fornecimento e implantação | E105: =VLOOKUP(B105,PLQ!$B$5:$K$96,9,FALSE) -> m | F105: =VLOOKUP(B105,PLQ!$B$5:$K$96,10,FALSE) -> 0 | G105: =VLOOKUP(C105,Composição!$C$4:$R$5255,16,FALSE) ->  | M105: =C105 -> 3713605 | AE105: NOVA 11 | AF105: TRUE
A106: =IFERROR(VLOOKUP(C106,'Resumo Comp'!$B$4:$F$71,5,FALSE),0) -> 49 | B106: 5.3.12 | C106: =VLOOKUP(B106,PLQ!$B$5:$K$96,2,FALSE) -> 3713690 | D106: =VLOOKUP(B106,PLQ!$B$5:$K$96,3,FALSE) -> Terminal de ancoragem de defensa metálica em barreira New Jersey - fornecimento e implantação | E106: =VLOOKUP(B106,PLQ!$B$5:$K$96,9,FALSE) -> un | F106: =VLOOKUP(B106,PLQ!$B$5:$K$96,10,FALSE) -> 0 | G106: =VLOOKUP(C106,Composição!$C$4:$R$5255,16,FALSE) ->  | M106: 3713690 | AE106: 3713605 | AF106: TRUE
A107: =IFERROR(VLOOKUP(C107,'Resumo Comp'!$B$4:$F$71,5,FALSE),0) -> 50 | B107: 5.3.13 | C107: =VLOOKUP(B107,PLQ!$B$5:$K$96,2,FALSE) -> 3713873 | D107: =VLOOKUP(B107,PLQ!$B$5:$K$96,3,FALSE) -> Módulo de transição de defensa metálica para barreira rígida - fornecimento e implantação | E107: =VLOOKUP(B107,PLQ!$B$5:$K$96,9,FALSE) -> un | F107: =VLOOKUP(B107,PLQ!$B$5:$K$96,10,FALSE) -> 0 | G107: =VLOOKUP(C107,Composição!$C$4:$R$5255,16,FALSE) ->  | M107: 3713873 | AE107: 3713690 | AF107: TRUE
A108: =IFERROR(VLOOKUP(C108,'Resumo Comp'!$B$4:$F$71,5,FALSE),0) -> 16 | B108: 5.3.14 | C108: =VLOOKUP(B108,PLQ!$B$5:$K$96,2,FALSE) -> NOVA 02 | D108: =VLOOKUP(B108,PLQ!$B$5:$K$96,3,FALSE) -> Fornecimento e colocação de dispositivo Refletivo para defensas em tangente | E108: =VLOOKUP(B108,PLQ!$B$5:$K$96,9,FALSE) -> un | F108: =VLOOKUP(B108,PLQ!$B$5:$K$96,10,FALSE) -> 0 | G108: =VLOOKUP(C108,Composição!$C$4:$R$5255,16,FALSE) ->  | M108: NOVA 02 | AE108: 3713873 | AF108: TRUE
A109: =IFERROR(VLOOKUP(C109,'Resumo Comp'!$B$4:$F$71,5,FALSE),0) -> 17 | B109: 5.3.15 | C109: =VLOOKUP(B109,PLQ!$B$5:$K$96,2,FALSE) -> NOVA 03 | D109: =VLOOKUP(B109,PLQ!$B$5:$K$96,3,FALSE) -> Fornecimento e colocação de Painel de Delineamento Refletivo para defensas em curvas | E109: =VLOOKUP(B109,PLQ!$B$5:$K$96,9,FALSE) -> un | F109: =VLOOKUP(B109,PLQ!$B$5:$K$96,10,FALSE) -> 0 | G109: =VLOOKUP(C109,Composição!$C$4:$R$5255,16,FALSE) ->  | M109: NOVA 03 | AE109: NOVA 02 | AF109: TRUE
A110: =IFERROR(VLOOKUP(C110,'Resumo Comp'!$B$4:$F$71,5,FALSE),0) -> 0 | B110: 6 | D110: SEGURANÇA VIÁRIA OPERACIONAL | I110: =SUM(I111:I119) ->  | L110: =IF(K110>0,B110,"") ->  | M110: 0 | AE110: NOVA 03 | AF110: TRUE
A111: =IFERROR(VLOOKUP(C111,'Resumo Comp'!$B$4:$F$71,5,FALSE),0) -> 61 | B111: 6.1 | C111: 5213833 | D111: =VLOOKUP(C111,Composição!$C$4:$R$5255,2,FALSE) -> Barreira plástica monobloco para canalização de trânsito - 101 x 50 x 55 cm - utilização de 600 ciclos - fornecimento, 01 implantação e 01 retirada diária | E111: und. | F111: 120 | G111: =VLOOKUP(C111,Composição!$C$4:$R$5255,16,FALSE) ->  | H111: =(ConverterParaExtenso(G111)) ->  | I111: =ROUND(G111*F111,2) ->  | K111: =I111/$I$121 ->  | L111: =IF(K111>0,B111,"") ->  | M111: 5213833 | T111: =I111 ->  | AF111: TRUE
A112: =IFERROR(VLOOKUP(C112,'Resumo Comp'!$B$4:$F$71,5,FALSE),0) -> 8 | B112: 6.2 | C112: 5212560D | D112: =VLOOKUP(C112,Composição!$C$4:$R$5255,2,FALSE) -> Placa de Advertência em Aço - Película retrorrefletiva tipo III + III - montada em suporte metálico móvel - L= 1,20 x 0,80 m | E112: =VLOOKUP(C112,Composição!$C$4:$S$5255,14,FALSE) -> und | F112: 12 | G112: =VLOOKUP(C112,Composição!$C$4:$R$5255,16,FALSE) ->  | H112: =(ConverterParaExtenso(G112)) ->  | I112: =ROUND(G112*F112,2) ->  | K112: =I112/$I$121 ->  | L112: =IF(K112>0,B112,"") ->  | M112: 5212560D | T112: =I112 ->  | AE112: 5213833 | AF112: TRUE
A113: =IFERROR(VLOOKUP(C113,'Resumo Comp'!$B$4:$F$71,5,FALSE),0) -> 9 | B113: 6.3 | C113: 5212557A | D113: =VLOOKUP(C113,Composição!$C$4:$R$5255,2,FALSE) -> Placa de Regulamentação em Aço - Película retrorrefletiva tipo III + III - montada em suporte metálico móvel - D = 0,80 m | E113: =VLOOKUP(C113,Composição!$C$4:$S$5255,14,FALSE) -> und | F113: 20 | G113: =VLOOKUP(C113,Composição!$C$4:$R$5255,16,FALSE) ->  | M113: 5212557A | AE113: 5212560D | AF113: TRUE
A114: =IFERROR(VLOOKUP(C114,'Resumo Comp'!$B$4:$F$71,5,FALSE),0) -> 10 | B114: 6.4 | C114: 5212560A | D114: =VLOOKUP(C114,Composição!$C$4:$R$5255,2,FALSE) -> Placa de Advertência em Aço - Película retrorrefletiva tipo III + III - montada em suporte metálico móvel - L= 1,25 x 0,40 m | E114: =VLOOKUP(C114,Composição!$C$4:$S$5255,14,FALSE) -> und | F114: 14 | G114: =VLOOKUP(C114,Composição!$C$4:$R$5255,16,FALSE) ->  | M114: 5212560A | AE114: 5212557A | AF114: TRUE
A115: =IFERROR(VLOOKUP(C115,'Resumo Comp'!$B$4:$F$71,5,FALSE),0) -> 11 | B115: 6.5 | C115: 5212560B | D115: =VLOOKUP(C115,Composição!$C$4:$R$5255,2,FALSE) -> Placa de Advertência em Aço - Película retrorrefletiva tipo III + III - montada em suporte metálico móvel - L= 1,20 x 0,80 m | E115: =VLOOKUP(C115,Composição!$C$4:$S$5255,14,FALSE) -> und | F115: 4 | G115: =VLOOKUP(C115,Composição!$C$4:$R$5255,16,FALSE) ->  | M115: 5212560B | AE115: 5212560A | AF115: TRUE
A116: =IFERROR(VLOOKUP(C116,'Resumo Comp'!$B$4:$F$71,5,FALSE),0) -> 12 | B116: 6.6 | C116: 5212560C | D116: =VLOOKUP(C116,Composição!$C$4:$R$5255,2,FALSE) -> Placa de Advertência em Aço - Película retrorrefletiva tipo III + III - montada em suporte metálico móvel - L= 1,80 x 1,00 m | E116: =VLOOKUP(C116,Composição!$C$4:$S$5255,14,FALSE) -> und | F116: 2 | G116: =VLOOKUP(C116,Composição!$C$4:$R$5255,16,FALSE) ->  | M116: 5212560C | AE116: 5212560B | AF116: TRUE
A117: =IFERROR(VLOOKUP(C117,'Resumo Comp'!$B$4:$F$71,5,FALSE),0) -> 13 | B117: 6.7 | C117: 5213835A | D117: =VLOOKUP(C117,Composição!$C$4:$R$5255,2,FALSE) -> Fornecimento de cone de sinalização 75 cm (NBR 15071) flexível - 2 faixas refletivas tipo III (NBR 14644) - utilização de 5 vezes | E117: un | F117: 1555 | G117: =VLOOKUP(C117,Composição!$C$4:$R$5255,16,FALSE) ->  | M117: 5213835A | AE117: 5212560C | AF117: TRUE
A118: =IFERROR(VLOOKUP(C118,'Resumo Comp'!$B$4:$F$71,5,FALSE),0) -> 62 | B118: 6.8 | C118: 5213850 | D118: =VLOOKUP(C118,Composição!$C$4:$R$5255,2,FALSE) -> Operação de sinalização por bandeirola de tecido ou com placa metálica | E118: h | F118: =(F18/Composição!P3+'QD 2 - Orçamento'!F19/Composição!P57+'QD 2 - Orçamento'!F20/Composição!P111+'QD 2 - Orçamento'!F21/Composição!P165+'QD 2 - Orçamento'!F23/Composição!P273+'QD 2 - Orçamento'!F24/Composição!P327+'QD 2 - Orçamento'!F25/Composição!P381+'QD 2 - Orçamento'!F26/Composição!P435)*2 -> 0 | G118: =VLOOKUP(C118,Composição!$C$4:$R$5255,16,FALSE) ->  | M118: 5213850 | AE118: 5213835A | AF118: TRUE
K119: =I119/$I$121 ->  | M119: 0 | T119: 0 | AA119: 0 | AE119: 5213850 | AF119: =IF(AE119=C117,TRUE) -> FALSE
K120: =I120/$I$121 ->  | M120: 0 | AA120: 0
B121: TOTAL | I121: =SUM(I110,I59,I45,I29,I17,I12,) ->  | K121: =SUM(K13:K120) ->  | O121: 311 | P121: 36 meses | Q121: Inicial | R121: Premisa Inicial | AA121: =I121 -> 
O122: 3 | P122: anos
J123: =Premissa!C7 ->  | K123: km RJ | O123: =O121/36 -> 8.638888889 | P123: cones por mês
J124: =I121/J123 ->  | K124: média / km
O125: 9 | P125: cones (intervenção simples)
J126: 56451.91 | K126: Total BR-legal 2 | O126: 22 | P126: dias úteis
J127: =J124*J126 ->  | K127: Custo Total pela média do RJ | O127: 9 | P127: utilizações de cones por dia
O128: =O126*36 -> 792 | P128: dia úteis em 3 anos
O129: =O128*O127 -> 7128 | P129: cones intalados e desistalodos no periodo
O130: 8 | P130: Mínio para um ponto específico
O131: =O126*36 -> 792 | P131: dia úteis em 3 anos
O132: =O130*O131 -> 6336 | P132: Total de utilização minima.
I207: =SUM(I208:I311) ->  | AE207: =AE13 -> ADM1
B208: =B13 -> 1.1 | C208: ADM1 | D208: Instalação de canteiro de obras | E208: und. | F208: 1 | I208: =I13 ->  | K208: =I208/$I$207 ->  | L208: =IF(K208>=0,B208,"") ->  | AE208: ADM2
B209: 1.2 | C209: ADM2 | D209: Administração Local / Manutenção do canteiro de obras | E209: % | F209: 2 | K209: =I209/$I$207 ->  | L209: =IF(K209>=0,B209,"") ->  | AE209: ADM3
B210: 1.3 | C210: ADM3 | D210: Mobilização e desmobilização | E210: und. | F210: 3 | AE210: =#REF! -> 
B211: 1.4 | C211: 74209/001 | D211: Fornecimento e Instalação de 2 Placa de Obra Conforme Manual de Placas OBRAS DNIT (4,80 x 3,00) - REF SINAPI | E211: m² | F211: 4 | AE211: =AE18 -> 5213413A
B212: 2 | C212: 0 | D212: SINALIZAÇÃO HORIZONTAL | E212: 0 | F212: 5 | AE212: 5213408
B213: 2.1 | C213: 5213413A | D213: Pintura de faixa - plástico a frio tipo I - espessura de 0,6 mm - aspersão​ | E213: m² | F213: 6 | AE213: 5213403
B214: 2.2 | C214: 5213408 | D214: Pintura de faixa - termoplástico por aspersão - espessura de 1,5 mm | E214: m² | F214: 7 | AE214: 5213402
B215: 2.3 | C215: 5213403 | D215: Pintura de faixa - tinta base acrílica emulsionada em água - espessura de 0,5 mm | E215: m² | F215: 8 | AE215: 5213409
B216: 2.4 | C216: 5213402 | D216: Pintura de faixa - tinta base acrílica emulsionada em água - espessura de 0,4 mm | E216: m² | F216: 9 | AE216: 5213392A
B217: 2.5 | C217: 5213409 | D217: Pintura de setas e zebrados - termoplástico por extrusão - espessura de 3,0 mm | E217: m² | F217: 10 | AE217: 5213394A
B218: 2.6 | C218: 5219640 | D218: Tacha refletiva metálica - monodirecional tipo III - com um pino - fornecimento e colocação | E218: un | F218: 11 | AE218: 5213359A
B219: 2.7 | C219: 5219636 | D219: Tacha refletiva metálica - bidirecional tipo III - com um pino - fornecimento e colocação | E219: un | F219: 12 | AE219: 5213360A
B220: 2.8 | C220: 5219608 | D220: Tacha refletiva em plástico injetado - bidirecional tipo III - com um pino - fornecimento e colocação | E220: un | F220: 13 | AE220: 5213837
B221: 2.9 | C221: 5219615 | D221: Tacha refletiva em plástico injetado - monodirecional tipo III - com um pino - fornecimento e colocação | E221: un | F221: 14 | AE221: 5214010
B222: 2.10 | C222: 5213837 | D222: Delimitador de tráfego flexível com duas faixas refletivas D = 20 cm e H = 80 cm com chumbador | E222: un | F222: 15 | AE222: 0
B223: 2.11 | C223: 5214004 | D223: Pintura de faixa - termoplástico em alto relevo tipo II - relevo simples ranhurado - base | E223: m² | F223: 16 | AE223: 5213572A
B224: 3 | C224: 0 | D224: SINALIZAÇÃO VERTICAL | E224: 0 | F224: 17 | AE224: 5213487A
B225: 3.1 | C225: 5213572A | D225: Fornecimento e implantação de placa em aço - película III + SI (Sinal Impresso Digital c/ Overlay) | E225: m² | F225: 18 | AE225: 5213487B
B226: 3.2 | C226: 5213487A | D226: Fornecimento e implantação de placa em alumínio composto, espessura de 3,0 mm. - película retrorrefletiva tipo III + SI (Sinal Impresso Digital c/ Overlay) | E226: m² | F226: 19 | AE226: 5213352
B227: 3.3 | C227: 5213487B | D227: Fornecimento e implantação de placa em alumínio composto, espessura de 3,0 mm, modulada, aérea - película retrorrefletiva tipo X + SI (Sinal Impresso Digital c/ Overlay) | E227: m² | F227: 20 | AE227: 5213353
B228: =B33 -> 3.4 | C228: 5213352 | D228: Fornecimento e implantação de suporte polimérico ecológico maciço quadrado de 8 cm para placa de sinalização | E228: un | F228: 21 | AE228: 5213350
B229: 3.5 | C229: 5213353 | D229: Fornecimento e implantação de suporte polimérico ecológico maciço colapsível retangular de 7 x 15 cm para placa de sinalização | E229: un | F229: 22 | AE229: 5213868
B230: 3.6 | C230: 5213350 | D230: Fornecimento e implantação de suporte polimérico ecológico maciço colapsível quadrado de 10 cm para placa de sinalização | E230: un | F230: 23 | AE230: 5213869
B231: 3.7 | C231: 5213868 | D231: Fornecimento e implantação de suporte metálico galvanizado para placas - 2,00 x 1,00 m | E231: un | F231: 24 | AE231: 5213870
B232: 3.8 | C232: 5213869 | D232: Fornecimento e implantação de suporte metálico galvanizado para placas - 3,00 x 1,50 m | E232: un | F232: 25 | AE232: 5213871
B233: 3.9 | C233: 5213870 | D233: Fornecimento e implantação de suporte metálico galvanizado para placas - 3,00 x 2,00 m | E233: un | F233: 26 | AE233: 5213872
B234: 3.10 | C234: 5213871 | D234: Fornecimento e implantação de suporte metálico galvanizado para placas - 4,00 x 2,00 m | E234: un | F234: 27 | AE234: 5213649
B235: 3.11 | C235: 5213872 | D235: Fornecimento e implantação de suporte metálico galvanizado para placas - 4,00 x 3,00 m | E235: un | F235: 28 | AE235: 5213630
B236: 3.12 | C236: 5213649 | D236: Pórtico metálico com vão de 15,9 m, vento de 35 m/s, área de exposição de até 23,85 m², tensão admissível solo > 200 kN/m² - areia e brita comerciais | E236: un | F236: 29 | AE236: 5213636
B237: 3.13 | C237: 5213630 | D237: Semi-pórtico metálico com vão de 8,3 m, vento de 35 m/s, área de exposição de até 12,45 m², tensão admissível solo > 200 kN/m² - areia e brita comerciais | E237: un | F237: 30 | AE237: NOVA 01
B238: 3.14 | C238: 5213636 | D238: Semi-pórtico duplo metálico com vão de 2 x 8,3 m, vento de 35 m/s, área de exposição de até 2 x 12,45 m², tensão admissível solo > 200 kN/m² - areia e brita comerciais | E238: un | F238: 31 | AE238: 0
B239: 3.15 | C239: NOVA 01 | D239: Suporte metálico com braço projetado - Área de Exposição até 4,50 m² - Fornecimento e Implantação | E239: un | F239: 32 | AE239: NOVA 08
B240: 4 | C240: 0 | D240: DISPOSITIVOS DE SEGURANÇA | E240: 0 | F240: 33 | I240: =I45 ->  | AE240: NOVA 09
B241: 4.1 | C241: NOVA 08 | D241: Dispositivo de contenção longitudinal, certificado segundo a ABNT NBR 15486:2016, tipo (H4b A W4) - Defensa Metálica - Fornecimento e Implantação | E241: m | F241: 34 | AE241: NOVA 07
B242: 4.2 | C242: NOVA 09 | D242: Dispositivo de contenção longitudinal, certificado segundo a ABNT NBR 15486:2016, tipo (H4b A W5) - Defensa Metálica - Fornecimento e Implantação | E242: m | F242: 35 | AE242: NOVA 06
B243: 4.3 | C243: NOVA 07 | D243: Dispositivo de contenção longitudinal, certificado segundo a ABNT NBR 15486:2016, tipo (H3 A W5) - Defensa Metálica - Fornecimento e Implantação | E243: m | F243: 36 | AE243: =AE50 -> NOVA 05
B244: 4.4 | C244: NOVA 06 | D244: Dispositivo de contenção longitudinal, certificado segundo a ABNT NBR 15486:2016, tipo (H2 A W3) - Defensa Metálica - Fornecimento e Implantação | E244: m | F244: 37 | AE244: NOVA 04
B245: 4.5 | C245: NOVA 05 | D245: Dispositivo de contenção longitudinal, certificado segundo a ABNT NBR 15486:2016, tipo (H1 A W2) - Defensa Metálica - Fornecimento e Implantação | E245: m | F245: 38 | AE245: NOVA 10
B246: 4.6 | C246: NOVA 04 | D246: Dispositivo de contenção longitudinal, certificado segundo a ABNT NBR 15486:2016, tipo (N2 A W2) - Defensa Metálica - Fornecimento e Implantação | E246: m | F246: 39 | AE246: NOVA 11
B247: 4.7 | C247: NOVA 10 | D247: Terminal absorvedor de energia, certificado segundo a ABNT NBR 15.486:2016, especificado conforme NCHRP 350 nível de ensaio 2 (70 km/h) ou EN 1317 nível de ensaio 2 (80 km/h) – fornecimento e instalação | E247: un | F247: 40 | AE247: 3713605
B248: =B53 -> 4.8 | C248: NOVA 11 | D248: Terminal absorvedor de energia, certificado segundo a ABNT NBR 15.486:2016, especificado conforme NCHRP 350 nível de ensaio 3 (100 km/h) ou EN 1317 nível de ensaio 3 (100 km/h) - Fornecimento e instalação | E248: un | F248: 41 | AE248: 3713690
B249: 4.9 | C249: 3713605 | D249: Ancoragem de defensa semi-maleável simples - fornecimento e implantação | E249: m | F249: 42 | AE249: 3713873
B250: 4.10 | C250: 3713690 | D250: Terminal de ancoragem de defensa metálica em barreira New Jersey - fornecimento e implantação | E250: un | F250: 43 | AE250: NOVA 02
B251: 4.11 | C251: 3713873 | D251: Módulo de transição de defensa metálica para barreira rígida - fornecimento e implantação | E251: un | F251: 44 | AE251: NOVA 03
B252: 4.12 | C252: NOVA 02 | D252: Fornecimento e colocação de dispositivo Refletivo para defensas em tangente | E252: un | F252: 45 | AE252: 0
B253: 4.13 | C253: NOVA 03 | D253: Fornecimento e colocação de Painel de Delineamento Refletivo para defensas em curvas | E253: un | F253: 46 | AE253: 0
B254: 5 | C254: 0 | D254: MANUTENÇÃO/CONSERVAÇÃO | E254: 0 | F254: 47 | AE254: 5213413B
B255: 5.1 | C255: 0 | D255: MANUTENÇÃO/CONSERVAÇÃO - SINALIZAÇÃO HORIZONTAL | E255: 0 | F255: 48 | AE255: 5213408A
B256: 5.1.1 | C256: 5213413B | D256: Manutenção/recomposição - pintura de faixa - plástico a frio tricomponente à base de resinas metacrílicas - espessura de 0,6 mm - aspersão | E256: m² | F256: 49 | AE256: 5213355
B257: 5.1.2 | C257: 5213408A | D257: Manutenção/recomposição - pintura de faixa - termoplástico por aspersão - espessura de 1,5 mm | E257: m² | F257: 50 | AE257: 5213392A
B258: 5.1.3 | C258: 5213355 | D258: Manutenção/recomposição de sinalização - pintura de faixa com tinta acrílica emulsionada em água - espessura de 0,5 mm | E258: m² | F258: 51 | AE258: 5213394A
B259: 5.1.4 | C259: 5219640 | D259: Tacha refletiva metálica - monodirecional tipo III - com um pino - fornecimento e colocação | E259: un | F259: 52 | AE259: 5213360A
B260: 5.1.5 | C260: 5219636 | D260: Tacha refletiva metálica - bidirecional tipo III - com um pino - fornecimento e colocação | E260: un | F260: 53 | AE260: 5213359A
B261: 5.1.6 | C261: 5219608 | D261: Tacha refletiva em plástico injetado - bidirecional tipo III - com um pino - fornecimento e colocação | E261: un | F261: 54 | AE261: 5213837
B262: 5.1.7 | C262: 5219615 | D262: Tacha refletiva em plástico injetado - monodirecional tipo III - com um pino - fornecimento e colocação | E262: un | F262: 55 | AE262: 5213832
B263: 5.1.8 | C263: 5213837 | D263: Delimitador de tráfego flexível com duas faixas refletivas D = 20 cm e H = 80 cm com chumbador | E263: un | F263: 56 | AE263: 5213830
B264: 5.1.9 | C264: 5213832 | D264: Remoção de sinalização horizontal com maçarico | E264: m² | F264: 57 | AE264: 5213831
B265: 5.1.10 | C265: 5213830 | D265: Remoção de sinalização horizontal por fresagem | E265: m² | F265: 58 | AE265: 5213360B
B266: 5.1.11 | C266: 5213831 | D266: Remoção de sinalização horizontal tipo pintura acrílica por jateamento abrasivo úmido com vidro - utilização de 3 vezes | E266: m² | F266: 59 | AE266: NOVA 12
B267: 5.1.12 | C267: 5213360B | D267: Remoção de tachas e tachões | E267: un | F267: 60 | AE267: 0
B268: =B73 -> 5.1.13 | C268: NOVA 12 | D268: Limpeza de tachas refletivas | E268: un | F268: 61 | AE268: 4915719
B269: 5.2 | C269: 0 | D269: MANUTENÇÃO/CONSERVAÇÃO - SINALIZAÇÃO VERTICAL | E269: 0 | F269: 62 | L269: =IF(K269>=0,B269,"") ->  | AE269: 5213364
B270: 5.2.1 | C270: 4915719 | D270: Recomposição de placa de sinalização | E270: m² | F270: 63 | L270: =IF(K270>=0,B270,"") ->  | AE270: 4915718
B271: 5.2.2 | C271: 5213364 | D271: Remoção de placa de sinalização | E271: m² | F271: 64 | L271: =IF(K271>=0,B271,"") ->  | AE271: 4915744
B272: 5.2.3 | C272: 4915718 | D272: Limpeza de placa de sinalização | E272: m² | F272: 65 | I272: =I77 ->  | AE272: =AE80 -> 5213572A
B273: 5.2.4 | C273: 4915744 | D273: Capina manual | E273: m² | F273: 66 | K273: =I273/$I$207 ->  | AE273: 5213487A
B274: 5.2.5 | C274: 5213572A | D274: Fornecimento e implantação de placa em aço - película III + SI (Sinal Impresso Digital c/ Overlay) | E274: m² | F274: 67 | AE274: 5213487B
B275: 5.2.6 | C275: 5213487A | D275: Fornecimento e implantação de placa em alumínio composto, espessura de 3,0 mm. - película retrorrefletiva tipo III + SI (Sinal Impresso Digital c/ Overlay) | E275: m² | F275: 68 | AE275: 5213352
B276: 5.2.7 | C276: 5213487B | D276: Fornecimento e implantação de placa em alumínio composto, espessura de 3,0 mm, modulada, aérea - película retrorrefletiva tipo X + SI (Sinal Impresso Digital c/ Overlay) | E276: m² | F276: 69 | AE276: 5213353
B277: 5.2.8 | C277: 5213352 | D277: Fornecimento e implantação de suporte polimérico ecológico maciço quadrado de 8 cm para placa de sinalização | E277: un | F277: 70 | AE277: 5213350
B278: 5.2.9 | C278: 5213353 | D278: Fornecimento e implantação de suporte polimérico ecológico maciço colapsível retangular de 7 x 15 cm para placa de sinalização | E278: un | F278: 71 | AE278: 5213868
... 35 more rows

Sheet Composição
C1: DNIT - | S1: =INSUMOS!E1 -> XX | T1: =INSUMOS!E6 -> MTP (R$) | U1: =INSUMOS!F6 -> MTO (R$) | W1: =IF(Premissa!E15="S",Premissa!C22,Premissa!C23) -> 
B2: =IF(LEFT(C2,7)=$C$1,B1+1,B1) -> 1 | C2: DNIT - SISTEMA DE CUSTOS REFERENCIAIS DE OBRAS - SICRO - SEM DESONERAÇÃO | K2: =Premissa!C8 ->  | V2: =B2 -> 1 | AB2: P9801 | AC2: P9804 | AD2: P9805 | AE2: P9806 | AF2: P9809 | AG2: P9819 | AH2: P9821 | AI2: P9822 | AJ2: P9823 | AK2: P9824 | AL2: P9827 | AM2: P9830 | AN2: P9840 | AO2: P9842 | AP2: P9853 | AQ2: P9864 | AR2: P9875 | AS2: P9876 | AT2: P9878 | AU2: P9883 | AV2: P9896 | AW2: P9897 | AX2: P9916 | AY2: P9948 | AZ2: P9952 | BA2: P9953 | BB2: P9954 | BC2: P9955 | BF2: E9010 | BG2: E9076 | BH2: E9082 | BI2: E9093 | BJ2: E9101 | BK2: E9111 | BL2: E9113 | BM2: E9125 | BN2: E9519 | BO2: E9521 | BP2: E9568 | BQ2: E9605 | BR2: E9644 | BS2: E9645 | BT2: E9649 | BU2: E9675 | BV2: E9684 | BW2: E9686 | BX2: E9687 | BY2: E9693
B3: 1 | C3: Custo Unitário de Referência | K3: =Premissa!C20 -> Mês/20XX | N3: Produção de Equipe: | P3: 90.01 | Q3: m² | V3: =B3 -> 1 | AB3: =ROUND(SUM(AB5:AB5015)/176,2) -> 0 | AC3: 0 | AD3: 0 | AE3: 0 | AF3: 0 | AG3: 0 | AH3: 0 | AI3: 0 | AJ3: 0 | AK3: 0 | AL3: 0 | AM3: 0 | AN3: 0 | AO3: 0 | AP3: 0 | AQ3: 0 | AR3: 0 | AS3: 0 | AT3: 0 | AU3: 0 | AV3: 0 | AW3: 0 | AX3: 0 | AY3: 0 | AZ3: 0 | BA3: 0 | BB3: 0 | BC3: 0 | BF3: =ROUND(SUM(BF5:BF5015)/176,2) -> 0 | BG3: 0 | BH3: 0 | BI3: 0 | BJ3: 0 | BK3: 0 | BL3: 0 | BM3: 0 | BN3: 0 | BO3: 0 | BP3: 0 | BQ3: 0 | BR3: 0 | BS3: 0 | BT3: 0 | BU3: 0 | BV3: 0 | BW3: 0 | BY3: =ROUND(SUM(BY5:BY5015)/176,2) -> 0 | CH3: Meses | CJ3: 36
B4: 1 | C4: 5213413A | D4: Pintura de faixa - plástico a frio tipo I - espessura de 0,6 mm - aspersão​ | Q4: (Valores em R$) | R4: =Q51 ->  | S4: =P3 -> 90.01 | T4: =IFERROR(SUMIF('QD 2 - Orçamento'!$C$18:$F$120,C4,'QD 2 - Orçamento'!$F$18:$F$120)/S4,"") -> 0 | V4: 1
B5: 1 | C5: A - Equipamentos | I5: Quantidade | K5: Utilização | N5: Custo Operacional | Q5: Custo Horário | T5: =IFERROR(SUMIF('QD 2 - Orçamento'!$C$18:$F$120,C5,'QD 2 - Orçamento'!$F$18:$F$120)/S5,"") ->  | V5: 1 | BF5: =IF(BF$2=$C8,$I8*$K8*$T4,0)+IF(BF$2=$C9,$I9*$K9*$T4,0)+IF(BF$2=$C10,$I10*$K10*$T4,0)+IF(BF$2=$C7,$I7*$K7*$T4,0) -> 0 | BG5: =IF(BG$2=$C8,$I8*$K8*$T4,0)+IF(BG$2=$C9,$I9*$K9*$T4,0)+IF(BG$2=$C10,$I10*$K10*$T4,0)+IF(BG$2=$C7,$I7*$K7*$T4,0) -> 0 | BH5: 0 | BI5: 0 | BJ5: 0 | BK5: 0 | BL5: 0 | BM5: 0 | BN5: 0 | BO5: 0 | BP5: 0 | BQ5: 0 | BR5: 0 | BS5: 0 | BT5: 0 | BU5: 0 | BV5: 0 | BW5: 0 | BX5: 0 | BY5: 0 | CF5: =TRANSPOSE(BF2:BY2) -> E9010 | CG5: =VLOOKUP(CF5,Dados1,2,FALSE) -> Balança plataforma digital com mesa de 75 x 75 cm com capacidade de 500 kg | CH5: =TRANSPOSE(BF3:BY3) -> 0
B6: 1 | K6: Operativa | L6: Improdutiva | N6: Operativa | O6: Improdutiva | T6: =IFERROR(SUMIF('QD 2 - Orçamento'!$C$18:$F$120,C6,'QD 2 - Orçamento'!$F$18:$F$120)/S6,"") ->  | V6: 1 | CF6: E9076 | CG6: =VLOOKUP(CF6,Dados1,2,FALSE) -> Equipamento para pintura eletrostática com cabine dupla de 7,00 kW e estufa de 80.000 kCal | CH6: 0
B7: 1 | C7: E9693 | D7: =VLOOKUP(C7,INSUMOS!$B$8:$F$50,2,0) -> Caminhão demarcador de faixas com sistema de pintura Spray - 115 kW | I7: 1 | K7: 1 | L7: 0 | N7: =VLOOKUP(C7,INSUMOS!$B$8:$F$50,4,0) -> 705,7710 | O7: =VLOOKUP(C7,INSUMOS!$B$8:$F$50,5,0) -> 372,7283 | Q7: =TRUNC((I7*((K7*N7)+(L7*O7))),4) -> 705.771 | T7: =IFERROR(SUMIF('QD 2 - Orçamento'!$C$18:$F$120,C7,'QD 2 - Orçamento'!$F$18:$F$120)/S7,"") ->  | V7: 1 | CF7: E9082 | CG7: Bate-estaca hidráulico para defensas montado em caminhão guindauto com capacidade de 20 t.m e carroceria de 4 t - 136 kW | CH7: 0 | CJ7: =ROUNDUP(CH7/$CJ$3,0) -> 0
B8: =IF(LEFT(C7,7)=$C$1,B7+1,B7) -> 1 | T8: =IFERROR(SUMIF('QD 2 - Orçamento'!$C$18:$F$120,C8,'QD 2 - Orçamento'!$F$18:$F$120)/S8,"") ->  | V8: 1 | CF8: E9093 | CG8: Veículo leve - 53 kW (sem motorista) | CH8: 0
B9: 1 | Q9: =TRUNC((I9*((K9*N9)+(L9*O9))),4) -> 0 | T9: =IFERROR(SUMIF('QD 2 - Orçamento'!$C$18:$F$120,C9,'QD 2 - Orçamento'!$F$18:$F$120)/S9,"") ->  | V9: 1 | CF9: E9101 | CG9: Removedora de faixas de sinalização viária - 9,69 kW | CH9: 0
B10: 1 | Q10: =TRUNC((I10*((K10*N10)+(L10*O10))),4) -> 0 | T10: =IFERROR(SUMIF('QD 2 - Orçamento'!$C$18:$F$120,C10,'QD 2 - Orçamento'!$F$18:$F$120)/S10,"") ->  | V10: 1 | CF10: E9111 | CG10: Jateador abrasivo úmido com capacidade de 350 kg de abrasivo | CH10: 0
B11: 1 | Q11: =TRUNC((I11*((K11*N11)+(L11*O11))),4) -> 0 | T11: =IFERROR(SUMIF('QD 2 - Orçamento'!$C$18:$F$120,C11,'QD 2 - Orçamento'!$F$18:$F$120)/S11,"") ->  | V11: 1 | CF11: E9113 | CG11: Painel de Mensagem Variável - PMV móvel, com sistema fotovoltaico de energia e montado em chassi sobre pneus | CH11: 0
B12: 1 | N12: Custo Horário de Equipamento | Q12: =SUM(Q7:Q11) -> 705.771 | T12: =IFERROR(SUMIF('QD 2 - Orçamento'!$C$18:$F$120,C12,'QD 2 - Orçamento'!$F$18:$F$120)/S12,"") ->  | V12: 1 | CF12: E9125 | CG12: Van furgão - 93 kW | CH12: 0
B13: 1 | C13: B - Mão-deObra | I13: Quantidade | J13: Unidade | N13: Salário-Hora | Q13: Custo Horário | T13: =IFERROR(SUMIF('QD 2 - Orçamento'!$C$18:$F$120,C13,'QD 2 - Orçamento'!$F$18:$F$120)/S13,"") ->  | V13: 1 | AB13: =IF(AB$2=$C15,$I15*$T4,0)+IF(AB$2=$C16,$I16*$T4,0)+IF(AB$2=$C17,$I17*$T4,0)+IF(AB$2=$C14,$I14*$T4,0) -> 0 | AC13: 0 | AD13: 0 | AE13: 0 | AF13: 0 | AG13: 0 | AH13: 0 | AI13: 0 | AJ13: 0 | AK13: 0 | AL13: 0 | AM13: 0 | AN13: 0 | AO13: 0 | AP13: 0 | AQ13: 0 | AR13: 0 | AS13: 0 | AT13: 0 | AU13: 0 | AV13: 0 | AW13: 0 | AX13: 0 | AY13: 0 | AZ13: 0 | BA13: 0 | BB13: 0 | BC13: 0 | CF13: E9519 | CG13: Betoneira com motor a gasolina com capacidade de 600 l - 10 kW | CH13: 0
B14: 1 | C14: P9853 | D14: =VLOOKUP(C14,INSUMOS!$B$53:$E$88,2,0) -> Pré-marcador | I14: 1 | J14: h | N14: =VLOOKUP(C14,INSUMOS!$B$53:$E$88,4,0) -> 22.6427 | Q14: =TRUNC(I14*N14,4) -> 22.6427 | T14: =IFERROR(SUMIF('QD 2 - Orçamento'!$C$18:$F$120,C14,'QD 2 - Orçamento'!$F$18:$F$120)/S14,"") ->  | V14: 1 | CF14: E9521 | CG14: Grupo gerador - 2,5/3 kVA | CH14: 0 | CJ14: =ROUNDUP(CH14/$CJ$3,0) -> 0
B15: 1 | C15: P9824 | D15: =VLOOKUP(C15,INSUMOS!$B$53:$E$88,2,0) -> Servente | I15: 4 | J15: h | N15: =VLOOKUP(C15,INSUMOS!$B$53:$E$88,4,0) -> 22.6411 | Q15: =TRUNC(I15*N15,4) -> 90.5644 | T15: =IFERROR(SUMIF('QD 2 - Orçamento'!$C$18:$F$120,C15,'QD 2 - Orçamento'!$F$18:$F$120)/S15,"") ->  | V15: 1 | CF15: E9568 | CG15: Furadeira de impacto de 12,5 mm - 0,80 kW | CH15: 0
B16: 1 | Q16: =TRUNC(I16*N16,4) -> 0 | T16: =IFERROR(SUMIF('QD 2 - Orçamento'!$C$18:$F$120,C16,'QD 2 - Orçamento'!$F$18:$F$120)/S16,"") ->  | V16: 1 | CF16: E9605 | CG16: Caminhão tanque com capacidade de 6.000 l - 136 kW | CH16: 0
B17: 1 | Q17: =TRUNC(I17*N17,4) -> 0 | T17: =IFERROR(SUMIF('QD 2 - Orçamento'!$C$18:$F$120,C17,'QD 2 - Orçamento'!$F$18:$F$120)/S17,"") ->  | V17: 1 | CF17: E9644 | CG17: Caminhão demarcador de faixas com sistema de pintura a frio - 28 kW/115 kW | CH17: 0 | CI17: =ROUND(('[15]QD 6 - ADM_Local'!F42*176-CH17*176)/'[15]QD 6 - ADM_Local'!F42,0) -> 176 | CJ17: =ROUNDUP(CH17/$CJ$3,0) -> 0 | CL17: 2 | CM17: =ROUND(('[15]QD 6 - ADM_Local'!F42*176-CL17*176)/'[15]QD 6 - ADM_Local'!F42,0) -> 166
B18: 1 | N18: 0 | Q18: =SUM(Q14:Q17) -> 113.2071 | T18: =IFERROR(SUMIF('QD 2 - Orçamento'!$C$18:$F$120,C18,'QD 2 - Orçamento'!$F$18:$F$120)/S18,"") ->  | V18: 1 | CF18: E9645 | CG18: Caminhão demarcador de faixas com sistema de pintura a quente - 5 kW/30,10 kW/136 kW | CH18: 0 | CJ18: =ROUNDUP(CH18/$CJ$3,0) -> 0 | CN18: 1
B19: 1 | N19: Custo Horário de Execução | Q19: =+Q18+Q12 -> 818.9781 | T19: =IFERROR(SUMIF('QD 2 - Orçamento'!$C$18:$F$120,C19,'QD 2 - Orçamento'!$F$18:$F$120)/S19,"") ->  | V19: 1 | CF19: E9649 | CG19: Compressor de ar portátil de 94,39 l/s (200 PCM) - 36 kW | CH19: 0
B20: 1 | N20: Custo Unitário de Execução | Q20: =TRUNC(Q19/P3,4) -> 9.0987 | T20: =IFERROR(SUMIF('QD 2 - Orçamento'!$C$18:$F$120,C20,'QD 2 - Orçamento'!$F$18:$F$120)/S20,"") ->  | V20: 1 | CF20: E9675 | CG20: Martelete perfurador/rompedor elétrico - 1,50 kW | CH20: 0
B21: 1 | O21: Custo FIC | P21: =INSUMOS!$E$261 -> 0 | Q21: =TRUNC(Q20*P21,4) -> 0 | T21: =IFERROR(SUMIF('QD 2 - Orçamento'!$C$18:$F$120,C21,'QD 2 - Orçamento'!$F$18:$F$120)/S21,"") ->  | V21: 1 | CF21: E9684 | CG21: Veículo leve Pick Up 4 x 4 - 147 kW | CH21: 0
B22: 1 | O22: Custo FIT | P22: ='QD 9 - FIT'!M72 ->  | Q22: =TRUNC(Q20*P22,4) ->  | T22: =IFERROR(SUMIF('QD 2 - Orçamento'!$C$18:$F$120,C22,'QD 2 - Orçamento'!$F$18:$F$120)/S22,"") ->  | V22: 1 | CF22: E9686 | CG22: Caminhão carroceria com guindauto com capacidade de 20 t.m - 136 kW | CH22: 0 | CJ22: =ROUNDUP(CH22/$CJ$3,0) -> 0
B23: 1 | C23: C - Material | I23: Quantidade | J23: Unidade | N23: Preço Unitário | Q23: Custo Unitário | T23: =IFERROR(SUMIF('QD 2 - Orçamento'!$C$18:$F$120,C23,'QD 2 - Orçamento'!$F$18:$F$120)/S23,"") ->  | V23: 1 | CF23: E9687 | CG23: Caminhão carroceria com capacidade de 5 t - 115 kW | CH23: 0 | CJ23: =ROUNDUP(CH23/$CJ$3,0) -> 0
B24: 1 | C24: M2045 | D24: =VLOOKUP(C24,INSUMOS!$B$96:$E$197,2,0) -> Microesferas refletivas de vidro tipo II-C | I24: 0.35 | J24: kg | N24: =VLOOKUP(C24,INSUMOS!$B$96:$E$197,4,0) -> 7.5225 | Q24: =TRUNC(I24*N24,4) -> 2.6328 | T24: =IFERROR(SUMIF('QD 2 - Orçamento'!$C$18:$F$120,C24,'QD 2 - Orçamento'!$F$18:$F$120)/S24,"") ->  | V24: 1 | CF24: E9693 | CG24: Caminhão demarcador de faixas com sistema de pintura Spray - 115 kW | CH24: 0 | CJ24: =ROUNDUP(CH24/$CJ$3,0) -> 0
B25: 1 | C25: M3245 | D25: =VLOOKUP(C25,INSUMOS!$B$96:$E$197,2,0) -> Tinta plástica à base de resina metacrílica aplicada a frio por aspersão (spray) | I25: 1.02 | J25: kg | N25: =VLOOKUP(C25,INSUMOS!$B$96:$E$197,4,0) -> 38.401 | Q25: =TRUNC(I25*N25,4) -> 39.169 | T25: =IFERROR(SUMIF('QD 2 - Orçamento'!$C$18:$F$120,C25,'QD 2 - Orçamento'!$F$18:$F$120)/S25,"") ->  | V25: 1
B26: 1 | C26: M2044 | D26: =VLOOKUP(C26,INSUMOS!$B$96:$E$197,2,0) -> Tinta à base de resina acrílica emulsionada em água para pré-marcação viária | I26: 0.00097 | J26: l | N26: =VLOOKUP(C26,INSUMOS!$B$96:$E$197,4,0) -> 21.2653 | Q26: =TRUNC(I26*N26,4) -> 0.0206 | T26: =IFERROR(SUMIF('QD 2 - Orçamento'!$C$18:$F$120,C26,'QD 2 - Orçamento'!$F$18:$F$120)/S26,"") ->  | V26: 1
B27: 1 | Q27: =TRUNC(I27*N27,4) -> 0 | T27: =IFERROR(SUMIF('QD 2 - Orçamento'!$C$18:$F$120,C27,'QD 2 - Orçamento'!$F$18:$F$120)/S27,"") ->  | V27: 1
B28: 1 | P28: Custo Total de Material | Q28: =SUM(Q24:Q27) -> 41.8224 | T28: =IFERROR(SUMIF('QD 2 - Orçamento'!$C$18:$F$120,C28,'QD 2 - Orçamento'!$F$18:$F$120)/S28,"") ->  | V28: 1 | CD28: 1 | CF28: =TRANSPOSE(AB2:BC2) -> P9801 | CG28: =VLOOKUP(CF28,Dados1,2,FALSE) -> Ajudante | CH28: =TRANSPOSE(AB3:BC3) -> 0 | CJ28: =ROUNDUP(CH28/$CJ$3,0) -> 0
B29: 1 | C29: D - Atividades Auxiliares | I29: Quantidade | J29: Unidade | N29: Preço Unitário | Q29: Custo Unitário | T29: =IFERROR(SUMIF('QD 2 - Orçamento'!$C$18:$F$120,C29,'QD 2 - Orçamento'!$F$18:$F$120)/S29,"") ->  | V29: 1 | CD29: 2 | CF29: P9804 | CG29: =VLOOKUP(CF29,Dados1,2,FALSE) -> Apontador | CH29: 0
B30: 1 | Q30: =TRUNC(I30*N30,4) -> 0 | T30: =IFERROR(SUMIF('QD 2 - Orçamento'!$C$18:$F$120,C30,'QD 2 - Orçamento'!$F$18:$F$120)/S30,"") ->  | V30: 1 | CD30: 3 | CF30: P9805 | CG30: Armador | CH30: 0
B31: 1 | Q31: =TRUNC(I31*N31,4) -> 0 | T31: =IFERROR(SUMIF('QD 2 - Orçamento'!$C$18:$F$120,C31,'QD 2 - Orçamento'!$F$18:$F$120)/S31,"") ->  | V31: 1 | CD31: 4 | CF31: P9806 | CG31: Auxiliar administrativo | CH31: 0
B32: 1 | Q32: =TRUNC(I32*N32,4) -> 0 | T32: =IFERROR(SUMIF('QD 2 - Orçamento'!$C$18:$F$120,C32,'QD 2 - Orçamento'!$F$18:$F$120)/S32,"") ->  | V32: 1 | CD32: 5 | CF32: P9809 | CG32: Encarregado administrativo | CH32: 0
B33: 1 | Q33: =TRUNC(I33*N33,4) -> 0 | T33: =IFERROR(SUMIF('QD 2 - Orçamento'!$C$18:$F$120,C33,'QD 2 - Orçamento'!$F$18:$F$120)/S33,"") ->  | V33: 1 | CD33: 6 | CF33: P9819 | CG33: Engenheiro supervisor | CH33: 0
B34: 1 | P34: Custo Total das Atividades | Q34: =SUM(Q30:Q33) -> 0 | T34: =IFERROR(SUMIF('QD 2 - Orçamento'!$C$18:$F$120,C34,'QD 2 - Orçamento'!$F$18:$F$120)/S34,"") ->  | V34: 1 | CD34: 7 | CF34: P9821 | CG34: Pedreiro | CH34: 0
B35: 1 | C35: E - Tempo Fixo | I35: Código | J35: Quantidade | K35: Unidade | N35: Preço Unitário | Q35: Custo Unitário | T35: =IFERROR(SUMIF('QD 2 - Orçamento'!$C$18:$F$120,C35,'QD 2 - Orçamento'!$F$18:$F$120)/S35,"") ->  | V35: 1 | CD35: 8 | CF35: P9822 | CG35: Pintor | CH35: 0
B36: 1 | C36: M2045 | D36: Microesferas de vidro refletiva tipo II-C - Caminhão carroceria de 5 t | I36: 5914655 | J36: 0.00035 | K36: t | N36: =VLOOKUP(I36,INSUMOS!$B$200:$E$256,4,0) -> 27.15 | Q36: =TRUNC(J36*N36,4) -> 0.0095 | T36: =IFERROR(SUMIF('QD 2 - Orçamento'!$C$18:$F$120,C36,'QD 2 - Orçamento'!$F$18:$F$120)/S36,"") ->  | V36: 1 | CD36: 9 | CF36: P9823 | CG36: Serralheiro | CH36: 0
B37: 1 | C37: M3245 | D37: Plástico a frio spray por aspersão - Caminhão carroceria de 5 t | I37: 5914655 | J37: =I25/1000 -> 0.00102 | K37: t | N37: =VLOOKUP(I37,INSUMOS!$B$200:$E$256,4,0) -> 27.15 | Q37: =TRUNC(J37*N37,4) -> 0.0276 | T37: =IFERROR(SUMIF('QD 2 - Orçamento'!$C$18:$F$120,C37,'QD 2 - Orçamento'!$F$18:$F$120)/S37,"") ->  | V37: 1 | CD37: 10 | CF37: P9824 | CG37: Servente | CH37: 0 | CJ37: =ROUNDUP(CH37/$CJ$3,0) -> 0
B38: 1 | Q38: =TRUNC(J38*N38,4) -> 0 | T38: =IFERROR(SUMIF('QD 2 - Orçamento'!$C$18:$F$120,C38,'QD 2 - Orçamento'!$F$18:$F$120)/S38,"") ->  | V38: 1 | CD38: 11 | CF38: P9827 | CG38: Vigia | CH38: 0
B39: 1 | Q39: =TRUNC(J39*N39,4) -> 0 | T39: =IFERROR(SUMIF('QD 2 - Orçamento'!$C$18:$F$120,C39,'QD 2 - Orçamento'!$F$18:$F$120)/S39,"") ->  | V39: 1 | CD39: 12 | CF39: P9830 | CG39: Montador | CH39: 0 | CJ39: =ROUNDUP(CH39/$CJ$3,0) -> 0
B40: 1 | P40: Custo Total de Tempo Fixo | Q40: =SUM(Q36:Q39) -> 0.0371 | T40: =IFERROR(SUMIF('QD 2 - Orçamento'!$C$18:$F$120,C40,'QD 2 - Orçamento'!$F$18:$F$120)/S40,"") ->  | V40: 1 | CD40: 13 | CF40: P9840 | CG40: Encarregado geral | CH40: 0
B41: 1 | C41: F - Momento de Transporte | I41: Quantidade | J41: Unidade | K41: DMT | N41: Preço Unitário | Q41: Custo Unitário | T41: =IFERROR(SUMIF('QD 2 - Orçamento'!$C$18:$F$120,C41,'QD 2 - Orçamento'!$F$18:$F$120)/S41,"") ->  | V41: 1 | CD41: 14 | CF41: P9842 | CG41: Faxineiro | CH41: 0
B42: 1 | K42: LN | L42: RP | M42: P | N42: LN | O42: RP | P42: P | T42: =IFERROR(SUMIF('QD 2 - Orçamento'!$C$18:$F$120,C42,'QD 2 - Orçamento'!$F$18:$F$120)/S42,"") ->  | V42: 1 | CD42: 15 | CF42: P9853 | CG42: Pré-marcador | CH42: 0 | CJ42: =ROUNDUP(CH42/$CJ$3,0) -> 0
B43: 1 | C43: M2045 | D43: Microesferas de vidro refletiva tipo II-C - Caminhão carroceria de 5 t | I43: 0.00035 | J43: tkm | M43: =DMTc ->  | P43: =VLOOKUP(R43,INSUMOS!$B$200:$E$216,4,0) -> 0.5 | Q43: =TRUNC(L43*O43,4)*I43+TRUNC(M43*P43,4)*I43+TRUNC(K43*N43,4)*I43 ->  | R43: 5914479 | T43: =IFERROR(SUMIF('QD 2 - Orçamento'!$C$18:$F$120,C43,'QD 2 - Orçamento'!$F$18:$F$120)/S43,"") ->  | V43: 1 | CD43: 16 | CF43: P9864 | CG43: Engenheiro de segurança do trabalho | CH43: 0
B44: 1 | C44: M3245 | D44: Plástico a frio spray por aspersão - Caminhão carroceria de 5 t | I44: 0.00102 | J44: tkm | M44: =DMTc ->  | P44: =VLOOKUP(R44,INSUMOS!$B$200:$E$216,4,0) -> 0.5 | Q44: =TRUNC(L44*O44,4)*I44+TRUNC(M44*P44,4)*I44+TRUNC(K44*N44,4)*I44 ->  | R44: 5914479 | T44: =IFERROR(SUMIF('QD 2 - Orçamento'!$C$18:$F$120,C44,'QD 2 - Orçamento'!$F$18:$F$120)/S44,"") ->  | V44: 1 | CD44: 17 | CF44: P9875 | CG44: Encarregado de turma | CH44: 0
B45: 1 | Q45: =TRUNC(L45*O45,4)*I45+TRUNC(M45*P45,4)*I45+TRUNC(K45*N45,4)*I45 -> 0 | T45: =IFERROR(SUMIF('QD 2 - Orçamento'!$C$18:$F$120,C45,'QD 2 - Orçamento'!$F$18:$F$120)/S45,"") ->  | V45: 1 | CD45: 18 | CF45: P9876 | CG45: Técnico de segurança do trabalho | CH45: 0
B46: 1 | Q46: =TRUNC(L46*O46,4)*I46+TRUNC(M46*P46,4)*I46+TRUNC(K46*N46,4)*I46 -> 0 | T46: =IFERROR(SUMIF('QD 2 - Orçamento'!$C$18:$F$120,C46,'QD 2 - Orçamento'!$F$18:$F$120)/S46,"") ->  | V46: 1 | CD46: 19 | CF46: P9878 | CG46: Secretária | CH46: 0
B47: 1 | Q47: =TRUNC(L47*O47,4)*I47+TRUNC(M47*P47,4)*I47+TRUNC(K47*N47,4)*I47 -> 0 | T47: =IFERROR(SUMIF('QD 2 - Orçamento'!$C$18:$F$120,C47,'QD 2 - Orçamento'!$F$18:$F$120)/S47,"") ->  | V47: 1 | CD47: 20 | CF47: P9883 | CG47: Chefe do setor administrativo | CH47: 0
B48: 1 | P48: Custo Total dos Transportes | Q48: =SUM(Q43:Q47) ->  | T48: =IFERROR(SUMIF('QD 2 - Orçamento'!$C$18:$F$120,C48,'QD 2 - Orçamento'!$F$18:$F$120)/S48,"") ->  | V48: 1 | CD48: 21 | CF48: P9896 | CG48: Porteiro | CH48: 0
B49: 1 | N49: Custo Unitário Direto Total | Q49: =TRUNC((Q34+Q28+Q20+Q48+Q40+Q21+Q22),2) ->  | T49: =IFERROR(SUMIF('QD 2 - Orçamento'!$C$18:$F$120,C49,'QD 2 - Orçamento'!$F$18:$F$120)/S49,"") ->  | V49: 1 | CD49: 22 | CF49: P9897 | CG49: Técnico de meio ambiente | CH49: 0
B50: 1 | M50: =CONCATENATE("Lucros e Despesas Indiretas","(",ROUND(W1,2),"%)") ->  | P50: =$W$1 ->  | Q50: =TRUNC(Q49*P50/100,2) ->  | T50: =IFERROR(SUMIF('QD 2 - Orçamento'!$C$18:$F$120,C50,'QD 2 - Orçamento'!$F$18:$F$120)/S50,"") ->  | V50: 1 | CD50: 23 | CF50: P9916 | CG50: Encarregado de conservação rodoviária | CH50: 0
B51: 1 | N51: Preço Unitário Total | Q51: =TRUNC(Q49+Q50,2) ->  | T51: =IFERROR(SUMIF('QD 2 - Orçamento'!$C$18:$F$120,C51,'QD 2 - Orçamento'!$F$18:$F$120)/S51,"") ->  | V51: 1 | CD51: 24 | CF51: P9948 | CG51: Motorista de veículo leve - mensalista | CH51: 0
B52: 1 | C52: Observações : | D52: Considerou-se a mesma composição do serviço 5213413 - Pintura de faixa com plástico a frio tricomponente à base de resinas metacrílicas por aspersão - espessura de 0,6 mm A alteração da nomenclatura do serviço se deve ao fator de adequação da terminologia conforme expressa na norma ABNT NBR 15.870:2016. | T52: =IFERROR(SUMIF('QD 2 - Orçamento'!$C$18:$F$120,C52,'QD 2 - Orçamento'!$F$18:$F$120)/S52,"") ->  | V52: 1 | CD52: 25 | CF52: P9952 | CG52: Pedreiro - mensalista | CH52: 0
B53: 1 | T53: =IFERROR(SUMIF('QD 2 - Orçamento'!$C$18:$F$120,C53,'QD 2 - Orçamento'!$F$18:$F$120)/S53,"") ->  | V53: 1 | CD53: 26 | CF53: P9953 | CG53: Eletricista - mensalista | CH53: 0
B54: 1 | T54: =IFERROR(SUMIF('QD 2 - Orçamento'!$C$18:$F$120,C54,'QD 2 - Orçamento'!$F$18:$F$120)/S54,"") ->  | V54: 1 | CD54: 27 | CF54: P9954 | CG54: Servente - mensalista | CH54: 0
B55: 1 | T55: =IFERROR(SUMIF('QD 2 - Orçamento'!$C$18:$F$120,C55,'QD 2 - Orçamento'!$F$18:$F$120)/S55,"") ->  | V55: 1 | CD55: 28 | CF55: P9955 | CG55: Engenheiro chefe | CH55: 0
B56: 2 | C56: =C2 -> DNIT - SISTEMA DE CUSTOS REFERENCIAIS DE OBRAS - SICRO - SEM DESONERAÇÃO | K56: =K2 ->  | T56: =IFERROR(SUMIF('QD 2 - Orçamento'!$C$18:$F$120,C56,'QD 2 - Orçamento'!$F$18:$F$120)/S56,"") ->  | V56: 2
B57: 2 | C57: Custo Unitário de Referência | K57: =Premissa!$C$20 -> Mês/20XX | N57: Produção de Equipe: | P57: 95.4 | Q57: m² | T57: =IFERROR(SUMIF('QD 2 - Orçamento'!$C$18:$F$120,C57,'QD 2 - Orçamento'!$F$18:$F$120)/S57,"") ->  | V57: 2
B58: 2 | C58: 5213408 | D58: Pintura de faixa - termoplástico por aspersão - espessura de 1,5 mm | Q58: (Valores em R$) | R58: =Q105 ->  | S58: =P57 -> 95.4 | T58: =IFERROR(SUMIF('QD 2 - Orçamento'!$C$18:$F$120,C58,'QD 2 - Orçamento'!$F$18:$F$120)/S58,"") -> 0 | V58: 2
B59: 2 | C59: A - Equipamentos | I59: Quantidade | K59: Utilização | N59: Custo Operacional | Q59: Custo Horário | T59: =IFERROR(SUMIF('QD 2 - Orçamento'!$C$18:$F$120,C59,'QD 2 - Orçamento'!$F$18:$F$120)/S59,"") ->  | V59: 2 | BF59: =IF(BF$2=$C62,$I62*$K62*$T58,0)+IF(BF$2=$C63,$I63*$K63*$T58,0)+IF(BF$2=$C64,$I64*$K64*$T58,0)+IF(BF$2=$C61,$I61*$K61*$T58,0) -> 0 | BG59: 0 | BH59: 0 | BI59: 0 | BJ59: 0 | BK59: 0 | BL59: 0 | BM59: 0 | BN59: 0 | BO59: 0 | BP59: 0 | BQ59: 0 | BR59: 0 | BS59: 0 | BT59: 0 | BU59: 0 | BV59: 0 | BW59: 0 | BX59: 0 | BY59: 0
B60: 2 | K60: Operativa | L60: Improdutiva | N60: Operativa | O60: Improdutiva | T60: =IFERROR(SUMIF('QD 2 - Orçamento'!$C$18:$F$120,C60,'QD 2 - Orçamento'!$F$18:$F$120)/S60,"") ->  | V60: 2
B61: 2 | C61: E9645 | D61: =VLOOKUP(C61,INSUMOS!$B$8:$F$44,2,0) -> Caminhão demarcador de faixas com sistema de pintura a quente - 5 kW/30,10 kW/136 kW | I61: 1 | K61: 1 | L61: 0 | N61: =VLOOKUP(C61,INSUMOS!$B$8:$F$50,4,0) -> 421,0820 | O61: =VLOOKUP(C61,INSUMOS!$B$8:$F$50,5,0) -> 192,4874 | Q61: =TRUNC((I61*((K61*N61)+(L61*O61))),4) -> 421.082 | T61: =IFERROR(SUMIF('QD 2 - Orçamento'!$C$18:$F$120,C61,'QD 2 - Orçamento'!$F$18:$F$120)/S61,"") ->  | V61: 2
B62: =IF(LEFT(C61,7)=$C$1,B61+1,B61) -> 2 | T62: =IFERROR(SUMIF('QD 2 - Orçamento'!$C$18:$F$120,C62,'QD 2 - Orçamento'!$F$18:$F$120)/S62,"") ->  | V62: 2
B63: 2 | Q63: =TRUNC((I63*((K63*N63)+(L63*O63))),4) -> 0 | T63: =IFERROR(SUMIF('QD 2 - Orçamento'!$C$18:$F$120,C63,'QD 2 - Orçamento'!$F$18:$F$120)/S63,"") ->  | V63: 2
B64: 2 | Q64: =TRUNC((I64*((K64*N64)+(L64*O64))),4) -> 0 | T64: =IFERROR(SUMIF('QD 2 - Orçamento'!$C$18:$F$120,C64,'QD 2 - Orçamento'!$F$18:$F$120)/S64,"") ->  | V64: 2
B65: 2 | T65: =IFERROR(SUMIF('QD 2 - Orçamento'!$C$18:$F$120,C65,'QD 2 - Orçamento'!$F$18:$F$120)/S65,"") ->  | V65: 2
B66: =IF(LEFT(C66,7)=$C$1,B65+1,B65) -> 2 | N66: Custo Horário de Equipamento | Q66: =SUM(Q61:Q65) -> 421.082 | T66: =IFERROR(SUMIF('QD 2 - Orçamento'!$C$18:$F$120,C66,'QD 2 - Orçamento'!$F$18:$F$120)/S66,"") ->  | V66: 2
B67: 2 | C67: B - Mão-deObra | I67: Quantidade | J67: Unidade | N67: Salário-Hora | Q67: Custo Horário | T67: =IFERROR(SUMIF('QD 2 - Orçamento'!$C$18:$F$120,C67,'QD 2 - Orçamento'!$F$18:$F$120)/S67,"") ->  | V67: =B67 -> 2 | AB67: =IF(AB$2=$C69,$I69*$T58,0)+IF(AB$2=$C70,$I70*$T58,0)+IF(AB$2=$C71,$I71*$T58,0)+IF(AB$2=$C68,$I68*$T58,0) -> 0 | AC67: 0 | AD67: 0 | AE67: 0 | AF67: 0 | AG67: 0 | AH67: 0 | AI67: 0 | AJ67: 0 | AK67: 0 | AL67: 0 | AM67: 0 | AN67: 0 | AO67: 0 | AP67: 0 | AQ67: 0 | AR67: 0 | AS67: 0 | AT67: 0 | AU67: 0 | AV67: 0 | AW67: 0 | AX67: 0 | AY67: 0 | AZ67: 0 | BA67: 0 | BB67: 0 | BC67: 0
B68: 2 | C68: P9853 | D68: =VLOOKUP(C68,INSUMOS!$B$53:$E$88,2,0) -> Pré-marcador | I68: 1 | J68: h | N68: =VLOOKUP(C68,INSUMOS!$B$53:$E$88,4,0) -> 22.6427 | Q68: =TRUNC(I68*N68,4) -> 22.6427 | T68: =IFERROR(SUMIF('QD 2 - Orçamento'!$C$18:$F$120,C68,'QD 2 - Orçamento'!$F$18:$F$120)/S68,"") ->  | V68: 2
B69: 2 | C69: P9824 | D69: =VLOOKUP(C69,INSUMOS!$B$53:$E$88,2,0) -> Servente | I69: 5 | J69: h | N69: =VLOOKUP(C69,INSUMOS!$B$53:$E$88,4,0) -> 22.6411 | Q69: =TRUNC(I69*N69,4) -> 113.2055 | T69: =IFERROR(SUMIF('QD 2 - Orçamento'!$C$18:$F$120,C69,'QD 2 - Orçamento'!$F$18:$F$120)/S69,"") ->  | V69: 2
B70: 2 | Q70: =TRUNC(I70*N70,4) -> 0 | T70: =IFERROR(SUMIF('QD 2 - Orçamento'!$C$18:$F$120,C70,'QD 2 - Orçamento'!$F$18:$F$120)/S70,"") ->  | V70: 2
B71: 2 | Q71: =TRUNC(I71*N71,4) -> 0 | T71: =IFERROR(SUMIF('QD 2 - Orçamento'!$C$18:$F$120,C71,'QD 2 - Orçamento'!$F$18:$F$120)/S71,"") ->  | V71: 2
B72: 2 | N72: Custo Horário total de Mão-de-Obra | Q72: =SUM(Q68:Q71) -> 135.8482 | T72: =IFERROR(SUMIF('QD 2 - Orçamento'!$C$18:$F$120,C72,'QD 2 - Orçamento'!$F$18:$F$120)/S72,"") ->  | V72: 2
B73: 2 | N73: Custo Horário de Execução | Q73: =+Q72+Q66 -> 556.9302 | T73: =IFERROR(SUMIF('QD 2 - Orçamento'!$C$18:$F$120,C73,'QD 2 - Orçamento'!$F$18:$F$120)/S73,"") ->  | V73: 2
B74: 2 | N74: Custo Unitário de Execução | Q74: =TRUNC(Q73/P57,4) -> 5.8378 | T74: =IFERROR(SUMIF('QD 2 - Orçamento'!$C$18:$F$120,C74,'QD 2 - Orçamento'!$F$18:$F$120)/S74,"") ->  | V74: 2
B75: 2 | O75: Custo FIC | P75: =INSUMOS!$E$261 -> 0 | Q75: =TRUNC(Q74*P75,4) -> 0 | T75: =IFERROR(SUMIF('QD 2 - Orçamento'!$C$18:$F$120,C75,'QD 2 - Orçamento'!$F$18:$F$120)/S75,"") ->  | V75: 2
B76: 2 | O76: Custo FIT | P76: ='QD 9 - FIT'!M72 ->  | Q76: =TRUNC(Q74*P76,4) ->  | T76: =IFERROR(SUMIF('QD 2 - Orçamento'!$C$18:$F$120,C76,'QD 2 - Orçamento'!$F$18:$F$120)/S76,"") ->  | V76: 2
B77: 2 | C77: C - Material | I77: Quantidade | J77: Unidade | N77: Preço Unitário | Q77: Custo Unitário | T77: =IFERROR(SUMIF('QD 2 - Orçamento'!$C$18:$F$120,C77,'QD 2 - Orçamento'!$F$18:$F$120)/S77,"") ->  | V77: 2
B78: 2 | C78: M2040 | D78: =(VLOOKUP(C78,INSUMOS!$B$96:$E$197,2,0)) -> Massa termoplástica para aspersão | I78: 3.075 | J78: kg | N78: =IF(I78>0,(VLOOKUP(C78,INSUMOS!$B$96:$E$197,4,0))) -> 10.6133 | Q78: =TRUNC(I78*N78,4) -> 32.6358 | T78: =IFERROR(SUMIF('QD 2 - Orçamento'!$C$18:$F$120,C78,'QD 2 - Orçamento'!$F$18:$F$120)/S78,"") ->  | V78: 2
B79: 2 | C79: M2038 | D79: =(VLOOKUP(C79,INSUMOS!$B$96:$E$197,2,0)) -> Microesferas refletivas de vidro tipo II-A | I79: 0.4 | J79: kg | N79: =IF(I79>0,(VLOOKUP(C79,INSUMOS!$B$96:$E$197,4,0))) -> 7.5225 | Q79: =TRUNC(I79*N79,4) -> 3.009 | T79: =IFERROR(SUMIF('QD 2 - Orçamento'!$C$18:$F$120,C79,'QD 2 - Orçamento'!$F$18:$F$120)/S79,"") ->  | V79: 2
B80: 2 | C80: M2044 | D80: =(VLOOKUP(C80,INSUMOS!$B$96:$E$197,2,0)) -> Tinta à base de resina acrílica emulsionada em água para pré-marcação viária | I80: 0.00097 | J80: l | N80: =IF(I80>0,(VLOOKUP(C80,INSUMOS!$B$96:$E$197,4,0))) -> 21.2653 | Q80: =TRUNC(I80*N80,4) -> 0.0206 | T80: =IFERROR(SUMIF('QD 2 - Orçamento'!$C$18:$F$120,C80,'QD 2 - Orçamento'!$F$18:$F$120)/S80,"") ->  | V80: 2
B81: 2 | Q81: =TRUNC(I81*M81,4) -> 0 | T81: =IFERROR(SUMIF('QD 2 - Orçamento'!$C$18:$F$120,C81,'QD 2 - Orçamento'!$F$18:$F$120)/S81,"") ->  | V81: 2
B82: 2 | P82: Custo Total de Material | Q82: =SUM(Q78:Q81) -> 35.6654 | T82: =IFERROR(SUMIF('QD 2 - Orçamento'!$C$18:$F$120,C82,'QD 2 - Orçamento'!$F$18:$F$120)/S82,"") ->  | V82: 2
B83: 2 | C83: D - Atividades Auxiliares | I83: Quantidade | J83: Unidade | N83: Preço Unitário | Q83: Custo Unitário | T83: =IFERROR(SUMIF('QD 2 - Orçamento'!$C$18:$F$120,C83,'QD 2 - Orçamento'!$F$18:$F$120)/S83,"") ->  | V83: 2
B84: 2 | Q84: =TRUNC(I84*M84,4) -> 0 | T84: =IFERROR(SUMIF('QD 2 - Orçamento'!$C$18:$F$120,C84,'QD 2 - Orçamento'!$F$18:$F$120)/S84,"") ->  | V84: 2
B85: 2 | Q85: =TRUNC(I85*M85,4) -> 0 | T85: =IFERROR(SUMIF('QD 2 - Orçamento'!$C$18:$F$120,C85,'QD 2 - Orçamento'!$F$18:$F$120)/S85,"") ->  | V85: 2
B86: 2 | Q86: =TRUNC(I86*M86,4) -> 0 | T86: =IFERROR(SUMIF('QD 2 - Orçamento'!$C$18:$F$120,C86,'QD 2 - Orçamento'!$F$18:$F$120)/S86,"") ->  | V86: 2
B87: 2 | Q87: =TRUNC(I87*M87,4) -> 0 | T87: =IFERROR(SUMIF('QD 2 - Orçamento'!$C$18:$F$120,C87,'QD 2 - Orçamento'!$F$18:$F$120)/S87,"") ->  | V87: 2
B88: 2 | P88: Custo Total das Atividades | Q88: =SUM(Q84:Q87) -> 0 | T88: =IFERROR(SUMIF('QD 2 - Orçamento'!$C$18:$F$120,C88,'QD 2 - Orçamento'!$F$18:$F$120)/S88,"") ->  | V88: 2
B89: 2 | C89: E - Tempo Fixo | I89: Código | J89: Quantidade | K89: Unidade | N89: Preço Unitário | Q89: Custo Unitário | T89: =IFERROR(SUMIF('QD 2 - Orçamento'!$C$18:$F$120,C89,'QD 2 - Orçamento'!$F$18:$F$120)/S89,"") ->  | V89: 2
B90: 2 | C90: M2040 | D90: Massa termoplástica para aspersão - Caminhão carroceria de 5 t | I90: 5914655 | J90: 0.00308 | K90: t | N90: =VLOOKUP(I90,INSUMOS!$B$203:$E$235,4,0) -> 27.15 | Q90: =TRUNC(J90*N90,4) -> 0.0836 | T90: =IFERROR(SUMIF('QD 2 - Orçamento'!$C$18:$F$120,C90,'QD 2 - Orçamento'!$F$18:$F$120)/S90,"") ->  | V90: 2
B91: 2 | C91: M2038 | D91: Microesferas de vidro refletiva tipo II-A - Caminhão carroceria de 5 t | I91: 5914655 | J91: 0.0004 | K91: t | N91: =VLOOKUP(I91,INSUMOS!$B$203:$E$235,4,0) -> 27.15 | Q91: =TRUNC(J91*N91,4) -> 0.0108 | T91: =IFERROR(SUMIF('QD 2 - Orçamento'!$C$18:$F$120,C91,'QD 2 - Orçamento'!$F$18:$F$120)/S91,"") ->  | V91: 2
B92: 2 | T92: =IFERROR(SUMIF('QD 2 - Orçamento'!$C$18:$F$120,C92,'QD 2 - Orçamento'!$F$18:$F$120)/S92,"") ->  | V92: 2
B93: 2 | Q93: =TRUNC(J93*M93,4) -> 0 | T93: =IFERROR(SUMIF('QD 2 - Orçamento'!$C$18:$F$120,C93,'QD 2 - Orçamento'!$F$18:$F$120)/S93,"") ->  | V93: 2
B94: 2 | P94: Custo Total de Tempo Fixo | Q94: =SUM(Q90:Q93) -> 0.0944 | T94: =IFERROR(SUMIF('QD 2 - Orçamento'!$C$18:$F$120,C94,'QD 2 - Orçamento'!$F$18:$F$120)/S94,"") ->  | V94: 2
B95: 2 | C95: F - Momento de Transporte | I95: Quantidade | J95: Unidade | K95: DMT | N95: Preço Unitário | Q95: Custo Unitário | T95: =IFERROR(SUMIF('QD 2 - Orçamento'!$C$18:$F$120,C95,'QD 2 - Orçamento'!$F$18:$F$120)/S95,"") ->  | V95: 2
B96: 2 | K96: LN | L96: RP | M96: P | N96: LN | O96: RP | P96: P | T96: =IFERROR(SUMIF('QD 2 - Orçamento'!$C$18:$F$120,C96,'QD 2 - Orçamento'!$F$18:$F$120)/S96,"") ->  | V96: 2
B97: 2 | C97: M2040 | D97: Massa termoplástica para aspersão - Caminhão carroceria de 5 t | I97: 0.00308 | J97: tkm | M97: =TRUNC(VLOOKUP(R97,INSUMOS!$B$203:$E$235,4,0),4) -> 0.5 | P97: =DMTc ->  | Q97: =TRUNC(L97*O97,4)*I97+TRUNC(M97*P97,4)*I97+TRUNC(K97*N97,4)*I97 ->  | R97: 5914479 | T97: =IFERROR(SUMIF('QD 2 - Orçamento'!$C$18:$F$120,C97,'QD 2 - Orçamento'!$F$18:$F$120)/S97,"") ->  | V97: 2
B98: 2 | C98: M2038 | D98: Microesferas de vidro refletiva tipo II-A - Caminhão carroceria de 5 t | I98: 0.0004 | J98: tkm | M98: =TRUNC(VLOOKUP(R98,INSUMOS!$B$203:$E$235,4,0),4) -> 0.5 | P98: =DMTc ->  | Q98: =TRUNC(L98*O98,4)*I98+TRUNC(M98*P98,4)*I98+TRUNC(K98*N98,4)*I98 ->  | R98: 5914479 | T98: =IFERROR(SUMIF('QD 2 - Orçamento'!$C$18:$F$120,C98,'QD 2 - Orçamento'!$F$18:$F$120)/S98,"") ->  | V98: 2
B99: 2 | R99: 5914479 | T99: =IFERROR(SUMIF('QD 2 - Orçamento'!$C$18:$F$120,C99,'QD 2 - Orçamento'!$F$18:$F$120)/S99,"") ->  | V99: 2
B100: 2 | Q100: =TRUNC(L100*O100,4)*I100+TRUNC(M100*P100,4)*I100+TRUNC(K100*N100,4)*I100 -> 0 | T100: =IFERROR(SUMIF('QD 2 - Orçamento'!$C$18:$F$120,C100,'QD 2 - Orçamento'!$F$18:$F$120)/S100,"") ->  | V100: 2
B101: 2 | Q101: =TRUNC(L101*O101,4)*I101+TRUNC(M101*P101,4)*I101+TRUNC(K101*N101,4)*I101 -> 0 | T101: =IFERROR(SUMIF('QD 2 - Orçamento'!$C$18:$F$120,C101,'QD 2 - Orçamento'!$F$18:$F$120)/S101,"") ->  | V101: 2
B102: 2 | P102: Custo Total dos Transportes | Q102: =SUM(Q97:Q101) ->  | T102: =IFERROR(SUMIF('QD 2 - Orçamento'!$C$18:$F$120,C102,'QD 2 - Orçamento'!$F$18:$F$120)/S102,"") ->  | V102: 2
B103: 2 | N103: Custo Unitário Direto Total | Q103: =TRUNC((Q88+Q82+Q74+Q102+Q94+Q75+Q76),2) ->  | T103: =IFERROR(SUMIF('QD 2 - Orçamento'!$C$18:$F$120,C103,'QD 2 - Orçamento'!$F$18:$F$120)/S103,"") ->  | V103: 2
B104: 2 | M104: =CONCATENATE("Lucros e Despesas Indiretas","(",ROUND(W1,2),"%)") ->  | P104: =$W$1 ->  | Q104: =TRUNC(Q103*P104/100,2) ->  | T104: =IFERROR(SUMIF('QD 2 - Orçamento'!$C$18:$F$120,C104,'QD 2 - Orçamento'!$F$18:$F$120)/S104,"") ->  | V104: 2
B105: 2 | N105: Preço Unitário Total | Q105: =TRUNC(Q103+Q104,2) ->  | T105: =IFERROR(SUMIF('QD 2 - Orçamento'!$C$18:$F$120,C105,'QD 2 - Orçamento'!$F$18:$F$120)/S105,"") ->  | V105: 2
B106: 2 | C106: Observações : | T106: =IFERROR(SUMIF('QD 2 - Orçamento'!$C$18:$F$120,C106,'QD 2 - Orçamento'!$F$18:$F$120)/S106,"") ->  | V106: 2
B107: 2 | T107: =IFERROR(SUMIF('QD 2 - Orçamento'!$C$18:$F$120,C107,'QD 2 - Orçamento'!$F$18:$F$120)/S107,"") ->  | V107: 2
B108: 2 | T108: =IFERROR(SUMIF('QD 2 - Orçamento'!$C$18:$F$120,C108,'QD 2 - Orçamento'!$F$18:$F$120)/S108,"") ->  | V108: 2
B109: 2 | T109: =IFERROR(SUMIF('QD 2 - Orçamento'!$C$18:$F$120,C109,'QD 2 - Orçamento'!$F$18:$F$120)/S109,"") ->  | V109: 2
B110: 3 | C110: =C2 -> DNIT - SISTEMA DE CUSTOS REFERENCIAIS DE OBRAS - SICRO - SEM DESONERAÇÃO | K110: =K2 ->  | T110: =IFERROR(SUMIF('QD 2 - Orçamento'!$C$18:$F$120,C110,'QD 2 - Orçamento'!$F$18:$F$120)/S110,"") ->  | V110: 3
B111: 3 | C111: Custo Unitário de Referência | K111: =Premissa!$C$20 -> Mês/20XX | N111: Produção de Equipe: | P111: 163.23 | Q111: m² | T111: =IFERROR(SUMIF('QD 2 - Orçamento'!$C$18:$F$120,C111,'QD 2 - Orçamento'!$F$18:$F$120)/S111,"") ->  | V111: 3
B112: 3 | C112: 5213403 | D112: Pintura de faixa com tinta acrílica emulsionada em água - espessura de 0,5 mm | Q112: (Valores em R$) | R112: =Q159 ->  | S112: =P111 -> 163.23 | T112: =IFERROR(SUMIF('QD 2 - Orçamento'!$C$18:$F$120,C112,'QD 2 - Orçamento'!$F$18:$F$120)/S112,"") -> 0 | V112: 3
B113: 3 | C113: A - Equipamentos | I113: Quantidade | K113: Utilização | N113: Custo Operacional | Q113: Custo Horário | T113: =IFERROR(SUMIF('QD 2 - Orçamento'!$C$18:$F$120,C113,'QD 2 - Orçamento'!$F$18:$F$120)/S113,"") ->  | V113: 3 | BF113: =IF(BF$2=$C116,$I116*$K116*$T112,0)+IF(BF$2=$C117,$I117*$K117*$T112,0)+IF(BF$2=$C118,$I118*$K118*$T112,0)+IF(BF$2=$C115,$I115*$K115*$T112,0) -> 0 | BG113: 0 | BH113: 0 | BI113: 0 | BJ113: 0 | BK113: 0 | BL113: 0 | BM113: 0 | BN113: 0 | BO113: 0 | BP113: 0 | BQ113: 0 | BR113: 0 | BS113: 0 | BT113: 0 | BU113: 0 | BV113: 0 | BW113: 0 | BX113: 0 | BY113: 0
B114: 3 | K114: Operativa | L114: Improdutiva | N114: Operativa | O114: Improdutiva | T114: =IFERROR(SUMIF('QD 2 - Orçamento'!$C$18:$F$120,C114,'QD 2 - Orçamento'!$F$18:$F$120)/S114,"") ->  | V114: 3
B115: 3 | C115: E9644 | D115: =VLOOKUP(C115,INSUMOS!$B$8:$F$44,2,0) -> Caminhão demarcador de faixas com sistema de pintura a frio - 28 kW/115 kW | I115: 1 | K115: 1 | L115: 0 | N115: =VLOOKUP(C115,INSUMOS!$B$8:$F$50,4,0) -> 308,8644 | O115: =VLOOKUP(C115,INSUMOS!$B$8:$F$50,5,0) -> 141,5414 | Q115: =TRUNC((I115*((K115*N115)+(L115*O115))),4) -> 308.8644 | T115: =IFERROR(SUMIF('QD 2 - Orçamento'!$C$18:$F$120,C115,'QD 2 - Orçamento'!$F$18:$F$120)/S115,"") ->  | V115: 3
B116: =IF(LEFT(C115,7)=$C$1,B115+1,B115) -> 3 | T116: =IFERROR(SUMIF('QD 2 - Orçamento'!$C$18:$F$120,C116,'QD 2 - Orçamento'!$F$18:$F$120)/S116,"") ->  | V116: 3
B117: 3 | Q117: =TRUNC((I117*((K117*N117)+(L117*O117))),4) -> 0 | T117: =IFERROR(SUMIF('QD 2 - Orçamento'!$C$18:$F$120,C117,'QD 2 - Orçamento'!$F$18:$F$120)/S117,"") ->  | V117: 3
B118: 3 | Q118: =TRUNC((I118*((K118*N118)+(L118*O118))),4) -> 0 | T118: =IFERROR(SUMIF('QD 2 - Orçamento'!$C$18:$F$120,C118,'QD 2 - Orçamento'!$F$18:$F$120)/S118,"") ->  | V118: 3
B119: 3 | T119: =IFERROR(SUMIF('QD 2 - Orçamento'!$C$18:$F$120,C119,'QD 2 - Orçamento'!$F$18:$F$120)/S119,"") ->  | V119: 3
B120: 3 | N120: Custo Horário de Equipamento | Q120: =SUM(Q115:Q119) -> 308.8644 | T120: =IFERROR(SUMIF('QD 2 - Orçamento'!$C$18:$F$120,C120,'QD 2 - Orçamento'!$F$18:$F$120)/S120,"") ->  | V120: 3
B121: 3 | C121: B - Mão-deObra | I121: Quantidade | J121: Unidade | N121: Salário-Hora | Q121: Custo Horário | T121: =IFERROR(SUMIF('QD 2 - Orçamento'!$C$18:$F$120,C121,'QD 2 - Orçamento'!$F$18:$F$120)/S121,"") ->  | V121: 3 | AB121: =IF(AB$2=$C123,$I123*$T112,0)+IF(AB$2=$C124,$I124*$T112,0)+IF(AB$2=$C125,$I125*$T112,0)+IF(AB$2=$C122,$I122*$T112,0) -> 0 | AC121: 0 | AD121: 0 | AE121: 0 | AF121: 0 | AG121: 0 | AH121: 0 | AI121: 0 | AJ121: 0 | AK121: 0 | AL121: 0 | AM121: 0 | AN121: 0 | AO121: 0 | AP121: 0 | AQ121: 0 | AR121: 0 | AS121: 0 | AT121: 0 | AU121: 0 | AV121: 0 | AW121: 0 | AX121: 0 | AY121: 0 | AZ121: 0 | BA121: 0 | BB121: 0 | BC121: 0
B122: 3 | C122: P9853 | D122: =VLOOKUP(C122,INSUMOS!$B$53:$E$88,2,0) -> Pré-marcador | I122: 1 | J122: h | N122: =VLOOKUP(C122,INSUMOS!$B$53:$E$88,4,0) -> 22.6427 | Q122: =TRUNC(I122*N122,4) -> 22.6427 | T122: =IFERROR(SUMIF('QD 2 - Orçamento'!$C$18:$F$120,C122,'QD 2 - Orçamento'!$F$18:$F$120)/S122,"") ->  | V122: 3
B123: 3 | C123: P9824 | D123: =VLOOKUP(C123,INSUMOS!$B$53:$E$88,2,0) -> Servente | I123: 4 | J123: h | N123: =VLOOKUP(C123,INSUMOS!$B$53:$E$88,4,0) -> 22.6411 | Q123: =TRUNC(I123*N123,4) -> 90.5644 | T123: =IFERROR(SUMIF('QD 2 - Orçamento'!$C$18:$F$120,C123,'QD 2 - Orçamento'!$F$18:$F$120)/S123,"") ->  | V123: 3
B124: 3 | Q124: =TRUNC(I124*N124,4) -> 0 | T124: =IFERROR(SUMIF('QD 2 - Orçamento'!$C$18:$F$120,C124,'QD 2 - Orçamento'!$F$18:$F$120)/S124,"") ->  | V124: 3
B125: 3 | Q125: =TRUNC(I125*N125,4) -> 0 | T125: =IFERROR(SUMIF('QD 2 - Orçamento'!$C$18:$F$120,C125,'QD 2 - Orçamento'!$F$18:$F$120)/S125,"") ->  | V125: 3
B126: 3 | N126: Custo Horário total de Mão-de-Obra | Q126: =SUM(Q122:Q125) -> 113.2071 | T126: =IFERROR(SUMIF('QD 2 - Orçamento'!$C$18:$F$120,C126,'QD 2 - Orçamento'!$F$18:$F$120)/S126,"") ->  | V126: 3
B127: 3 | N127: Custo Horário de Execução | Q127: =+Q126+Q120 -> 422.0715 | T127: =IFERROR(SUMIF('QD 2 - Orçamento'!$C$18:$F$120,C127,'QD 2 - Orçamento'!$F$18:$F$120)/S127,"") ->  | V127: 3
B128: 3 | N128: Custo Unitário de Execução | Q128: =TRUNC(Q127/P111,4) -> 2.5857 | T128: =IFERROR(SUMIF('QD 2 - Orçamento'!$C$18:$F$120,C128,'QD 2 - Orçamento'!$F$18:$F$120)/S128,"") ->  | V128: 3
B129: 3 | O129: Custo FIC | P129: =[16]INSUMOS!$E$257 -> 0.01382 | Q129: =TRUNC(Q128*P129,4) -> 0.0357 | T129: =IFERROR(SUMIF('QD 2 - Orçamento'!$C$18:$F$120,C129,'QD 2 - Orçamento'!$F$18:$F$120)/S129,"") ->  | V129: 3
B130: =IF(LEFT(C130,7)=$C$1,B129+1,B129) -> 3 | O130: Custo FIT | P130: ='QD 9 - FIT'!M72 ->  | Q130: =TRUNC(Q128*P130,4) ->  | T130: =IFERROR(SUMIF('QD 2 - Orçamento'!$C$18:$F$120,C130,'QD 2 - Orçamento'!$F$18:$F$120)/S130,"") ->  | V130: 3
B131: 3 | C131: C - Material | I131: Quantidade | J131: Unidade | N131: Preço Unitário | Q131: Custo Unitário | T131: =IFERROR(SUMIF('QD 2 - Orçamento'!$C$18:$F$120,C131,'QD 2 - Orçamento'!$F$18:$F$120)/S131,"") ->  | V131: =B131 -> 3
B132: 3 | C132: M2037 | D132: =VLOOKUP(C132,INSUMOS!$B$96:$E$197,2,0) -> Microesferas refletivas de vidro tipo I-B | I132: 0.1 | J132: kg | N132: =IF(I132>0,(VLOOKUP(C132,INSUMOS!$B$96:$E$197,4,0))) -> 7.5225 | Q132: =TRUNC(I132*N132,4) -> 0.7522 | T132: =IFERROR(SUMIF('QD 2 - Orçamento'!$C$18:$F$120,C132,'QD 2 - Orçamento'!$F$18:$F$120)/S132,"") ->  | V132: 3
B133: 3 | C133: M2038 | D133: =VLOOKUP(C133,INSUMOS!$B$96:$E$197,2,0) -> Microesferas refletivas de vidro tipo II-A | I133: 0.35 | J133: kg | N133: =IF(I133>0,(VLOOKUP(C133,INSUMOS!$B$96:$E$197,4,0))) -> 7.5225 | Q133: =TRUNC(I133*N133,4) -> 2.6328 | T133: =IFERROR(SUMIF('QD 2 - Orçamento'!$C$18:$F$120,C133,'QD 2 - Orçamento'!$F$18:$F$120)/S133,"") ->  | V133: 3
B134: 3 | C134: M2036 | D134: =VLOOKUP(C134,INSUMOS!$B$96:$E$197,2,0) -> Tinta à base de resina acrílica emulsionada em água para demarcação viária | I134: 0.5 | J134: l | N134: =IF(I134>0,(VLOOKUP(C134,INSUMOS!$B$96:$E$197,4,0))) -> 21.2653 | Q134: =TRUNC(I134*N134,4) -> 10.6326 | T134: =IFERROR(SUMIF('QD 2 - Orçamento'!$C$18:$F$120,C134,'QD 2 - Orçamento'!$F$18:$F$120)/S134,"") ->  | V134: 3
B135: 3 | C135: M2044 | D135: =VLOOKUP(C135,INSUMOS!$B$96:$E$197,2,0) -> Tinta à base de resina acrílica emulsionada em água para pré-marcação viária | I135: 0.00097 | J135: l | N135: =IF(I135>0,(VLOOKUP(C135,INSUMOS!$B$96:$E$197,4,0))) -> 21.2653 | Q135: =TRUNC(I135*N135,4) -> 0.0206 | T135: =IFERROR(SUMIF('QD 2 - Orçamento'!$C$18:$F$120,C135,'QD 2 - Orçamento'!$F$18:$F$120)/S135,"") ->  | V135: 3
B136: 3 | P136: Custo Total de Material | Q136: =SUM(Q132:Q135) -> 14.0382 | T136: =IFERROR(SUMIF('QD 2 - Orçamento'!$C$18:$F$120,C136,'QD 2 - Orçamento'!$F$18:$F$120)/S136,"") ->  | V136: 3
B137: 3 | C137: D - Atividades Auxiliares | I137: Quantidade | J137: Unidade | N137: Preço Unitário | Q137: Custo Unitário | T137: =IFERROR(SUMIF('QD 2 - Orçamento'!$C$18:$F$120,C137,'QD 2 - Orçamento'!$F$18:$F$120)/S137,"") ->  | V137: 3
B138: 3 | Q138: =TRUNC(I138*M138,4) -> 0 | T138: =IFERROR(SUMIF('QD 2 - Orçamento'!$C$18:$F$120,C138,'QD 2 - Orçamento'!$F$18:$F$120)/S138,"") ->  | V138: 3
B139: 3 | Q139: =TRUNC(I139*M139,4) -> 0 | T139: =IFERROR(SUMIF('QD 2 - Orçamento'!$C$18:$F$120,C139,'QD 2 - Orçamento'!$F$18:$F$120)/S139,"") ->  | V139: 3
B140: 3 | Q140: =TRUNC(I140*M140,4) -> 0 | T140: =IFERROR(SUMIF('QD 2 - Orçamento'!$C$18:$F$120,C140,'QD 2 - Orçamento'!$F$18:$F$120)/S140,"") ->  | V140: 3
B141: 3 | Q141: =TRUNC(I141*M141,4) -> 0 | T141: =IFERROR(SUMIF('QD 2 - Orçamento'!$C$18:$F$120,C141,'QD 2 - Orçamento'!$F$18:$F$120)/S141,"") ->  | V141: 3
B142: 3 | P142: Custo Total das Atividades | Q142: =SUM(Q138:Q141) -> 0 | T142: =IFERROR(SUMIF('QD 2 - Orçamento'!$C$18:$F$120,C142,'QD 2 - Orçamento'!$F$18:$F$120)/S142,"") ->  | V142: 3
B143: 3 | C143: E - Tempo Fixo | I143: Código | J143: Quantidade | K143: Unidade | N143: Preço Unitário | Q143: Custo Unitário | T143: =IFERROR(SUMIF('QD 2 - Orçamento'!$C$18:$F$120,C143,'QD 2 - Orçamento'!$F$18:$F$120)/S143,"") ->  | V143: 3
B144: 3 | C144: M2037 | D144: Microesferas de vidro refletiva tipo I-B - Caminhão carroceria de 5 t | I144: 5914655 | J144: 0.0001 | K144: t | N144: =VLOOKUP(I144,INSUMOS!$B$203:$E$235,4,0) -> 27.15 | Q144: =TRUNC(J144*N144,4) -> 0.0027 | T144: =IFERROR(SUMIF('QD 2 - Orçamento'!$C$18:$F$120,C144,'QD 2 - Orçamento'!$F$18:$F$120)/S144,"") ->  | V144: 3
B145: 3 | C145: M2038 | D145: Microesferas de vidro refletiva tipo II-A - Caminhão carroceria de 5 t | I145: 5914655 | J145: 0.00035 | K145: t | N145: =VLOOKUP(I145,INSUMOS!$B$203:$E$235,4,0) -> 27.15 | Q145: =TRUNC(J145*N145,4) -> 0.0095 | T145: =IFERROR(SUMIF('QD 2 - Orçamento'!$C$18:$F$120,C145,'QD 2 - Orçamento'!$F$18:$F$120)/S145,"") ->  | V145: 3
B146: 3 | C146: M2036 | D146: Tinta à base de resina acrílica emulsão em água - Caminhão carroceria de 5 t | I146: 5914655 | J146: 0.0008 | K146: t | N146: =VLOOKUP(I146,INSUMOS!$B$203:$E$235,4,0) -> 27.15 | Q146: =TRUNC(J146*N146,4) -> 0.0217 | T146: =IFERROR(SUMIF('QD 2 - Orçamento'!$C$18:$F$120,C146,'QD 2 - Orçamento'!$F$18:$F$120)/S146,"") ->  | V146: 3
B147: 3 | T147: =IFERROR(SUMIF('QD 2 - Orçamento'!$C$18:$F$120,C147,'QD 2 - Orçamento'!$F$18:$F$120)/S147,"") ->  | V147: 3
B148: 3 | P148: Custo Total de Tempo Fixo | Q148: =SUM(Q144:Q147) -> 0.0339 | T148: =IFERROR(SUMIF('QD 2 - Orçamento'!$C$18:$F$120,C148,'QD 2 - Orçamento'!$F$18:$F$120)/S148,"") ->  | V148: 3
B149: 3 | C149: F - Momento de Transporte | I149: Quantidade | J149: Unidade | K149: DMT | N149: Preço Unitário | Q149: Custo Unitário | T149: =IFERROR(SUMIF('QD 2 - Orçamento'!$C$18:$F$120,C149,'QD 2 - Orçamento'!$F$18:$F$120)/S149,"") ->  | V149: 3
B150: 3 | K150: LN | L150: RP | M150: P | N150: LN | O150: RP | P150: P | T150: =IFERROR(SUMIF('QD 2 - Orçamento'!$C$18:$F$120,C150,'QD 2 - Orçamento'!$F$18:$F$120)/S150,"") ->  | V150: 3
B151: 3 | C151: M2037 | D151: Microesferas de vidro refletiva tipo I-B - Caminhão carroceria de 5 t | I151: 0.0001 | J151: tkm | M151: =TRUNC(VLOOKUP(R151,INSUMOS!$B$203:$E$235,4,0),4) -> 0.5 | P151: =DMTc ->  | Q151: =TRUNC(L151*O151,4)*I151+TRUNC(M151*P151,4)*I151+TRUNC(K151*N151,4)*I151 ->  | R151: 5914479 | T151: =IFERROR(SUMIF('QD 2 - Orçamento'!$C$18:$F$120,C151,'QD 2 - Orçamento'!$F$18:$F$120)/S151,"") ->  | V151: 3
B152: 3 | C152: M2038 | D152: Microesferas de vidro refletiva tipo II-A - Caminhão carroceria de 5 t | I152: 0.00035 | J152: tkm | M152: =TRUNC(VLOOKUP(R152,INSUMOS!$B$203:$E$235,4,0),4) -> 0.5 | P152: =DMTc ->  | Q152: =TRUNC(L152*O152,4)*I152+TRUNC(M152*P152,4)*I152+TRUNC(K152*N152,4)*I152 ->  | R152: 5914479 | T152: =IFERROR(SUMIF('QD 2 - Orçamento'!$C$18:$F$120,C152,'QD 2 - Orçamento'!$F$18:$F$120)/S152,"") ->  | V152: 3
B153: 3 | C153: M2036 | D153: Tinta à base de resina acrílica emulsão em água - Caminhão carroceria de 5 t | I153: 0.0008 | J153: tkm | M153: =TRUNC(VLOOKUP(R153,INSUMOS!$B$203:$E$235,4,0),4) -> 0.5 | P153: =DMTc ->  | Q153: =TRUNC(L153*O153,4)*I153+TRUNC(M153*P153,4)*I153+TRUNC(K153*N153,4)*I153 ->  | R153: 5914479 | T153: =IFERROR(SUMIF('QD 2 - Orçamento'!$C$18:$F$120,C153,'QD 2 - Orçamento'!$F$18:$F$120)/S153,"") ->  | V153: 3
B154: 3 | R154: 5914479 | T154: =IFERROR(SUMIF('QD 2 - Orçamento'!$C$18:$F$120,C154,'QD 2 - Orçamento'!$F$18:$F$120)/S154,"") ->  | V154: 3
B155: 3 | Q155: =TRUNC(L155*O155,4)*I155+TRUNC(M155*P155,4)*I155+TRUNC(K155*N155,4)*I155 -> 0 | T155: =IFERROR(SUMIF('QD 2 - Orçamento'!$C$18:$F$120,C155,'QD 2 - Orçamento'!$F$18:$F$120)/S155,"") ->  | V155: 3
B156: 3 | P156: Custo Total dos Transportes | Q156: =SUM(Q151:Q155) ->  | T156: =IFERROR(SUMIF('QD 2 - Orçamento'!$C$18:$F$120,C156,'QD 2 - Orçamento'!$F$18:$F$120)/S156,"") ->  | V156: 3
B157: 3 | N157: Custo Unitário Direto Total | Q157: =TRUNC((Q142+Q136+Q128+Q156+Q148+Q129+Q130),2) ->  | R157: =Q157-Q156-Q130 ->  | T157: =IFERROR(SUMIF('QD 2 - Orçamento'!$C$18:$F$120,C157,'QD 2 - Orçamento'!$F$18:$F$120)/S157,"") ->  | V157: 3
B158: 3 | M158: =CONCATENATE("Lucros e Despesas Indiretas","(",ROUND(W1,2),"%)") ->  | P158: =$W$1 ->  | Q158: =TRUNC(Q157*P158/100,2) ->  | T158: =IFERROR(SUMIF('QD 2 - Orçamento'!$C$18:$F$120,C158,'QD 2 - Orçamento'!$F$18:$F$120)/S158,"") ->  | V158: 3
B159: 3 | N159: Preço Unitário Total | Q159: =TRUNC(Q157+Q158,2) ->  | T159: =IFERROR(SUMIF('QD 2 - Orçamento'!$C$18:$F$120,C159,'QD 2 - Orçamento'!$F$18:$F$120)/S159,"") ->  | V159: 3
B160: 3 | C160: Observações : | T160: =IFERROR(SUMIF('QD 2 - Orçamento'!$C$18:$F$120,C160,'QD 2 - Orçamento'!$F$18:$F$120)/S160,"") ->  | V160: 3
B161: 3 | T161: =IFERROR(SUMIF('QD 2 - Orçamento'!$C$18:$F$120,C161,'QD 2 - Orçamento'!$F$18:$F$120)/S161,"") ->  | V161: 3
B162: 3 | T162: =IFERROR(SUMIF('QD 2 - Orçamento'!$C$18:$F$120,C162,'QD 2 - Orçamento'!$F$18:$F$120)/S162,"") ->  | V162: 3
B163: 3 | T163: =IFERROR(SUMIF('QD 2 - Orçamento'!$C$18:$F$120,C163,'QD 2 - Orçamento'!$F$18:$F$120)/S163,"") ->  | V163: 3
B164: 4 | C164: =C2 -> DNIT - SISTEMA DE CUSTOS REFERENCIAIS DE OBRAS - SICRO - SEM DESONERAÇÃO | K164: =K2 ->  | T164: =IFERROR(SUMIF('QD 2 - Orçamento'!$C$18:$F$120,C164,'QD 2 - Orçamento'!$F$18:$F$120)/S164,"") ->  | V164: 4
B165: 4 | C165: Custo Unitário de Referência | K165: =Premissa!$C$20 -> Mês/20XX | N165: Produção de Equipe: | P165: 177.07 | Q165: m² | T165: =IFERROR(SUMIF('QD 2 - Orçamento'!$C$18:$F$120,C165,'QD 2 - Orçamento'!$F$18:$F$120)/S165,"") ->  | V165: 4
B166: 4 | C166: 5213402 | D166: Pintura de faixa com tinta acrílica emulsionada em água - espessura de 0,4 mm | Q166: (Valores em R$) | R166: =Q213 ->  | S166: =P165 -> 177.07 | T166: =IFERROR(SUMIF('QD 2 - Orçamento'!$C$18:$F$120,C166,'QD 2 - Orçamento'!$F$18:$F$120)/S166,"") -> 0 | V166: 4
B167: 4 | C167: A - Equipamentos | I167: Quantidade | K167: Utilização | N167: Custo Operacional | Q167: Custo Horário | T167: =IFERROR(SUMIF('QD 2 - Orçamento'!$C$18:$F$120,C167,'QD 2 - Orçamento'!$F$18:$F$120)/S167,"") ->  | V167: 4 | BF167: =IF(BF$2=$C170,$I170*$K170*$T166,0)+IF(BF$2=$C171,$I171*$K171*$T166,0)+IF(BF$2=$C172,$I172*$K172*$T166,0)+IF(BF$2=$C169,$I169*$K169*$T166,0) -> 0 | BG167: 0 | BH167: 0 | BI167: 0 | BJ167: 0 | BK167: 0 | BL167: 0 | BM167: 0 | BN167: 0 | BO167: 0 | BP167: 0 | BQ167: 0 | BR167: 0 | BS167: 0 | BT167: 0 | BU167: 0 | BV167: 0 | BW167: 0 | BX167: 0 | BY167: 0
B168: 4 | K168: Operativa | L168: Improdutiva | N168: Operativa | O168: Improdutiva | T168: =IFERROR(SUMIF('QD 2 - Orçamento'!$C$18:$F$120,C168,'QD 2 - Orçamento'!$F$18:$F$120)/S168,"") ->  | V168: 4
B169: 4 | C169: E9644 | D169: =VLOOKUP(C169,INSUMOS!$B$8:$F$44,2,0) -> Caminhão demarcador de faixas com sistema de pintura a frio - 28 kW/115 kW | I169: 1 | K169: 1 | L169: 0 | N169: =VLOOKUP(C169,INSUMOS!$B$8:$F$50,4,0) -> 308,8644 | O169: =VLOOKUP(C169,INSUMOS!$B$8:$F$50,5,0) -> 141,5414 | Q169: =TRUNC((I169*((K169*N169)+(L169*O169))),4) -> 308.8644 | T169: =IFERROR(SUMIF('QD 2 - Orçamento'!$C$18:$F$120,C169,'QD 2 - Orçamento'!$F$18:$F$120)/S169,"") ->  | V169: 4
B170: =IF(LEFT(C169,7)=$C$1,B169+1,B169) -> 4 | T170: =IFERROR(SUMIF('QD 2 - Orçamento'!$C$18:$F$120,C170,'QD 2 - Orçamento'!$F$18:$F$120)/S170,"") ->  | V170: 4
B171: 4 | Q171: =TRUNC((I171*((K171*N171)+(L171*O171))),4) -> 0 | T171: =IFERROR(SUMIF('QD 2 - Orçamento'!$C$18:$F$120,C171,'QD 2 - Orçamento'!$F$18:$F$120)/S171,"") ->  | V171: 4
B172: 4 | Q172: =TRUNC((I172*((K172*N172)+(L172*O172))),4) -> 0 | T172: =IFERROR(SUMIF('QD 2 - Orçamento'!$C$18:$F$120,C172,'QD 2 - Orçamento'!$F$18:$F$120)/S172,"") ->  | V172: 4
B173: 4 | T173: =IFERROR(SUMIF('QD 2 - Orçamento'!$C$18:$F$120,C173,'QD 2 - Orçamento'!$F$18:$F$120)/S173,"") ->  | V173: 4
B174: 4 | N174: Custo Horário de Equipamento | Q174: =SUM(Q169:Q173) -> 308.8644 | T174: =IFERROR(SUMIF('QD 2 - Orçamento'!$C$18:$F$120,C174,'QD 2 - Orçamento'!$F$18:$F$120)/S174,"") ->  | V174: 4
B175: 4 | C175: B - Mão-deObra | I175: Quantidade | J175: Unidade | N175: Salário-Hora | Q175: Custo Horário | T175: =IFERROR(SUMIF('QD 2 - Orçamento'!$C$18:$F$120,C175,'QD 2 - Orçamento'!$F$18:$F$120)/S175,"") ->  | V175: 4 | AB175: =IF(AB$2=$C177,$I177*$T166,0)+IF(AB$2=$C178,$I178*$T166,0)+IF(AB$2=$C179,$I179*$T166,0)+IF(AB$2=$C176,$I176*$T166,0) -> 0 | AC175: 0 | AD175: 0 | AE175: 0 | AF175: 0 | AG175: 0 | AH175: 0 | AI175: 0 | AJ175: 0 | AK175: 0 | AL175: 0 | AM175: 0 | AN175: 0 | AO175: 0 | AP175: 0 | AQ175: 0 | AR175: 0 | AS175: 0 | AT175: 0 | AU175: 0 | AV175: 0 | AW175: 0 | AX175: 0 | AY175: 0 | AZ175: 0 | BA175: 0 | BB175: 0 | BC175: 0
B176: 4 | C176: P9853 | D176: Pré-marcador | I176: 1 | J176: h | N176: =VLOOKUP(C176,INSUMOS!$B$53:$E$88,4,0) -> 22.6427 | Q176: =TRUNC(I176*N176,4) -> 22.6427 | T176: =IFERROR(SUMIF('QD 2 - Orçamento'!$C$18:$F$120,C176,'QD 2 - Orçamento'!$F$18:$F$120)/S176,"") ->  | V176: 4
B177: 4 | C177: P9824 | D177: Servente | I177: 4 | J177: h | N177: =VLOOKUP(C177,INSUMOS!$B$53:$E$88,4,0) -> 22.6411 | Q177: =TRUNC(I177*N177,4) -> 90.5644 | T177: =IFERROR(SUMIF('QD 2 - Orçamento'!$C$18:$F$120,C177,'QD 2 - Orçamento'!$F$18:$F$120)/S177,"") ->  | V177: 4
B178: 4 | Q178: =TRUNC(I178*N178,4) -> 0 | T178: =IFERROR(SUMIF('QD 2 - Orçamento'!$C$18:$F$120,C178,'QD 2 - Orçamento'!$F$18:$F$120)/S178,"") ->  | V178: 4
B179: 4 | N179: Custo Horário total de Mão-de-Obra | Q179: =SUM(Q176:Q178) -> 113.2071 | T179: =IFERROR(SUMIF('QD 2 - Orçamento'!$C$18:$F$120,C179,'QD 2 - Orçamento'!$F$18:$F$120)/S179,"") ->  | V179: 4
B180: 4 | N180: Custo Horário de Execução | Q180: =+Q179+Q174 -> 422.0715 | T180: =IFERROR(SUMIF('QD 2 - Orçamento'!$C$18:$F$120,C180,'QD 2 - Orçamento'!$F$18:$F$120)/S180,"") ->  | V180: 4
B181: 4 | N181: Custo Unitário de Execução | Q181: =TRUNC(Q180/P165,4) -> 2.3836 | T181: =IFERROR(SUMIF('QD 2 - Orçamento'!$C$18:$F$120,C181,'QD 2 - Orçamento'!$F$18:$F$120)/S181,"") ->  | V181: 4
B182: 4 | O182: Custo FIC | P182: =[16]INSUMOS!$E$257 -> 0.01382 | Q182: =TRUNC(Q181*P182,4) -> 0.0329 | T182: =IFERROR(SUMIF('QD 2 - Orçamento'!$C$18:$F$120,C182,'QD 2 - Orçamento'!$F$18:$F$120)/S182,"") ->  | V182: 4
B183: 4 | O183: Custo FIT | P183: ='QD 9 - FIT'!M72 ->  | Q183: =TRUNC(Q181*P183,4) ->  | T183: =IFERROR(SUMIF('QD 2 - Orçamento'!$C$18:$F$120,C183,'QD 2 - Orçamento'!$F$18:$F$120)/S183,"") ->  | V183: 4
B184: 4 | C184: C - Material | I184: Quantidade | J184: Unidade | N184: Preço Unitário | Q184: Custo Unitário | T184: =IFERROR(SUMIF('QD 2 - Orçamento'!$C$18:$F$120,C184,'QD 2 - Orçamento'!$F$18:$F$120)/S184,"") ->  | V184: 4
B185: 4 | C185: M2037 | D185: Microesferas de vidro refletiva tipo I-B | I185: 0.08 | J185: kg | N185: =IF(I185>0,(VLOOKUP(C185,INSUMOS!$B$96:$E$197,4,0))) -> 7.5225 | Q185: =TRUNC(I185*N185,4) -> 0.6018 | T185: =IFERROR(SUMIF('QD 2 - Orçamento'!$C$18:$F$120,C185,'QD 2 - Orçamento'!$F$18:$F$120)/S185,"") ->  | V185: 4
B186: 4 | C186: M2038 | D186: Microesferas de vidro refletiva tipo II-A | I186: 0.35 | J186: kg | N186: =IF(I186>0,(VLOOKUP(C186,INSUMOS!$B$96:$E$197,4,0))) -> 7.5225 | Q186: =TRUNC(I186*N186,4) -> 2.6328 | T186: =IFERROR(SUMIF('QD 2 - Orçamento'!$C$18:$F$120,C186,'QD 2 - Orçamento'!$F$18:$F$120)/S186,"") ->  | V186: 4
B187: 4 | C187: M2036 | D187: =IF(I187>0,(VLOOKUP(C187,INSUMOS!$B$96:$E$197,2,0))) -> Tinta à base de resina acrílica emulsionada em água para demarcação viária | I187: 0.4 | J187: l | N187: =IF(I187>0,(VLOOKUP(C187,INSUMOS!$B$96:$E$197,4,0))) -> 21.2653 | Q187: =TRUNC(I187*N187,4) -> 8.5061 | T187: =IFERROR(SUMIF('QD 2 - Orçamento'!$C$18:$F$120,C187,'QD 2 - Orçamento'!$F$18:$F$120)/S187,"") ->  | V187: 4
B188: 4 | C188: M2044 | D188: Tinta para pré-marcação | I188: 0.00097 | J188: l | N188: =IF(I188>0,(VLOOKUP(C188,INSUMOS!$B$96:$E$197,4,0))) -> 21.2653 | Q188: =TRUNC(I188*N188,4) -> 0.0206 | T188: =IFERROR(SUMIF('QD 2 - Orçamento'!$C$18:$F$120,C188,'QD 2 - Orçamento'!$F$18:$F$120)/S188,"") ->  | V188: 4
B189: 4 | Q189: =TRUNC(I189*N189,4) -> 0 | T189: =IFERROR(SUMIF('QD 2 - Orçamento'!$C$18:$F$120,C189,'QD 2 - Orçamento'!$F$18:$F$120)/S189,"") ->  | V189: 4
B190: 4 | P190: Custo Total de Material | Q190: =SUM(Q185:Q189) -> 11.7613 | T190: =IFERROR(SUMIF('QD 2 - Orçamento'!$C$18:$F$120,C190,'QD 2 - Orçamento'!$F$18:$F$120)/S190,"") ->  | V190: 4
B191: 4 | C191: D - Atividades Auxiliares | I191: Quantidade | J191: Unidade | N191: Preço Unitário | Q191: Custo Unitário | T191: =IFERROR(SUMIF('QD 2 - Orçamento'!$C$18:$F$120,C191,'QD 2 - Orçamento'!$F$18:$F$120)/S191,"") ->  | V191: 4
B192: 4 | Q192: =TRUNC(I192*M192,4) -> 0 | T192: =IFERROR(SUMIF('QD 2 - Orçamento'!$C$18:$F$120,C192,'QD 2 - Orçamento'!$F$18:$F$120)/S192,"") ->  | V192: 4
B193: 4 | Q193: =TRUNC(I193*M193,4) -> 0 | T193: =IFERROR(SUMIF('QD 2 - Orçamento'!$C$18:$F$120,C193,'QD 2 - Orçamento'!$F$18:$F$120)/S193,"") ->  | V193: 4
B194: =IF(LEFT(C194,7)=$C$1,B193+1,B193) -> 4 | P194: Custo Total das Atividades | Q194: =SUM(Q192:Q193) -> 0 | T194: =IFERROR(SUMIF('QD 2 - Orçamento'!$C$18:$F$120,C194,'QD 2 - Orçamento'!$F$18:$F$120)/S194,"") ->  | V194: 4
B195: 4 | C195: E - Tempo Fixo | I195: Código | J195: Quantidade | K195: Unidade | N195: Preço Unitário | Q195: Custo Unitário | T195: =IFERROR(SUMIF('QD 2 - Orçamento'!$C$18:$F$120,C195,'QD 2 - Orçamento'!$F$18:$F$120)/S195,"") ->  | V195: =B195 -> 4
B196: 4 | C196: M2037 | D196: Microesferas de vidro refletiva tipo I-B - Caminhão carroceria de 5 t | I196: 5915474 | J196: 8e-05 | K196: t | N196: =VLOOKUP(I196,INSUMOS!$B$203:$E$235,4,0) -> 25.45 | Q196: =TRUNC(J196*N196,4) -> 0.002 | T196: =IFERROR(SUMIF('QD 2 - Orçamento'!$C$18:$F$120,C196,'QD 2 - Orçamento'!$F$18:$F$120)/S196,"") ->  | V196: 4
B197: 4 | C197: M2038 | D197: Microesferas de vidro refletiva tipo II-A - Caminhão carroceria de 5 t | I197: 5915474 | J197: 0.00035 | K197: t | N197: =VLOOKUP(I197,INSUMOS!$B$203:$E$235,4,0) -> 25.45 | Q197: =TRUNC(J197*N197,4) -> 0.0089 | T197: =IFERROR(SUMIF('QD 2 - Orçamento'!$C$18:$F$120,C197,'QD 2 - Orçamento'!$F$18:$F$120)/S197,"") ->  | V197: 4
B198: 4 | C198: M2036 | D198: Solvente para tinta à base de resina acrílica - Caminhão carroceria de 5 t | I198: 5915474 | J198: 0.00064 | K198: t | N198: =VLOOKUP(I198,INSUMOS!$B$203:$E$235,4,0) -> 25.45 | Q198: =TRUNC(J198*N198,4) -> 0.0162 | T198: =IFERROR(SUMIF('QD 2 - Orçamento'!$C$18:$F$120,C198,'QD 2 - Orçamento'!$F$18:$F$120)/S198,"") ->  | V198: 4
B199: 4 | T199: =IFERROR(SUMIF('QD 2 - Orçamento'!$C$18:$F$120,C199,'QD 2 - Orçamento'!$F$18:$F$120)/S199,"") ->  | V199: 4
B200: 4 | Q200: =TRUNC(J200*N200,4) -> 0 | T200: =IFERROR(SUMIF('QD 2 - Orçamento'!$C$18:$F$120,C200,'QD 2 - Orçamento'!$F$18:$F$120)/S200,"") ->  | V200: 4
... 2050 more rows

Sheet QD 3 - Cronograma
P2: ='QD 5 - Canteiro'!$S$2 -> LOTE XX
P4: QUADRO 03
A6: ="RODOVIA: "&Premissa!$C$6 -> RODOVIA: BR 000/XX - BR 000/XX - BR 000/XX
A7: ="ESTADO: "&VLOOKUP(Premissa!$C$1,Premissa!$B$30:$C$56,2,FALSE) -> 
A8: ="EXTENSÃO: "&Premissa!$C$7&" km" ->  | O8: =Premissa!B20&Premissa!C20 -> Data Base:Mês/20XX
A10: CRONOGRAMA FÍSICO-FINANCEIRO
A12: PERÍODO | D12: Físico | E12: 1 | F12: =E12+1 -> 2 | G12: =F12+1 -> 3 | H12: 4 | I12: 5 | J12: 6 | K12: 7 | L12: 8 | M12: 9 | N12: 10 | O12: 11 | P12: 12
A13: FÍSICO | B13: ATIVIDADE | C13: UND | D13: Financeiro | AG13: 1 | AH13: 2 | AI13: 3 | AJ13: 4 | AK13: 5 | AL13: 6 | AM13: 7 | AN13: 8 | AO13: 9 | AP13: 10 | AQ13: 11 | AR13: 12 | AT13: 13 | AU13: 14 | AV13: 15 | AW13: 16 | AX13: 17 | AY13: 18 | AZ13: 19 | BA13: 20 | BB13: 21 | BC13: 22 | BD13: 23 | BE13: 24 | BF13: 25 | BG13: 26 | BH13: 27 | BI13: 28 | BJ13: 29 | BK13: 30 | BL13: 31 | BM13: 32 | BN13: 33 | BO13: 34 | BP13: 35 | BQ13: 36
B14: SERVIÇOS PRELIMINARES | X14: =UPPER('QD 2 - Orçamento'!$D$13) -> INSTALAÇÃO DE CANTEIRO DE OBRAS | AD14: % | AE14: 1 | AG14: 1 | AS14: =SUM(AG14:AR14) -> 1 | BR14: =SUM(AG14:BQ14) -> 2
B15: =UPPER('QD 2 - Orçamento'!$D$13) -> INSTALAÇÃO DE CANTEIRO DE OBRAS | C15: % | D15: 1 | E15: 1 | F15: 0 | G15: 0 | H15: 0 | I15: 0 | J15: 0 | K15: 0 | L15: 0 | M15: 0 | N15: 0 | O15: 0 | P15: 0 | X15: =UPPER('QD 2 - Orçamento'!$D$14) -> ADMINISTRAÇÃO LOCAL / MANUTENÇÃO DO CANTEIRO DE OBRAS | AD15: % | AE15: 1 | AH15: =$AE$15/35 -> 0.02857142857 | AI15: =$AE$15/35 -> 0.02857142857 | AJ15: 0.02857142857 | AK15: 0.02857142857 | AL15: 0.02857142857 | AM15: 0.02857142857 | AN15: 0.02857142857 | AO15: 0.02857142857 | AP15: 0.02857142857 | AQ15: 0.02857142857 | AR15: 0.02857142857 | AS15: =SUM(AG15:AR15) -> 0.3142857143 | AT15: 0.02857142857 | AU15: 0.02857142857 | AV15: 0.02857142857 | AW15: 0.02857142857 | AX15: 0.02857142857 | AY15: 0.02857142857 | AZ15: 0.02857142857 | BA15: 0.02857142857 | BB15: 0.02857142857 | BC15: 0.02857142857 | BD15: 0.02857142857 | BE15: 0.02857142857 | BF15: 0.02857142857 | BG15: 0.02857142857 | BH15: 0.02857142857 | BI15: 0.02857142857 | BJ15: 0.02857142857 | BK15: 0.02857142857 | BL15: 0.02857142857 | BM15: 0.02857142857 | BN15: 0.02857142857 | BO15: 0.02857142857 | BP15: 0.02857142857 | BQ15: 0.02857142857 | BR15: =SUM(AG15:BQ15) -> 1.314285714
C16: R$ | D16: ='QD 2 - Orçamento'!I13 ->  | E16: =$D$16*E15 ->  | F16: =$D$16*F15 ->  | G16: =$D$16*G15 ->  | X16: =UPPER('QD 2 - Orçamento'!$D$15) -> MOBILIZAÇÃO E DESMOBILIZAÇÃO | AD16: % | AE16: 1 | AG16: 0.5 | AS16: 0.5 | BQ16: 0.5 | BR16: 1.5
B17: =UPPER('QD 2 - Orçamento'!$D$14) -> ADMINISTRAÇÃO LOCAL / MANUTENÇÃO DO CANTEIRO DE OBRAS | C17: % | D17: 1 | E17: 0 | F17: =$D$17/35 -> 0.02857142857 | G17: =$D$17/35 -> 0.02857142857 | H17: 0.02857142857 | I17: 0.02857142857 | J17: 0.02857142857 | K17: 0.02857142857 | L17: =$D$17/35 -> 0.02857142857 | M17: 0.02857142857 | N17: 0.02857142857 | O17: 0.02857142857 | P17: 0.02857142857 | X17: =UPPER('QD 2 - Orçamento'!$D$16) -> FORNECIMENTO E INSTALAÇÃO DE 2 PLACA DE OBRA CONFORME MANUAL DE PLACAS OBRAS DNIT (4,80 X 3,00) - REF SINAPI | AD17: % | AE17: 1 | AG17: 0.5 | AS17: 0.5 | BQ17: 0.5 | BR17: 1.5
C18: R$ | D18: ='QD 2 - Orçamento'!I14 ->  | E18: =$D$16*E17 ->  | F18: =$D$18*F17 ->  | G18: =$D$18*G17 ->  | X18: SINALIZAÇÃO HORIZONTAL | AD18: % | AE18: 1 | AM18: =$AE$18/12 -> 0.08333333333 | AN18: 0.08333333333 | AO18: 0.08333333333 | AP18: 0.08333333333 | AQ18: 0.08333333333 | AR18: 0.08333333333 | AS18: 0.5 | BF18: =$AE$18/12 -> 0.08333333333 | BG18: =$AE$18/12 -> 0.08333333333 | BH18: 0.08333333333 | BI18: 0.08333333333 | BJ18: 0.08333333333 | BK18: 0.08333333333 | BR18: 1.5
B19: =UPPER('QD 2 - Orçamento'!$D$15) -> MOBILIZAÇÃO E DESMOBILIZAÇÃO | C19: % | D19: 1 | E19: =D19/2 -> 0.5 | F19: 0 | G19: 0 | H19: 0 | I19: 0 | J19: 0 | K19: 0 | L19: 0 | M19: 0 | N19: 0 | O19: 0 | P19: 0 | X19: SINALIZAÇÃO VERTICAL | AD19: % | AE19: 1 | AM19: 0.08333333333 | AN19: 0.08333333333 | AO19: 0.08333333333 | AP19: 0.08333333333 | AQ19: 0.08333333333 | AR19: 0.08333333333 | AS19: 0.5 | BF19: =$AE$18/12 -> 0.08333333333 | BG19: 0.08333333333 | BH19: 0.08333333333 | BI19: 0.08333333333 | BJ19: 0.08333333333 | BK19: 0.08333333333 | BR19: 1.5
C20: R$ | D20: ='QD 2 - Orçamento'!I15 ->  | E20: =$D$20*E19 ->  | F20: =$D$20*F19 ->  | X20: DISPOSITIVOS DE SEGURANÇA | AD20: % | AE20: 1 | AM20: 0.08333333333 | AN20: 0.08333333333 | AO20: 0.08333333333 | AP20: 0.08333333333 | AQ20: 0.08333333333 | AR20: 0.08333333333 | AS20: 0.5 | BF20: =$AE$18/12 -> 0.08333333333 | BG20: 0.08333333333 | BH20: 0.08333333333 | BI20: 0.08333333333 | BJ20: 0.08333333333 | BK20: 0.08333333333 | BR20: 1.5
B21: =UPPER('QD 2 - Orçamento'!$D$16) -> FORNECIMENTO E INSTALAÇÃO DE 2 PLACA DE OBRA CONFORME MANUAL DE PLACAS OBRAS DNIT (4,80 X 3,00) - REF SINAPI | C21: % | D21: 1 | E21: 0 | F21: 0.5 | G21: 0 | H21: 0 | I21: 0 | J21: 0 | K21: 0 | L21: 0 | M21: 0 | N21: 0 | O21: 0 | P21: 0 | X21: MANUTENÇÃO/CONSERVAÇÃO | AD21: % | AE21: 1 | AI21: =$AE$21/34 -> 0.02941176471 | AJ21: =$AE$21/34 -> 0.02941176471 | AK21: 0.02941176471 | AL21: 0.02941176471 | AM21: 0.02941176471 | AN21: 0.02941176471 | AO21: 0.02941176471 | AP21: 0.02941176471 | AQ21: 0.02941176471 | AR21: 0.02941176471 | AS21: 0.2941176471 | AT21: 0.02941176471 | AU21: 0.02941176471 | AV21: 0.02941176471 | AW21: 0.02941176471 | AX21: 0.02941176471 | AY21: 0.02941176471 | AZ21: 0.02941176471 | BA21: 0.02941176471 | BB21: 0.02941176471 | BC21: 0.02941176471 | BD21: 0.02941176471 | BE21: 0.02941176471 | BF21: 0.02941176471 | BG21: 0.02941176471 | BH21: 0.02941176471 | BI21: 0.02941176471 | BJ21: 0.02941176471 | BK21: 0.02941176471 | BL21: 0.02941176471 | BM21: 0.02941176471 | BN21: 0.02941176471 | BO21: 0.02941176471 | BP21: 0.02941176471 | BQ21: 0.02941176471 | BR21: 1.294117647
C22: R$ | D22: ='QD 2 - Orçamento'!I16 ->  | E22: =$D$22*E21 ->  | F22: =$D$22*F21 ->  | X22: SEGURANÇA VIÁRIA OPERACIONAL | AD22: % | AE22: 1 | AI22: =($AE$22/35)*2 -> 0.05714285714 | AJ22: =$AE$22/35 -> 0.02857142857 | AK22: 0.02857142857 | AL22: 0.02857142857 | AM22: 0.02857142857 | AN22: 0.02857142857 | AO22: 0.02857142857 | AP22: 0.02857142857 | AQ22: 0.02857142857 | AR22: 0.02857142857 | AS22: 0.3142857143 | AT22: 0.02857142857 | AU22: 0.02857142857 | AV22: 0.02857142857 | AW22: 0.02857142857 | AX22: 0.02857142857 | AY22: 0.02857142857 | AZ22: 0.02857142857 | BA22: 0.02857142857 | BB22: 0.02857142857 | BC22: 0.02857142857 | BD22: 0.02857142857 | BE22: 0.02857142857 | BF22: 0.02857142857 | BG22: 0.02857142857 | BH22: 0.02857142857 | BI22: 0.02857142857 | BJ22: 0.02857142857 | BK22: 0.02857142857 | BL22: 0.02857142857 | BM22: 0.02857142857 | BN22: 0.02857142857 | BO22: 0.02857142857 | BP22: 0.02857142857 | BQ22: 0.02857142857 | BR22: 1.314285714
B24: SINALIZAÇÃO HORIZONTAL | C24: % | D24: 1 | E24: 0 | F24: 0 | G24: 0 | H24: 0 | I24: 0 | J24: 0 | K24: =$D$24/12 -> 0.08333333333 | L24: 0.08333333333 | M24: 0.08333333333 | N24: 0.08333333333 | O24: 0.08333333333 | P24: 0.08333333333
C25: R$ | D25: ='QD 2 - Orçamento'!I17 ->  | E25: =$D$25*E24 ->  | F25: =$D$25*F24 -> 
B26: SINALIZAÇÃO VERTICAL | C26: % | D26: 1 | E26: 0 | F26: 0 | G26: 0 | H26: 0 | I26: 0 | J26: 0 | K26: =$D$26/12 -> 0.08333333333 | L26: 0.08333333333 | M26: 0.08333333333 | N26: 0.08333333333 | O26: 0.08333333333 | P26: 0.08333333333
C27: R$ | D27: ='QD 2 - Orçamento'!I29 ->  | E27: =$D$27*E26 ->  | F27: =$D$27*F26 -> 
B28: DISPOSITIVOS DE SEGURANÇA | C28: % | D28: 1 | E28: 0 | F28: 0 | G28: 0 | H28: 0 | I28: 0 | J28: 0 | K28: =$D$28/12 -> 0.08333333333 | L28: 0.08333333333 | M28: 0.08333333333 | N28: 0.08333333333 | O28: 0.08333333333 | P28: 0.08333333333
C29: R$ | D29: ='QD 2 - Orçamento'!I45 ->  | E29: =$D$29*E28 ->  | F29: =$D$29*F28 -> 
B30: MANUTENÇÃO/CONSERVAÇÃO | C30: % | D30: 1 | E30: 0 | F30: 0 | G30: =$D$30/34 -> 0.02941176471 | H30: =$D$30/34 -> 0.02941176471 | I30: 0.02941176471 | J30: 0.02941176471 | K30: 0.02941176471 | L30: 0.02941176471 | M30: 0.02941176471 | N30: 0.02941176471 | O30: 0.02941176471 | P30: 0.02941176471
C31: R$ | D31: ='QD 2 - Orçamento'!I59 ->  | E31: =$D$29*E30 ->  | F31: =$D$29*F30 ->  | G31: =$D$31*G30 ->  | H31: =$D$31*H30 -> 
B32: SEGURANÇA VIÁRIA OPERACIONAL | C32: % | D32: 1 | E32: 0 | F32: 0 | G32: =($D$32/35)*2 -> 0.05714285714 | H32: =$D$32/35 -> 0.02857142857 | I32: =$D$32/35 -> 0.02857142857 | J32: 0.02857142857 | K32: 0.02857142857 | L32: 0.02857142857 | M32: 0.02857142857 | N32: 0.02857142857 | O32: 0.02857142857 | P32: 0.02857142857
C33: R$ | D33: ='QD 2 - Orçamento'!I110 ->  | E33: =$D$33*E32 ->  | F33: =$D$33*F32 -> 
A34: FINANCEIRO | B34: MENSAL | C34: % | D34: 1 | E34: =E35/$D$35 ->  | F34: =F35/$D$35 ->  | G34: =G35/$D$35 -> 
C35: R$ | D35: =SUM(D16,D18,D20,D22,D25,D27,D29,D31,D33) ->  | E35: =SUM(E16,E18,E20,E22,E25,E27,E29,E31,E33) ->  | F35: =SUM(F16,F18,F20,F22,F25,F27,F29,F31,F33) ->  | G35: =SUM(G16,G18,G20,G22,G25,G27,G29,G31,G33) -> 
B36: ACUMULADO | C36: % | D36: =0+D34 -> 1 | E36: =E34 ->  | F36: =E36+F34 ->  | G36: =F36+G34 -> 
C37: R$ | D37: =0+D35 ->  | E37: =E35 ->  | F37: =E37+F35 ->  | G37: =F37+G35 -> 
A39: PERÍODO | D39: Físico | E39: 13 | F39: =E39+1 -> 14 | G39: 15 | H39: 16 | I39: 17 | J39: 18 | K39: 19 | L39: 20 | M39: 21 | N39: 22 | O39: 23 | P39: 24
A40: FÍSICO | B40: ATIVIDADE | C40: UND | D40: Financeiro
B41: SERVIÇOS PRELIMINARES
B42: =UPPER('QD 2 - Orçamento'!$D$13) -> INSTALAÇÃO DE CANTEIRO DE OBRAS | C42: % | D42: =$D$15 -> 1 | E42: 0 | F42: 0 | G42: 0 | H42: 0 | I42: 0 | J42: 0 | K42: 0 | L42: 0 | M42: 0 | N42: 0 | O42: 0 | P42: 0
C43: R$ | D43: =$D$16 ->  | E43: =$D$43*E42 ->  | F43: =$D$43*F42 -> 
B44: =UPPER('QD 2 - Orçamento'!$D$14) -> ADMINISTRAÇÃO LOCAL / MANUTENÇÃO DO CANTEIRO DE OBRAS | C44: % | D44: =$D$17 -> 1 | E44: =$D$17/35 -> 0.02857142857 | F44: =$D$17/35 -> 0.02857142857 | G44: =$D$17/35 -> 0.02857142857 | H44: 0.02857142857 | I44: 0.02857142857 | J44: 0.02857142857 | K44: 0.02857142857 | L44: =$D$17/35 -> 0.02857142857 | M44: 0.02857142857 | N44: 0.02857142857 | O44: 0.02857142857 | P44: 0.02857142857
C45: R$ | D45: =$D$18 ->  | E45: =$D$45*E44 ->  | F45: =$D$45*F44 ->  | G45: =$D$45*G44 -> 
B46: =UPPER('QD 2 - Orçamento'!$D$15) -> MOBILIZAÇÃO E DESMOBILIZAÇÃO | C46: % | D46: =$D$19 -> 1 | E46: 0 | F46: 0 | G46: 0 | H46: 0 | I46: 0 | J46: 0 | K46: 0 | L46: 0 | M46: 0 | N46: 0 | O46: 0 | P46: 0
C47: R$ | D47: =$D$20 ->  | E47: =$D$47*E46 ->  | F47: =$D$47*F46 ->  | G47: =$D$47*G46 -> 
B48: =UPPER('QD 2 - Orçamento'!$D$16) -> FORNECIMENTO E INSTALAÇÃO DE 2 PLACA DE OBRA CONFORME MANUAL DE PLACAS OBRAS DNIT (4,80 X 3,00) - REF SINAPI | C48: % | D48: =$D$21 -> 1 | E48: 0 | F48: 0 | G48: 0 | H48: 0 | I48: 0 | J48: 0 | K48: 0 | L48: 0 | M48: 0 | N48: 0 | O48: 0 | P48: 0
C49: R$ | D49: =$D$22 ->  | E49: =$D$49*E48 ->  | F49: =$D$49*F48 ->  | G49: =$D$49*G48 -> 
B51: SINALIZAÇÃO HORIZONTAL | C51: % | D51: =$D$24 -> 1 | E51: 0 | F51: 0 | G51: 0 | H51: 0 | I51: 0 | J51: 0 | K51: 0 | L51: 0 | M51: 0 | N51: 0 | O51: 0 | P51: 0
C52: R$ | D52: =$D$25 ->  | E52: =$D$52*E51 ->  | F52: =$D$52*F51 ->  | G52: =$D$52*G51 -> 
B53: SINALIZAÇÃO VERTICAL | C53: % | D53: =$D$26 -> 1 | E53: 0 | F53: 0 | G53: 0 | H53: 0 | I53: 0 | J53: 0 | K53: 0 | L53: 0 | M53: 0 | N53: 0 | O53: 0 | P53: 0
C54: R$ | D54: =$D$27 ->  | E54: =$D$54*E53 ->  | F54: =$D$54*F53 ->  | G54: =$D$54*G53 -> 
B55: DISPOSITIVOS DE SEGURANÇA | C55: % | D55: =$D$28 -> 1 | E55: 0 | F55: 0 | G55: 0 | H55: 0 | I55: 0 | J55: 0 | K55: 0 | L55: 0 | M55: 0 | N55: 0 | O55: 0 | P55: 0
C56: R$ | D56: =$D$29 ->  | E56: =$D$56*E55 ->  | F56: =$D$56*F55 ->  | G56: =$D$56*G55 -> 
B57: MANUTENÇÃO/CONSERVAÇÃO | C57: % | D57: =$D$30 -> 1 | E57: =$D$30/34 -> 0.02941176471 | F57: =$D$30/34 -> 0.02941176471 | G57: =$D$30/34 -> 0.02941176471 | H57: =$D$30/34 -> 0.02941176471 | I57: 0.02941176471 | J57: 0.02941176471 | K57: 0.02941176471 | L57: 0.02941176471 | M57: 0.02941176471 | N57: 0.02941176471 | O57: 0.02941176471 | P57: 0.02941176471
C58: R$ | D58: =$D$31 ->  | E58: =$D$58*E57 ->  | F58: =$D$58*F57 ->  | G58: =$D$58*G57 -> 
B59: SEGURANÇA VIÁRIA OPERACIONAL | C59: % | D59: =$D$32 -> 1 | E59: =$D$32/35 -> 0.02857142857 | F59: =$D$32/35 -> 0.02857142857 | G59: =$D$32/35 -> 0.02857142857 | H59: =$D$32/35 -> 0.02857142857 | I59: =$D$32/35 -> 0.02857142857 | J59: 0.02857142857 | K59: 0.02857142857 | L59: 0.02857142857 | M59: 0.02857142857 | N59: 0.02857142857 | O59: 0.02857142857 | P59: 0.02857142857
C60: R$ | D60: =$D$33 ->  | E60: =$D$60*E59 ->  | F60: =$D$60*F59 ->  | G60: =$D$60*G59 -> 
A61: FINANCEIRO | B61: MENSAL | C61: % | D61: =$D$34 -> 1 | E61: =E62/$D$35 -> 
C62: R$ | D62: =$D$35 ->  | E62: =SUM(E43,E45,E47,E49,E52,E54,E56,E58,E60) ->  | F62: =SUM(F43,F45,F47,F49,F52,F54,F56,F58,F60) ->  | G62: =SUM(G43,G45,G47,G49,G52,G54,G56,G58,G60) -> 
B63: ACUMULADO | C63: % | D63: =$D$36 -> 1 | E63: =P36+E61 ->  | F63: =E63+F61 ->  | G63: =F63+G61 -> 
C64: R$ | D64: =$D$37 ->  | E64: =P37+E62 ->  | F64: =E64+F62 ->  | G64: =F64+G62 -> 
A66: PERÍODO | D66: Físico | E66: 25 | F66: =E66+1 -> 26 | G66: 27 | H66: 28 | I66: 29 | J66: 30 | K66: 31 | L66: 32 | M66: 33 | N66: 34 | O66: 35 | P66: 36
A67: FÍSICO | B67: ATIVIDADE | C67: UND | D67: Financeiro
B68: SERVIÇOS PRELIMINARES
B69: =UPPER('QD 2 - Orçamento'!$D$13) -> INSTALAÇÃO DE CANTEIRO DE OBRAS | C69: % | D69: =$D$15 -> 1 | E69: 0 | F69: 0 | G69: 0 | H69: 0 | I69: 0 | J69: 0 | K69: 0 | L69: 0 | M69: 0 | N69: 0 | O69: 0 | P69: 0
C70: R$ | D70: =$D$16 ->  | E70: =$D$70*E69 ->  | F70: =$D$70*F69 ->  | G70: =$D$70*G69 -> 
B71: =UPPER('QD 2 - Orçamento'!$D$14) -> ADMINISTRAÇÃO LOCAL / MANUTENÇÃO DO CANTEIRO DE OBRAS | C71: % | D71: =$D$17 -> 1 | E71: =$D$17/35 -> 0.02857142857 | F71: =$D$17/35 -> 0.02857142857 | G71: =$D$17/35 -> 0.02857142857 | H71: 0.02857142857 | I71: 0.02857142857 | J71: 0.02857142857 | K71: 0.02857142857 | L71: =$D$17/35 -> 0.02857142857 | M71: 0.02857142857 | N71: 0.02857142857 | O71: 0.02857142857 | P71: 0.02857142857
C72: R$ | D72: =$D$18 ->  | E72: =$D$72*E71 ->  | F72: =$D$72*F71 ->  | G72: =$D$72*G71 -> 
B73: =UPPER('QD 2 - Orçamento'!$D$15) -> MOBILIZAÇÃO E DESMOBILIZAÇÃO | C73: % | D73: =$D$19 -> 1 | E73: 0 | F73: 0 | G73: 0 | H73: 0 | I73: 0 | J73: 0 | K73: 0 | L73: 0 | M73: 0 | N73: 0 | O73: 0 | P73: 0.5
C74: R$ | D74: =$D$20 ->  | E74: =$D$74*E73 ->  | F74: =$D$74*F73 ->  | G74: =$D$74*G73 -> 
B75: =UPPER('QD 2 - Orçamento'!$D$16) -> FORNECIMENTO E INSTALAÇÃO DE 2 PLACA DE OBRA CONFORME MANUAL DE PLACAS OBRAS DNIT (4,80 X 3,00) - REF SINAPI | C75: % | D75: =$D$21 -> 1 | E75: 0 | F75: 0 | G75: 0 | H75: 0 | I75: 0 | J75: 0 | K75: 0 | L75: 0 | M75: 0 | N75: 0 | O75: 0 | P75: 0.5
C76: R$ | D76: =$D$22 ->  | E76: =$D$76*E75 ->  | F76: =$D$76*F75 ->  | G76: =$D$76*G75 -> 
B78: SINALIZAÇÃO HORIZONTAL | C78: % | D78: =$D$24 -> 1 | E78: =$D$24/12 -> 0.08333333333 | F78: 0.08333333333 | G78: 0.08333333333 | H78: 0.08333333333 | I78: 0.08333333333 | J78: 0.08333333333 | K78: 0 | L78: 0 | M78: 0 | N78: 0 | O78: 0 | P78: 0
C79: R$ | D79: =$D$25 ->  | E79: =$D$79*E78 ->  | F79: =$D$79*F78 ->  | G79: =$D$79*G78 -> 
B80: SINALIZAÇÃO VERTICAL | C80: % | D80: =$D$26 -> 1 | E80: =$D$26/12 -> 0.08333333333 | F80: 0.08333333333 | G80: 0.08333333333 | H80: 0.08333333333 | I80: 0.08333333333 | J80: 0.08333333333 | K80: 0 | L80: 0 | M80: 0 | N80: 0 | O80: 0 | P80: 0
C81: R$ | D81: =$D$27 ->  | E81: =$D$81*E80 ->  | F81: =$D$81*F80 ->  | G81: =$D$81*G80 -> 
B82: DISPOSITIVOS DE SEGURANÇA | C82: % | D82: =$D$28 -> 1 | E82: =$D$28/12 -> 0.08333333333 | F82: 0.08333333333 | G82: 0.08333333333 | H82: 0.08333333333 | I82: 0.08333333333 | J82: 0.08333333333 | K82: 0 | L82: 0 | M82: 0 | N82: 0 | O82: 0 | P82: 0
C83: R$ | D83: =$D$29 ->  | E83: =$D$83*E82 ->  | F83: =$D$83*F82 ->  | G83: =$D$83*G82 -> 
B84: MANUTENÇÃO/CONSERVAÇÃO | C84: % | D84: =$D$30 -> 1 | E84: =$D$30/34 -> 0.02941176471 | F84: =$D$30/34 -> 0.02941176471 | G84: =$D$30/34 -> 0.02941176471 | H84: =$D$30/34 -> 0.02941176471 | I84: 0.02941176471 | J84: 0.02941176471 | K84: 0.02941176471 | L84: 0.02941176471 | M84: 0.02941176471 | N84: 0.02941176471 | O84: 0.02941176471 | P84: 0.02941176471
C85: R$ | D85: =$D$31 ->  | E85: =$D$85*E84 ->  | F85: =$D$85*F84 ->  | G85: =$D$85*G84 -> 
B86: SEGURANÇA VIÁRIA OPERACIONAL | C86: % | D86: =$D$32 -> 1 | E86: =$D$32/35 -> 0.02857142857 | F86: =$D$32/35 -> 0.02857142857 | G86: =$D$32/35 -> 0.02857142857 | H86: =$D$32/35 -> 0.02857142857 | I86: =$D$32/35 -> 0.02857142857 | J86: 0.02857142857 | K86: 0.02857142857 | L86: 0.02857142857 | M86: 0.02857142857 | N86: 0.02857142857 | O86: 0.02857142857 | P86: 0.02857142857
C87: R$ | D87: =$D$33 ->  | E87: =$D$87*E86 ->  | F87: =$D$87*F86 ->  | G87: =$D$87*G86 -> 
A88: FINANCEIRO | B88: MENSAL | C88: % | D88: =$D$34 -> 1 | E88: =E89/$D$35 -> 
C89: R$ | D89: =$D$35 ->  | E89: =SUM(E70,E72,E74,E76,E79,E81,E83,E85,E87) ->  | F89: =SUM(F70,F72,F74,F76,F79,F81,F83,F85,F87) ->  | G89: =SUM(G70,G72,G74,G76,G79,G81,G83,G85,G87) -> 
B90: ACUMULADO | C90: % | D90: =$D$36 -> 1 | E90: =P63+E88 ->  | F90: =E90+F88 ->  | G90: =F90+G88 -> 
C91: R$ | D91: =$D$37 ->  | E91: =P64+E89 ->  | F91: =E91+F89 ->  | G91: =F91+G89 -> 

Sheet QD 4 - Mobilização
R1: =Composição!T1 -> MTP (R$)
L2: ="LOTE "&Premissa!$C$2 -> LOTE XX
L4: QUADRO 04
A6: ="RODOVIA: "&Premissa!$C$6 -> RODOVIA: BR 000/XX - BR 000/XX - BR 000/XX
A7: ="ESTADO: "&VLOOKUP(Premissa!$C$1,Premissa!$B$30:$C$56,2,FALSE) -> 
A8: ="EXTENSÃO: "&Premissa!$C$7&" km" ->  | K8: =Premissa!$B$20&Premissa!$C$20 -> Data Base:Mês/20XX
A10: MOBILIZAÇÃO E DESMOBILIZAÇÃO DE PESSOAL, VEÍCULOS E EQUIPAMENTOS PESADOS
A12: ITEM | B12: DESCRIÇÃO | C12: UNID | D12: QTDE | E12: DMT (km) | J12: CUSTO PASSAGEM | K12: CUSTO TOTAL | L12: ORIGEM - DESTINO
A14: 1 | B14: PESSOAL
A15: 1.1 | B15: Engenheiro Supervisor | C15: und | D15: ='QD 6 - ADM_Local'!E17 -> 1 | E15: =DMTc ->  | J15: =Premissa!$C$26 ->  | K15: =D15*J15 ->  | L15: =Premissa!$E$8&" - Canteiro" -> 
A16: 1.2 | B16: Técnico especializado | C16: und | D16: ='QD 6 - ADM_Local'!E19 -> 1 | E16: =$E$15 ->  | J16: =Premissa!$C$26 ->  | K16: =D16*J16 ->  | L16: =Premissa!$E$8&" - Canteiro" -> 
A17: 1.3 | B17: Secretária | C17: und | D17: ='QD 6 - ADM_Local'!E21 -> 1 | E17: =$E$15 ->  | J17: =Premissa!$C$26 ->  | L17: =Premissa!$E$8&" - Canteiro" -> 
A18: 1.4 | B18: ='QD 6 - ADM_Local'!C37 -> Auxiliar Administrativo | C18: und | D18: ='QD 6 - ADM_Local'!E37 -> 1 | E18: =$E$15 ->  | J18: =Premissa!$C$26 ->  | L18: =Premissa!$E$8&" - Canteiro" -> 
A19: 1.5 | B19: Porteiro | C19: und | D19: ='QD 6 - ADM_Local'!E30 -> 0 | J19: =Premissa!$C$26 ->  | L19: =Premissa!$E$8&" - Canteiro" -> 
A20: 1.6 | B20: Vigia | C20: und | D20: ='QD 6 - ADM_Local'!E31 -> 2 | J20: =Premissa!$C$26 ->  | L20: =Premissa!$E$8&" - Canteiro" -> 
A21: 1.7 | B21: Faxineiro | C21: und | D21: ='QD 6 - ADM_Local'!E38 -> 1 | J21: =Premissa!$C$26 ->  | L21: =Premissa!$E$8&" - Canteiro" -> 
A22: 1.8 | B22: Encarregado de Manutenção/Conservação | C22: und | D22: ='QD 6 - ADM_Local'!E42 -> 1 | J22: =Premissa!$C$26 ->  | L22: =Premissa!$E$8&" - Canteiro" -> 
A23: 1.9 | B23: Engenheiro Segurança do Trabalho | C23: und | D23: ='QD 6 - ADM_Local'!E49 -> 0.38 | J23: =Premissa!$C$26 ->  | L23: =Premissa!$E$8&" - Canteiro" -> 
A24: 1.10 | B24: Técnico Segurança do Trabalho | C24: und | D24: ='QD 6 - ADM_Local'!E50 -> 1 | J24: =Premissa!$C$26 ->  | L24: =Premissa!$E$8&" - Canteiro" -> 
A25: 1.11 | B25: Encarregado de turma | C25: und | D25: =ROUNDUP('QD 6 - ADM_Local'!G56/Composição!$CJ$3,0) -> 1 | J25: =Premissa!$C$26 ->  | L25: =Premissa!$E$8&" - Canteiro" -> 
A26: 1.12 | B26: Apontador | C26: und | D26: =ROUNDUP('QD 6 - ADM_Local'!G57/Composição!$CJ$3,0) -> 1 | J26: =Premissa!$C$26 ->  | K26: =D26*J26 ->  | L26: =Premissa!$E$8&" - Canteiro" -> 
A27: 1.13 | B27: Montador | C27: und | D27: =ROUNDUP('QD 6 - ADM_Local'!G58/Composição!$CJ$3,0) -> 0 | J27: =Premissa!$C$26 ->  | K27: =D27*J27 ->  | L27: =Premissa!$E$8&" - Canteiro" -> 
A28: 1.14 | B28: Pré-marcador | C28: und | D28: =ROUNDUP('QD 6 - ADM_Local'!G59/Composição!$CJ$3,0) -> 0 | J28: =Premissa!$C$26 ->  | K28: =D28*J28 ->  | L28: =Premissa!$E$8&" - Canteiro" -> 
A29: 1.15 | B29: Ajudante | C29: und | D29: =ROUNDUP('QD 6 - ADM_Local'!G60/Composição!$CJ$3,0) -> 1 | J29: =Premissa!$C$26 ->  | K29: =D29*J29 ->  | L29: =Premissa!$E$8&" - Canteiro" -> 
A30: 1.16 | B30: Servente | C30: und | D30: =ROUNDUP('QD 6 - ADM_Local'!G61/Composição!$CJ$3,0) -> 1 | J30: =Premissa!$C$26 ->  | K30: =D30*J30 ->  | L30: =Premissa!$E$8&" - Canteiro" -> 
A32: SUBTOTAL 1 | K32: =ROUND(SUM(K14:K31),2) -> 
A34: ITEM | B34: DESCRIÇÃO | C34: UNID | D34: QTDE | E34: DMT (km) | F34: FU | G34: Fator K | H34: Velocidade | I34: Código veíc. Transp. | J34: Custo horário Veículo transp. | K34: CUSTO TOTAL | L34: EQUIPAMENTO
A36: 2 | B36: VEÍCULOS LEVES E CAMINHÕES COMUNS
A37: 2.1 | B37: =Composição!CG17:CG17 -> Caminhão demarcador de faixas com sistema de pintura a frio - 28 kW/115 kW | C37: und | D37: =Composição!CJ17 -> 0 | E37: =$E$15 ->  | F37: 1 | G37: 1 | H37: 60 | I37: E9644 | J37: =VLOOKUP(I37,INSUMOS!$B$8:$F$41,4,0) -> 308,8644 | K37: =IF(H37="",0,D37*(((E37*F37*G37)/H37)*J37)) ->  | L37: Autopropelido | N37: 271.3981 | O37: 136.8638
A38: 2.2 | B38: =Composição!CG18 -> Caminhão demarcador de faixas com sistema de pintura a quente - 5 kW/30,10 kW/136 kW | C38: und | D38: =Composição!CJ18 -> 0 | F38: 1 | G38: 1 | H38: 60 | I38: E9645 | J38: =VLOOKUP(I38,INSUMOS!$B$8:$F$41,4,0) -> 421,0820 | K38: =IF(H38="",0,D38*(((E38*F38*G38)/H38)*J38)) ->  | L38: Autopropelido
A39: 2.3 | B39: =Composição!CG23 -> Caminhão carroceria com capacidade de 5 t - 115 kW | C39: und | D39: =Composição!CJ23 -> 0 | F39: 1 | G39: 1 | H39: 60 | I39: E9687 | J39: =VLOOKUP(I39,INSUMOS!$B$8:$F$41,4,0) -> 106,9814 | K39: =IF(H39="",0,D39*(((E39*F39*G39)/H39)*J39)) ->  | L39: Autopropelido
A40: 2.4 | B40: =Composição!CG22 -> Caminhão carroceria com guindauto com capacidade de 20 t.m - 136 kW | C40: und | D40: =Composição!CJ22 -> 0 | F40: 1 | G40: 1 | H40: 60 | I40: E9686 | J40: =VLOOKUP(I40,INSUMOS!$B$8:$F$41,4,0) -> 227,1402 | K40: =IF(H40="",0,D40*(((E40*F40*G40)/H40)*J40)) ->  | L40: Autopropelido
A41: 2.5 | B41: Veículo leve | C41: und | D41: 3 | F41: 1 | G41: 1 | H41: 60 | I41: E9093 | J41: =VLOOKUP(I41,INSUMOS!$B$8:$F$41,4,0) -> 31,9285 | K41: =IF(H41="",0,D41*(((E41*F41*G41)/H41)*J41)) ->  | L41: Autopropelido
A42: 3 | B42: INSTALAÇÃO CANTEIRO DE OBRAS
A43: 3.1 | B43: Container 1 TEU | C43: und | D43: =SUM('QD 5 - Canteiro'!J14:J25) -> 7 | F43: 0.5 | G43: 2 | H43: 60 | I43: E9665 | J43: =VLOOKUP(I43,INSUMOS!$B$8:$F$41,4,0) -> 259,4889 | K43: =IF(H43="",0,D43*(((E43*F43*G43)/H43)*J43)) ->  | L43: Cavalo mecânico
A44: 3.2 | B44: Container 2 TEU | C44: und | D44: ='QD 5 - Canteiro'!J13 -> 1 | F44: 1 | G44: 2 | H44: 60 | I44: E9665 | J44: =VLOOKUP(I44,INSUMOS!$B$8:$F$41,4,0) -> 259,4889 | K44: =IF(H44="",0,D44*(((E44*F44*G44)/H44)*J44)) ->  | L44: Cavalo mecânico
A45: =IF(Composição!CJ24=0,"","3.3") ->  | B45: =IF(Composição!CJ24=0,"","Máquina de pintura do sistema Spray - 115 kW") ->  | C45: =IF(Composição!CJ24=0,"","und") ->  | D45: =IF(Composição!CJ24=0,"",Composição!CJ24) ->  | E45: =IF(Composição!CJ24=0,"",$E$15) ->  | F45: =IF(Composição!CJ24=0,"",0.25) ->  | G45: =IF(Composição!CJ24=0,"",2) ->  | H45: =IF(Composição!CJ24=0,"",60) ->  | I45: =IF(Composição!CJ24=0,"","E9665") ->  | K45: =IF(Composição!CJ24=0,"",IF(H45="",0,D45*(((E45*F45*G45)/H45)*J45))) ->  | L45: =IF(Composição!CJ24=0,"","Cavalo mecânico") -> 
A48: SUBTOTAL 2 | K48: =ROUND(SUM(K35:K47),2) -> 
A50: TOTAL GERAL | K50: =K48+K32 -> 
A52: LUCRO E DESPESAS INDIRETAS | K52: =ROUND(K50*Composição!W1/100,2) -> 
A54: CUSTO TOTAL DA MOBILIZAÇÃO COM BDI | K54: =K50+K52 -> 
A55: =IF(Premissa!C26=0,N55,"") ->  | N55: Nota: Não haverá previsão financeira de transporte para o pessoal devido que Canteiro está previsto no próprio local de Mobilização

Sheet QD 5 - Canteiro
S2: ="LOTE "&Premissa!$C$2 -> LOTE XX
S4: QUADRO 05
A6: ="RODOVIA: "&Premissa!$C$6 -> RODOVIA: BR 000/XX - BR 000/XX - BR 000/XX
A7: ="ESTADO: "&VLOOKUP(Premissa!$C$1,Premissa!$B$30:$C$56,2,FALSE) -> 
A8: ="EXTENSÃO: "&Premissa!$C$7&" km" ->  | R8: =Premissa!$B$20&Premissa!$C$20 -> Data Base:Mês/20XX
A10: CANTEIRO DE OBRAS EXCLUSIVAMENTE PRÉ-FABRICADO (MÓVEL - CONTÊINER)
A11: K2 | B11: Distância Canteiro Fornecedores Rodovia | E11: K3 | F11: Instalações | G11: Tipo Contêiner | I11: Área Total (m²) | J11: Qci | K11: Unid. | L11: CCi | M11: QCi x CCi | N11: 1/5∑QCn x CCn | O11: AT (m²) | P11: FEAT | Q11: CMCC | R11: Cp | S11: CCC
B12: Leito Natural | C12: Revest. Primario | D12: Pavimentado
A13: 1.13 | B13: 0 | C13: 0 | D13: =Premissa!C11 ->  | E13: =ROUND(IF(B13>0,(1+0.0014*B13),0)+IF(C13>0,(1+0.0009*C13),0)+IF(D13>0,(1+0.0008*D13),0),4) ->  | F13: Escritório e seção técnica | G13: M0066 | H13: =VLOOKUP(G13,INSUMOS!$B$8:$G$264,2,FALSE) -> Container de 2 TEU com revestimento térmico (ar condicionado) com janela e 1 lavabo | I13: 29.72 | J13: 1 | K13: Unid. | L13: =VLOOKUP(G13,INSUMOS!$B$8:$G$264,4,FALSE) -> 52981.2054 | M13: =J13*L13 -> 52981.2054 | N13: =SUM(M13:M25)/5 -> 89989.98008 | O13: 595.92 | P13: 0.03 | Q13: 1474.57 | R13: =M32*0+1 ->  | S13: =ROUND((A13*E13*N13)+(O13*P13*Q13)*R13,2) -> 
F14: Refeitório e cozinha | G14: M0057 | H14: =VLOOKUP(G14,INSUMOS!$B$8:$G$264,2,FALSE) -> Container de 1 TEU duplo (6,0 m x 4,88 m) com janela | I14: 29.72 | J14: 1 | K14: Unid. | L14: =VLOOKUP(G14,INSUMOS!$B$8:$G$264,4,FALSE) -> 66970.7246 | M14: =J14*L14 -> 66970.7246
G15: M0058 | H15: =VLOOKUP(G15,INSUMOS!$B$8:$G$264,2,FALSE) -> Container de 1 TEU duplo (6,0 m x 4,88 m) com janela e 2 lavabos | I15: 29.72 | J15: 1 | K15: Unid. | L15: =VLOOKUP(G15,INSUMOS!$B$8:$G$264,4,FALSE) -> 70784.4883 | M15: 70784.4883
F16: Alojamentos | G16: M0059 | H16: =VLOOKUP(G16,INSUMOS!$B$8:$G$264,2,FALSE) -> Container de 1 TEU com revestimento térmico (ar condicionado) com janela e 1 banheiro | I16: =14.86*J16 -> 29.72 | J16: 2 | K16: Unid. | L16: =VLOOKUP(G16,INSUMOS!$B$8:$G$264,4,FALSE) -> 39919.4388 | M16: 79838.8776
F17: Banheiros e vestiário | G17: M0041 | H17: =VLOOKUP(G17,INSUMOS!$B$8:$G$264,2,FALSE) -> Container de 1 TEU com 2 banheiros | I17: 14.86 | J17: 1 | K17: Unid. | L17: =VLOOKUP(G17,INSUMOS!$B$8:$G$264,4,FALSE) -> 45433.1553 | M17: 45433.1553
F18: Residências | G18: M0065 | H18: =VLOOKUP(G18,INSUMOS!$B$8:$G$264,2,FALSE) -> Container 3/4 de 1 TEU com janela e 1 banheiro | I18: 14.86 | J18: 0 | K18: Unid. | L18: =VLOOKUP(G18,INSUMOS!$B$8:$G$264,4,FALSE) -> 30001.1027 | M18: =J18*L18 -> 0
F19: Ambulatório | G19: M0066 | H19: =VLOOKUP(G19,INSUMOS!$B$8:$G$264,2,FALSE) -> Container de 2 TEU com revestimento térmico (ar condicionado) com janela e 1 lavabo | I19: 29.73 | J19: 0 | K19: Unid. | L19: =VLOOKUP(G19,INSUMOS!$B$8:$G$264,4,FALSE) -> 52981.2054 | M19: =J19*L19 -> 0
F20: Almoxarifado | G20: M0057 | H20: =VLOOKUP(G20,INSUMOS!$B$8:$G$264,2,FALSE) -> Container de 1 TEU duplo (6,0 m x 4,88 m) com janela | I20: 29.73 | J20: 1 | K20: Unid. | L20: =VLOOKUP(G20,INSUMOS!$B$8:$G$264,4,FALSE) -> 66970.7246 | M20: =J20*L20 -> 66970.7246
F21: Depósito de Materias (placas, defensas e etc) | G21: M0057 | H21: =VLOOKUP(G21,INSUMOS!$B$8:$G$264,2,FALSE) -> Container de 1 TEU duplo (6,0 m x 4,88 m) com janela | I21: 29.73 | J21: 1 | K21: Unid. | L21: =VLOOKUP(G21,INSUMOS!$B$8:$G$264,4,FALSE) -> 66970.7246 | M21: =J21*L21 -> 66970.7246
F22: Oficina: Mecânica Elétrica Borracharia | G22: M0042 | H22: =VLOOKUP(G22,INSUMOS!$B$8:$G$264,2,FALSE) -> Container de 1 TEU com janela | I22: 14.86 | J22: 0 | K22: Unid. | L22: =VLOOKUP(G22,INSUMOS!$B$8:$G$264,4,FALSE) -> 31293.6 | M22: =J22*L22 -> 0
G23: M0060 | H23: =VLOOKUP(G23,INSUMOS!$B$8:$G$264,2,FALSE) -> Container 3/4 de 1 TEU com janela | I23: 11.15 | J23: 0 | K23: Unid. | L23: =VLOOKUP(G23,INSUMOS!$B$8:$G$264,4,FALSE) -> 27714.6351 | M23: 0
G24: M0065 | H24: =VLOOKUP(G24,INSUMOS!$B$8:$G$264,2,FALSE) -> Container 3/4 de 1 TEU com janela e 1 banheiro | I24: 11.15 | J24: 0 | K24: Unid. | L24: =VLOOKUP(G24,INSUMOS!$B$8:$G$264,4,FALSE) -> 30001.1027 | M24: 0
F25: Guarita | G25: M0060 | H25: =VLOOKUP(G25,INSUMOS!$B$8:$G$264,2,FALSE) -> Container 3/4 de 1 TEU com janela | I25: 11.15 | J25: 0 | K25: Unid. | L25: =VLOOKUP(G25,INSUMOS!$B$8:$G$264,4,FALSE) -> 27714.6351 | M25: 0
A26: Total Instalação de Canteiro | S26: =S13 -> 
A27: BDI = | R27: =Composição!W1/100 ->  | S27: =ROUND(S26*R27,2) -> 
A28: Total com BDI | S28: =S26+S27 -> 
A29: Projeto Tipico de Canteiro de Obra Conservação Rodoviária Rotineira - Volume 7 Desenho 3.4 - AT = 595,92 m2 Para obras de conservação rodoviária, deve-se utilizar um fator de equivalência de áreas totais do terreno (FEAT) de 3,0% em relação ao custo médio da construção (pag. 97, Vol 07 Tomo I) CMCC referente ao CUB m2 obtido site Biblioteca IBGE (https://biblioteca.ibge.gov.br/visualizacao/periodicos/242/ind_sinapi_2021_abr.pdf) Adotou-se CP = 1, devido a tipologia dos serviços previstos
I31: kmP = | J31: =Premissa!$C$7*2 ->  | L31: COEF. PROPORCIONALIDADE
I32: kmR = | J32: 200 | L32: CP | M32: =IF(ROUND(1+((J31-J32)/J32),2)<1,1,ROUND(1+((J31-J32)/J32),2)) -> 
A34: https://biblioteca.ibge.gov.br/index.php/biblioteca-catalogo?id=7242&view=detalhes

Sheet QD 6 - ADM_Local
L2: ='QD 5 - Canteiro'!$S$2 -> LOTE XX
L4: QUADRO 06
A6: ="RODOVIA: "&Premissa!$C$6 -> RODOVIA: BR 000/XX - BR 000/XX - BR 000/XX
A7: ="ESTADO: "&VLOOKUP(Premissa!$C$1,Premissa!$B$30:$C$56,2,FALSE) -> 
A8: ="EXTENSÃO: "&Premissa!$C$7&" km" ->  | K8: ="Data Base: "&Premissa!C20 -> Data Base: Mês/20XX
A10: ADMINISTRAÇÃO LOCAL
A11: ITEM | B11: CÓDIGO | C11: DESCRIÇÃO | D11: UND | E11: QTDE MENSAL | F11: PERÍODO | G11: QTDE TOTAL | H11: UTILIZAÇÃO | J11: CUSTO UNITÁRIO R$ | L11: CUSTO TOTAL R$
H12: PROD. | I12: IMPROD. | J12: PROD. | K12: IMPROD.
A13: 1. PARCELA FIXA
A14: A) | B14: GERÊNCIA TÉCNICA
A15: 1.1 | B15: MÃO DE OBRA
A16: 1.1.1 | B16: P9955 | C16: Engenheiro Chefe | D16: mês | J16: =IF(H16>0,(VLOOKUP(B16,INSUMOS!$B$52:$E$84,4,0)),"") ->  | L16: =IF(E16=0,E16,(TRUNC((J16*H16+K16*I16)*G16,2))) -> 0
A17: 1.1.2 | B17: P9819 | C17: Engenheiro Supervisor | D17: mês | E17: 1 | F17: 34 | G17: =F17*E17 -> 34 | H17: 1 | I17: 0 | J17: =IF(H17>0,(VLOOKUP(B17,INSUMOS!$B$52:$E$84,4,0)),"") -> 22743.1024 | K17: 0 | L17: =IF(E17=0,E17,(TRUNC((J17*H17+K17*I17)*G17,2))) -> 773265.48
A18: 1.1.3 | B18: P9840 | C18: Encarregado geral | D18: mês | J18: =IF(H18>0,(VLOOKUP(B18,INSUMOS!$B$52:$E$84,4,0)),"") ->  | L18: 0
A19: 1.1.4 | B19: P9867 | C19: Técnico especializado | D19: mês | E19: 1 | F19: 34 | G19: =F19*E19 -> 34 | H19: 1 | I19: 0 | J19: =IF(H19>0,(VLOOKUP(B19,INSUMOS!$B$52:$E$84,4,0)),"") -> 7238.7731 | L19: 246118.28
A20: 1.1.5 | B20: P9948 | C20: Motorista | D20: mês | J20: =IF(H20>0,(VLOOKUP(B20,INSUMOS!$B$52:$E$84,4,0)),"") ->  | L20: 0
A21: 1.1.6 | B21: P9878 | C21: Secretária | D21: mês | E21: 1 | F21: 34 | G21: =F21*E21 -> 34 | H21: 1 | I21: 0 | J21: =IF(H21>0,(VLOOKUP(B21,INSUMOS!$B$52:$E$84,4,0)),"") -> 6024.1237 | L21: 204820.2
A22: 1.2 | B22: VEÍCULOS
A23: 1.2.1 | B23: E9093 | C23: Veículo leve - 53 kW | D23: h | E23: 1 | F23: 34 | G23: =F23*E23 -> 34 | H23: 44 | I23: 176 | J23: =IF(E23>0,(VLOOKUP(B23,INSUMOS!$B$8:$F$41,4,0)),"") -> 31,9285 | K23: =IF(E23>0,(VLOOKUP(B23,INSUMOS!$B$8:$F$41,5,0)),"") -> 4,0200 | L23: 71820.71
A24: 1.2.2 | B24: E9560 | C24: Ônibus coletivo | D24: h | J24: =IF(E24>0,(VLOOKUP(B24,INSUMOS!$B$8:$F$41,4,0)),"") ->  | K24: =IF(E24>0,(VLOOKUP(B24,INSUMOS!$B$8:$F$41,5,0)),"") ->  | L24: 0
A25: B) | B25: GERÊNCIA ADMINISTRATIVA
A26: B.1) | B26: GERAL
A27: 1.1 | B27: MÃO DE OBRA
A28: 1.1.1 | B28: P9883 | C28: Chefe do setor administrativo | D28: mês | J28: =IF(H28>0,(VLOOKUP(B28,INSUMOS!$B$52:$E$84,4,0)),"") ->  | L28: =IF(E28=0,E28,(TRUNC((J28*H28+K28*I28)*G28,2))) -> 0
A29: 1.2 | B29: P9809 | C29: Encarregado administrativo | D29: mês | J29: =IF(H29>0,(VLOOKUP(B29,INSUMOS!$B$52:$E$84,4,0)),"") ->  | L29: =IF(E29=0,E29,(TRUNC((J29*H29+K29*I29)*G29,2))) -> 0
A30: 1.1.2 | B30: P9896 | C30: Porteiro | D30: mês | J30: =IF(H30>0,(VLOOKUP(B30,INSUMOS!$B$52:$E$84,4,0)),"") ->  | L30: =IF(E30=0,E30,(TRUNC((J30*H30+K30*I30)*G30,2))) -> 0
A31: 1.3 | B31: P9827 | C31: Vigia | D31: mês | E31: 2 | F31: 34 | G31: =F31*E31 -> 68 | H31: 1 | I31: 0 | J31: =IF(H31>0,(VLOOKUP(B31,INSUMOS!$B$52:$E$84,4,0)),"") -> 5192.63 | L31: =IF(E31=0,E31,(TRUNC((J31*H31+K31*I31)*G31,2))) -> 353098.84
A32: 1.1.3 | B32: P9948 | C32: Motorista | D32: mês | J32: =IF(H32>0,(VLOOKUP(B32,INSUMOS!$B$52:$E$84,4,0)),"") ->  | L32: =IF(E32=0,E32,(TRUNC((J32*H32+K32*I32)*G32,2))) -> 0
A33: 1.2 | B33: VEÍCULOS
A34: 1.2.1 | B34: E9093 | C34: Veículo leve - 53 kW | D34: h | E34: 0 | F34: 34 | G34: 0 | H34: 44 | I34: 176 | J34: =IF(F34>0,(VLOOKUP(B34,INSUMOS!$B$8:$F$41,4,0)),"") -> 31,9285 | K34: =IF(F34>0,(VLOOKUP(B34,INSUMOS!$B$8:$F$41,5,0)),"") -> 4,0200 | L34: =TRUNC((J34*H34+K34*I34)*G34,2) -> 0
A35: B.2) | B35: AUXILIAR
A36: 1.1 | B36: MÃO DE OBRA
A37: 1.1.1 | B37: P9806 | C37: Auxiliar Administrativo | D37: mês | E37: 1 | F37: 34 | G37: =F37*E37 -> 34 | H37: 1 | I37: 0 | J37: =IF(H37>0,(VLOOKUP(B37,INSUMOS!$B$52:$E$84,4,0)),"") -> 5160.599 | L37: =TRUNC((J37*H37+K37*I37)*G37,2) -> 175460.36
A38: 1.1.2 | B38: P9842 | C38: Faxineiro | D38: mês | E38: 1 | F38: 34 | G38: =F38*E38 -> 34 | H38: 1 | I38: 0 | J38: =IF(H38>0,(VLOOKUP(B38,INSUMOS!$B$52:$E$84,4,0)),"") -> 4318.5893 | L38: =TRUNC((J38*H38+K38*I38)*G38,2) -> 146832.03
A39: 2. PARCELA VINCULADA
A40: A) | B40: EQUIPE DE MANUTENÇÃO/CONSERVAÇÃO
A41: 2.1 | B41: MÃO DE OBRA
A42: 2.1.1 | B42: P9916 | C42: Encarregado de Manutenção/Conservação | D42: mês | E42: 1 | F42: 34 | G42: =F42*E42 -> 34 | H42: 1 | I42: 0 | J42: =IF(H42>0,(VLOOKUP(B42,INSUMOS!$B$52:$E$84,4,0)),"") -> 8383.8545 | L42: =TRUNC((J42*H42+K42*I42)*G42,2) -> 285051.05
A43: 2.1.2 | B43: P9875 | C43: Encarregado de Turma | D43: mês | J43: =IF(H43>0,(VLOOKUP(B43,INSUMOS!$B$52:$E$84,4,0)),"") ->  | L43: =IF(E43=0,E43,(TRUNC((J43*H43+K43*I43)*G43,2))) -> 0
A44: 2.2 | B44: VEÍCULOS
A45: 2.2.1 | B45: E9093 | C45: Veículo leve - 53 kW | D45: h | E45: 1 | F45: 34 | G45: =F45*E45 -> 34 | H45: 44 | I45: 176 | J45: =IF(F45>0,(VLOOKUP(B45,INSUMOS!$B$8:$F$41,4,0)),"") -> 31,9285 | K45: =IF(F45>0,(VLOOKUP(B45,INSUMOS!$B$8:$F$41,5,0)),"") -> 4,0200 | L45: =TRUNC((J45*H45+K45*I45)*G45,2) -> 71820.71
A46: 2.2.2 | B46: E9644 | C46: Caminhão para pintura a frio com demarcador de faixas - 143 kW | D46: h | E46: 0 | F46: 0 | G46: =F46*E46 -> 0 | H46: 0 | I46: 0 | J46: =IF(F46>0,(VLOOKUP(B46,INSUMOS!$B$8:$F$41,4,0)),"") ->  | K46: =IF(F46>0,(VLOOKUP(B46,INSUMOS!$B$8:$F$41,5,0)),"") ->  | L46: =IF(E46=0,E46,(TRUNC((J46*H46+K46*I46)*G46,2))) -> 0
A47: B) | B47: EQUIPE DE SEGURANÇA DO TRABALHO
A48: 2.1 | B48: MÃO DE OBRA
A49: 2.1.1 | B49: P9864 | C49: Engenheiro Segurança do Trabalho | D49: mês | E49: 0.38 | F49: 34 | G49: =F49*E49 -> 12.92 | H49: 1 | I49: 0 | J49: =IF(H49>0,(VLOOKUP(B49,INSUMOS!$B$52:$E$84,4,0)),"") -> 18556.6534 | L49: =TRUNC((J49*H49+K49*I49)*G49,2) -> 239751.96
A50: 2.1.2 | B50: P9876 | C50: Técnico Segurança do Trabalho | D50: mês | E50: 1 | F50: 34 | G50: =F50*E50 -> 34 | H50: 1 | I50: 0 | J50: =IF(H50>0,(VLOOKUP(B50,INSUMOS!$B$52:$E$84,4,0)),"") -> 6455.1318 | L50: =TRUNC((J50*H50+K50*I50)*G50,2) -> 219474.48
A51: 2.2 | B51: VEÍCULOS
A52: 2.2.1 | B52: E9093 | C52: Veículo leve - 53 kW | D52: h | E52: 1 | F52: 34 | G52: =F52*E52 -> 34 | H52: 44 | I52: 176 | J52: =IF(F52>0,(VLOOKUP(B52,INSUMOS!$B$8:$F$41,4,0)),"") -> 31,9285 | K52: =IF(F52>0,(VLOOKUP(B52,INSUMOS!$B$8:$F$41,5,0)),"") -> 4,0200 | L52: =TRUNC((J52*H52+K52*I52)*G52,2) -> 71820.71
A53: 3. PARCELA VARIÁVEL
A54: A) | B54: EQUIPES DE ACOMPANHAMENTO DAS FRENTES DE SERVIÇO DE SINALIZAÇÃO/DISPOSITIVOS DE SEGURANÇA
A55: 3.1 | B55: MÃO DE OBRA
A56: 3.1.1 | B56: P9875 | C56: Encarregado de turma | D56: mês | E56: 1 | F56: 25.5 | G56: =F56*E56 -> 25.5 | H56: 1 | I56: 0 | J56: =IF(H56>0,(VLOOKUP(B56,INSUMOS!$B$52:$E$84,4,0)),"") -> 5748.3782 | L56: =TRUNC((J56*H56+K56*I56)*G56,2) -> 146583.64 | M56: =0.75*34 -> 25.5 | N56: 34 | O56: =N56*M56 -> 867
A57: 3.1.2 | B57: P9804 | C57: Apontador | D57: mês | E57: 0.5 | F57: 25.5 | G57: =F57*E57 -> 12.75 | H57: 1 | I57: 0 | J57: =IF(H57>0,(VLOOKUP(B57,INSUMOS!$B$52:$E$84,4,0)),"") -> 5161.1141 | L57: =TRUNC((J57*H57+K57*I57)*G57,2) -> 65804.2
A58: 4. MANUTENÇÃO DO CANTEIRO DE OBRAS E ACAMPAMENTOS
A59: 4.1 | B59: MÃO DE OBRA
A60: 4.1.1 | B60: P9953 | C60: Eletricista | D60: mês | E60: 0.1 | F60: 33 | G60: =F60*E60 -> 3.3 | H60: 1 | I60: 0 | J60: =IF(H60>0,(VLOOKUP(B60,INSUMOS!$B$52:$E$84,4,0)),"") -> 5291.6019 | L60: =TRUNC((J60*H60+K60*I60)*G60,2) -> 17462.28
A61: 4.1.2 | B61: P9954 | C61: Servente | D61: mês | E61: 0.1 | F61: 33 | G61: =F61*E61 -> 3.3 | H61: 1 | I61: 0 | J61: =IF(H61>0,(VLOOKUP(B61,INSUMOS!$B$52:$E$84,4,0)),"") -> 4169.4014 | L61: =TRUNC((J61*H61+K61*I61)*G61,2) -> 13759.02
A62: 4.2 | B62: VEÍCULOS
A63: 4.2.1 | B63: E9686 | C63: Caminhão guindauto | D63: h | E63: 1 | F63: 33 | G63: =F63*E63 -> 33 | H63: 5.5 | I63: 0 | J63: =IF(F63>0,(VLOOKUP(B63,INSUMOS!$B$8:$F$41,4,0)),"") -> 227,1402 | K63: =IF(F63>0,(VLOOKUP(B63,INSUMOS!$B$8:$F$41,5,0)),"") -> 95,3121 | L63: =TRUNC((J63*H63+K63*I63)*G63,2) -> 41225.94
A64: 4.2.2 | B64: E9669 | C64: Caminhão pipa de 8.000 litros | D64: h | E64: 1 | F64: 33 | G64: =F64*E64 -> 33 | H64: 11 | I64: 0 | J64: =IF(F64>0,(VLOOKUP(B64,INSUMOS!$B$8:$F$41,4,0)),"") -> 185,4743 | K64: =IF(F64>0,(VLOOKUP(B64,INSUMOS!$B$8:$F$41,5,0)),"") -> 56,5116 | L64: =TRUNC((J64*H64+K64*I64)*G64,2) -> 67327.17
A66: SubTotal Administração Local | L66: =SUM(L14:L65) -> 3211497.06
A68: Dispesas Diversas (5%) | L68: =ROUND(L66*5%,2) -> 160574.85
A70: Total Administração Local com Dispesas Diversas | L70: =L66+L68 -> 3372071.91
A72: BDI = | K72: =ROUND(Composição!W1/100,4) ->  | L72: =ROUND(L70*K72,2) -> 
A74: Total com BDI | L74: =L72+L70 -> 
A76: Percentual sobre Valor total do Contrato | L76: =L74/'QD 2 - Orçamento'!I121 -> 
A77: Para manutenção de canteiro considerou-se as quantidades reduzidas conforme previsto no Volume 08 - Administracao Local (pag 35)

Sheet QD 7 - Manutenção
J2: ='QD 5 - Canteiro'!$S$2 -> LOTE XX
J4: QUADRO 07
A6: ="RODOVIA: "&Premissa!$C$6 -> RODOVIA: BR 000/XX - BR 000/XX - BR 000/XX
A7: ="ESTADO: "&VLOOKUP(Premissa!$C$1,Premissa!$B$30:$C$56,2,FALSE) -> 
A8: ="EXTENSÃO: "&Premissa!$C$7&" km" ->  | J8: =Premissa!$B$20&Premissa!$C$20 -> Data Base:Mês/20XX
A11: PROGRAMA DE MANUTENÇÃO/CONSERVA QUANTIDADE PADRÃO | M11: =Premissa!$C$3 -> 36 | N11: =M11/12 -> 3
A12: ITEM | B12: CÓDIGO | C12: SERVIÇO | D12: Unidade de Serviço | E12: Unidade da Qtde de Invetário | F12: Qtde Invetário | G12: QUANTIDADE PADRÃO | I12: OBS
G14: UNID. | H14: Qtde
A15: 1.0 | C15: SINALIZAÇÃO HORIZONTAL
A16: 1.1 | B16: =VLOOKUP(K16,PLQ!$B:$K,2,FALSE) -> 5213413B | C16: =VLOOKUP(K16,PLQ!$B:$K,3,FALSE) -> Manutenção/recomposição - pintura de faixa - plástico a frio tricomponente à base de resinas metacrílicas - espessura de 0,6 mm - aspersão | D16: =VLOOKUP(K16,PLQ!$B:$K,6,FALSE) -> m² | E16: =VLOOKUP(K16,PLQ!$B:$K,7,FALSE) -> m² | F16: =VLOOKUP(K16,PLQ!$B:$K,8,FALSE) -> 0 | G16: =VLOOKUP(K16,PLQ!$B:$K,9,FALSE) -> m² | H16: =VLOOKUP(K16,PLQ!$B:$K,10,FALSE) -> 0 | I16: =VLOOKUP(K16,PLQ!$B:$K,4,FALSE) -> 0.06 | J16: =VLOOKUP(K16,PLQ!$B:$K,5,FALSE) -> Total de Pintura de faixa - plástico a frio | K16: 5.1.1
A17: 1.2 | B17: =VLOOKUP(K17,PLQ!$B:$K,2,FALSE) -> 5213408A | C17: =VLOOKUP(K17,PLQ!$B:$K,3,FALSE) -> Manutenção/recomposição - pintura de faixa - termoplástico por aspersão - espessura de 1,5 mm | D17: =VLOOKUP(K17,PLQ!$B:$K,6,FALSE) -> m² | E17: =VLOOKUP(K17,PLQ!$B:$K,7,FALSE) -> m² | F17: =VLOOKUP(K17,PLQ!$B:$K,8,FALSE) -> 0 | G17: =VLOOKUP(K17,PLQ!$B:$K,9,FALSE) -> m² | H17: =VLOOKUP(K17,PLQ!$B:$K,10,FALSE) -> 0 | I17: =VLOOKUP(K17,PLQ!$B:$K,4,FALSE) -> 0.06 | J17: =VLOOKUP(K17,PLQ!$B:$K,5,FALSE) -> Total de Pintura de faixa - termoplástico | K17: 5.1.2
A18: 1.3 | B18: =VLOOKUP(K18,PLQ!$B:$K,2,FALSE) -> 5213355 | C18: =VLOOKUP(K18,PLQ!$B:$K,3,FALSE) -> Manutenção/recomposição de sinalização - pintura de faixa com tinta acrílica emulsionada em água - espessura de 0,5 mm | D18: =VLOOKUP(K18,PLQ!$B:$K,6,FALSE) -> m² | E18: =VLOOKUP(K18,PLQ!$B:$K,7,FALSE) -> m² | F18: =VLOOKUP(K18,PLQ!$B:$K,8,FALSE) -> 0 | G18: =VLOOKUP(K18,PLQ!$B:$K,9,FALSE) -> m² | H18: =VLOOKUP(K18,PLQ!$B:$K,10,FALSE) -> 0 | I18: =VLOOKUP(K18,PLQ!$B:$K,4,FALSE) -> 0.06 | J18: =VLOOKUP(K18,PLQ!$B:$K,5,FALSE) -> Total de Pintura de faixa - base d'água | K18: 5.1.3
A19: 1.4 | B19: =VLOOKUP(K19,PLQ!$B:$K,2,FALSE) -> 5219640 | C19: =VLOOKUP(K19,PLQ!$B:$K,3,FALSE) -> Tacha refletiva metálica - monodirecional tipo III - com um pino - fornecimento e colocação | D19: =VLOOKUP(K19,PLQ!$B:$K,6,FALSE) -> un | E19: =VLOOKUP(K19,PLQ!$B:$K,7,FALSE) -> un | F19: =VLOOKUP(K19,PLQ!$B:$K,8,FALSE) -> 0 | G19: =VLOOKUP(K19,PLQ!$B:$K,9,FALSE) -> un | H19: =VLOOKUP(K19,PLQ!$B:$K,10,FALSE) -> 0 | I19: =VLOOKUP(K19,PLQ!$B:$K,4,FALSE) -> 0.12 | J19: =VLOOKUP(K19,PLQ!$B:$K,5,FALSE) -> Total de tachas metálicas monodirecional - Tipo III | K19: 5.1.4
A20: 1.5 | B20: =VLOOKUP(K20,PLQ!$B:$K,2,FALSE) -> 5219636 | C20: =VLOOKUP(K20,PLQ!$B:$K,3,FALSE) -> Tacha refletiva metálica - bidirecional tipo III - com um pino - fornecimento e colocação | D20: =VLOOKUP(K20,PLQ!$B:$K,6,FALSE) -> un | E20: =VLOOKUP(K20,PLQ!$B:$K,7,FALSE) -> un | F20: =VLOOKUP(K20,PLQ!$B:$K,8,FALSE) -> 0 | G20: =VLOOKUP(K20,PLQ!$B:$K,9,FALSE) -> un | H20: =VLOOKUP(K20,PLQ!$B:$K,10,FALSE) -> 0 | I20: =VLOOKUP(K20,PLQ!$B:$K,4,FALSE) -> 0.12 | J20: =VLOOKUP(K20,PLQ!$B:$K,5,FALSE) -> Total de tachas metálicas bidirecional - Tipo III | K20: 5.1.5
A21: 1.6 | B21: =VLOOKUP(K21,PLQ!$B:$K,2,FALSE) -> 5219608 | C21: =VLOOKUP(K21,PLQ!$B:$K,3,FALSE) -> Tacha refletiva em plástico injetado - bidirecional tipo III - com um pino - fornecimento e colocação | D21: =VLOOKUP(K21,PLQ!$B:$K,6,FALSE) -> un | E21: =VLOOKUP(K21,PLQ!$B:$K,7,FALSE) -> un | F21: =VLOOKUP(K21,PLQ!$B:$K,8,FALSE) -> 0 | G21: =VLOOKUP(K21,PLQ!$B:$K,9,FALSE) -> un | H21: =VLOOKUP(K21,PLQ!$B:$K,10,FALSE) -> 0 | I21: =VLOOKUP(K21,PLQ!$B:$K,4,FALSE) -> 0.12 | J21: =VLOOKUP(K21,PLQ!$B:$K,5,FALSE) -> Total de tachas monodirecional - Tipo III | K21: 5.1.6
A22: 1.7 | B22: =VLOOKUP(K22,PLQ!$B:$K,2,FALSE) -> 5219615 | C22: =VLOOKUP(K22,PLQ!$B:$K,3,FALSE) -> Tacha refletiva em plástico injetado - monodirecional tipo III - com um pino - fornecimento e colocação | D22: =VLOOKUP(K22,PLQ!$B:$K,6,FALSE) -> un | E22: =VLOOKUP(K22,PLQ!$B:$K,7,FALSE) -> un | F22: =VLOOKUP(K22,PLQ!$B:$K,8,FALSE) -> 0 | G22: =VLOOKUP(K22,PLQ!$B:$K,9,FALSE) -> un | H22: =VLOOKUP(K22,PLQ!$B:$K,10,FALSE) -> 0 | I22: =VLOOKUP(K22,PLQ!$B:$K,4,FALSE) -> 0.12 | J22: =VLOOKUP(K22,PLQ!$B:$K,5,FALSE) -> Total de tachas bidirecional - Tipo III | K22: 5.1.7
A23: 1.8 | B23: =VLOOKUP(K23,PLQ!$B:$K,2,FALSE) -> 5213837 | C23: =VLOOKUP(K23,PLQ!$B:$K,3,FALSE) -> Delimitador de tráfego flexível com duas faixas refletivas D = 20 cm e H = 80 cm com chumbador | D23: =VLOOKUP(K23,PLQ!$B:$K,6,FALSE) -> un | E23: =VLOOKUP(K23,PLQ!$B:$K,7,FALSE) -> un | F23: =VLOOKUP(K23,PLQ!$B:$K,8,FALSE) -> 0 | G23: =VLOOKUP(K23,PLQ!$B:$K,9,FALSE) -> un | H23: =VLOOKUP(K23,PLQ!$B:$K,10,FALSE) -> 0 | I23: =VLOOKUP(K23,PLQ!$B:$K,4,FALSE) -> 0.5 | J23: =VLOOKUP(K23,PLQ!$B:$K,5,FALSE) -> Total de delimitadores | K23: 5.1.8
A24: 1.9 | B24: =VLOOKUP(K24,PLQ!$B:$K,2,FALSE) -> 5213832 | C24: =VLOOKUP(K24,PLQ!$B:$K,3,FALSE) -> Remoção de sinalização horizontal com maçarico | D24: =VLOOKUP(K24,PLQ!$B:$K,6,FALSE) -> m² | E24: =VLOOKUP(K24,PLQ!$B:$K,7,FALSE) -> m² | F24: =VLOOKUP(K24,PLQ!$B:$K,8,FALSE) -> 0 | G24: =VLOOKUP(K24,PLQ!$B:$K,9,FALSE) -> m² | H24: =VLOOKUP(K24,PLQ!$B:$K,10,FALSE) -> 0 | I24: =VLOOKUP(K24,PLQ!$B:$K,4,FALSE) -> 0.01 | J24: =VLOOKUP(K24,PLQ!$B:$K,5,FALSE) -> Área total de sinalização | K24: 5.1.9
A25: 1.10 | B25: =VLOOKUP(K25,PLQ!$B:$K,2,FALSE) -> 5213830 | C25: =VLOOKUP(K25,PLQ!$B:$K,3,FALSE) -> Remoção de sinalização horizontal por fresagem | D25: =VLOOKUP(K25,PLQ!$B:$K,6,FALSE) -> m² | E25: =VLOOKUP(K25,PLQ!$B:$K,7,FALSE) -> m² | F25: =VLOOKUP(K25,PLQ!$B:$K,8,FALSE) -> 0 | G25: =VLOOKUP(K25,PLQ!$B:$K,9,FALSE) -> m² | H25: =VLOOKUP(K25,PLQ!$B:$K,10,FALSE) -> 0 | I25: =VLOOKUP(K25,PLQ!$B:$K,4,FALSE) -> 0.01 | J25: =VLOOKUP(K25,PLQ!$B:$K,5,FALSE) -> Área total de sinalização | K25: 5.1.10
A26: 1.11 | B26: =VLOOKUP(K26,PLQ!$B:$K,2,FALSE) -> 5213831 | C26: =VLOOKUP(K26,PLQ!$B:$K,3,FALSE) -> Remoção de sinalização horizontal tipo pintura acrílica por jateamento abrasivo úmido com vidro - utilização de 3 vezes | D26: =VLOOKUP(K26,PLQ!$B:$K,6,FALSE) -> m² | E26: =VLOOKUP(K26,PLQ!$B:$K,7,FALSE) -> m² | F26: =VLOOKUP(K26,PLQ!$B:$K,8,FALSE) -> 0 | G26: =VLOOKUP(K26,PLQ!$B:$K,9,FALSE) -> m² | H26: =VLOOKUP(K26,PLQ!$B:$K,10,FALSE) -> 0 | I26: =VLOOKUP(K26,PLQ!$B:$K,4,FALSE) -> 0.01 | J26: =VLOOKUP(K26,PLQ!$B:$K,5,FALSE) -> Área total de sinalização | K26: 5.1.11
A27: 1.12 | B27: =VLOOKUP(K27,PLQ!$B:$K,2,FALSE) -> 5213360B | C27: =VLOOKUP(K27,PLQ!$B:$K,3,FALSE) -> Remoção de tachas e tachões | D27: =VLOOKUP(K27,PLQ!$B:$K,6,FALSE) -> un | E27: =VLOOKUP(K27,PLQ!$B:$K,7,FALSE) -> un | F27: =VLOOKUP(K27,PLQ!$B:$K,8,FALSE) -> 0 | G27: =VLOOKUP(K27,PLQ!$B:$K,9,FALSE) -> un | H27: =VLOOKUP(K27,PLQ!$B:$K,10,FALSE) -> 0 | I27: =VLOOKUP(K27,PLQ!$B:$K,4,FALSE) -> 0.3 | J27: =VLOOKUP(K27,PLQ!$B:$K,5,FALSE) -> Total de tachas | K27: 5.1.12
A28: 1.13 | B28: =VLOOKUP(K28,PLQ!$B:$K,2,FALSE) -> NOVA 12 | C28: =VLOOKUP(K28,PLQ!$B:$K,3,FALSE) -> Limpeza de tachas refletivas | D28: =VLOOKUP(K28,PLQ!$B:$K,6,FALSE) -> un | E28: =VLOOKUP(K28,PLQ!$B:$K,7,FALSE) -> un | F28: =VLOOKUP(K28,PLQ!$B:$K,8,FALSE) -> 0 | G28: =VLOOKUP(K28,PLQ!$B:$K,9,FALSE) -> un | H28: =VLOOKUP(K28,PLQ!$B:$K,10,FALSE) -> 0 | I28: =VLOOKUP(K28,PLQ!$B:$K,4,FALSE) -> 0.3 | J28: =VLOOKUP(K28,PLQ!$B:$K,5,FALSE) -> Total de tachas (10% ao ano do total de tachas) | K28: 5.1.13
A29: 2.0 | C29: SINALIZAÇÃO VERTICAL
A30: 2.1 | B30: =VLOOKUP(K30,PLQ!$B:$K,2,FALSE) -> 4915719 | C30: =VLOOKUP(K30,PLQ!$B:$K,3,FALSE) -> Recomposição de placa de sinalização | D30: =VLOOKUP(K30,PLQ!$B:$K,6,FALSE) -> m² | E30: =VLOOKUP(K30,PLQ!$B:$K,7,FALSE) -> m² | F30: =VLOOKUP(K30,PLQ!$B:$K,8,FALSE) -> 0 | G30: =VLOOKUP(K30,PLQ!$B:$K,9,FALSE) -> m² | H30: =VLOOKUP(K30,PLQ!$B:$K,10,FALSE) -> 0 | I30: =VLOOKUP(K30,PLQ!$B:$K,4,FALSE) -> 0.1 | J30: =VLOOKUP(K30,PLQ!$B:$K,5,FALSE) -> Total de placas (manter + implantar) | K30: 5.2.1
A31: 2.2 | B31: =VLOOKUP(K31,PLQ!$B:$K,2,FALSE) -> 5213364 | C31: =VLOOKUP(K31,PLQ!$B:$K,3,FALSE) -> Remoção de placa de sinalização | D31: =VLOOKUP(K31,PLQ!$B:$K,6,FALSE) -> m² | E31: =VLOOKUP(K31,PLQ!$B:$K,7,FALSE) -> m² | F31: =VLOOKUP(K31,PLQ!$B:$K,8,FALSE) -> 0 | G31: =VLOOKUP(K31,PLQ!$B:$K,9,FALSE) -> m² | H31: =VLOOKUP(K31,PLQ!$B:$K,10,FALSE) -> 0 | I31: =VLOOKUP(K31,PLQ!$B:$K,4,FALSE) -> 0.02 | J31: =VLOOKUP(K31,PLQ!$B:$K,5,FALSE) -> Total de placas (manter + implantar) | K31: 5.2.2 | L31: =ROUNDUP(F31/Premissa!$C$7/1.25,0) -> 
A32: 2.3 | B32: =VLOOKUP(K32,PLQ!$B:$K,2,FALSE) -> 4915718 | C32: =VLOOKUP(K32,PLQ!$B:$K,3,FALSE) -> Limpeza de placa de sinalização | D32: =VLOOKUP(K32,PLQ!$B:$K,6,FALSE) -> m² | E32: =VLOOKUP(K32,PLQ!$B:$K,7,FALSE) -> m² | F32: =VLOOKUP(K32,PLQ!$B:$K,8,FALSE) -> 0 | G32: =VLOOKUP(K32,PLQ!$B:$K,9,FALSE) -> m² | H32: =VLOOKUP(K32,PLQ!$B:$K,10,FALSE) -> 0 | I32: =VLOOKUP(K32,PLQ!$B:$K,4,FALSE) -> 9 | J32: =VLOOKUP(K32,PLQ!$B:$K,5,FALSE) -> Vezes no horizonte do contrato (ciclo de 4 meses) do total de placas | K32: 5.2.3
A33: 2.4 | B33: =VLOOKUP(K33,PLQ!$B:$K,2,FALSE) -> 4915744 | C33: =VLOOKUP(K33,PLQ!$B:$K,3,FALSE) -> Capina manual | D33: =VLOOKUP(K33,PLQ!$B:$K,6,FALSE) -> m² | E33: =VLOOKUP(K33,PLQ!$B:$K,7,FALSE) -> un | F33: =VLOOKUP(K33,PLQ!$B:$K,8,FALSE) -> 0 | G33: =VLOOKUP(K33,PLQ!$B:$K,9,FALSE) -> m² | H33: =VLOOKUP(K33,PLQ!$B:$K,10,FALSE) -> 0 | I33: =VLOOKUP(K33,PLQ!$B:$K,4,FALSE) -> 9 | J33: =VLOOKUP(K33,PLQ!$B:$K,5,FALSE) -> Vezes no horizonte do contrato (ciclo de 4 meses) do total de placas - raio: 3 metros | K33: 5.2.4
A34: 2.5 | B34: =VLOOKUP(K34,PLQ!$B:$K,2,FALSE) -> 5213572A | C34: =VLOOKUP(K34,PLQ!$B:$K,3,FALSE) -> Fornecimento e implantação de placa em aço - película III + SI (Sinal Impresso Digital c/ Overlay) | D34: =VLOOKUP(K34,PLQ!$B:$K,6,FALSE) -> m² | E34: =VLOOKUP(K34,PLQ!$B:$K,7,FALSE) -> m² | F34: =VLOOKUP(K34,PLQ!$B:$K,8,FALSE) -> 0 | G34: =VLOOKUP(K34,PLQ!$B:$K,9,FALSE) -> m² | H34: =VLOOKUP(K34,PLQ!$B:$K,10,FALSE) -> 0 | I34: =VLOOKUP(K34,PLQ!$B:$K,4,FALSE) -> 0.24 | J34: =VLOOKUP(K34,PLQ!$B:$K,5,FALSE) -> Total de placas (manter + implantar) | K34: 5.2.5
A35: 2.6 | B35: =VLOOKUP(K35,PLQ!$B:$K,2,FALSE) -> 5213487A | C35: =VLOOKUP(K35,PLQ!$B:$K,3,FALSE) -> Fornecimento e implantação de placa em alumínio composto, espessura de 3,0 mm. - película retrorrefletiva tipo III + SI (Sinal Impresso Digital c/ Overlay) | D35: =VLOOKUP(K35,PLQ!$B:$K,6,FALSE) -> m² | E35: =VLOOKUP(K35,PLQ!$B:$K,7,FALSE) -> m² | F35: =VLOOKUP(K35,PLQ!$B:$K,8,FALSE) -> 0 | G35: =VLOOKUP(K35,PLQ!$B:$K,9,FALSE) -> m² | H35: =VLOOKUP(K35,PLQ!$B:$K,10,FALSE) -> 0 | I35: =VLOOKUP(K35,PLQ!$B:$K,4,FALSE) -> 0.24 | J35: =VLOOKUP(K35,PLQ!$B:$K,5,FALSE) -> Total de placas (manter + implantar) | K35: 5.2.6
A36: 2.7 | B36: =VLOOKUP(K36,PLQ!$B:$K,2,FALSE) -> 5213487B | C36: =VLOOKUP(K36,PLQ!$B:$K,3,FALSE) -> Fornecimento e implantação de placa em alumínio composto, espessura de 3,0 mm, modulada, aérea - película retrorrefletiva tipo X + SI (Sinal Impresso Digital c/ Overlay) | D36: =VLOOKUP(K36,PLQ!$B:$K,6,FALSE) -> m² | E36: =VLOOKUP(K36,PLQ!$B:$K,7,FALSE) -> m² | F36: =VLOOKUP(K36,PLQ!$B:$K,8,FALSE) -> 0 | G36: =VLOOKUP(K36,PLQ!$B:$K,9,FALSE) -> m² | H36: =VLOOKUP(K36,PLQ!$B:$K,10,FALSE) -> 0 | I36: =VLOOKUP(K36,PLQ!$B:$K,4,FALSE) -> 0.24 | J36: =VLOOKUP(K36,PLQ!$B:$K,5,FALSE) -> Total de placas (manter + implantar) | K36: 5.2.7
A37: 2.8 | B37: =VLOOKUP(K37,PLQ!$B:$K,2,FALSE) -> 5213352 | C37: =VLOOKUP(K37,PLQ!$B:$K,3,FALSE) -> Fornecimento e implantação de suporte polimérico ecológico maciço quadrado de 8 cm para placa de sinalização | D37: =VLOOKUP(K37,PLQ!$B:$K,6,FALSE) -> un | E37: =VLOOKUP(K37,PLQ!$B:$K,7,FALSE) -> un | F37: =VLOOKUP(K37,PLQ!$B:$K,8,FALSE) -> 0 | G37: =VLOOKUP(K37,PLQ!$B:$K,9,FALSE) -> un | H37: =VLOOKUP(K37,PLQ!$B:$K,10,FALSE) -> 0 | I37: =VLOOKUP(K37,PLQ!$B:$K,4,FALSE) -> 0.24 | J37: =VLOOKUP(K37,PLQ!$B:$K,5,FALSE) -> Total de placas (manter + implantar) | K37: 5.2.8
A38: 2.9 | B38: =VLOOKUP(K38,PLQ!$B:$K,2,FALSE) -> 5213353 | C38: =VLOOKUP(K38,PLQ!$B:$K,3,FALSE) -> Fornecimento e implantação de suporte polimérico ecológico maciço colapsível retangular de 7 x 15 cm para placa de sinalização | D38: =VLOOKUP(K38,PLQ!$B:$K,6,FALSE) -> un | E38: =VLOOKUP(K38,PLQ!$B:$K,7,FALSE) -> un | F38: =VLOOKUP(K38,PLQ!$B:$K,8,FALSE) -> 0 | G38: =VLOOKUP(K38,PLQ!$B:$K,9,FALSE) -> un | H38: =VLOOKUP(K38,PLQ!$B:$K,10,FALSE) -> 0 | I38: =VLOOKUP(K38,PLQ!$B:$K,4,FALSE) -> 0.24 | J38: =VLOOKUP(K38,PLQ!$B:$K,5,FALSE) -> Total de placas (manter + implantar) | K38: 5.2.9
A39: 2.10 | B39: =VLOOKUP(K39,PLQ!$B:$K,2,FALSE) -> 5213350 | C39: =VLOOKUP(K39,PLQ!$B:$K,3,FALSE) -> Fornecimento e implantação de suporte polimérico ecológico maciço colapsível quadrado de 10 cm para placa de sinalização | D39: =VLOOKUP(K39,PLQ!$B:$K,6,FALSE) -> un | E39: =VLOOKUP(K39,PLQ!$B:$K,7,FALSE) -> un | F39: =VLOOKUP(K39,PLQ!$B:$K,8,FALSE) -> 0 | G39: =VLOOKUP(K39,PLQ!$B:$K,9,FALSE) -> un | H39: =VLOOKUP(K39,PLQ!$B:$K,10,FALSE) -> 0 | I39: =VLOOKUP(K39,PLQ!$B:$K,4,FALSE) -> 0.24 | J39: =VLOOKUP(K39,PLQ!$B:$K,5,FALSE) -> Total de placas (manter + implantar) | K39: 5.2.10
A40: 2.11 | B40: =VLOOKUP(K40,PLQ!$B:$K,2,FALSE) -> 5213868 | C40: =VLOOKUP(K40,PLQ!$B:$K,3,FALSE) -> Fornecimento e implantação de suporte metálico galvanizado para placas - 2,00 x 1,00 m | D40: =VLOOKUP(K40,PLQ!$B:$K,6,FALSE) -> un | E40: =VLOOKUP(K40,PLQ!$B:$K,7,FALSE) -> un | F40: =VLOOKUP(K40,PLQ!$B:$K,8,FALSE) -> 0 | G40: =VLOOKUP(K40,PLQ!$B:$K,9,FALSE) -> un | H40: =VLOOKUP(K40,PLQ!$B:$K,10,FALSE) -> 0 | I40: =VLOOKUP(K40,PLQ!$B:$K,4,FALSE) -> 0.24 | J40: =VLOOKUP(K40,PLQ!$B:$K,5,FALSE) -> Total de placas (manter + implantar) | K40: 5.2.11
A41: 2.12 | B41: =VLOOKUP(K41,PLQ!$B:$K,2,FALSE) -> 5213869 | C41: =VLOOKUP(K41,PLQ!$B:$K,3,FALSE) -> Fornecimento e implantação de suporte metálico galvanizado para placas - 3,00 x 1,50 m | D41: =VLOOKUP(K41,PLQ!$B:$K,6,FALSE) -> un | E41: =VLOOKUP(K41,PLQ!$B:$K,7,FALSE) -> un | F41: =VLOOKUP(K41,PLQ!$B:$K,8,FALSE) -> 0 | G41: =VLOOKUP(K41,PLQ!$B:$K,9,FALSE) -> un | H41: =VLOOKUP(K41,PLQ!$B:$K,10,FALSE) -> 0 | I41: =VLOOKUP(K41,PLQ!$B:$K,4,FALSE) -> 0.24 | J41: =VLOOKUP(K41,PLQ!$B:$K,5,FALSE) -> Total de placas (manter + implantar) | K41: 5.2.12
A42: 2.13 | B42: =VLOOKUP(K42,PLQ!$B:$K,2,FALSE) -> 5213870 | C42: =VLOOKUP(K42,PLQ!$B:$K,3,FALSE) -> Fornecimento e implantação de suporte metálico galvanizado para placas - 3,00 x 2,00 m | D42: =VLOOKUP(K42,PLQ!$B:$K,6,FALSE) -> un | E42: =VLOOKUP(K42,PLQ!$B:$K,7,FALSE) -> un | F42: =VLOOKUP(K42,PLQ!$B:$K,8,FALSE) -> 0 | G42: =VLOOKUP(K42,PLQ!$B:$K,9,FALSE) -> un | H42: =VLOOKUP(K42,PLQ!$B:$K,10,FALSE) -> 0 | I42: =VLOOKUP(K42,PLQ!$B:$K,4,FALSE) -> 0.24 | J42: =VLOOKUP(K42,PLQ!$B:$K,5,FALSE) -> Total de placas (manter + implantar) | K42: 5.2.13
A43: 2.14 | B43: =VLOOKUP(K43,PLQ!$B:$K,2,FALSE) -> 5213871 | C43: =VLOOKUP(K43,PLQ!$B:$K,3,FALSE) -> Fornecimento e implantação de suporte metálico galvanizado para placas - 4,00 x 2,00 m | D43: =VLOOKUP(K43,PLQ!$B:$K,6,FALSE) -> un | E43: =VLOOKUP(K43,PLQ!$B:$K,7,FALSE) -> un | F43: =VLOOKUP(K43,PLQ!$B:$K,8,FALSE) -> 0 | G43: =VLOOKUP(K43,PLQ!$B:$K,9,FALSE) -> un | H43: =VLOOKUP(K43,PLQ!$B:$K,10,FALSE) -> 0 | I43: =VLOOKUP(K43,PLQ!$B:$K,4,FALSE) -> 0.24 | J43: =VLOOKUP(K43,PLQ!$B:$K,5,FALSE) -> Total de suportes (manter + implantar) | K43: 5.2.14
A44: 2.15 | B44: =VLOOKUP(K44,PLQ!$B:$K,2,FALSE) -> 5213872 | C44: =VLOOKUP(K44,PLQ!$B:$K,3,FALSE) -> Fornecimento e implantação de suporte metálico galvanizado para placas - 4,00 x 3,00 m | D44: =VLOOKUP(K44,PLQ!$B:$K,6,FALSE) -> un | E44: =VLOOKUP(K44,PLQ!$B:$K,7,FALSE) -> un | F44: =VLOOKUP(K44,PLQ!$B:$K,8,FALSE) -> 0 | G44: =VLOOKUP(K44,PLQ!$B:$K,9,FALSE) -> un | H44: =VLOOKUP(K44,PLQ!$B:$K,10,FALSE) -> 0 | I44: =VLOOKUP(K44,PLQ!$B:$K,4,FALSE) -> 0.24 | J44: =VLOOKUP(K44,PLQ!$B:$K,5,FALSE) -> Total de suportes (manter + implantar) | K44: 5.2.15
A45: 2.16 | B45: =VLOOKUP(K45,PLQ!$B:$K,2,FALSE) -> 5213649 | C45: =VLOOKUP(K45,PLQ!$B:$K,3,FALSE) -> Pórtico metálico com vão de 15,9 m, vento de 35 m/s, área de exposição de até 23,85 m², tensão admissível solo > 200 kN/m² - areia e brita comerciais | D45: =VLOOKUP(K45,PLQ!$B:$K,6,FALSE) -> un | E45: =VLOOKUP(K45,PLQ!$B:$K,7,FALSE) -> un | F45: =VLOOKUP(K45,PLQ!$B:$K,8,FALSE) -> 0 | G45: =VLOOKUP(K45,PLQ!$B:$K,9,FALSE) -> un | H45: =VLOOKUP(K45,PLQ!$B:$K,10,FALSE) -> 1 | I45: =VLOOKUP(K45,PLQ!$B:$K,4,FALSE) -> 0.24 | J45: =VLOOKUP(K45,PLQ!$B:$K,5,FALSE) -> Total de pórticos (no mínimo 1 por lote) | K45: 5.2.16
A46: 2.17 | B46: =VLOOKUP(K46,PLQ!$B:$K,2,FALSE) -> 5213630 | C46: =VLOOKUP(K46,PLQ!$B:$K,3,FALSE) -> Semi-pórtico metálico com vão de 8,3 m, vento de 35 m/s, área de exposição de até 12,45 m², tensão admissível solo > 200 kN/m² - areia e brita comerciais | D46: =VLOOKUP(K46,PLQ!$B:$K,6,FALSE) -> un | E46: =VLOOKUP(K46,PLQ!$B:$K,7,FALSE) -> un | F46: =VLOOKUP(K46,PLQ!$B:$K,8,FALSE) -> 0 | G46: =VLOOKUP(K46,PLQ!$B:$K,9,FALSE) -> un | H46: =VLOOKUP(K46,PLQ!$B:$K,10,FALSE) -> 1 | I46: =VLOOKUP(K46,PLQ!$B:$K,4,FALSE) -> 0.24 | J46: =VLOOKUP(K46,PLQ!$B:$K,5,FALSE) -> Total de semi-pórticos (no mínimo 1 por lote) | K46: 5.2.17
A47: 2.18 | B47: =VLOOKUP(K47,PLQ!$B:$K,2,FALSE) -> 5213636 | C47: =VLOOKUP(K47,PLQ!$B:$K,3,FALSE) -> Semi-pórtico duplo metálico com vão de 2 x 8,3 m, vento de 35 m/s, área de exposição de até 2 x 12,45 m², tensão admissível solo > 200 kN/m² - areia e brita comerciais | D47: =VLOOKUP(K47,PLQ!$B:$K,6,FALSE) -> un | E47: =VLOOKUP(K47,PLQ!$B:$K,7,FALSE) -> un | F47: =VLOOKUP(K47,PLQ!$B:$K,8,FALSE) -> 0 | G47: =VLOOKUP(K47,PLQ!$B:$K,9,FALSE) -> un | H47: =VLOOKUP(K47,PLQ!$B:$K,10,FALSE) -> 1 | I47: =VLOOKUP(K47,PLQ!$B:$K,4,FALSE) -> 0.24 | J47: =VLOOKUP(K47,PLQ!$B:$K,5,FALSE) -> Total de semi-pórticos (no mínimo 1 por lote) | K47: 5.2.18
A48: 2.19 | B48: =VLOOKUP(K48,PLQ!$B:$K,2,FALSE) -> NOVA 01 | C48: =VLOOKUP(K48,PLQ!$B:$K,3,FALSE) -> Suporte metálico com braço projetado - Área de Exposição até 4,50 m² - Fornecimento e Implantação | D48: =VLOOKUP(K48,PLQ!$B:$K,6,FALSE) -> un | E48: =VLOOKUP(K48,PLQ!$B:$K,7,FALSE) -> un | F48: =VLOOKUP(K48,PLQ!$B:$K,8,FALSE) -> 0 | G48: =VLOOKUP(K48,PLQ!$B:$K,9,FALSE) -> un | H48: =VLOOKUP(K48,PLQ!$B:$K,10,FALSE) -> 1 | I48: =VLOOKUP(K48,PLQ!$B:$K,4,FALSE) -> 0.24 | J48: =VLOOKUP(K48,PLQ!$B:$K,5,FALSE) -> Total de braço projetado (no mínimo 1 por lote) | K48: 5.2.19
A49: 3.0 | C49: DISPOSITIVOS DE SEGURANÇA
A50: 3.1 | B50: =VLOOKUP(K50,PLQ!$B:$K,2,FALSE) -> 3713705 | C50: =VLOOKUP(K50,PLQ!$B:$K,3,FALSE) -> Remoção de defensa metálica | D50: =VLOOKUP(K50,PLQ!$B:$K,6,FALSE) -> m | E50: =VLOOKUP(K50,PLQ!$B:$K,7,FALSE) -> m | F50: =VLOOKUP(K50,PLQ!$B:$K,8,FALSE) -> 0 | G50: =VLOOKUP(K50,PLQ!$B:$K,9,FALSE) -> m | H50: =VLOOKUP(K50,PLQ!$B:$K,10,FALSE) -> 0 | I50: =VLOOKUP(K50,PLQ!$B:$K,4,FALSE) -> 0.24 | J50: =VLOOKUP(K50,PLQ!$B:$K,5,FALSE) -> Total de defensas existentes. (VDM médio ponderado) | K50: 5.3.1
A51: 3.2 | B51: =VLOOKUP(K51,PLQ!$B:$K,2,FALSE) -> 3713604 | C51: =VLOOKUP(K51,PLQ!$B:$K,3,FALSE) -> Defensa semimaleável simples - fornecimento e implantação | D51: =VLOOKUP(K51,PLQ!$B:$K,6,FALSE) -> m | E51: =VLOOKUP(K51,PLQ!$B:$K,7,FALSE) -> m | F51: =VLOOKUP(K51,PLQ!$B:$K,8,FALSE) -> 0 | G51: =VLOOKUP(K51,PLQ!$B:$K,9,FALSE) -> m | H51: =VLOOKUP(K51,PLQ!$B:$K,10,FALSE) -> 0 | I51: =VLOOKUP(K51,PLQ!$B:$K,4,FALSE) -> 0.24 | J51: =VLOOKUP(K51,PLQ!$B:$K,5,FALSE) -> Total de defensas existentes. (VDM médio ponderado) | K51: 5.3.2
A52: 3.3 | B52: =VLOOKUP(K52,PLQ!$B:$K,2,FALSE) -> NOVA 08 | C52: =VLOOKUP(K52,PLQ!$B:$K,3,FALSE) -> Dispositivo de contenção longitudinal, certificado segundo a ABNT NBR 15486:2016, tipo (H4b A W4) - Defensa Metálica - Fornecimento e Implantação | D52: =VLOOKUP(K52,PLQ!$B:$K,6,FALSE) -> m | E52: =VLOOKUP(K52,PLQ!$B:$K,7,FALSE) -> m | F52: =VLOOKUP(K52,PLQ!$B:$K,8,FALSE) -> 0 | G52: =VLOOKUP(K52,PLQ!$B:$K,9,FALSE) -> m | H52: =VLOOKUP(K52,PLQ!$B:$K,10,FALSE) -> 0 | I52: =VLOOKUP(K52,PLQ!$B:$K,4,FALSE) -> 0.12 | J52: =VLOOKUP(K52,PLQ!$B:$K,5,FALSE) -> Total de defensas a serem instaladas, por tipo. (VDM médio ponderado) | K52: 5.3.3
A53: 3.4 | B53: =VLOOKUP(K53,PLQ!$B:$K,2,FALSE) -> NOVA 09 | C53: =VLOOKUP(K53,PLQ!$B:$K,3,FALSE) -> Dispositivo de contenção longitudinal, certificado segundo a ABNT NBR 15486:2016, tipo (H4b A W5) - Defensa Metálica - Fornecimento e Implantação | D53: =VLOOKUP(K53,PLQ!$B:$K,6,FALSE) -> m | E53: =VLOOKUP(K53,PLQ!$B:$K,7,FALSE) -> m | F53: =VLOOKUP(K53,PLQ!$B:$K,8,FALSE) -> 0 | G53: =VLOOKUP(K53,PLQ!$B:$K,9,FALSE) -> m | H53: =VLOOKUP(K53,PLQ!$B:$K,10,FALSE) -> 0 | I53: =VLOOKUP(K53,PLQ!$B:$K,4,FALSE) -> 0.12 | J53: =VLOOKUP(K53,PLQ!$B:$K,5,FALSE) -> Total de defensas a serem instaladas, por tipo. (VDM médio ponderado) | K53: 5.3.4
A54: 3.5 | B54: =VLOOKUP(K54,PLQ!$B:$K,2,FALSE) -> NOVA 07 | C54: =VLOOKUP(K54,PLQ!$B:$K,3,FALSE) -> Dispositivo de contenção longitudinal, certificado segundo a ABNT NBR 15486:2016, tipo (H3 A W5) - Defensa Metálica - Fornecimento e Implantação | D54: =VLOOKUP(K54,PLQ!$B:$K,6,FALSE) -> m | E54: =VLOOKUP(K54,PLQ!$B:$K,7,FALSE) -> m | F54: =VLOOKUP(K54,PLQ!$B:$K,8,FALSE) -> 0 | G54: =VLOOKUP(K54,PLQ!$B:$K,9,FALSE) -> m | H54: =VLOOKUP(K54,PLQ!$B:$K,10,FALSE) -> 0 | I54: =VLOOKUP(K54,PLQ!$B:$K,4,FALSE) -> 0.12 | J54: =VLOOKUP(K54,PLQ!$B:$K,5,FALSE) -> Total de defensas a serem instaladas, por tipo. (VDM médio ponderado) | K54: 5.3.5
A55: 3.6 | B55: =VLOOKUP(K55,PLQ!$B:$K,2,FALSE) -> NOVA 06 | C55: =VLOOKUP(K55,PLQ!$B:$K,3,FALSE) -> Dispositivo de contenção longitudinal, certificado segundo a ABNT NBR 15486:2016, tipo (H2 A W3) - Defensa Metálica - Fornecimento e Implantação | D55: =VLOOKUP(K55,PLQ!$B:$K,6,FALSE) -> m | E55: =VLOOKUP(K55,PLQ!$B:$K,7,FALSE) -> m | F55: =VLOOKUP(K55,PLQ!$B:$K,8,FALSE) -> 0 | G55: =VLOOKUP(K55,PLQ!$B:$K,9,FALSE) -> m | H55: =VLOOKUP(K55,PLQ!$B:$K,10,FALSE) -> 0 | I55: =VLOOKUP(K55,PLQ!$B:$K,4,FALSE) -> 0.12 | J55: =VLOOKUP(K55,PLQ!$B:$K,5,FALSE) -> Total de defensas a serem instaladas, por tipo. (VDM médio ponderado) | K55: 5.3.6
A56: 3.7 | B56: =VLOOKUP(K56,PLQ!$B:$K,2,FALSE) -> NOVA 05 | C56: =VLOOKUP(K56,PLQ!$B:$K,3,FALSE) -> Dispositivo de contenção longitudinal, certificado segundo a ABNT NBR 15486:2016, tipo (H1 A W2) - Defensa Metálica - Fornecimento e Implantação | D56: =VLOOKUP(K56,PLQ!$B:$K,6,FALSE) -> m | E56: =VLOOKUP(K56,PLQ!$B:$K,7,FALSE) -> m | F56: =VLOOKUP(K56,PLQ!$B:$K,8,FALSE) -> 0 | G56: =VLOOKUP(K56,PLQ!$B:$K,9,FALSE) -> m | H56: =VLOOKUP(K56,PLQ!$B:$K,10,FALSE) -> 0 | I56: =VLOOKUP(K56,PLQ!$B:$K,4,FALSE) -> 0.12 | J56: =VLOOKUP(K56,PLQ!$B:$K,5,FALSE) -> Total de defensas a serem instaladas, por tipo. (VDM médio ponderado) | K56: 5.3.7
A57: 3.8 | B57: =VLOOKUP(K57,PLQ!$B:$K,2,FALSE) -> NOVA 04 | C57: =VLOOKUP(K57,PLQ!$B:$K,3,FALSE) -> Dispositivo de contenção longitudinal, certificado segundo a ABNT NBR 15486:2016, tipo (N2 A W2) - Defensa Metálica - Fornecimento e Implantação | D57: =VLOOKUP(K57,PLQ!$B:$K,6,FALSE) -> m | E57: =VLOOKUP(K57,PLQ!$B:$K,7,FALSE) -> m | F57: =VLOOKUP(K57,PLQ!$B:$K,8,FALSE) -> 0 | G57: =VLOOKUP(K57,PLQ!$B:$K,9,FALSE) -> m | H57: =VLOOKUP(K57,PLQ!$B:$K,10,FALSE) -> 0 | I57: =VLOOKUP(K57,PLQ!$B:$K,4,FALSE) -> 0.12 | J57: =VLOOKUP(K57,PLQ!$B:$K,5,FALSE) -> Total de defensas a serem instaladas, por tipo. (VDM médio ponderado) | K57: 5.3.8
A58: 3.9 | B58: =VLOOKUP(K58,PLQ!$B:$K,2,FALSE) -> NOVA 10 | C58: =VLOOKUP(K58,PLQ!$B:$K,3,FALSE) -> Terminal absorvedor de energia, certificado segundo a ABNT NBR 15.486:2016, especificado conforme NCHRP 350 nível de ensaio 2 (70 km/h) ou EN 1317 nível de ensaio 2 (80 km/h) – fornecimento e instalação | D58: =VLOOKUP(K58,PLQ!$B:$K,6,FALSE) -> un | E58: =VLOOKUP(K58,PLQ!$B:$K,7,FALSE) -> un | F58: =VLOOKUP(K58,PLQ!$B:$K,8,FALSE) -> 0 | G58: =VLOOKUP(K58,PLQ!$B:$K,9,FALSE) -> un | H58: =VLOOKUP(K58,PLQ!$B:$K,10,FALSE) -> 0 | I58: =VLOOKUP(K58,PLQ!$B:$K,4,FALSE) -> 0.24 | J58: =VLOOKUP(K58,PLQ!$B:$K,5,FALSE) -> Total de defensas a serem instaladas, por tipo. (VDM médio ponderado) | K58: 5.3.9
A59: 3.10 | B59: =VLOOKUP(K59,PLQ!$B:$K,2,FALSE) -> NOVA 11 | C59: =VLOOKUP(K59,PLQ!$B:$K,3,FALSE) -> Terminal absorvedor de energia, certificado segundo a ABNT NBR 15.486:2016, especificado conforme NCHRP 350 nível de ensaio 3 (100 km/h) ou EN 1317 nível de ensaio 3 (100 km/h) - Fornecimento e instalação | D59: =VLOOKUP(K59,PLQ!$B:$K,6,FALSE) -> un | E59: =VLOOKUP(K59,PLQ!$B:$K,7,FALSE) -> un | F59: =VLOOKUP(K59,PLQ!$B:$K,8,FALSE) -> 0 | G59: =VLOOKUP(K59,PLQ!$B:$K,9,FALSE) -> un | H59: =VLOOKUP(K59,PLQ!$B:$K,10,FALSE) -> 0 | I59: =VLOOKUP(K59,PLQ!$B:$K,4,FALSE) -> 0.24 | J59: =VLOOKUP(K59,PLQ!$B:$K,5,FALSE) -> Total de defensas a serem instaladas, por tipo. (VDM médio ponderado) | K59: 5.3.10
A60: 3.11 | B60: =VLOOKUP(K60,PLQ!$B:$K,2,FALSE) -> 3713605 | C60: =VLOOKUP(K60,PLQ!$B:$K,3,FALSE) -> Ancoragem de defensa semi-maleável simples - fornecimento e implantação | D60: =VLOOKUP(K60,PLQ!$B:$K,6,FALSE) -> m | E60: =VLOOKUP(K60,PLQ!$B:$K,7,FALSE) -> m | F60: =VLOOKUP(K60,PLQ!$B:$K,8,FALSE) -> 0 | G60: =VLOOKUP(K60,PLQ!$B:$K,9,FALSE) -> m | H60: =VLOOKUP(K60,PLQ!$B:$K,10,FALSE) -> 0 | I60: =VLOOKUP(K60,PLQ!$B:$K,4,FALSE) -> 0.24 | J60: =VLOOKUP(K60,PLQ!$B:$K,5,FALSE) -> Total de defensas a serem instaladas, por tipo. (VDM médio ponderado) | K60: 5.3.11
A61: 3.12 | B61: =VLOOKUP(K61,PLQ!$B:$K,2,FALSE) -> 3713690 | C61: =VLOOKUP(K61,PLQ!$B:$K,3,FALSE) -> Terminal de ancoragem de defensa metálica em barreira New Jersey - fornecimento e implantação | D61: =VLOOKUP(K61,PLQ!$B:$K,6,FALSE) -> un | E61: =VLOOKUP(K61,PLQ!$B:$K,7,FALSE) -> un | F61: =VLOOKUP(K61,PLQ!$B:$K,8,FALSE) -> 0 | G61: =VLOOKUP(K61,PLQ!$B:$K,9,FALSE) -> un | H61: =VLOOKUP(K61,PLQ!$B:$K,10,FALSE) -> 0 | I61: =VLOOKUP(K61,PLQ!$B:$K,4,FALSE) -> 0.24 | J61: =VLOOKUP(K61,PLQ!$B:$K,5,FALSE) -> Total de defensas a serem instaladas, por tipo. (VDM médio ponderado) | K61: 5.3.12
A62: 3.13 | B62: =VLOOKUP(K62,PLQ!$B:$K,2,FALSE) -> 3713873 | C62: =VLOOKUP(K62,PLQ!$B:$K,3,FALSE) -> Módulo de transição de defensa metálica para barreira rígida - fornecimento e implantação | D62: =VLOOKUP(K62,PLQ!$B:$K,6,FALSE) -> un | E62: =VLOOKUP(K62,PLQ!$B:$K,7,FALSE) -> un | F62: =VLOOKUP(K62,PLQ!$B:$K,8,FALSE) -> 0 | G62: =VLOOKUP(K62,PLQ!$B:$K,9,FALSE) -> un | H62: =VLOOKUP(K62,PLQ!$B:$K,10,FALSE) -> 0 | I62: =VLOOKUP(K62,PLQ!$B:$K,4,FALSE) -> 0.24 | J62: =VLOOKUP(K62,PLQ!$B:$K,5,FALSE) -> Total de defensas a serem instaladas, por tipo. (VDM médio ponderado) | K62: 5.3.13
A63: 3.14 | B63: =VLOOKUP(K63,PLQ!$B:$K,2,FALSE) -> NOVA 02 | C63: =VLOOKUP(K63,PLQ!$B:$K,3,FALSE) -> Fornecimento e colocação de dispositivo Refletivo para defensas em tangente | D63: =VLOOKUP(K63,PLQ!$B:$K,6,FALSE) -> un | E63: =VLOOKUP(K63,PLQ!$B:$K,7,FALSE) -> un | F63: =VLOOKUP(K63,PLQ!$B:$K,8,FALSE) -> 0 | G63: =VLOOKUP(K63,PLQ!$B:$K,9,FALSE) -> un | H63: =VLOOKUP(K63,PLQ!$B:$K,10,FALSE) -> 0 | I63: =VLOOKUP(K63,PLQ!$B:$K,4,FALSE) -> 0.24 | J63: =VLOOKUP(K63,PLQ!$B:$K,5,FALSE) -> Total de defensas a serem instaladas, por tipo. (VDM médio ponderado) | K63: 5.3.14
A64: 3.15 | B64: =VLOOKUP(K64,PLQ!$B:$K,2,FALSE) -> NOVA 03 | C64: =VLOOKUP(K64,PLQ!$B:$K,3,FALSE) -> Fornecimento e colocação de Painel de Delineamento Refletivo para defensas em curvas | D64: =VLOOKUP(K64,PLQ!$B:$K,6,FALSE) -> un | E64: =VLOOKUP(K64,PLQ!$B:$K,7,FALSE) -> un | F64: =VLOOKUP(K64,PLQ!$B:$K,8,FALSE) -> 0 | G64: =VLOOKUP(K64,PLQ!$B:$K,9,FALSE) -> un | H64: =VLOOKUP(K64,PLQ!$B:$K,10,FALSE) -> 0 | I64: =VLOOKUP(K64,PLQ!$B:$K,4,FALSE) -> 0.24 | J64: =VLOOKUP(K64,PLQ!$B:$K,5,FALSE) -> Total de defensas a serem instaladas, por tipo. (VDM médio ponderado) | K64: 5.3.15

Sheet QD 8 - EFS
G2: ='QD 5 - Canteiro'!$S$2 -> LOTE XX
G4: QUADRO 08
A6: ="RODOVIA: "&Premissa!$C$6 -> RODOVIA: BR 000/XX - BR 000/XX - BR 000/XX
A7: ="ESTADO: "&VLOOKUP(Premissa!$C$1,Premissa!$B$30:$C$56,2,FALSE) -> 
A8: ="EXTENSÃO: "&Premissa!$C$7&" km" ->  | F8: =Premissa!$B$20&Premissa!$C$20 -> Data Base:Mês/20XX
A11: ITEM | B11: CÓDIGO | C11: DISCRIMINAÇÃO | D11: UNID. | E11: QTDE | F11: Produção Horária (und/h) | G11: Efs
A12: CÁLCULO DAS EQUIPES DE ACOMPANHAMENTO DAS FRENTES DE SERVIÇO DE SINALIZAÇÃO/DISPOSITIVOS DE SEGURANÇA | J12: SH | L12: SV | N12: DC
A13: 1.1 | C13: Instalação de canteiro de obras | D13: und. | E13: 1
A14: 1.2 | C14: Manutenção do canteiro de obras | D14: mês | E14: 35
A15: 1.3 | C15: Mobilizaçao e desmobilização | D15: und. | E15: 2
A16: 2 | C16: SINALIZAÇÃO HORIZONTAL
A17: 2.1 | B17: =VLOOKUP(A17,'QD 2 - Orçamento'!$B$18:$F$121,2,FALSE) -> 5213413A | C17: =VLOOKUP(A17,'QD 2 - Orçamento'!$B$18:$F$121,3,FALSE) -> Pintura de faixa - plástico a frio tipo I - espessura de 0,6 mm - aspersão​ | D17: =VLOOKUP(A17,'QD 2 - Orçamento'!$B$18:$F$121,4,FALSE) -> m² | E17: =VLOOKUP(A17,'QD 2 - Orçamento'!$B$18:$F$121,5,FALSE) -> 0 | F17: =VLOOKUP(B17,Composição!$C$4:$S$5015,17,FALSE) -> 90.01 | G17: =ROUND(0.2*E17/(F17*182.49),2) -> 0 | J17: =SUM(J18:J166) -> 0 | L17: =SUM(L18:L166) -> 0 | N17: =SUM(N18:N166) -> 0
A18: 2.2 | B18: =VLOOKUP(A18,'QD 2 - Orçamento'!$B$18:$F$121,2,FALSE) -> 5213408 | C18: =VLOOKUP(A18,'QD 2 - Orçamento'!$B$18:$F$121,3,FALSE) -> Pintura de faixa - termoplástico por aspersão - espessura de 1,5 mm | D18: =VLOOKUP(A18,'QD 2 - Orçamento'!$B$18:$F$121,4,FALSE) -> m² | E18: =VLOOKUP(A18,'QD 2 - Orçamento'!$B$18:$F$121,5,FALSE) -> 0 | F18: =VLOOKUP(B18,Composição!$C$4:$S$5015,17,FALSE) -> 95.4 | G18: =ROUND(0.2*E18/(F18*182.49),2) -> 0 | J18: =E17/F17 -> 0
A19: 2.3 | B19: =VLOOKUP(A19,'QD 2 - Orçamento'!$B$18:$F$121,2,FALSE) -> 5213403 | C19: =VLOOKUP(A19,'QD 2 - Orçamento'!$B$18:$F$121,3,FALSE) -> Pintura de faixa - tinta base acrílica emulsionada em água - espessura de 0,5 mm | D19: =VLOOKUP(A19,'QD 2 - Orçamento'!$B$18:$F$121,4,FALSE) -> m² | E19: =VLOOKUP(A19,'QD 2 - Orçamento'!$B$18:$F$121,5,FALSE) -> 0 | F19: =VLOOKUP(B19,Composição!$C$4:$S$5015,17,FALSE) -> 163.23 | G19: =ROUND(0.2*E19/(F19*182.49),2) -> 0 | J19: 0
A20: 2.4 | B20: =VLOOKUP(A20,'QD 2 - Orçamento'!$B$18:$F$121,2,FALSE) -> 5213402 | C20: =VLOOKUP(A20,'QD 2 - Orçamento'!$B$18:$F$121,3,FALSE) -> Pintura de faixa - tinta base acrílica emulsionada em água - espessura de 0,4 mm | D20: =VLOOKUP(A20,'QD 2 - Orçamento'!$B$18:$F$121,4,FALSE) -> m² | E20: =VLOOKUP(A20,'QD 2 - Orçamento'!$B$18:$F$121,5,FALSE) -> 0 | F20: =VLOOKUP(B20,Composição!$C$4:$S$5015,17,FALSE) -> 177.07 | G20: =ROUND(0.2*E20/(F20*182.49),2) -> 0 | J20: 0 | U20: =F19 -> 163.23 | W20: =TRUNC(($U20-((10^{15,12,9,6,3})*INT($U20/(10^{15,12,9,6,3}))))/10^{12,9,6,3,0}) -> 0 | X20: 0 | Y20: 0 | Z20: 0 | AA20: 163 | AB20: =IF($U20<10^15,"",IF(OR(W20=1,AND(W20>=100,MOD(W20,100)=0)),IF(TRUNC(($U20-(10^12*INT($U20/(10^12)))))=0,_e_,_sp_),IF(W20<100,"",_sp_)))&IF(W20=1,INDEX(Sng,1,5),IF(W20<100,"",IF(W20=100,OCem,INDEX(www,1,TRUNC(W20/100)))))&IF(MOD(W20,100)=0,"",IF(W20=1,"",IF(OR(MOD(W20,100)>=20,MOD(W20,100)=10),IF(OR(W20>100,AND($U20>10^15,TRUNC(($U20-(10^12*INT($U20/(10^12)))))=0)),_e_,IF($U20>10^15,_sp_,"")),"")))&IF(MOD(W20,100)=0,"",IF(W20=1,"",IF(OR(MOD(W20,100)>=20,MOD(W20,100)=10),INDEX(Dez,1,TRUNC(MOD(W20,100)/10)),"")))&IF(MOD(W20,100)=0,"",IF(W20=1,"",IF(MOD(MOD(W20,100),10)<>0,IF(OR(W20>20,AND($U20>10^15,TRUNC(($U20-(10^12*INT($U20/(10^12)))))=0)),_e_,IF($U20>10^15,_sp_,"")),"")))&IF(W20=0,"",IF(W20=1,"",IF(MOD(MOD(W20,100),10)=0,"",IF(MOD(W20,100)<20,INDEX(Sml,1,MOD(W20,100)),INDEX(Sml,1,MOD(MOD(W20,100),10)))))) & IF(W20<=1,"",INDEX(Plu,1,5)) ->  | AC20: =IF($U20<10^12,"",IF(OR(X20=1,AND(X20>=100,MOD(X20,100)=0)),IF(TRUNC(($U20-(10^9*INT($U20/(10^9)))))=0,_e_,_sp_),IF(X20<100,"",_sp_)))&IF(X20=1,INDEX(Sng,1,4),IF(X20<100,"",IF(X20=100,OCem,INDEX(www,1,TRUNC(X20/100)))))&IF(MOD(X20,100)=0,"",IF(X20=1,"",IF(OR(MOD(X20,100)>=20,MOD(X20,100)=10),IF(OR(X20>100,AND($U20>10^12,TRUNC(($U20-(10^9*INT($U20/(10^9)))))=0)),_e_,IF($U20>10^12,_sp_,"")),"")))&IF(MOD(X20,100)=0,"",IF(X20=1,"",IF(OR(MOD(X20,100)>=20,MOD(X20,100)=10),INDEX(Dez,1,TRUNC(MOD(X20,100)/10)),"")))&IF(MOD(X20,100)=0,"",IF(X20=1,"",IF(MOD(MOD(X20,100),10)<>0,IF(OR(X20>20,AND($U20>10^12,TRUNC(($U20-(10^9*INT($U20/(10^9)))))=0)),_e_,IF($U20>10^12,_sp_,"")),"")))&IF(X20=0,"",IF(X20=1,"",IF(MOD(MOD(X20,100),10)=0,"",IF(MOD(X20,100)<20,INDEX(Sml,1,MOD(X20,100)),INDEX(Sml,1,MOD(MOD(X20,100),10)))))) & IF(X20<=1,"",INDEX(Plu,1,4)) ->  | AD20: =IF($U20<10^9,"",IF(OR(Y20=1,AND(Y20>=100,MOD(Y20,100)=0)),IF(TRUNC(($U20-(10^6*INT($U20/(10^6)))))=0,_e_,_sp_),IF(Y20<100,"",_sp_)))&IF(Y20=1,INDEX(Sng,1,3),IF(Y20<100,"",IF(Y20=100,OCem,INDEX(www,1,TRUNC(Y20/100)))))&IF(MOD(Y20,100)=0,"",IF(Y20=1,"",IF(OR(MOD(Y20,100)>=20,MOD(Y20,100)=10),IF(OR(Y20>100,AND($U20>10^9,TRUNC(($U20-(10^6*INT($U20/(10^6)))))=0)),_e_,IF($U20>10^9,_sp_,"")),"")))&IF(MOD(Y20,100)=0,"",IF(Y20=1,"",IF(OR(MOD(Y20,100)>=20,MOD(Y20,100)=10),INDEX(Dez,1,TRUNC(MOD(Y20,100)/10)),"")))&IF(MOD(Y20,100)=0,"",IF(Y20=1,"",IF(MOD(MOD(Y20,100),10)<>0,IF(OR(Y20>20,AND($U20>10^9,TRUNC(($U20-(10^6*INT($U20/(10^6)))))=0)),_e_,IF($U20>10^9,_sp_,"")),"")))&IF(Y20=0,"",IF(Y20=1,"",IF(MOD(MOD(Y20,100),10)=0,"",IF(MOD(Y20,100)<20,INDEX(Sml,1,MOD(Y20,100)),INDEX(Sml,1,MOD(MOD(Y20,100),10)))))) & IF(Y20<=1,"",INDEX(Plu,1,3)) ->  | AE20: =IF($U20<10^6,"",IF(OR(Z20=1,AND(Z20>=100,MOD(Z20,100)=0)),IF(TRUNC(($U20-(10^3*INT($U20/(10^3)))))=0,_e_,_sp_),IF(Z20<100,"",_sp_)))&IF(Z20=1,INDEX(Sng,1,2),IF(Z20<100,"",IF(Z20=100,OCem,INDEX(www,1,TRUNC(Z20/100)))))&IF(MOD(Z20,100)=0,"",IF(Z20=1,"",IF(OR(MOD(Z20,100)>=20,MOD(Z20,100)=10),IF(OR(Z20>100,AND($U20>10^6,TRUNC(($U20-(10^3*INT($U20/(10^3)))))=0)),_e_,IF($U20>10^6,_sp_,"")),"")))&IF(MOD(Z20,100)=0,"",IF(Z20=1,"",IF(OR(MOD(Z20,100)>=20,MOD(Z20,100)=10),INDEX(Dez,1,TRUNC(MOD(Z20,100)/10)),"")))&IF(MOD(Z20,100)=0,"",IF(Z20=1,"",IF(MOD(MOD(Z20,100),10)<>0,IF(OR(Z20>20,AND($U20>10^6,TRUNC(($U20-(10^3*INT($U20/(10^3)))))=0)),_e_,IF($U20>10^6,_sp_,"")),"")))&IF(Z20=0,"",IF(Z20=1,"",IF(MOD(MOD(Z20,100),10)=0,"",IF(MOD(Z20,100)<20,INDEX(Sml,1,MOD(Z20,100)),INDEX(Sml,1,MOD(MOD(Z20,100),10)))))) & IF(Z20<=1,"",INDEX(Plu,1,2)) ->  | AF20: =IF($U20<10^3,"",IF(OR(AA20=1,AND(AA20>=100,MOD(AA20,100)=0)),IF(TRUNC(($U20-(10^0*INT($U20/(10^0)))))=0,_e_,_sp_),IF(AA20<100,"",_sp_)))&IF(AA20=1,INDEX(Sng,1,1),IF(AA20<100,"",IF(AA20=100,OCem,INDEX(www,1,TRUNC(AA20/100)))))&IF(MOD(AA20,100)=0,"",IF(AA20=1,"",IF(OR(MOD(AA20,100)>=20,MOD(AA20,100)=10),IF(OR(AA20>100,AND($U20>10^3,TRUNC(($U20-(10^0*INT($U20/(10^0)))))=0)),_e_,IF($U20>10^3,_sp_,"")),"")))&IF(MOD(AA20,100)=0,"",IF(AA20=1,"",IF(OR(MOD(AA20,100)>=20,MOD(AA20,100)=10),INDEX(Dez,1,TRUNC(MOD(AA20,100)/10)),"")))&IF(MOD(AA20,100)=0,"",IF(AA20=1,"",IF(MOD(MOD(AA20,100),10)<>0,IF(OR(AA20>20,AND($U20>10^3,TRUNC(($U20-(10^0*INT($U20/(10^0)))))=0)),_e_,IF($U20>10^3,_sp_,"")),"")))&IF(AA20=0,"",IF(AA20=1,"",IF(MOD(MOD(AA20,100),10)=0,"",IF(MOD(AA20,100)<20,INDEX(Sml,1,MOD(AA20,100)),INDEX(Sml,1,MOD(MOD(AA20,100),10)))))) & IF(AA20<=1,"",INDEX(Plu,1,1)) -> cento e sessenta e três | AG20: =IF($U20<1,"",IF(TRUNC($U20)=1," real",IF(AND($U20>=10^6,TRUNC(MOD($U20,10^6))=0)," de","") & " reais")) -> reais | AH20: =IF((ROUND($U20-TRUNC($U20),2)*100)=0,"",IF($U20>=1,_e_,"") & IF((ROUND($U20-TRUNC($U20),2)*100)=1,"um centavo",IF((ROUND($U20-TRUNC($U20),2)*100)>=20,INDEX(Dez,1,TRUNC((ROUND($U20-TRUNC($U20),2)*100)/10)) & IF(MOD((ROUND($U20-TRUNC($U20),2)*100),10)<>0,_e_ & INDEX(Sml,1,MOD((ROUND($U20-TRUNC($U20),2)*100),10)),""),INDEX(Sml,1,(ROUND($U20-TRUNC($U20),2)*100))) & " centavos")) -> e vinte e três centavos | AI20: =AB20&AC20&AD20&AE20&AF20&AG20&AH20 -> cento e sessenta e três reais e vinte e três centavos
A21: 2.5 | B21: =VLOOKUP(A21,'QD 2 - Orçamento'!$B$18:$F$121,2,FALSE) -> 5213409 | C21: =VLOOKUP(A21,'QD 2 - Orçamento'!$B$18:$F$121,3,FALSE) -> Pintura de setas e zebrados - termoplástico por extrusão - espessura de 3,0 mm | D21: =VLOOKUP(A21,'QD 2 - Orçamento'!$B$18:$F$121,4,FALSE) -> m² | E21: =VLOOKUP(A21,'QD 2 - Orçamento'!$B$18:$F$121,5,FALSE) -> 0 | F21: =VLOOKUP(B21,Composição!$C$4:$S$5015,17,FALSE) -> 39.52 | G21: =ROUND(0.2*E21/(F21*182.49),2) -> 0 | J21: 0 | U21: 177.07 | W21: =TRUNC(($U21-((10^{15,12,9,6,3})*INT($U21/(10^{15,12,9,6,3}))))/10^{12,9,6,3,0}) -> 0 | X21: 0 | Y21: 0 | Z21: 0 | AA21: 177 | AF21: cento e setenta e sete | AG21: reais | AH21: e sete centavos | AI21: cento e setenta e sete reais e sete centavos
A22: 2.6 | B22: =VLOOKUP(A22,'QD 2 - Orçamento'!$B$18:$F$121,2,FALSE) -> 5219640 | C22: =VLOOKUP(A22,'QD 2 - Orçamento'!$B$18:$F$121,3,FALSE) -> Tacha refletiva metálica - monodirecional tipo III - com um pino - fornecimento e colocação | D22: =VLOOKUP(A22,'QD 2 - Orçamento'!$B$18:$F$121,4,FALSE) -> un | E22: =VLOOKUP(A22,'QD 2 - Orçamento'!$B$18:$F$121,5,FALSE) -> 0 | F22: =VLOOKUP(B22,Composição!$C$4:$S$5015,17,FALSE) -> 36 | G22: 0 | J22: 0 | U22: 39.52 | W22: =TRUNC(($U22-((10^{15,12,9,6,3})*INT($U22/(10^{15,12,9,6,3}))))/10^{12,9,6,3,0}) -> 0 | X22: 0 | Y22: 0 | Z22: 0 | AA22: 39 | AF22: trinta e nove | AG22: reais | AH22: e cinquenta e dois centavos | AI22: trinta e nove reais e cinquenta e dois centavos
A23: 2.7 | B23: =VLOOKUP(A23,'QD 2 - Orçamento'!$B$18:$F$121,2,FALSE) -> 5219636 | C23: =VLOOKUP(A23,'QD 2 - Orçamento'!$B$18:$F$121,3,FALSE) -> Tacha refletiva metálica - bidirecional tipo III - com um pino - fornecimento e colocação | D23: =VLOOKUP(A23,'QD 2 - Orçamento'!$B$18:$F$121,4,FALSE) -> un | E23: =VLOOKUP(A23,'QD 2 - Orçamento'!$B$18:$F$121,5,FALSE) -> 0 | F23: =VLOOKUP(B23,Composição!$C$4:$S$5015,17,FALSE) -> 36 | G23: 0 | J23: 0 | U23: 36 | W23: =TRUNC(($U23-((10^{15,12,9,6,3})*INT($U23/(10^{15,12,9,6,3}))))/10^{12,9,6,3,0}) -> 0 | X23: 0 | Y23: 0 | Z23: 0 | AA23: 36 | AF23: trinta e seis | AG23: reais | AI23: trinta e seis reais
A24: 2.8 | B24: =VLOOKUP(A24,'QD 2 - Orçamento'!$B$18:$F$121,2,FALSE) -> 5219608 | C24: =VLOOKUP(A24,'QD 2 - Orçamento'!$B$18:$F$121,3,FALSE) -> Tacha refletiva em plástico injetado - bidirecional tipo III - com um pino - fornecimento e colocação | D24: =VLOOKUP(A24,'QD 2 - Orçamento'!$B$18:$F$121,4,FALSE) -> un | E24: =VLOOKUP(A24,'QD 2 - Orçamento'!$B$18:$F$121,5,FALSE) -> 0 | F24: =VLOOKUP(B24,Composição!$C$4:$S$5015,17,FALSE) -> 36 | G24: 0 | J24: 0 | U24: 36 | W24: =TRUNC(($U24-((10^{15,12,9,6,3})*INT($U24/(10^{15,12,9,6,3}))))/10^{12,9,6,3,0}) -> 0 | X24: 0 | Y24: 0 | Z24: 0 | AA24: 36 | AF24: trinta e seis | AG24: reais | AI24: trinta e seis reais
A25: 2.9 | B25: =VLOOKUP(A25,'QD 2 - Orçamento'!$B$18:$F$121,2,FALSE) -> 5219615 | C25: =VLOOKUP(A25,'QD 2 - Orçamento'!$B$18:$F$121,3,FALSE) -> Tacha refletiva em plástico injetado - monodirecional tipo III - com um pino - fornecimento e colocação | D25: =VLOOKUP(A25,'QD 2 - Orçamento'!$B$18:$F$121,4,FALSE) -> un | E25: =VLOOKUP(A25,'QD 2 - Orçamento'!$B$18:$F$121,5,FALSE) -> 0 | F25: =VLOOKUP(B25,Composição!$C$4:$S$5015,17,FALSE) -> 36 | G25: 0 | J25: =E24/F24*30% -> 0 | U25: 36 | W25: =TRUNC(($U25-((10^{15,12,9,6,3})*INT($U25/(10^{15,12,9,6,3}))))/10^{12,9,6,3,0}) -> 0 | X25: 0 | Y25: 0 | Z25: 0 | AA25: 36 | AF25: trinta e seis | AG25: reais | AI25: trinta e seis reais
A26: 2.10 | B26: =VLOOKUP(A26,'QD 2 - Orçamento'!$B$18:$F$121,2,FALSE) -> 5213837 | C26: =VLOOKUP(A26,'QD 2 - Orçamento'!$B$18:$F$121,3,FALSE) -> Delimitador de tráfego flexível com duas faixas refletivas D = 20 cm e H = 80 cm com chumbador | D26: =VLOOKUP(A26,'QD 2 - Orçamento'!$B$18:$F$121,4,FALSE) -> un | E26: =VLOOKUP(A26,'QD 2 - Orçamento'!$B$18:$F$121,5,FALSE) -> 0 | F26: =VLOOKUP(B26,Composição!$C$4:$S$5015,17,FALSE) -> 14.94 | G26: =ROUND(0.2*E26/(F26*182.49),2) -> 0 | J26: =E25/F25 -> 0 | U26: 36 | W26: =TRUNC(($U26-((10^{15,12,9,6,3})*INT($U26/(10^{15,12,9,6,3}))))/10^{12,9,6,3,0}) -> 0 | X26: 0 | Y26: 0 | Z26: 0 | AA26: 36 | AF26: trinta e seis | AG26: reais | AI26: trinta e seis reais
A27: 2.11 | B27: =VLOOKUP(A27,'QD 2 - Orçamento'!$B$18:$F$121,2,FALSE) -> 5214004 | C27: =VLOOKUP(A27,'QD 2 - Orçamento'!$B$18:$F$121,3,FALSE) -> Pintura de faixa - termoplástico em alto relevo tipo II - relevo simples ranhurado - base | D27: =VLOOKUP(A27,'QD 2 - Orçamento'!$B$18:$F$121,4,FALSE) -> m² | E27: =VLOOKUP(A27,'QD 2 - Orçamento'!$B$18:$F$121,5,FALSE) -> 0 | F27: =VLOOKUP(B27,Composição!$C$4:$S$5015,17,FALSE) -> 9.96 | G27: =ROUND(0.2*E27/(F27*182.49),2) -> 0 | J27: =E26/F26 -> 0 | U27: 14.94 | W27: =TRUNC(($U27-((10^{15,12,9,6,3})*INT($U27/(10^{15,12,9,6,3}))))/10^{12,9,6,3,0}) -> 0 | X27: 0 | Y27: 0 | Z27: 0 | AA27: 14 | AB27: =IF($U27<10^15,"",IF(OR(W27=1,AND(W27>=100,MOD(W27,100)=0)),IF(TRUNC(($U27-(10^12*INT($U27/(10^12)))))=0,_e_,_sp_),IF(W27<100,"",_sp_)))&IF(W27=1,INDEX(Sng,1,5),IF(W27<100,"",IF(W27=100,OCem,INDEX(www,1,TRUNC(W27/100)))))&IF(MOD(W27,100)=0,"",IF(W27=1,"",IF(OR(MOD(W27,100)>=20,MOD(W27,100)=10),IF(OR(W27>100,AND($U27>10^15,TRUNC(($U27-(10^12*INT($U27/(10^12)))))=0)),_e_,IF($U27>10^15,_sp_,"")),"")))&IF(MOD(W27,100)=0,"",IF(W27=1,"",IF(OR(MOD(W27,100)>=20,MOD(W27,100)=10),INDEX(Dez,1,TRUNC(MOD(W27,100)/10)),"")))&IF(MOD(W27,100)=0,"",IF(W27=1,"",IF(MOD(MOD(W27,100),10)<>0,IF(OR(W27>20,AND($U27>10^15,TRUNC(($U27-(10^12*INT($U27/(10^12)))))=0)),_e_,IF($U27>10^15,_sp_,"")),"")))&IF(W27=0,"",IF(W27=1,"",IF(MOD(MOD(W27,100),10)=0,"",IF(MOD(W27,100)<20,INDEX(Sml,1,MOD(W27,100)),INDEX(Sml,1,MOD(MOD(W27,100),10)))))) & IF(W27<=1,"",INDEX(Plu,1,5)) ->  | AC27: =IF($U27<10^12,"",IF(OR(X27=1,AND(X27>=100,MOD(X27,100)=0)),IF(TRUNC(($U27-(10^9*INT($U27/(10^9)))))=0,_e_,_sp_),IF(X27<100,"",_sp_)))&IF(X27=1,INDEX(Sng,1,4),IF(X27<100,"",IF(X27=100,OCem,INDEX(www,1,TRUNC(X27/100)))))&IF(MOD(X27,100)=0,"",IF(X27=1,"",IF(OR(MOD(X27,100)>=20,MOD(X27,100)=10),IF(OR(X27>100,AND($U27>10^12,TRUNC(($U27-(10^9*INT($U27/(10^9)))))=0)),_e_,IF($U27>10^12,_sp_,"")),"")))&IF(MOD(X27,100)=0,"",IF(X27=1,"",IF(OR(MOD(X27,100)>=20,MOD(X27,100)=10),INDEX(Dez,1,TRUNC(MOD(X27,100)/10)),"")))&IF(MOD(X27,100)=0,"",IF(X27=1,"",IF(MOD(MOD(X27,100),10)<>0,IF(OR(X27>20,AND($U27>10^12,TRUNC(($U27-(10^9*INT($U27/(10^9)))))=0)),_e_,IF($U27>10^12,_sp_,"")),"")))&IF(X27=0,"",IF(X27=1,"",IF(MOD(MOD(X27,100),10)=0,"",IF(MOD(X27,100)<20,INDEX(Sml,1,MOD(X27,100)),INDEX(Sml,1,MOD(MOD(X27,100),10)))))) & IF(X27<=1,"",INDEX(Plu,1,4)) ->  | AD27: =IF($U27<10^9,"",IF(OR(Y27=1,AND(Y27>=100,MOD(Y27,100)=0)),IF(TRUNC(($U27-(10^6*INT($U27/(10^6)))))=0,_e_,_sp_),IF(Y27<100,"",_sp_)))&IF(Y27=1,INDEX(Sng,1,3),IF(Y27<100,"",IF(Y27=100,OCem,INDEX(www,1,TRUNC(Y27/100)))))&IF(MOD(Y27,100)=0,"",IF(Y27=1,"",IF(OR(MOD(Y27,100)>=20,MOD(Y27,100)=10),IF(OR(Y27>100,AND($U27>10^9,TRUNC(($U27-(10^6*INT($U27/(10^6)))))=0)),_e_,IF($U27>10^9,_sp_,"")),"")))&IF(MOD(Y27,100)=0,"",IF(Y27=1,"",IF(OR(MOD(Y27,100)>=20,MOD(Y27,100)=10),INDEX(Dez,1,TRUNC(MOD(Y27,100)/10)),"")))&IF(MOD(Y27,100)=0,"",IF(Y27=1,"",IF(MOD(MOD(Y27,100),10)<>0,IF(OR(Y27>20,AND($U27>10^9,TRUNC(($U27-(10^6*INT($U27/(10^6)))))=0)),_e_,IF($U27>10^9,_sp_,"")),"")))&IF(Y27=0,"",IF(Y27=1,"",IF(MOD(MOD(Y27,100),10)=0,"",IF(MOD(Y27,100)<20,INDEX(Sml,1,MOD(Y27,100)),INDEX(Sml,1,MOD(MOD(Y27,100),10)))))) & IF(Y27<=1,"",INDEX(Plu,1,3)) ->  | AE27: =IF($U27<10^6,"",IF(OR(Z27=1,AND(Z27>=100,MOD(Z27,100)=0)),IF(TRUNC(($U27-(10^3*INT($U27/(10^3)))))=0,_e_,_sp_),IF(Z27<100,"",_sp_)))&IF(Z27=1,INDEX(Sng,1,2),IF(Z27<100,"",IF(Z27=100,OCem,INDEX(www,1,TRUNC(Z27/100)))))&IF(MOD(Z27,100)=0,"",IF(Z27=1,"",IF(OR(MOD(Z27,100)>=20,MOD(Z27,100)=10),IF(OR(Z27>100,AND($U27>10^6,TRUNC(($U27-(10^3*INT($U27/(10^3)))))=0)),_e_,IF($U27>10^6,_sp_,"")),"")))&IF(MOD(Z27,100)=0,"",IF(Z27=1,"",IF(OR(MOD(Z27,100)>=20,MOD(Z27,100)=10),INDEX(Dez,1,TRUNC(MOD(Z27,100)/10)),"")))&IF(MOD(Z27,100)=0,"",IF(Z27=1,"",IF(MOD(MOD(Z27,100),10)<>0,IF(OR(Z27>20,AND($U27>10^6,TRUNC(($U27-(10^3*INT($U27/(10^3)))))=0)),_e_,IF($U27>10^6,_sp_,"")),"")))&IF(Z27=0,"",IF(Z27=1,"",IF(MOD(MOD(Z27,100),10)=0,"",IF(MOD(Z27,100)<20,INDEX(Sml,1,MOD(Z27,100)),INDEX(Sml,1,MOD(MOD(Z27,100),10)))))) & IF(Z27<=1,"",INDEX(Plu,1,2)) ->  | AF27: =IF($U27<10^3,"",IF(OR(AA27=1,AND(AA27>=100,MOD(AA27,100)=0)),IF(TRUNC(($U27-(10^0*INT($U27/(10^0)))))=0,_e_,_sp_),IF(AA27<100,"",_sp_)))&IF(AA27=1,INDEX(Sng,1,1),IF(AA27<100,"",IF(AA27=100,OCem,INDEX(www,1,TRUNC(AA27/100)))))&IF(MOD(AA27,100)=0,"",IF(AA27=1,"",IF(OR(MOD(AA27,100)>=20,MOD(AA27,100)=10),IF(OR(AA27>100,AND($U27>10^3,TRUNC(($U27-(10^0*INT($U27/(10^0)))))=0)),_e_,IF($U27>10^3,_sp_,"")),"")))&IF(MOD(AA27,100)=0,"",IF(AA27=1,"",IF(OR(MOD(AA27,100)>=20,MOD(AA27,100)=10),INDEX(Dez,1,TRUNC(MOD(AA27,100)/10)),"")))&IF(MOD(AA27,100)=0,"",IF(AA27=1,"",IF(MOD(MOD(AA27,100),10)<>0,IF(OR(AA27>20,AND($U27>10^3,TRUNC(($U27-(10^0*INT($U27/(10^0)))))=0)),_e_,IF($U27>10^3,_sp_,"")),"")))&IF(AA27=0,"",IF(AA27=1,"",IF(MOD(MOD(AA27,100),10)=0,"",IF(MOD(AA27,100)<20,INDEX(Sml,1,MOD(AA27,100)),INDEX(Sml,1,MOD(MOD(AA27,100),10)))))) & IF(AA27<=1,"",INDEX(Plu,1,1)) -> quatorze | AG27: reais | AH27: e noventa e quatro centavos | AI27: quatorze reais e noventa e quatro centavos
A28: 3 | C28: SINALIZAÇÃO VERTICAL | J28: =E27/F27 -> 0 | U28: 9.96 | W28: =TRUNC(($U28-((10^{15,12,9,6,3})*INT($U28/(10^{15,12,9,6,3}))))/10^{12,9,6,3,0}) -> 0 | X28: 0 | Y28: 0 | Z28: 0 | AA28: 9 | AB28: =IF($U28<10^15,"",IF(OR(W28=1,AND(W28>=100,MOD(W28,100)=0)),IF(TRUNC(($U28-(10^12*INT($U28/(10^12)))))=0,_e_,_sp_),IF(W28<100,"",_sp_)))&IF(W28=1,INDEX(Sng,1,5),IF(W28<100,"",IF(W28=100,OCem,INDEX(www,1,TRUNC(W28/100)))))&IF(MOD(W28,100)=0,"",IF(W28=1,"",IF(OR(MOD(W28,100)>=20,MOD(W28,100)=10),IF(OR(W28>100,AND($U28>10^15,TRUNC(($U28-(10^12*INT($U28/(10^12)))))=0)),_e_,IF($U28>10^15,_sp_,"")),"")))&IF(MOD(W28,100)=0,"",IF(W28=1,"",IF(OR(MOD(W28,100)>=20,MOD(W28,100)=10),INDEX(Dez,1,TRUNC(MOD(W28,100)/10)),"")))&IF(MOD(W28,100)=0,"",IF(W28=1,"",IF(MOD(MOD(W28,100),10)<>0,IF(OR(W28>20,AND($U28>10^15,TRUNC(($U28-(10^12*INT($U28/(10^12)))))=0)),_e_,IF($U28>10^15,_sp_,"")),"")))&IF(W28=0,"",IF(W28=1,"",IF(MOD(MOD(W28,100),10)=0,"",IF(MOD(W28,100)<20,INDEX(Sml,1,MOD(W28,100)),INDEX(Sml,1,MOD(MOD(W28,100),10)))))) & IF(W28<=1,"",INDEX(Plu,1,5)) ->  | AC28: =IF($U28<10^12,"",IF(OR(X28=1,AND(X28>=100,MOD(X28,100)=0)),IF(TRUNC(($U28-(10^9*INT($U28/(10^9)))))=0,_e_,_sp_),IF(X28<100,"",_sp_)))&IF(X28=1,INDEX(Sng,1,4),IF(X28<100,"",IF(X28=100,OCem,INDEX(www,1,TRUNC(X28/100)))))&IF(MOD(X28,100)=0,"",IF(X28=1,"",IF(OR(MOD(X28,100)>=20,MOD(X28,100)=10),IF(OR(X28>100,AND($U28>10^12,TRUNC(($U28-(10^9*INT($U28/(10^9)))))=0)),_e_,IF($U28>10^12,_sp_,"")),"")))&IF(MOD(X28,100)=0,"",IF(X28=1,"",IF(OR(MOD(X28,100)>=20,MOD(X28,100)=10),INDEX(Dez,1,TRUNC(MOD(X28,100)/10)),"")))&IF(MOD(X28,100)=0,"",IF(X28=1,"",IF(MOD(MOD(X28,100),10)<>0,IF(OR(X28>20,AND($U28>10^12,TRUNC(($U28-(10^9*INT($U28/(10^9)))))=0)),_e_,IF($U28>10^12,_sp_,"")),"")))&IF(X28=0,"",IF(X28=1,"",IF(MOD(MOD(X28,100),10)=0,"",IF(MOD(X28,100)<20,INDEX(Sml,1,MOD(X28,100)),INDEX(Sml,1,MOD(MOD(X28,100),10)))))) & IF(X28<=1,"",INDEX(Plu,1,4)) ->  | AD28: =IF($U28<10^9,"",IF(OR(Y28=1,AND(Y28>=100,MOD(Y28,100)=0)),IF(TRUNC(($U28-(10^6*INT($U28/(10^6)))))=0,_e_,_sp_),IF(Y28<100,"",_sp_)))&IF(Y28=1,INDEX(Sng,1,3),IF(Y28<100,"",IF(Y28=100,OCem,INDEX(www,1,TRUNC(Y28/100)))))&IF(MOD(Y28,100)=0,"",IF(Y28=1,"",IF(OR(MOD(Y28,100)>=20,MOD(Y28,100)=10),IF(OR(Y28>100,AND($U28>10^9,TRUNC(($U28-(10^6*INT($U28/(10^6)))))=0)),_e_,IF($U28>10^9,_sp_,"")),"")))&IF(MOD(Y28,100)=0,"",IF(Y28=1,"",IF(OR(MOD(Y28,100)>=20,MOD(Y28,100)=10),INDEX(Dez,1,TRUNC(MOD(Y28,100)/10)),"")))&IF(MOD(Y28,100)=0,"",IF(Y28=1,"",IF(MOD(MOD(Y28,100),10)<>0,IF(OR(Y28>20,AND($U28>10^9,TRUNC(($U28-(10^6*INT($U28/(10^6)))))=0)),_e_,IF($U28>10^9,_sp_,"")),"")))&IF(Y28=0,"",IF(Y28=1,"",IF(MOD(MOD(Y28,100),10)=0,"",IF(MOD(Y28,100)<20,INDEX(Sml,1,MOD(Y28,100)),INDEX(Sml,1,MOD(MOD(Y28,100),10)))))) & IF(Y28<=1,"",INDEX(Plu,1,3)) ->  | AE28: =IF($U28<10^6,"",IF(OR(Z28=1,AND(Z28>=100,MOD(Z28,100)=0)),IF(TRUNC(($U28-(10^3*INT($U28/(10^3)))))=0,_e_,_sp_),IF(Z28<100,"",_sp_)))&IF(Z28=1,INDEX(Sng,1,2),IF(Z28<100,"",IF(Z28=100,OCem,INDEX(www,1,TRUNC(Z28/100)))))&IF(MOD(Z28,100)=0,"",IF(Z28=1,"",IF(OR(MOD(Z28,100)>=20,MOD(Z28,100)=10),IF(OR(Z28>100,AND($U28>10^6,TRUNC(($U28-(10^3*INT($U28/(10^3)))))=0)),_e_,IF($U28>10^6,_sp_,"")),"")))&IF(MOD(Z28,100)=0,"",IF(Z28=1,"",IF(OR(MOD(Z28,100)>=20,MOD(Z28,100)=10),INDEX(Dez,1,TRUNC(MOD(Z28,100)/10)),"")))&IF(MOD(Z28,100)=0,"",IF(Z28=1,"",IF(MOD(MOD(Z28,100),10)<>0,IF(OR(Z28>20,AND($U28>10^6,TRUNC(($U28-(10^3*INT($U28/(10^3)))))=0)),_e_,IF($U28>10^6,_sp_,"")),"")))&IF(Z28=0,"",IF(Z28=1,"",IF(MOD(MOD(Z28,100),10)=0,"",IF(MOD(Z28,100)<20,INDEX(Sml,1,MOD(Z28,100)),INDEX(Sml,1,MOD(MOD(Z28,100),10)))))) & IF(Z28<=1,"",INDEX(Plu,1,2)) ->  | AF28: =IF($U28<10^3,"",IF(OR(AA28=1,AND(AA28>=100,MOD(AA28,100)=0)),IF(TRUNC(($U28-(10^0*INT($U28/(10^0)))))=0,_e_,_sp_),IF(AA28<100,"",_sp_)))&IF(AA28=1,INDEX(Sng,1,1),IF(AA28<100,"",IF(AA28=100,OCem,INDEX(www,1,TRUNC(AA28/100)))))&IF(MOD(AA28,100)=0,"",IF(AA28=1,"",IF(OR(MOD(AA28,100)>=20,MOD(AA28,100)=10),IF(OR(AA28>100,AND($U28>10^3,TRUNC(($U28-(10^0*INT($U28/(10^0)))))=0)),_e_,IF($U28>10^3,_sp_,"")),"")))&IF(MOD(AA28,100)=0,"",IF(AA28=1,"",IF(OR(MOD(AA28,100)>=20,MOD(AA28,100)=10),INDEX(Dez,1,TRUNC(MOD(AA28,100)/10)),"")))&IF(MOD(AA28,100)=0,"",IF(AA28=1,"",IF(MOD(MOD(AA28,100),10)<>0,IF(OR(AA28>20,AND($U28>10^3,TRUNC(($U28-(10^0*INT($U28/(10^0)))))=0)),_e_,IF($U28>10^3,_sp_,"")),"")))&IF(AA28=0,"",IF(AA28=1,"",IF(MOD(MOD(AA28,100),10)=0,"",IF(MOD(AA28,100)<20,INDEX(Sml,1,MOD(AA28,100)),INDEX(Sml,1,MOD(MOD(AA28,100),10)))))) & IF(AA28<=1,"",INDEX(Plu,1,1)) -> nove | AG28: reais | AH28: e noventa e seis centavos | AI28: nove reais e noventa e seis centavos
A29: 3.1 | B29: =VLOOKUP(A29,'QD 2 - Orçamento'!$B$18:$F$121,2,FALSE) -> 5213572A | C29: =VLOOKUP(A29,'QD 2 - Orçamento'!$B$18:$F$121,3,FALSE) -> Fornecimento e implantação de placa em aço - película III + SI (Sinal Impresso Digital c/ Overlay) | D29: =VLOOKUP(A29,'QD 2 - Orçamento'!$B$18:$F$121,4,FALSE) -> m² | E29: =VLOOKUP(A29,'QD 2 - Orçamento'!$B$18:$F$121,5,FALSE) -> 0 | F29: =VLOOKUP(B29,Composição!$C$4:$S$5015,17,FALSE) -> 3 | G29: 0
A30: 3.2 | B30: =VLOOKUP(A30,'QD 2 - Orçamento'!$B$18:$F$121,2,FALSE) -> 5213487A | C30: =VLOOKUP(A30,'QD 2 - Orçamento'!$B$18:$F$121,3,FALSE) -> Fornecimento e implantação de placa em alumínio composto, espessura de 3,0 mm. - película retrorrefletiva tipo III + SI (Sinal Impresso Digital c/ Overlay) | D30: =VLOOKUP(A30,'QD 2 - Orçamento'!$B$18:$F$121,4,FALSE) -> m² | E30: =VLOOKUP(A30,'QD 2 - Orçamento'!$B$18:$F$121,5,FALSE) -> 0 | F30: =VLOOKUP(B30,Composição!$C$4:$S$5015,17,FALSE) -> 2 | G30: 0 | L30: =E29/F29 -> 0 | U30: =F29 -> 3 | W30: =TRUNC(($U30-((10^{15,12,9,6,3})*INT($U30/(10^{15,12,9,6,3}))))/10^{12,9,6,3,0}) -> 0 | X30: 0 | Y30: 0 | Z30: 0 | AA30: 3 | AB30: =IF($U30<10^15,"",IF(OR(W30=1,AND(W30>=100,MOD(W30,100)=0)),IF(TRUNC(($U30-(10^12*INT($U30/(10^12)))))=0,_e_,_sp_),IF(W30<100,"",_sp_)))&IF(W30=1,INDEX(Sng,1,5),IF(W30<100,"",IF(W30=100,OCem,INDEX(www,1,TRUNC(W30/100)))))&IF(MOD(W30,100)=0,"",IF(W30=1,"",IF(OR(MOD(W30,100)>=20,MOD(W30,100)=10),IF(OR(W30>100,AND($U30>10^15,TRUNC(($U30-(10^12*INT($U30/(10^12)))))=0)),_e_,IF($U30>10^15,_sp_,"")),"")))&IF(MOD(W30,100)=0,"",IF(W30=1,"",IF(OR(MOD(W30,100)>=20,MOD(W30,100)=10),INDEX(Dez,1,TRUNC(MOD(W30,100)/10)),"")))&IF(MOD(W30,100)=0,"",IF(W30=1,"",IF(MOD(MOD(W30,100),10)<>0,IF(OR(W30>20,AND($U30>10^15,TRUNC(($U30-(10^12*INT($U30/(10^12)))))=0)),_e_,IF($U30>10^15,_sp_,"")),"")))&IF(W30=0,"",IF(W30=1,"",IF(MOD(MOD(W30,100),10)=0,"",IF(MOD(W30,100)<20,INDEX(Sml,1,MOD(W30,100)),INDEX(Sml,1,MOD(MOD(W30,100),10)))))) & IF(W30<=1,"",INDEX(Plu,1,5)) ->  | AC30: =IF($U30<10^12,"",IF(OR(X30=1,AND(X30>=100,MOD(X30,100)=0)),IF(TRUNC(($U30-(10^9*INT($U30/(10^9)))))=0,_e_,_sp_),IF(X30<100,"",_sp_)))&IF(X30=1,INDEX(Sng,1,4),IF(X30<100,"",IF(X30=100,OCem,INDEX(www,1,TRUNC(X30/100)))))&IF(MOD(X30,100)=0,"",IF(X30=1,"",IF(OR(MOD(X30,100)>=20,MOD(X30,100)=10),IF(OR(X30>100,AND($U30>10^12,TRUNC(($U30-(10^9*INT($U30/(10^9)))))=0)),_e_,IF($U30>10^12,_sp_,"")),"")))&IF(MOD(X30,100)=0,"",IF(X30=1,"",IF(OR(MOD(X30,100)>=20,MOD(X30,100)=10),INDEX(Dez,1,TRUNC(MOD(X30,100)/10)),"")))&IF(MOD(X30,100)=0,"",IF(X30=1,"",IF(MOD(MOD(X30,100),10)<>0,IF(OR(X30>20,AND($U30>10^12,TRUNC(($U30-(10^9*INT($U30/(10^9)))))=0)),_e_,IF($U30>10^12,_sp_,"")),"")))&IF(X30=0,"",IF(X30=1,"",IF(MOD(MOD(X30,100),10)=0,"",IF(MOD(X30,100)<20,INDEX(Sml,1,MOD(X30,100)),INDEX(Sml,1,MOD(MOD(X30,100),10)))))) & IF(X30<=1,"",INDEX(Plu,1,4)) ->  | AD30: =IF($U30<10^9,"",IF(OR(Y30=1,AND(Y30>=100,MOD(Y30,100)=0)),IF(TRUNC(($U30-(10^6*INT($U30/(10^6)))))=0,_e_,_sp_),IF(Y30<100,"",_sp_)))&IF(Y30=1,INDEX(Sng,1,3),IF(Y30<100,"",IF(Y30=100,OCem,INDEX(www,1,TRUNC(Y30/100)))))&IF(MOD(Y30,100)=0,"",IF(Y30=1,"",IF(OR(MOD(Y30,100)>=20,MOD(Y30,100)=10),IF(OR(Y30>100,AND($U30>10^9,TRUNC(($U30-(10^6*INT($U30/(10^6)))))=0)),_e_,IF($U30>10^9,_sp_,"")),"")))&IF(MOD(Y30,100)=0,"",IF(Y30=1,"",IF(OR(MOD(Y30,100)>=20,MOD(Y30,100)=10),INDEX(Dez,1,TRUNC(MOD(Y30,100)/10)),"")))&IF(MOD(Y30,100)=0,"",IF(Y30=1,"",IF(MOD(MOD(Y30,100),10)<>0,IF(OR(Y30>20,AND($U30>10^9,TRUNC(($U30-(10^6*INT($U30/(10^6)))))=0)),_e_,IF($U30>10^9,_sp_,"")),"")))&IF(Y30=0,"",IF(Y30=1,"",IF(MOD(MOD(Y30,100),10)=0,"",IF(MOD(Y30,100)<20,INDEX(Sml,1,MOD(Y30,100)),INDEX(Sml,1,MOD(MOD(Y30,100),10)))))) & IF(Y30<=1,"",INDEX(Plu,1,3)) ->  | AE30: =IF($U30<10^6,"",IF(OR(Z30=1,AND(Z30>=100,MOD(Z30,100)=0)),IF(TRUNC(($U30-(10^3*INT($U30/(10^3)))))=0,_e_,_sp_),IF(Z30<100,"",_sp_)))&IF(Z30=1,INDEX(Sng,1,2),IF(Z30<100,"",IF(Z30=100,OCem,INDEX(www,1,TRUNC(Z30/100)))))&IF(MOD(Z30,100)=0,"",IF(Z30=1,"",IF(OR(MOD(Z30,100)>=20,MOD(Z30,100)=10),IF(OR(Z30>100,AND($U30>10^6,TRUNC(($U30-(10^3*INT($U30/(10^3)))))=0)),_e_,IF($U30>10^6,_sp_,"")),"")))&IF(MOD(Z30,100)=0,"",IF(Z30=1,"",IF(OR(MOD(Z30,100)>=20,MOD(Z30,100)=10),INDEX(Dez,1,TRUNC(MOD(Z30,100)/10)),"")))&IF(MOD(Z30,100)=0,"",IF(Z30=1,"",IF(MOD(MOD(Z30,100),10)<>0,IF(OR(Z30>20,AND($U30>10^6,TRUNC(($U30-(10^3*INT($U30/(10^3)))))=0)),_e_,IF($U30>10^6,_sp_,"")),"")))&IF(Z30=0,"",IF(Z30=1,"",IF(MOD(MOD(Z30,100),10)=0,"",IF(MOD(Z30,100)<20,INDEX(Sml,1,MOD(Z30,100)),INDEX(Sml,1,MOD(MOD(Z30,100),10)))))) & IF(Z30<=1,"",INDEX(Plu,1,2)) ->  | AF30: =IF($U30<10^3,"",IF(OR(AA30=1,AND(AA30>=100,MOD(AA30,100)=0)),IF(TRUNC(($U30-(10^0*INT($U30/(10^0)))))=0,_e_,_sp_),IF(AA30<100,"",_sp_)))&IF(AA30=1,INDEX(Sng,1,1),IF(AA30<100,"",IF(AA30=100,OCem,INDEX(www,1,TRUNC(AA30/100)))))&IF(MOD(AA30,100)=0,"",IF(AA30=1,"",IF(OR(MOD(AA30,100)>=20,MOD(AA30,100)=10),IF(OR(AA30>100,AND($U30>10^3,TRUNC(($U30-(10^0*INT($U30/(10^0)))))=0)),_e_,IF($U30>10^3,_sp_,"")),"")))&IF(MOD(AA30,100)=0,"",IF(AA30=1,"",IF(OR(MOD(AA30,100)>=20,MOD(AA30,100)=10),INDEX(Dez,1,TRUNC(MOD(AA30,100)/10)),"")))&IF(MOD(AA30,100)=0,"",IF(AA30=1,"",IF(MOD(MOD(AA30,100),10)<>0,IF(OR(AA30>20,AND($U30>10^3,TRUNC(($U30-(10^0*INT($U30/(10^0)))))=0)),_e_,IF($U30>10^3,_sp_,"")),"")))&IF(AA30=0,"",IF(AA30=1,"",IF(MOD(MOD(AA30,100),10)=0,"",IF(MOD(AA30,100)<20,INDEX(Sml,1,MOD(AA30,100)),INDEX(Sml,1,MOD(MOD(AA30,100),10)))))) & IF(AA30<=1,"",INDEX(Plu,1,1)) -> três | AG30: =IF($U30<1,"",IF(TRUNC($U30)=1," real",IF(AND($U30>=10^6,TRUNC(MOD($U30,10^6))=0)," de","") & " reais")) -> reais | AH30: =IF((ROUND($U30-TRUNC($U30),2)*100)=0,"",IF($U30>=1,_e_,"") & IF((ROUND($U30-TRUNC($U30),2)*100)=1,"um centavo",IF((ROUND($U30-TRUNC($U30),2)*100)>=20,INDEX(Dez,1,TRUNC((ROUND($U30-TRUNC($U30),2)*100)/10)) & IF(MOD((ROUND($U30-TRUNC($U30),2)*100),10)<>0,_e_ & INDEX(Sml,1,MOD((ROUND($U30-TRUNC($U30),2)*100),10)),""),INDEX(Sml,1,(ROUND($U30-TRUNC($U30),2)*100))) & " centavos")) ->  | AI30: =AB30&AC30&AD30&AE30&AF30&AG30&AH30 -> três reais
A31: 3.3 | B31: =VLOOKUP(A31,'QD 2 - Orçamento'!$B$18:$F$121,2,FALSE) -> 5213487B | C31: =VLOOKUP(A31,'QD 2 - Orçamento'!$B$18:$F$121,3,FALSE) -> Fornecimento e implantação de placa em alumínio composto, espessura de 3,0 mm, modulada, aérea - película retrorrefletiva tipo X + SI (Sinal Impresso Digital c/ Overlay) | D31: =VLOOKUP(A31,'QD 2 - Orçamento'!$B$18:$F$121,4,FALSE) -> m² | E31: =VLOOKUP(A31,'QD 2 - Orçamento'!$B$18:$F$121,5,FALSE) -> 0 | F31: =VLOOKUP(B31,Composição!$C$4:$S$5015,17,FALSE) -> 2 | G31: 0 | L31: =E30/F30 -> 0 | U31: 2 | W31: =TRUNC(($U31-((10^{15,12,9,6,3})*INT($U31/(10^{15,12,9,6,3}))))/10^{12,9,6,3,0}) -> 0 | X31: 0 | Y31: 0 | Z31: 0 | AA31: 2 | AF31: dois | AG31: reais | AI31: dois reais
A32: 3.4 | B32: =VLOOKUP(A32,'QD 2 - Orçamento'!$B$18:$F$121,2,FALSE) -> 5213352 | C32: =VLOOKUP(A32,'QD 2 - Orçamento'!$B$18:$F$121,3,FALSE) -> Fornecimento e implantação de suporte polimérico ecológico maciço quadrado de 8 cm para placa de sinalização | D32: =VLOOKUP(A32,'QD 2 - Orçamento'!$B$18:$F$121,4,FALSE) -> un | E32: =VLOOKUP(A32,'QD 2 - Orçamento'!$B$18:$F$121,5,FALSE) -> 0 | F32: =VLOOKUP(B32,Composição!$C$4:$S$5015,17,FALSE) -> 6 | G32: 0 | L32: =E31/F31 -> 0 | U32: 2 | W32: =TRUNC(($U32-((10^{15,12,9,6,3})*INT($U32/(10^{15,12,9,6,3}))))/10^{12,9,6,3,0}) -> 0 | X32: 0 | Y32: 0 | Z32: 0 | AA32: 2 | AF32: dois | AG32: reais | AI32: dois reais
A33: 3.5 | B33: =VLOOKUP(A33,'QD 2 - Orçamento'!$B$18:$F$121,2,FALSE) -> 5213353 | C33: =VLOOKUP(A33,'QD 2 - Orçamento'!$B$18:$F$121,3,FALSE) -> Fornecimento e implantação de suporte polimérico ecológico maciço colapsível retangular de 7 x 15 cm para placa de sinalização | D33: =VLOOKUP(A33,'QD 2 - Orçamento'!$B$18:$F$121,4,FALSE) -> un | E33: =VLOOKUP(A33,'QD 2 - Orçamento'!$B$18:$F$121,5,FALSE) -> 0 | F33: =VLOOKUP(B33,Composição!$C$4:$S$5015,17,FALSE) -> 6 | G33: 0 | U33: 6 | W33: =TRUNC(($U33-((10^{15,12,9,6,3})*INT($U33/(10^{15,12,9,6,3}))))/10^{12,9,6,3,0}) -> 0 | X33: 0 | Y33: 0 | Z33: 0 | AA33: 6 | AF33: seis | AG33: reais | AI33: seis reais
A34: 3.6 | B34: =VLOOKUP(A34,'QD 2 - Orçamento'!$B$18:$F$121,2,FALSE) -> 5213350 | C34: =VLOOKUP(A34,'QD 2 - Orçamento'!$B$18:$F$121,3,FALSE) -> Fornecimento e implantação de suporte polimérico ecológico maciço colapsível quadrado de 10 cm para placa de sinalização | D34: =VLOOKUP(A34,'QD 2 - Orçamento'!$B$18:$F$121,4,FALSE) -> un | E34: =VLOOKUP(A34,'QD 2 - Orçamento'!$B$18:$F$121,5,FALSE) -> 0 | F34: =VLOOKUP(B34,Composição!$C$4:$S$5015,17,FALSE) -> 6 | G34: 0 | U34: 6 | W34: =TRUNC(($U34-((10^{15,12,9,6,3})*INT($U34/(10^{15,12,9,6,3}))))/10^{12,9,6,3,0}) -> 0 | X34: 0 | Y34: 0 | Z34: 0 | AA34: 6 | AF34: seis | AG34: reais | AI34: seis reais
A35: 3.7 | B35: =VLOOKUP(A35,'QD 2 - Orçamento'!$B$18:$F$121,2,FALSE) -> 5213868 | C35: =VLOOKUP(A35,'QD 2 - Orçamento'!$B$18:$F$121,3,FALSE) -> Fornecimento e implantação de suporte metálico galvanizado para placas - 2,00 x 1,00 m | D35: =VLOOKUP(A35,'QD 2 - Orçamento'!$B$18:$F$121,4,FALSE) -> un | E35: =VLOOKUP(A35,'QD 2 - Orçamento'!$B$18:$F$121,5,FALSE) -> 0 | F35: =VLOOKUP(B35,Composição!$C$4:$S$5015,17,FALSE) -> 1.8 | G35: 0 | U35: 6 | W35: =TRUNC(($U35-((10^{15,12,9,6,3})*INT($U35/(10^{15,12,9,6,3}))))/10^{12,9,6,3,0}) -> 0 | X35: 0 | Y35: 0 | Z35: 0 | AA35: 6 | AF35: seis | AG35: reais | AI35: seis reais
A36: 3.8 | B36: =VLOOKUP(A36,'QD 2 - Orçamento'!$B$18:$F$121,2,FALSE) -> 5213869 | C36: =VLOOKUP(A36,'QD 2 - Orçamento'!$B$18:$F$121,3,FALSE) -> Fornecimento e implantação de suporte metálico galvanizado para placas - 3,00 x 1,50 m | D36: =VLOOKUP(A36,'QD 2 - Orçamento'!$B$18:$F$121,4,FALSE) -> un | E36: =VLOOKUP(A36,'QD 2 - Orçamento'!$B$18:$F$121,5,FALSE) -> 0 | F36: =VLOOKUP(B36,Composição!$C$4:$S$5015,17,FALSE) -> 1.3 | G36: 0 | U36: 1.8 | W36: =TRUNC(($U36-((10^{15,12,9,6,3})*INT($U36/(10^{15,12,9,6,3}))))/10^{12,9,6,3,0}) -> 0 | X36: 0 | Y36: 0 | Z36: 0 | AA36: 1 | AF36: um | AG36: real | AH36: e oitenta centavos | AI36: um real e oitenta centavos
A37: 3.9 | B37: =VLOOKUP(A37,'QD 2 - Orçamento'!$B$18:$F$121,2,FALSE) -> 5213870 | C37: =VLOOKUP(A37,'QD 2 - Orçamento'!$B$18:$F$121,3,FALSE) -> Fornecimento e implantação de suporte metálico galvanizado para placas - 3,00 x 2,00 m | D37: =VLOOKUP(A37,'QD 2 - Orçamento'!$B$18:$F$121,4,FALSE) -> un | E37: =VLOOKUP(A37,'QD 2 - Orçamento'!$B$18:$F$121,5,FALSE) -> 0 | F37: =VLOOKUP(B37,Composição!$C$4:$S$5015,17,FALSE) -> 1.1 | G37: 0
A38: 3.10 | B38: =VLOOKUP(A38,'QD 2 - Orçamento'!$B$18:$F$121,2,FALSE) -> 5213871 | C38: =VLOOKUP(A38,'QD 2 - Orçamento'!$B$18:$F$121,3,FALSE) -> Fornecimento e implantação de suporte metálico galvanizado para placas - 4,00 x 2,00 m | D38: =VLOOKUP(A38,'QD 2 - Orçamento'!$B$18:$F$121,4,FALSE) -> un | E38: =VLOOKUP(A38,'QD 2 - Orçamento'!$B$18:$F$121,5,FALSE) -> 0 | F38: =VLOOKUP(B38,Composição!$C$4:$S$5015,17,FALSE) -> 0.8 | G38: 0
A39: 3.11 | B39: =VLOOKUP(A39,'QD 2 - Orçamento'!$B$18:$F$121,2,FALSE) -> 5213872 | C39: =VLOOKUP(A39,'QD 2 - Orçamento'!$B$18:$F$121,3,FALSE) -> Fornecimento e implantação de suporte metálico galvanizado para placas - 4,00 x 3,00 m | D39: =VLOOKUP(A39,'QD 2 - Orçamento'!$B$18:$F$121,4,FALSE) -> un | E39: =VLOOKUP(A39,'QD 2 - Orçamento'!$B$18:$F$121,5,FALSE) -> 0 | F39: =VLOOKUP(B39,Composição!$C$4:$S$5015,17,FALSE) -> 0.6 | G39: 0
A40: 3.12 | B40: =VLOOKUP(A40,'QD 2 - Orçamento'!$B$18:$F$121,2,FALSE) -> 5213649 | C40: =VLOOKUP(A40,'QD 2 - Orçamento'!$B$18:$F$121,3,FALSE) -> Pórtico metálico com vão de 15,9 m, vento de 35 m/s, área de exposição de até 23,85 m², tensão admissível solo > 200 kN/m² - areia e brita comerciais | D40: =VLOOKUP(A40,'QD 2 - Orçamento'!$B$18:$F$121,4,FALSE) -> un | E40: =VLOOKUP(A40,'QD 2 - Orçamento'!$B$18:$F$121,5,FALSE) -> 1 | F40: =VLOOKUP(B40,Composição!$C$4:$S$5015,17,FALSE) -> 0.37509 | G40: 0
A41: 3.13 | B41: =VLOOKUP(A41,'QD 2 - Orçamento'!$B$18:$F$121,2,FALSE) -> 5213630 | C41: =VLOOKUP(A41,'QD 2 - Orçamento'!$B$18:$F$121,3,FALSE) -> Semi-pórtico metálico com vão de 8,3 m, vento de 35 m/s, área de exposição de até 12,45 m², tensão admissível solo > 200 kN/m² - areia e brita comerciais | D41: =VLOOKUP(A41,'QD 2 - Orçamento'!$B$18:$F$121,4,FALSE) -> un | E41: =VLOOKUP(A41,'QD 2 - Orçamento'!$B$18:$F$121,5,FALSE) -> 1 | F41: =VLOOKUP(B41,Composição!$C$4:$S$5015,17,FALSE) -> 0.625 | G41: 0
A42: 3.14 | B42: =VLOOKUP(A42,'QD 2 - Orçamento'!$B$18:$F$121,2,FALSE) -> 5213636 | C42: =VLOOKUP(A42,'QD 2 - Orçamento'!$B$18:$F$121,3,FALSE) -> Semi-pórtico duplo metálico com vão de 2 x 8,3 m, vento de 35 m/s, área de exposição de até 2 x 12,45 m², tensão admissível solo > 200 kN/m² - areia e brita comerciais | D42: =VLOOKUP(A42,'QD 2 - Orçamento'!$B$18:$F$121,4,FALSE) -> un | E42: =VLOOKUP(A42,'QD 2 - Orçamento'!$B$18:$F$121,5,FALSE) -> 1 | F42: =VLOOKUP(B42,Composição!$C$4:$S$5015,17,FALSE) -> 1 | G42: 0
A43: 3.15 | B43: =VLOOKUP(A43,'QD 2 - Orçamento'!$B$18:$F$121,2,FALSE) -> NOVA 01 | C43: =VLOOKUP(A43,'QD 2 - Orçamento'!$B$18:$F$121,3,FALSE) -> Suporte metálico com braço projetado - Área de Exposição até 4,50 m² - Fornecimento e Implantação | D43: =VLOOKUP(A43,'QD 2 - Orçamento'!$B$18:$F$121,4,FALSE) -> un | E43: =VLOOKUP(A43,'QD 2 - Orçamento'!$B$18:$F$121,5,FALSE) -> 0 | F43: =VLOOKUP(B43,Composição!$C$4:$S$5015,17,FALSE) -> 1 | G43: 0 | U43: =F36 -> 1.3 | W43: =TRUNC(($U43-((10^{15,12,9,6,3})*INT($U43/(10^{15,12,9,6,3}))))/10^{12,9,6,3,0}) -> 0 | X43: 0 | Y43: 0 | Z43: 0 | AA43: 1 | AF43: um | AG43: real | AH43: e trinta centavos | AI43: um real e trinta centavos
A44: 4 | C44: DISPOSITIVOS DE SEGURANÇA | U44: 1 | W44: =TRUNC(($U44-((10^{15,12,9,6,3})*INT($U44/(10^{15,12,9,6,3}))))/10^{12,9,6,3,0}) -> 0 | X44: 0 | Y44: 0 | Z44: 0 | AA44: 1 | AF44: um | AG44: real | AI44: um real
A45: 4.1 | B45: =VLOOKUP(A45,'QD 2 - Orçamento'!$B$18:$F$121,2,FALSE) -> NOVA 08 | C45: =VLOOKUP(A45,'QD 2 - Orçamento'!$B$18:$F$121,3,FALSE) -> Dispositivo de contenção longitudinal, certificado segundo a ABNT NBR 15486:2016, tipo (H4b A W4) - Defensa Metálica - Fornecimento e Implantação | D45: =VLOOKUP(A45,'QD 2 - Orçamento'!$B$18:$F$121,4,FALSE) -> m | E45: =VLOOKUP(A45,'QD 2 - Orçamento'!$B$18:$F$121,5,FALSE) -> 0 | F45: =VLOOKUP(B45,Composição!$C$4:$S$5015,17,FALSE) -> 34.2375 | G45: =ROUND(0.2*E45/(F45*182.49),2) -> 0 | U45: 0 | W45: =TRUNC(($U45-((10^{15,12,9,6,3})*INT($U45/(10^{15,12,9,6,3}))))/10^{12,9,6,3,0}) -> 0 | X45: 0 | Y45: 0 | Z45: 0 | AA45: 0 | AB45: =IF($U45<10^15,"",IF(OR(W45=1,AND(W45>=100,MOD(W45,100)=0)),IF(TRUNC(($U45-(10^12*INT($U45/(10^12)))))=0,_e_,_sp_),IF(W45<100,"",_sp_)))&IF(W45=1,INDEX(Sng,1,5),IF(W45<100,"",IF(W45=100,OCem,INDEX(www,1,TRUNC(W45/100)))))&IF(MOD(W45,100)=0,"",IF(W45=1,"",IF(OR(MOD(W45,100)>=20,MOD(W45,100)=10),IF(OR(W45>100,AND($U45>10^15,TRUNC(($U45-(10^12*INT($U45/(10^12)))))=0)),_e_,IF($U45>10^15,_sp_,"")),"")))&IF(MOD(W45,100)=0,"",IF(W45=1,"",IF(OR(MOD(W45,100)>=20,MOD(W45,100)=10),INDEX(Dez,1,TRUNC(MOD(W45,100)/10)),"")))&IF(MOD(W45,100)=0,"",IF(W45=1,"",IF(MOD(MOD(W45,100),10)<>0,IF(OR(W45>20,AND($U45>10^15,TRUNC(($U45-(10^12*INT($U45/(10^12)))))=0)),_e_,IF($U45>10^15,_sp_,"")),"")))&IF(W45=0,"",IF(W45=1,"",IF(MOD(MOD(W45,100),10)=0,"",IF(MOD(W45,100)<20,INDEX(Sml,1,MOD(W45,100)),INDEX(Sml,1,MOD(MOD(W45,100),10)))))) & IF(W45<=1,"",INDEX(Plu,1,5)) ->  | AC45: =IF($U45<10^12,"",IF(OR(X45=1,AND(X45>=100,MOD(X45,100)=0)),IF(TRUNC(($U45-(10^9*INT($U45/(10^9)))))=0,_e_,_sp_),IF(X45<100,"",_sp_)))&IF(X45=1,INDEX(Sng,1,4),IF(X45<100,"",IF(X45=100,OCem,INDEX(www,1,TRUNC(X45/100)))))&IF(MOD(X45,100)=0,"",IF(X45=1,"",IF(OR(MOD(X45,100)>=20,MOD(X45,100)=10),IF(OR(X45>100,AND($U45>10^12,TRUNC(($U45-(10^9*INT($U45/(10^9)))))=0)),_e_,IF($U45>10^12,_sp_,"")),"")))&IF(MOD(X45,100)=0,"",IF(X45=1,"",IF(OR(MOD(X45,100)>=20,MOD(X45,100)=10),INDEX(Dez,1,TRUNC(MOD(X45,100)/10)),"")))&IF(MOD(X45,100)=0,"",IF(X45=1,"",IF(MOD(MOD(X45,100),10)<>0,IF(OR(X45>20,AND($U45>10^12,TRUNC(($U45-(10^9*INT($U45/(10^9)))))=0)),_e_,IF($U45>10^12,_sp_,"")),"")))&IF(X45=0,"",IF(X45=1,"",IF(MOD(MOD(X45,100),10)=0,"",IF(MOD(X45,100)<20,INDEX(Sml,1,MOD(X45,100)),INDEX(Sml,1,MOD(MOD(X45,100),10)))))) & IF(X45<=1,"",INDEX(Plu,1,4)) ->  | AD45: =IF($U45<10^9,"",IF(OR(Y45=1,AND(Y45>=100,MOD(Y45,100)=0)),IF(TRUNC(($U45-(10^6*INT($U45/(10^6)))))=0,_e_,_sp_),IF(Y45<100,"",_sp_)))&IF(Y45=1,INDEX(Sng,1,3),IF(Y45<100,"",IF(Y45=100,OCem,INDEX(www,1,TRUNC(Y45/100)))))&IF(MOD(Y45,100)=0,"",IF(Y45=1,"",IF(OR(MOD(Y45,100)>=20,MOD(Y45,100)=10),IF(OR(Y45>100,AND($U45>10^9,TRUNC(($U45-(10^6*INT($U45/(10^6)))))=0)),_e_,IF($U45>10^9,_sp_,"")),"")))&IF(MOD(Y45,100)=0,"",IF(Y45=1,"",IF(OR(MOD(Y45,100)>=20,MOD(Y45,100)=10),INDEX(Dez,1,TRUNC(MOD(Y45,100)/10)),"")))&IF(MOD(Y45,100)=0,"",IF(Y45=1,"",IF(MOD(MOD(Y45,100),10)<>0,IF(OR(Y45>20,AND($U45>10^9,TRUNC(($U45-(10^6*INT($U45/(10^6)))))=0)),_e_,IF($U45>10^9,_sp_,"")),"")))&IF(Y45=0,"",IF(Y45=1,"",IF(MOD(MOD(Y45,100),10)=0,"",IF(MOD(Y45,100)<20,INDEX(Sml,1,MOD(Y45,100)),INDEX(Sml,1,MOD(MOD(Y45,100),10)))))) & IF(Y45<=1,"",INDEX(Plu,1,3)) ->  | AE45: =IF($U45<10^6,"",IF(OR(Z45=1,AND(Z45>=100,MOD(Z45,100)=0)),IF(TRUNC(($U45-(10^3*INT($U45/(10^3)))))=0,_e_,_sp_),IF(Z45<100,"",_sp_)))&IF(Z45=1,INDEX(Sng,1,2),IF(Z45<100,"",IF(Z45=100,OCem,INDEX(www,1,TRUNC(Z45/100)))))&IF(MOD(Z45,100)=0,"",IF(Z45=1,"",IF(OR(MOD(Z45,100)>=20,MOD(Z45,100)=10),IF(OR(Z45>100,AND($U45>10^6,TRUNC(($U45-(10^3*INT($U45/(10^3)))))=0)),_e_,IF($U45>10^6,_sp_,"")),"")))&IF(MOD(Z45,100)=0,"",IF(Z45=1,"",IF(OR(MOD(Z45,100)>=20,MOD(Z45,100)=10),INDEX(Dez,1,TRUNC(MOD(Z45,100)/10)),"")))&IF(MOD(Z45,100)=0,"",IF(Z45=1,"",IF(MOD(MOD(Z45,100),10)<>0,IF(OR(Z45>20,AND($U45>10^6,TRUNC(($U45-(10^3*INT($U45/(10^3)))))=0)),_e_,IF($U45>10^6,_sp_,"")),"")))&IF(Z45=0,"",IF(Z45=1,"",IF(MOD(MOD(Z45,100),10)=0,"",IF(MOD(Z45,100)<20,INDEX(Sml,1,MOD(Z45,100)),INDEX(Sml,1,MOD(MOD(Z45,100),10)))))) & IF(Z45<=1,"",INDEX(Plu,1,2)) ->  | AF45: =IF($U45<10^3,"",IF(OR(AA45=1,AND(AA45>=100,MOD(AA45,100)=0)),IF(TRUNC(($U45-(10^0*INT($U45/(10^0)))))=0,_e_,_sp_),IF(AA45<100,"",_sp_)))&IF(AA45=1,INDEX(Sng,1,1),IF(AA45<100,"",IF(AA45=100,OCem,INDEX(www,1,TRUNC(AA45/100)))))&IF(MOD(AA45,100)=0,"",IF(AA45=1,"",IF(OR(MOD(AA45,100)>=20,MOD(AA45,100)=10),IF(OR(AA45>100,AND($U45>10^3,TRUNC(($U45-(10^0*INT($U45/(10^0)))))=0)),_e_,IF($U45>10^3,_sp_,"")),"")))&IF(MOD(AA45,100)=0,"",IF(AA45=1,"",IF(OR(MOD(AA45,100)>=20,MOD(AA45,100)=10),INDEX(Dez,1,TRUNC(MOD(AA45,100)/10)),"")))&IF(MOD(AA45,100)=0,"",IF(AA45=1,"",IF(MOD(MOD(AA45,100),10)<>0,IF(OR(AA45>20,AND($U45>10^3,TRUNC(($U45-(10^0*INT($U45/(10^0)))))=0)),_e_,IF($U45>10^3,_sp_,"")),"")))&IF(AA45=0,"",IF(AA45=1,"",IF(MOD(MOD(AA45,100),10)=0,"",IF(MOD(AA45,100)<20,INDEX(Sml,1,MOD(AA45,100)),INDEX(Sml,1,MOD(MOD(AA45,100),10)))))) & IF(AA45<=1,"",INDEX(Plu,1,1)) ->  | AG45: =IF($U45<1,"",IF(TRUNC($U45)=1," real",IF(AND($U45>=10^6,TRUNC(MOD($U45,10^6))=0)," de","") & " reais")) ->  | AH45: =IF((ROUND($U45-TRUNC($U45),2)*100)=0,"",IF($U45>=1,_e_,"") & IF((ROUND($U45-TRUNC($U45),2)*100)=1,"um centavo",IF((ROUND($U45-TRUNC($U45),2)*100)>=20,INDEX(Dez,1,TRUNC((ROUND($U45-TRUNC($U45),2)*100)/10)) & IF(MOD((ROUND($U45-TRUNC($U45),2)*100),10)<>0,_e_ & INDEX(Sml,1,MOD((ROUND($U45-TRUNC($U45),2)*100),10)),""),INDEX(Sml,1,(ROUND($U45-TRUNC($U45),2)*100))) & " centavos")) ->  | AI45: =AB45&AC45&AD45&AE45&AF45&AG45&AH45 -> 
A46: 4.2 | B46: =VLOOKUP(A46,'QD 2 - Orçamento'!$B$18:$F$121,2,FALSE) -> NOVA 09 | C46: =VLOOKUP(A46,'QD 2 - Orçamento'!$B$18:$F$121,3,FALSE) -> Dispositivo de contenção longitudinal, certificado segundo a ABNT NBR 15486:2016, tipo (H4b A W5) - Defensa Metálica - Fornecimento e Implantação | D46: =VLOOKUP(A46,'QD 2 - Orçamento'!$B$18:$F$121,4,FALSE) -> m | E46: =VLOOKUP(A46,'QD 2 - Orçamento'!$B$18:$F$121,5,FALSE) -> 0 | F46: =VLOOKUP(B46,Composição!$C$4:$S$5015,17,FALSE) -> 35.77469388 | G46: =ROUND(0.2*E46/(F46*182.49),2) -> 0 | U46: 34.2375 | W46: =TRUNC(($U46-((10^{15,12,9,6,3})*INT($U46/(10^{15,12,9,6,3}))))/10^{12,9,6,3,0}) -> 0 | X46: 0 | Y46: 0 | Z46: 0 | AA46: 34 | AF46: trinta e quatro | AG46: reais | AH46: e vinte e quatro centavos | AI46: trinta e quatro reais e vinte e quatro centavos
A47: 4.3 | B47: =VLOOKUP(A47,'QD 2 - Orçamento'!$B$18:$F$121,2,FALSE) -> NOVA 07 | C47: =VLOOKUP(A47,'QD 2 - Orçamento'!$B$18:$F$121,3,FALSE) -> Dispositivo de contenção longitudinal, certificado segundo a ABNT NBR 15486:2016, tipo (H3 A W5) - Defensa Metálica - Fornecimento e Implantação | D47: =VLOOKUP(A47,'QD 2 - Orçamento'!$B$18:$F$121,4,FALSE) -> m | E47: =VLOOKUP(A47,'QD 2 - Orçamento'!$B$18:$F$121,5,FALSE) -> 0 | F47: =VLOOKUP(B47,Composição!$C$4:$S$5015,17,FALSE) -> 42.08282319 | G47: 0 | N47: =E46/F46 -> 0 | U47: 35.77469388 | W47: =TRUNC(($U47-((10^{15,12,9,6,3})*INT($U47/(10^{15,12,9,6,3}))))/10^{12,9,6,3,0}) -> 0 | X47: 0 | Y47: 0 | Z47: 0 | AA47: 35 | AF47: trinta e cinco | AG47: reais | AH47: e setenta e sete centavos | AI47: trinta e cinco reais e setenta e sete centavos
A48: 4.4 | B48: =VLOOKUP(A48,'QD 2 - Orçamento'!$B$18:$F$121,2,FALSE) -> NOVA 06 | C48: =VLOOKUP(A48,'QD 2 - Orçamento'!$B$18:$F$121,3,FALSE) -> Dispositivo de contenção longitudinal, certificado segundo a ABNT NBR 15486:2016, tipo (H2 A W3) - Defensa Metálica - Fornecimento e Implantação | D48: =VLOOKUP(A48,'QD 2 - Orçamento'!$B$18:$F$121,4,FALSE) -> m | E48: =VLOOKUP(A48,'QD 2 - Orçamento'!$B$18:$F$121,5,FALSE) -> 0 | F48: =VLOOKUP(B48,Composição!$C$4:$S$5015,17,FALSE) -> 48.17785016 | G48: 0 | U48: 42.08282319 | W48: =TRUNC(($U48-((10^{15,12,9,6,3})*INT($U48/(10^{15,12,9,6,3}))))/10^{12,9,6,3,0}) -> 0 | X48: 0 | Y48: 0 | Z48: 0 | AA48: 42 | AF48: quarenta e dois | AG48: reais | AH48: e oito centavos | AI48: quarenta e dois reais e oito centavos
A49: 4.5 | B49: =VLOOKUP(A49,'QD 2 - Orçamento'!$B$18:$F$121,2,FALSE) -> NOVA 05 | C49: =VLOOKUP(A49,'QD 2 - Orçamento'!$B$18:$F$121,3,FALSE) -> Dispositivo de contenção longitudinal, certificado segundo a ABNT NBR 15486:2016, tipo (H1 A W2) - Defensa Metálica - Fornecimento e Implantação | D49: =VLOOKUP(A49,'QD 2 - Orçamento'!$B$18:$F$121,4,FALSE) -> m | E49: =VLOOKUP(A49,'QD 2 - Orçamento'!$B$18:$F$121,5,FALSE) -> 0 | F49: =VLOOKUP(B49,Composição!$C$4:$S$5015,17,FALSE) -> 42.8247557 | G49: 0 | U49: 48.17785016 | W49: =TRUNC(($U49-((10^{15,12,9,6,3})*INT($U49/(10^{15,12,9,6,3}))))/10^{12,9,6,3,0}) -> 0 | X49: 0 | Y49: 0 | Z49: 0 | AA49: 48 | AF49: quarenta e oito | AG49: reais | AH49: e dezoito centavos | AI49: quarenta e oito reais e dezoito centavos
A50: 4.6 | B50: =VLOOKUP(A50,'QD 2 - Orçamento'!$B$18:$F$121,2,FALSE) -> NOVA 04 | C50: =VLOOKUP(A50,'QD 2 - Orçamento'!$B$18:$F$121,3,FALSE) -> Dispositivo de contenção longitudinal, certificado segundo a ABNT NBR 15486:2016, tipo (N2 A W2) - Defensa Metálica - Fornecimento e Implantação | D50: =VLOOKUP(A50,'QD 2 - Orçamento'!$B$18:$F$121,4,FALSE) -> m | E50: =VLOOKUP(A50,'QD 2 - Orçamento'!$B$18:$F$121,5,FALSE) -> 0 | F50: =VLOOKUP(B50,Composição!$C$4:$S$5015,17,FALSE) -> 51.25614035 | G50: 0 | U50: 42.8247557 | W50: =TRUNC(($U50-((10^{15,12,9,6,3})*INT($U50/(10^{15,12,9,6,3}))))/10^{12,9,6,3,0}) -> 0 | X50: 0 | Y50: 0 | Z50: 0 | AA50: 42 | AF50: quarenta e dois | AG50: reais | AH50: e oitenta e dois centavos | AI50: quarenta e dois reais e oitenta e dois centavos
A51: 4.7 | B51: =VLOOKUP(A51,'QD 2 - Orçamento'!$B$18:$F$121,2,FALSE) -> NOVA 10 | C51: =VLOOKUP(A51,'QD 2 - Orçamento'!$B$18:$F$121,3,FALSE) -> Terminal absorvedor de energia, certificado segundo a ABNT NBR 15.486:2016, especificado conforme NCHRP 350 nível de ensaio 2 (70 km/h) ou EN 1317 nível de ensaio 2 (80 km/h) – fornecimento e instalação | D51: =VLOOKUP(A51,'QD 2 - Orçamento'!$B$18:$F$121,4,FALSE) -> un | E51: =VLOOKUP(A51,'QD 2 - Orçamento'!$B$18:$F$121,5,FALSE) -> 0 | F51: =VLOOKUP(B51,Composição!$C$4:$S$5015,17,FALSE) -> 3.395454545 | G51: 0 | U51: 51.25614035 | W51: =TRUNC(($U51-((10^{15,12,9,6,3})*INT($U51/(10^{15,12,9,6,3}))))/10^{12,9,6,3,0}) -> 0 | X51: 0 | Y51: 0 | Z51: 0 | AA51: 51 | AF51: cinquenta e um | AG51: reais | AH51: e vinte e seis centavos | AI51: cinquenta e um reais e vinte e seis centavos
A52: 4.8 | B52: =VLOOKUP(A52,'QD 2 - Orçamento'!$B$18:$F$121,2,FALSE) -> NOVA 11 | C52: =VLOOKUP(A52,'QD 2 - Orçamento'!$B$18:$F$121,3,FALSE) -> Terminal absorvedor de energia, certificado segundo a ABNT NBR 15.486:2016, especificado conforme NCHRP 350 nível de ensaio 3 (100 km/h) ou EN 1317 nível de ensaio 3 (100 km/h) - Fornecimento e instalação | D52: =VLOOKUP(A52,'QD 2 - Orçamento'!$B$18:$F$121,4,FALSE) -> un | E52: =VLOOKUP(A52,'QD 2 - Orçamento'!$B$18:$F$121,5,FALSE) -> 0 | F52: =VLOOKUP(B52,Composição!$C$4:$S$5015,17,FALSE) -> 0.8686046512 | G52: 0
A53: 4.9 | B53: =VLOOKUP(A53,'QD 2 - Orçamento'!$B$18:$F$121,2,FALSE) -> 3713605 | C53: =VLOOKUP(A53,'QD 2 - Orçamento'!$B$18:$F$121,3,FALSE) -> Ancoragem de defensa semi-maleável simples - fornecimento e implantação | D53: =VLOOKUP(A53,'QD 2 - Orçamento'!$B$18:$F$121,4,FALSE) -> m | E53: =VLOOKUP(A53,'QD 2 - Orçamento'!$B$18:$F$121,5,FALSE) -> 0 | F53: =VLOOKUP(B53,Composição!$C$4:$S$5015,17,FALSE) -> 7.38 | G53: 0 | U53: =F52 -> 0.8686046512 | W53: =TRUNC(($U53-((10^{15,12,9,6,3})*INT($U53/(10^{15,12,9,6,3}))))/10^{12,9,6,3,0}) -> 0 | X53: 0 | Y53: 0 | Z53: 0 | AA53: 0 | AB53: =IF($U53<10^15,"",IF(OR(W53=1,AND(W53>=100,MOD(W53,100)=0)),IF(TRUNC(($U53-(10^12*INT($U53/(10^12)))))=0,_e_,_sp_),IF(W53<100,"",_sp_)))&IF(W53=1,INDEX(Sng,1,5),IF(W53<100,"",IF(W53=100,OCem,INDEX(www,1,TRUNC(W53/100)))))&IF(MOD(W53,100)=0,"",IF(W53=1,"",IF(OR(MOD(W53,100)>=20,MOD(W53,100)=10),IF(OR(W53>100,AND($U53>10^15,TRUNC(($U53-(10^12*INT($U53/(10^12)))))=0)),_e_,IF($U53>10^15,_sp_,"")),"")))&IF(MOD(W53,100)=0,"",IF(W53=1,"",IF(OR(MOD(W53,100)>=20,MOD(W53,100)=10),INDEX(Dez,1,TRUNC(MOD(W53,100)/10)),"")))&IF(MOD(W53,100)=0,"",IF(W53=1,"",IF(MOD(MOD(W53,100),10)<>0,IF(OR(W53>20,AND($U53>10^15,TRUNC(($U53-(10^12*INT($U53/(10^12)))))=0)),_e_,IF($U53>10^15,_sp_,"")),"")))&IF(W53=0,"",IF(W53=1,"",IF(MOD(MOD(W53,100),10)=0,"",IF(MOD(W53,100)<20,INDEX(Sml,1,MOD(W53,100)),INDEX(Sml,1,MOD(MOD(W53,100),10)))))) & IF(W53<=1,"",INDEX(Plu,1,5)) ->  | AC53: =IF($U53<10^12,"",IF(OR(X53=1,AND(X53>=100,MOD(X53,100)=0)),IF(TRUNC(($U53-(10^9*INT($U53/(10^9)))))=0,_e_,_sp_),IF(X53<100,"",_sp_)))&IF(X53=1,INDEX(Sng,1,4),IF(X53<100,"",IF(X53=100,OCem,INDEX(www,1,TRUNC(X53/100)))))&IF(MOD(X53,100)=0,"",IF(X53=1,"",IF(OR(MOD(X53,100)>=20,MOD(X53,100)=10),IF(OR(X53>100,AND($U53>10^12,TRUNC(($U53-(10^9*INT($U53/(10^9)))))=0)),_e_,IF($U53>10^12,_sp_,"")),"")))&IF(MOD(X53,100)=0,"",IF(X53=1,"",IF(OR(MOD(X53,100)>=20,MOD(X53,100)=10),INDEX(Dez,1,TRUNC(MOD(X53,100)/10)),"")))&IF(MOD(X53,100)=0,"",IF(X53=1,"",IF(MOD(MOD(X53,100),10)<>0,IF(OR(X53>20,AND($U53>10^12,TRUNC(($U53-(10^9*INT($U53/(10^9)))))=0)),_e_,IF($U53>10^12,_sp_,"")),"")))&IF(X53=0,"",IF(X53=1,"",IF(MOD(MOD(X53,100),10)=0,"",IF(MOD(X53,100)<20,INDEX(Sml,1,MOD(X53,100)),INDEX(Sml,1,MOD(MOD(X53,100),10)))))) & IF(X53<=1,"",INDEX(Plu,1,4)) ->  | AD53: =IF($U53<10^9,"",IF(OR(Y53=1,AND(Y53>=100,MOD(Y53,100)=0)),IF(TRUNC(($U53-(10^6*INT($U53/(10^6)))))=0,_e_,_sp_),IF(Y53<100,"",_sp_)))&IF(Y53=1,INDEX(Sng,1,3),IF(Y53<100,"",IF(Y53=100,OCem,INDEX(www,1,TRUNC(Y53/100)))))&IF(MOD(Y53,100)=0,"",IF(Y53=1,"",IF(OR(MOD(Y53,100)>=20,MOD(Y53,100)=10),IF(OR(Y53>100,AND($U53>10^9,TRUNC(($U53-(10^6*INT($U53/(10^6)))))=0)),_e_,IF($U53>10^9,_sp_,"")),"")))&IF(MOD(Y53,100)=0,"",IF(Y53=1,"",IF(OR(MOD(Y53,100)>=20,MOD(Y53,100)=10),INDEX(Dez,1,TRUNC(MOD(Y53,100)/10)),"")))&IF(MOD(Y53,100)=0,"",IF(Y53=1,"",IF(MOD(MOD(Y53,100),10)<>0,IF(OR(Y53>20,AND($U53>10^9,TRUNC(($U53-(10^6*INT($U53/(10^6)))))=0)),_e_,IF($U53>10^9,_sp_,"")),"")))&IF(Y53=0,"",IF(Y53=1,"",IF(MOD(MOD(Y53,100),10)=0,"",IF(MOD(Y53,100)<20,INDEX(Sml,1,MOD(Y53,100)),INDEX(Sml,1,MOD(MOD(Y53,100),10)))))) & IF(Y53<=1,"",INDEX(Plu,1,3)) ->  | AE53: =IF($U53<10^6,"",IF(OR(Z53=1,AND(Z53>=100,MOD(Z53,100)=0)),IF(TRUNC(($U53-(10^3*INT($U53/(10^3)))))=0,_e_,_sp_),IF(Z53<100,"",_sp_)))&IF(Z53=1,INDEX(Sng,1,2),IF(Z53<100,"",IF(Z53=100,OCem,INDEX(www,1,TRUNC(Z53/100)))))&IF(MOD(Z53,100)=0,"",IF(Z53=1,"",IF(OR(MOD(Z53,100)>=20,MOD(Z53,100)=10),IF(OR(Z53>100,AND($U53>10^6,TRUNC(($U53-(10^3*INT($U53/(10^3)))))=0)),_e_,IF($U53>10^6,_sp_,"")),"")))&IF(MOD(Z53,100)=0,"",IF(Z53=1,"",IF(OR(MOD(Z53,100)>=20,MOD(Z53,100)=10),INDEX(Dez,1,TRUNC(MOD(Z53,100)/10)),"")))&IF(MOD(Z53,100)=0,"",IF(Z53=1,"",IF(MOD(MOD(Z53,100),10)<>0,IF(OR(Z53>20,AND($U53>10^6,TRUNC(($U53-(10^3*INT($U53/(10^3)))))=0)),_e_,IF($U53>10^6,_sp_,"")),"")))&IF(Z53=0,"",IF(Z53=1,"",IF(MOD(MOD(Z53,100),10)=0,"",IF(MOD(Z53,100)<20,INDEX(Sml,1,MOD(Z53,100)),INDEX(Sml,1,MOD(MOD(Z53,100),10)))))) & IF(Z53<=1,"",INDEX(Plu,1,2)) ->  | AF53: =IF($U53<10^3,"",IF(OR(AA53=1,AND(AA53>=100,MOD(AA53,100)=0)),IF(TRUNC(($U53-(10^0*INT($U53/(10^0)))))=0,_e_,_sp_),IF(AA53<100,"",_sp_)))&IF(AA53=1,INDEX(Sng,1,1),IF(AA53<100,"",IF(AA53=100,OCem,INDEX(www,1,TRUNC(AA53/100)))))&IF(MOD(AA53,100)=0,"",IF(AA53=1,"",IF(OR(MOD(AA53,100)>=20,MOD(AA53,100)=10),IF(OR(AA53>100,AND($U53>10^3,TRUNC(($U53-(10^0*INT($U53/(10^0)))))=0)),_e_,IF($U53>10^3,_sp_,"")),"")))&IF(MOD(AA53,100)=0,"",IF(AA53=1,"",IF(OR(MOD(AA53,100)>=20,MOD(AA53,100)=10),INDEX(Dez,1,TRUNC(MOD(AA53,100)/10)),"")))&IF(MOD(AA53,100)=0,"",IF(AA53=1,"",IF(MOD(MOD(AA53,100),10)<>0,IF(OR(AA53>20,AND($U53>10^3,TRUNC(($U53-(10^0*INT($U53/(10^0)))))=0)),_e_,IF($U53>10^3,_sp_,"")),"")))&IF(AA53=0,"",IF(AA53=1,"",IF(MOD(MOD(AA53,100),10)=0,"",IF(MOD(AA53,100)<20,INDEX(Sml,1,MOD(AA53,100)),INDEX(Sml,1,MOD(MOD(AA53,100),10)))))) & IF(AA53<=1,"",INDEX(Plu,1,1)) ->  | AG53: =IF($U53<1,"",IF(TRUNC($U53)=1," real",IF(AND($U53>=10^6,TRUNC(MOD($U53,10^6))=0)," de","") & " reais")) ->  | AH53: =IF((ROUND($U53-TRUNC($U53),2)*100)=0,"",IF($U53>=1,_e_,"") & IF((ROUND($U53-TRUNC($U53),2)*100)=1,"um centavo",IF((ROUND($U53-TRUNC($U53),2)*100)>=20,INDEX(Dez,1,TRUNC((ROUND($U53-TRUNC($U53),2)*100)/10)) & IF(MOD((ROUND($U53-TRUNC($U53),2)*100),10)<>0,_e_ & INDEX(Sml,1,MOD((ROUND($U53-TRUNC($U53),2)*100),10)),""),INDEX(Sml,1,(ROUND($U53-TRUNC($U53),2)*100))) & " centavos")) -> oitenta e sete centavos | AI53: =AB53&AC53&AD53&AE53&AF53&AG53&AH53 -> oitenta e sete centavos
A54: 4.10 | B54: =VLOOKUP(A54,'QD 2 - Orçamento'!$B$18:$F$121,2,FALSE) -> 3713690 | C54: =VLOOKUP(A54,'QD 2 - Orçamento'!$B$18:$F$121,3,FALSE) -> Terminal de ancoragem de defensa metálica em barreira New Jersey - fornecimento e implantação | D54: =VLOOKUP(A54,'QD 2 - Orçamento'!$B$18:$F$121,4,FALSE) -> un | E54: =VLOOKUP(A54,'QD 2 - Orçamento'!$B$18:$F$121,5,FALSE) -> 0 | F54: =VLOOKUP(B54,Composição!$C$4:$S$5015,17,FALSE) -> 2 | G54: 0 | U54: 7.38 | W54: =TRUNC(($U54-((10^{15,12,9,6,3})*INT($U54/(10^{15,12,9,6,3}))))/10^{12,9,6,3,0}) -> 0 | X54: 0 | Y54: 0 | Z54: 0 | AA54: 7 | AF54: sete | AG54: reais | AH54: e trinta e oito centavos | AI54: sete reais e trinta e oito centavos
